Workbook

Sheet Indice
C3: =PBarrayPNG_actualizado!A1 -> PRECIOS EN BARRA EN SUBESTACIONES BASE
C4: =PBarrayPNG_actualizado!A2 -> ACTUALIZACIÓN AL 01 DE MAYO DE 2013
C6: =PBarrayPNG_actualizado!A111 -> PRECIOS A NIVEL GENERACIÓN Y PRECIOS EFECTIVOS
C7: =PBarrayPNG_actualizado!A112 -> ACTUALIZACIÓN AL 01 DE MAYO DE 2013
C10: =Transporte!B3 -> PEAJE DE CONEXIÓN AL SISTEMA PRINCIPAL DE TRANSMISIÓN
C11: =Transporte!B5 -> Actualizado al 01/mayo/2013
C13: =Transporte!B58 -> PEAJE TOTAL ACUMULADO EN MT POR ÁREA DE DEMANDA (ctm. S/./kWh)
C14: =Transporte!B60 -> Actualizado al 01/mayo/2013
C16: =Transporte!B153 -> PEAJE CPSEE - (ctm. S/./kW.h)
C17: =Transporte!B154 -> Actualizado al 01/mayo/2013
C19: =Transporte!B209 -> Factores de Expansión de Pérdidas Medias Media Tension
C22: =FpondVAD!B30 -> Factores de Ponderación del VAD
C24: =FpondVAD!L47 -> Valores Agregados de Distribución Por Sector Típico (S/./kW-mes)
C25: =FpondVAD!L63 -> Actualizado al 01/may/2013
C27: =FpondVAD!U91 -> Valor Agregado de Distribución Ponderado por Empresa (S/./kW-mes)
C28: =FpondVAD!U92 -> Actualizado al 01/may/2013
C34: =ResumenPliegosFOSE!A4 -> PLIEGO TARIFARIO (CON FOSE) : 01 / MAY / 2013
B40: INGRESO DE NUEVOS PLIEGOS TARIFARIOS
C44: =PBEMT!B3 -> PRECIOS EN BARRA EQUIVALENTE DE MEDIA TENSIÓN
C45: Contiene
C46: 1. | D46: =PBEMT!I5 -> Precios en Barra de Referencia
C47: 2. | D47: =PBEMT!N5 -> Transmisión Secundaria
C48: 3. | D48: =PBEMT!Q5 -> Comparación de PBEMT vs PMeSistemaAislado
C49: 4. | D49: =PBEMT!V5 -> Precios en Barra Equivalente de Media Tensión
D50: 4.1 | E50: =PBEMT!V6 -> Potencia S/./kW-mes
D51: 4.2 | E51: =PBEMT!W6 -> Energía HP ctm. S/./kW.h
D52: 4.3 | E52: =PBEMT!X6 -> Energía HFP ctm. S/./kW.h
C55: =Pliego!C10 -> PLIEGO TARIFARIO (SIN FOSE) : 01 / MAY /2013
D56: Contiene
C57: 1. | D57: =Pliego!M11 -> PARÁMETROS DE CÁLCULO TARIFARIO
C58: 2. | D58: =Pliego!W37 -> Cargos Fijos Actualizados
C59: 3. | D59: =Pliego!O41 -> ALFAmt y ALFAbt para el SER
C60: 4. | D60: =CONCATENATE(Pliego!N60," y ",Pliego!N61," de la Tarifa BT7 Pre Pago") -> CCSPcod y CCSPtarj de la Tarifa BT7 Pre Pago
C63: =Diccionario!A1 -> Tablas de interés
C64: =Diccionario!A2 -> EstructuraBT5B | D64: =Diccionario!B2 -> BBDD!H:T
C65: =Diccionario!A3 -> PreciosMediosFOSE | D65: =Diccionario!B3 -> BBDD!U:AJ
C66: =Diccionario!A4 -> CargosFOSE | D66: =Diccionario!B4 -> BBDD!AK:EA
C67: =Diccionario!A5 -> Cargos | D67: =Diccionario!B5 -> BBDD!EB:GP
B71: ANÁLISIS Y CONFORMIDAD DE PLIEGOS TARIFARIOS | C71: PARA EL INGRESO DE NUEVOS PLIEGOS
C75: =EstructuraBT5B!E1 -> Estructura del Cargo por Energía sin FOSE de la Opción Tarifaria BT5B al 01/may/2013 (ctm. S/./kW.h)
C79: =PreciosMediosFOSE!J1 -> Precios Medios con FOSE por departamento al 01/may/2013 (ctm. S/./kW.h)
C83: CONFORMIDAD VÍA WEB
C87: CONFORMIDAD VÍA CORREO ELECTRÓNICO

Sheet E
B1: 36 | C1: 37 | D1: 38 | E1: 39 | F1: 40 | G1: 41 | H1: 42 | I1: 43 | J1: 44 | K1: 45 | L1: 46 | M1: 47 | N1: 48 | O1: 49 | P1: 50 | Q1: 51 | R1: 52 | S1: 53 | T1: 54 | U1: 55 | V1: 56 | W1: 57 | X1: 58 | Y1: 59 | Z1: 60 | AA1: 61 | AB1: 62 | AC1: 63 | AD1: 64 | AE1: 65 | AF1: 66 | AG1: 67 | AH1: 68 | AI1: 69 | AJ1: 70 | AK1: 71 | AL1: 72 | AM1: 73 | AN1: 74 | AO1: 75 | AP1: 76 | AQ1: 77 | AR1: 78 | AS1: 79 | AT1: 80 | AU1: 81 | AV1: 82 | AW1: 83 | AX1: 84 | AY1: 85 | AZ1: 86 | BA1: 87 | BB1: 88 | BC1: 89 | BD1: 90 | BE1: 91 | BF1: 92 | BG1: 93 | BH1: 94 | BI1: 95 | BJ1: 96 | BK1: 97 | BL1: 98 | BM1: 99 | BN1: 100 | BO1: 101 | BP1: 102 | BQ1: 103 | BR1: 104 | BS1: 105 | BT1: 106 | BU1: 107 | BV1: 108 | BW1: 109 | BX1: 110 | BY1: 111 | BZ1: 112 | CA1: 113 | CB1: 114 | CC1: 115 | CD1: 116 | CE1: 117 | CF1: 118 | CG1: 119 | CH1: 120 | CI1: 121 | CJ1: 122 | CK1: 123 | CL1: 124 | CM1: 125 | CN1: 126 | CO1: 127 | CP1: 128 | CQ1: 129 | CR1: 130
A2: PR0268 | B2: 10.99 | C2: 15.3 | D2: 13.36 | E2: 27.13 | F2: 15.85 | G2: 17.27 | H2: 3.26 | I2: 10.99 | J2: 15.3 | K2: 13.36 | L2: 17.54 | M2: 17.54 | N2: 17.63 | O2: 17.63 | P2: 3.26 | Q2: 10.99 | R2: 14 | S2: 17.54 | T2: 17.54 | U2: 17.63 | V2: 17.63 | W2: 3.26 | X2: 10.99 | Y2: 16.93 | Z2: 14.79 | AA2: 30.06 | AB2: 65.28 | AC2: 32.32 | AD2: 3.26 | AE2: 10.99 | AF2: 16.93 | AG2: 14.79 | AH2: 20.3 | AI2: 6.78 | AJ2: 54.5 | AK2: 40.08 | AL2: 3.26 | AM2: 10.99 | AN2: 15.48 | AO2: 20.3 | AP2: 6.78 | AQ2: 54.5 | AR2: 40.08 | AS2: 3.26 | AT2: 10.99 | AU2: 118.06 | AV2: 123.94 | AW2: 14.79 | AX2: 55.15 | AY2: 3.55 | AZ2: 46.1 | BA2: 3.47 | BB2: 45.02 | BC2: 3.55 | BD2: 14.24 | BE2: 2.79 | BF2: 2.79 | BG2: 32.9 | BH2: 2.79 | BI2: 2.79 | BJ2: 9.87 | BK2: 65.79 | BL2: 2.86 | BM2: 2.86 | BN2: 67.37 | BO2: 3.47 | BP2: 1.89 | BQ2: 33.44 | BR2: 3.47 | BS2: 1.89 | BT2: 10.03 | BU2: 66.87 | BV2: 3.55 | BW2: 1.94 | BX2: 68.47 | BY2: 3.47 | BZ2: 0 | CA2: 32.85 | CB2: 3.47 | CC2: 0 | CD2: 9.86 | CE2: 65.7 | CF2: 3.55 | CG2: 0 | CH2: 67.28 | CI2: 0 | CJ2: 0 | CK2: 0 | CL2: 0 | CM2: 0 | CN2: 0 | CO2: 0 | CP2: 0 | CQ2: 0 | CR2: 0
A3: PR0269 | B3: 10.99 | C3: 15.49 | D3: 13.89 | E3: 28.04 | F3: 15.85 | G3: 17.27 | H3: 3.26 | I3: 10.99 | J3: 15.49 | K3: 13.89 | L3: 18.14 | M3: 18.14 | N3: 17.63 | O3: 17.63 | P3: 3.26 | Q3: 10.99 | R3: 14.41 | S3: 18.14 | T3: 18.14 | U3: 17.63 | V3: 17.63 | W3: 3.26 | X3: 10.99 | Y3: 17.15 | Z3: 15.37 | AA3: 31.08 | AB3: 65.28 | AC3: 32.32 | AD3: 3.26 | AE3: 10.99 | AF3: 17.15 | AG3: 15.37 | AH3: 20.98 | AI3: 7 | AJ3: 54.5 | AK3: 40.08 | AL3: 3.26 | AM3: 10.99 | AN3: 15.95 | AO3: 20.98 | AP3: 7 | AQ3: 54.5 | AR3: 40.08 | AS3: 3.26 | AT3: 10.99 | AU3: 119.35 | AV3: 125.31 | AW3: 15.37 | AX3: 55.15 | AY3: 3.55 | AZ3: 46.89 | BA3: 3.47 | BB3: 45.79 | BC3: 3.55 | BD3: 14.46 | BE3: 2.79 | BF3: 2.79 | BG3: 33.39 | BH3: 2.79 | BI3: 2.79 | BJ3: 10.02 | BK3: 66.78 | BL3: 2.86 | BM3: 2.86 | BN3: 68.38 | BO3: 3.47 | BP3: 1.89 | BQ3: 33.94 | BR3: 3.47 | BS3: 1.89 | BT3: 10.18 | BU3: 67.88 | BV3: 3.55 | BW3: 1.94 | BX3: 69.51 | BY3: 3.47 | BZ3: 0 | CA3: 33.34 | CB3: 3.47 | CC3: 0 | CD3: 10 | CE3: 66.67 | CF3: 3.55 | CG3: 0 | CH3: 68.27 | CI3: 0 | CJ3: 0 | CK3: 0 | CL3: 0 | CM3: 0 | CN3: 0 | CO3: 0 | CP3: 0 | CQ3: 0 | CR3: 0
A4: PL0197 | B4: 10.47 | C4: 17.62 | D4: 17.62 | E4: 18.12 | F4: 15.48 | G4: 16.87 | H4: 3.18 | I4: 9.34 | J4: 17.62 | K4: 17.62 | L4: 11.72 | M4: 11.72 | N4: 17.22 | O4: 17.22 | P4: 3.18 | Q4: 9.34 | R4: 17.62 | S4: 11.72 | T4: 11.72 | U4: 17.22 | V4: 17.22 | W4: 3.18 | X4: 10.47 | Y4: 19.9 | Z4: 19.9 | AA4: 20.51 | AB4: 64.11 | AC4: 31.56 | AD4: 3.18 | AE4: 9.34 | AF4: 19.9 | AG4: 19.9 | AH4: 13.84 | AI4: 4.62 | AJ4: 53.43 | AK4: 39.22 | AL4: 3.18 | AM4: 9.34 | AN4: 19.9 | AO4: 13.84 | AP4: 4.62 | AQ4: 53.43 | AR4: 39.22 | AS4: 3.18 | AT4: 9.34 | AU4: 109.64 | AV4: 114.87 | AW4: 19.9 | AX4: 53.86 | AY4: 3.25 | AZ4: 47.07 | BA4: 3.25 | BB4: 47.07 | BC4: 3.25 | BD4: 15 | BE4: 2.62 | BF4: 2.34 | BG4: 21.14 | BH4: 2.62 | BI4: 2.34 | BJ4: 6.34 | BK4: 56.37 | BL4: 2.62 | BM4: 2.34 | BN4: 56.37 | BO4: 3.25 | BP4: 1.75 | BQ4: 21.46 | BR4: 3.25 | BS4: 1.75 | BT4: 6.44 | BU4: 57.23 | BV4: 3.25 | BW4: 1.75 | BX4: 57.23 | BY4: 3.25 | BZ4: 0 | CA4: 20.97 | CB4: 3.25 | CC4: 0 | CD4: 6.29 | CE4: 55.92 | CF4: 3.25 | CG4: 0 | CH4: 55.92 | CI4: 0 | CJ4: 0 | CK4: 0 | CL4: 0 | CM4: 0 | CN4: 0 | CO4: 0 | CP4: 0 | CQ4: 0 | CR4: 0
A5: PR0198 | B5: 10.99 | C5: 15.61 | D5: 12.93 | E5: 27.18 | F5: 15.85 | G5: 17.27 | H5: 3.26 | I5: 10.99 | J5: 15.61 | K5: 12.93 | L5: 17.57 | M5: 17.57 | N5: 17.63 | O5: 17.63 | P5: 3.26 | Q5: 10.99 | R5: 13.8 | S5: 17.57 | T5: 17.57 | U5: 17.63 | V5: 17.63 | W5: 3.26 | X5: 10.99 | Y5: 17.27 | Z5: 14.31 | AA5: 30.13 | AB5: 65.28 | AC5: 32.32 | AD5: 3.26 | AE5: 10.99 | AF5: 17.27 | AG5: 14.31 | AH5: 20.34 | AI5: 6.79 | AJ5: 54.5 | AK5: 40.08 | AL5: 3.26 | AM5: 10.99 | AN5: 15.28 | AO5: 20.34 | AP5: 6.79 | AQ5: 54.5 | AR5: 40.08 | AS5: 3.26 | AT5: 10.99 | AU5: 118.46 | AV5: 124.34 | AW5: 14.31 | AX5: 55.15 | AY5: 3.55 | AZ5: 45.92 | BA5: 3.47 | BB5: 44.84 | BC5: 3.55 | BD5: 14.2 | BE5: 2.79 | BF5: 2.79 | BG5: 32.81 | BH5: 2.79 | BI5: 2.79 | BJ5: 9.84 | BK5: 65.62 | BL5: 2.86 | BM5: 2.86 | BN5: 67.19 | BO5: 3.47 | BP5: 1.89 | BQ5: 33.35 | BR5: 3.47 | BS5: 1.89 | BT5: 10.01 | BU5: 66.7 | BV5: 3.55 | BW5: 1.94 | BX5: 68.3 | BY5: 3.47 | BZ5: 0 | CA5: 32.76 | CB5: 3.47 | CC5: 0 | CD5: 9.83 | CE5: 65.52 | CF5: 3.55 | CG5: 0 | CH5: 67.09 | CI5: 0 | CJ5: 0 | CK5: 0 | CL5: 0 | CM5: 0 | CN5: 0 | CO5: 0 | CP5: 0 | CQ5: 0 | CR5: 0
A6: PR0201 | B6: 10.73 | C6: 17.83 | D6: 17.83 | E6: 19.08 | F6: 15.48 | G6: 16.87 | H6: 3.18 | I6: 10.73 | J6: 17.83 | K6: 17.83 | L6: 12.34 | M6: 12.34 | N6: 17.22 | O6: 17.22 | P6: 3.18 | Q6: 10.73 | R6: 17.83 | S6: 12.34 | T6: 12.34 | U6: 17.22 | V6: 17.22 | W6: 3.18 | X6: 10.73 | Y6: 19.73 | Z6: 19.73 | AA6: 21.15 | AB6: 63.75 | AC6: 31.56 | AD6: 3.18 | AE6: 10.73 | AF6: 19.73 | AG6: 19.73 | AH6: 14.28 | AI6: 4.77 | AJ6: 53.22 | AK6: 39.14 | AL6: 3.18 | AM6: 10.73 | AN6: 19.73 | AO6: 14.28 | AP6: 4.77 | AQ6: 53.22 | AR6: 39.14 | AS6: 3.18 | AT6: 10.73 | AU6: 109.77 | AV6: 115.02 | AW6: 19.73 | AX6: 53.86 | AY6: 3.47 | AZ6: 46.99 | BA6: 3.47 | BB6: 46.99 | BC6: 3.47 | BD6: 13.92 | BE6: 2.79 | BF6: 2.79 | BG6: 24.69 | BH6: 2.79 | BI6: 2.79 | BJ6: 7.41 | BK6: 65.83 | BL6: 2.79 | BM6: 2.79 | BN6: 65.83 | BO6: 3.47 | BP6: 1.89 | BQ6: 25.1 | BR6: 3.47 | BS6: 1.89 | BT6: 7.53 | BU6: 66.92 | BV6: 3.47 | BW6: 1.89 | BX6: 66.92 | BY6: 3.47 | BZ6: 0 | CA6: 24.69 | CB6: 3.47 | CC6: 0 | CD6: 7.41 | CE6: 65.84 | CF6: 3.47 | CG6: 0 | CH6: 65.84 | CI6: 0 | CJ6: 0 | CK6: 0 | CL6: 0 | CM6: 0 | CN6: 0 | CO6: 0 | CP6: 0 | CQ6: 0 | CR6: 0
A7: PR0202 | B7: 10.73 | C7: 17.83 | D7: 17.83 | E7: 19.08 | F7: 15.48 | G7: 16.87 | H7: 3.18 | I7: 10.73 | J7: 17.83 | K7: 17.83 | L7: 12.34 | M7: 12.34 | N7: 17.22 | O7: 17.22 | P7: 3.18 | Q7: 10.73 | R7: 17.83 | S7: 12.34 | T7: 12.34 | U7: 17.22 | V7: 17.22 | W7: 3.18 | X7: 10.73 | Y7: 19.73 | Z7: 19.73 | AA7: 21.15 | AB7: 63.75 | AC7: 31.56 | AD7: 3.18 | AE7: 10.73 | AF7: 19.73 | AG7: 19.73 | AH7: 14.28 | AI7: 4.77 | AJ7: 53.22 | AK7: 39.14 | AL7: 3.18 | AM7: 10.73 | AN7: 19.73 | AO7: 14.28 | AP7: 4.77 | AQ7: 53.22 | AR7: 39.14 | AS7: 3.18 | AT7: 10.73 | AU7: 109.77 | AV7: 115.02 | AW7: 19.73 | AX7: 53.86 | AY7: 3.47 | AZ7: 46.99 | BA7: 3.47 | BB7: 46.99 | BC7: 3.47 | BD7: 13.92 | BE7: 2.79 | BF7: 2.79 | BG7: 24.69 | BH7: 2.79 | BI7: 2.79 | BJ7: 7.41 | BK7: 65.83 | BL7: 2.79 | BM7: 2.79 | BN7: 65.83 | BO7: 3.47 | BP7: 1.89 | BQ7: 25.1 | BR7: 3.47 | BS7: 1.89 | BT7: 7.53 | BU7: 66.92 | BV7: 3.47 | BW7: 1.89 | BX7: 66.92 | BY7: 3.47 | BZ7: 0 | CA7: 24.69 | CB7: 3.47 | CC7: 0 | CD7: 7.41 | CE7: 65.84 | CF7: 3.47 | CG7: 0 | CH7: 65.84 | CI7: 0 | CJ7: 0 | CK7: 0 | CL7: 0 | CM7: 0 | CN7: 0 | CO7: 0 | CP7: 0 | CQ7: 0 | CR7: 0
A8: PR0203 | B8: 10.73 | C8: 17.83 | D8: 17.83 | E8: 19.08 | F8: 15.48 | G8: 16.87 | H8: 3.18 | I8: 10.73 | J8: 17.83 | K8: 17.83 | L8: 12.34 | M8: 12.34 | N8: 17.22 | O8: 17.22 | P8: 3.18 | Q8: 10.73 | R8: 17.83 | S8: 12.34 | T8: 12.34 | U8: 17.22 | V8: 17.22 | W8: 3.18 | X8: 10.73 | Y8: 19.73 | Z8: 19.73 | AA8: 21.15 | AB8: 63.75 | AC8: 31.56 | AD8: 3.18 | AE8: 10.73 | AF8: 19.73 | AG8: 19.73 | AH8: 14.28 | AI8: 4.77 | AJ8: 53.22 | AK8: 39.14 | AL8: 3.18 | AM8: 10.73 | AN8: 19.73 | AO8: 14.28 | AP8: 4.77 | AQ8: 53.22 | AR8: 39.14 | AS8: 3.18 | AT8: 10.73 | AU8: 109.77 | AV8: 115.02 | AW8: 19.73 | AX8: 53.86 | AY8: 3.47 | AZ8: 46.99 | BA8: 3.47 | BB8: 46.99 | BC8: 3.47 | BD8: 13.92 | BE8: 2.79 | BF8: 2.79 | BG8: 24.69 | BH8: 2.79 | BI8: 2.79 | BJ8: 7.41 | BK8: 65.83 | BL8: 2.79 | BM8: 2.79 | BN8: 65.83 | BO8: 3.47 | BP8: 1.89 | BQ8: 25.1 | BR8: 3.47 | BS8: 1.89 | BT8: 7.53 | BU8: 66.92 | BV8: 3.47 | BW8: 1.89 | BX8: 66.92 | BY8: 3.47 | BZ8: 0 | CA8: 24.69 | CB8: 3.47 | CC8: 0 | CD8: 7.41 | CE8: 65.84 | CF8: 3.47 | CG8: 0 | CH8: 65.84 | CI8: 0 | CJ8: 0 | CK8: 0 | CL8: 0 | CM8: 0 | CN8: 0 | CO8: 0 | CP8: 0 | CQ8: 0 | CR8: 0
A9: PR0204 | B9: 10.73 | C9: 17.83 | D9: 17.83 | E9: 19.08 | F9: 15.48 | G9: 16.87 | H9: 3.18 | I9: 10.73 | J9: 17.83 | K9: 17.83 | L9: 12.34 | M9: 12.34 | N9: 17.22 | O9: 17.22 | P9: 3.18 | Q9: 10.73 | R9: 17.83 | S9: 12.34 | T9: 12.34 | U9: 17.22 | V9: 17.22 | W9: 3.18 | X9: 10.73 | Y9: 19.73 | Z9: 19.73 | AA9: 21.15 | AB9: 63.75 | AC9: 31.56 | AD9: 3.18 | AE9: 10.73 | AF9: 19.73 | AG9: 19.73 | AH9: 14.28 | AI9: 4.77 | AJ9: 53.22 | AK9: 39.14 | AL9: 3.18 | AM9: 10.73 | AN9: 19.73 | AO9: 14.28 | AP9: 4.77 | AQ9: 53.22 | AR9: 39.14 | AS9: 3.18 | AT9: 10.73 | AU9: 109.77 | AV9: 115.02 | AW9: 19.73 | AX9: 53.86 | AY9: 3.47 | AZ9: 46.99 | BA9: 3.47 | BB9: 46.99 | BC9: 3.47 | BD9: 13.92 | BE9: 2.79 | BF9: 2.79 | BG9: 24.69 | BH9: 2.79 | BI9: 2.79 | BJ9: 7.41 | BK9: 65.83 | BL9: 2.79 | BM9: 2.79 | BN9: 65.83 | BO9: 3.47 | BP9: 1.89 | BQ9: 25.1 | BR9: 3.47 | BS9: 1.89 | BT9: 7.53 | BU9: 66.92 | BV9: 3.47 | BW9: 1.89 | BX9: 66.92 | BY9: 3.47 | BZ9: 0 | CA9: 24.69 | CB9: 3.47 | CC9: 0 | CD9: 7.41 | CE9: 65.84 | CF9: 3.47 | CG9: 0 | CH9: 65.84 | CI9: 0 | CJ9: 0 | CK9: 0 | CL9: 0 | CM9: 0 | CN9: 0 | CO9: 0 | CP9: 0 | CQ9: 0 | CR9: 0
A10: PR0205 | B10: 10.73 | C10: 17.83 | D10: 17.83 | E10: 19.08 | F10: 15.48 | G10: 16.87 | H10: 3.18 | I10: 10.73 | J10: 17.83 | K10: 17.83 | L10: 12.34 | M10: 12.34 | N10: 17.22 | O10: 17.22 | P10: 3.18 | Q10: 10.73 | R10: 17.83 | S10: 12.34 | T10: 12.34 | U10: 17.22 | V10: 17.22 | W10: 3.18 | X10: 10.73 | Y10: 19.73 | Z10: 19.73 | AA10: 21.15 | AB10: 63.75 | AC10: 31.56 | AD10: 3.18 | AE10: 10.73 | AF10: 19.73 | AG10: 19.73 | AH10: 14.28 | AI10: 4.77 | AJ10: 53.22 | AK10: 39.14 | AL10: 3.18 | AM10: 10.73 | AN10: 19.73 | AO10: 14.28 | AP10: 4.77 | AQ10: 53.22 | AR10: 39.14 | AS10: 3.18 | AT10: 10.73 | AU10: 109.77 | AV10: 115.02 | AW10: 19.73 | AX10: 53.86 | AY10: 3.47 | AZ10: 46.99 | BA10: 3.47 | BB10: 46.99 | BC10: 3.47 | BD10: 13.92 | BE10: 2.79 | BF10: 2.79 | BG10: 24.69 | BH10: 2.79 | BI10: 2.79 | BJ10: 7.41 | BK10: 65.83 | BL10: 2.79 | BM10: 2.79 | BN10: 65.83 | BO10: 3.47 | BP10: 1.89 | BQ10: 25.1 | BR10: 3.47 | BS10: 1.89 | BT10: 7.53 | BU10: 66.92 | BV10: 3.47 | BW10: 1.89 | BX10: 66.92 | BY10: 3.47 | BZ10: 0 | CA10: 24.69 | CB10: 3.47 | CC10: 0 | CD10: 7.41 | CE10: 65.84 | CF10: 3.47 | CG10: 0 | CH10: 65.84 | CI10: 0 | CJ10: 0 | CK10: 0 | CL10: 0 | CM10: 0 | CN10: 0 | CO10: 0 | CP10: 0 | CQ10: 0 | CR10: 0
A11: PR0206 | B11: 10.99 | C11: 15.29 | D11: 13.06 | E11: 27.28 | F11: 15.85 | G11: 17.27 | H11: 3.26 | I11: 10.99 | J11: 15.29 | K11: 13.06 | L11: 17.64 | M11: 17.64 | N11: 17.63 | O11: 17.63 | P11: 3.26 | Q11: 10.99 | R11: 13.78 | S11: 17.64 | T11: 17.64 | U11: 17.63 | V11: 17.63 | W11: 3.26 | X11: 10.99 | Y11: 16.92 | Z11: 14.45 | AA11: 30.24 | AB11: 65.28 | AC11: 32.32 | AD11: 3.26 | AE11: 10.99 | AF11: 16.92 | AG11: 14.45 | AH11: 20.42 | AI11: 6.82 | AJ11: 54.5 | AK11: 40.08 | AL11: 3.26 | AM11: 10.99 | AN11: 15.26 | AO11: 20.42 | AP11: 6.82 | AQ11: 54.5 | AR11: 40.08 | AS11: 3.26 | AT11: 10.99 | AU11: 118.22 | AV11: 124.13 | AW11: 14.45 | AX11: 55.15 | AY11: 3.55 | AZ11: 45.93 | BA11: 3.47 | BB11: 44.85 | BC11: 3.55 | BD11: 14.21 | BE11: 2.79 | BF11: 2.79 | BG11: 32.83 | BH11: 2.79 | BI11: 2.79 | BJ11: 9.85 | BK11: 65.66 | BL11: 2.86 | BM11: 2.86 | BN11: 67.24 | BO11: 3.47 | BP11: 1.89 | BQ11: 33.37 | BR11: 3.47 | BS11: 1.89 | BT11: 10.01 | BU11: 66.74 | BV11: 3.55 | BW11: 1.94 | BX11: 68.34 | BY11: 3.47 | BZ11: 0 | CA11: 32.79 | CB11: 3.47 | CC11: 0 | CD11: 9.84 | CE11: 65.57 | CF11: 3.55 | CG11: 0 | CH11: 67.14 | CI11: 0 | CJ11: 0 | CK11: 0 | CL11: 0 | CM11: 0 | CN11: 0 | CO11: 0 | CP11: 0 | CQ11: 0 | CR11: 0
A12: PR0207 | B12: 10.99 | C12: 15.47 | D12: 13.4 | E12: 27.14 | F12: 15.85 | G12: 17.27 | H12: 3.26 | I12: 10.99 | J12: 15.47 | K12: 13.4 | L12: 17.55 | M12: 17.55 | N12: 17.63 | O12: 17.63 | P12: 3.26 | Q12: 10.99 | R12: 14.08 | S12: 17.55 | T12: 17.55 | U12: 17.63 | V12: 17.63 | W12: 3.26 | X12: 10.99 | Y12: 17.13 | Z12: 14.83 | AA12: 30.09 | AB12: 65.28 | AC12: 32.32 | AD12: 3.26 | AE12: 10.99 | AF12: 17.13 | AG12: 14.83 | AH12: 20.32 | AI12: 6.78 | AJ12: 54.5 | AK12: 40.08 | AL12: 3.26 | AM12: 10.99 | AN12: 15.59 | AO12: 20.32 | AP12: 6.78 | AQ12: 54.5 | AR12: 40.08 | AS12: 3.26 | AT12: 10.99 | AU12: 118.27 | AV12: 124.16 | AW12: 14.83 | AX12: 55.15 | AY12: 3.55 | AZ12: 46.2 | BA12: 3.47 | BB12: 45.12 | BC12: 3.55 | BD12: 14.26 | BE12: 2.79 | BF12: 2.79 | BG12: 32.95 | BH12: 2.79 | BI12: 2.79 | BJ12: 9.88 | BK12: 65.89 | BL12: 2.86 | BM12: 2.86 | BN12: 67.47 | BO12: 3.47 | BP12: 1.89 | BQ12: 33.49 | BR12: 3.47 | BS12: 1.89 | BT12: 10.05 | BU12: 66.98 | BV12: 3.55 | BW12: 1.94 | BX12: 68.59 | BY12: 3.47 | BZ12: 0 | CA12: 32.9 | CB12: 3.47 | CC12: 0 | CD12: 9.87 | CE12: 65.8 | CF12: 3.55 | CG12: 0 | CH12: 67.38 | CI12: 0 | CJ12: 0 | CK12: 0 | CL12: 0 | CM12: 0 | CN12: 0 | CO12: 0 | CP12: 0 | CQ12: 0 | CR12: 0
A13: PR0209 | B13: 10.73 | C13: 17.83 | D13: 17.83 | E13: 19.08 | F13: 15.48 | G13: 16.87 | H13: 3.18 | I13: 10.73 | J13: 17.83 | K13: 17.83 | L13: 12.34 | M13: 12.34 | N13: 17.22 | O13: 17.22 | P13: 3.18 | Q13: 10.73 | R13: 17.83 | S13: 12.34 | T13: 12.34 | U13: 17.22 | V13: 17.22 | W13: 3.18 | X13: 10.73 | Y13: 19.73 | Z13: 19.73 | AA13: 21.15 | AB13: 63.75 | AC13: 31.56 | AD13: 3.18 | AE13: 10.73 | AF13: 19.73 | AG13: 19.73 | AH13: 14.28 | AI13: 4.77 | AJ13: 53.22 | AK13: 39.14 | AL13: 3.18 | AM13: 10.73 | AN13: 19.73 | AO13: 14.28 | AP13: 4.77 | AQ13: 53.22 | AR13: 39.14 | AS13: 3.18 | AT13: 10.73 | AU13: 109.77 | AV13: 115.02 | AW13: 19.73 | AX13: 53.86 | AY13: 3.47 | AZ13: 46.99 | BA13: 3.47 | BB13: 46.99 | BC13: 3.47 | BD13: 13.92 | BE13: 2.79 | BF13: 2.79 | BG13: 24.69 | BH13: 2.79 | BI13: 2.79 | BJ13: 7.41 | BK13: 65.83 | BL13: 2.79 | BM13: 2.79 | BN13: 65.83 | BO13: 3.47 | BP13: 1.89 | BQ13: 25.1 | BR13: 3.47 | BS13: 1.89 | BT13: 7.53 | BU13: 66.92 | BV13: 3.47 | BW13: 1.89 | BX13: 66.92 | BY13: 3.47 | BZ13: 0 | CA13: 24.69 | CB13: 3.47 | CC13: 0 | CD13: 7.41 | CE13: 65.84 | CF13: 3.47 | CG13: 0 | CH13: 65.84 | CI13: 0 | CJ13: 0 | CK13: 0 | CL13: 0 | CM13: 0 | CN13: 0 | CO13: 0 | CP13: 0 | CQ13: 0 | CR13: 0
A14: PR0210 | B14: 10.99 | C14: 15.78 | D14: 14 | E14: 28.04 | F14: 15.85 | G14: 17.27 | H14: 3.26 | I14: 10.99 | J14: 15.78 | K14: 14 | L14: 18.14 | M14: 18.14 | N14: 17.63 | O14: 17.63 | P14: 3.26 | Q14: 10.99 | R14: 14.58 | S14: 18.14 | T14: 18.14 | U14: 17.63 | V14: 17.63 | W14: 3.26 | X14: 10.99 | Y14: 17.46 | Z14: 15.49 | AA14: 31.08 | AB14: 65.28 | AC14: 32.32 | AD14: 3.26 | AE14: 10.99 | AF14: 17.46 | AG14: 15.49 | AH14: 20.98 | AI14: 7 | AJ14: 54.5 | AK14: 40.08 | AL14: 3.26 | AM14: 10.99 | AN14: 16.14 | AO14: 20.98 | AP14: 7 | AQ14: 54.5 | AR14: 40.08 | AS14: 3.26 | AT14: 10.99 | AU14: 119.65 | AV14: 125.61 | AW14: 15.49 | AX14: 55.15 | AY14: 3.55 | AZ14: 47.07 | BA14: 3.47 | BB14: 45.97 | BC14: 3.55 | BD14: 14.5 | BE14: 2.79 | BF14: 2.79 | BG14: 33.48 | BH14: 2.79 | BI14: 2.79 | BJ14: 10.04 | BK14: 66.96 | BL14: 2.86 | BM14: 2.86 | BN14: 68.57 | BO14: 3.47 | BP14: 1.89 | BQ14: 34.03 | BR14: 3.47 | BS14: 1.89 | BT14: 10.21 | BU14: 68.06 | BV14: 3.55 | BW14: 1.94 | BX14: 69.69 | BY14: 3.47 | BZ14: 0 | CA14: 33.43 | CB14: 3.47 | CC14: 0 | CD14: 10.03 | CE14: 66.85 | CF14: 3.55 | CG14: 0 | CH14: 68.45 | CI14: 0 | CJ14: 0 | CK14: 0 | CL14: 0 | CM14: 0 | CN14: 0 | CO14: 0 | CP14: 0 | CQ14: 0 | CR14: 0
A15: PR0211 | B15: 10.99 | C15: 15.41 | D15: 13.83 | E15: 28.04 | F15: 15.85 | G15: 17.27 | H15: 3.26 | I15: 10.99 | J15: 15.41 | K15: 13.83 | L15: 18.14 | M15: 18.14 | N15: 17.63 | O15: 17.63 | P15: 3.26 | Q15: 10.99 | R15: 14.35 | S15: 18.14 | T15: 18.14 | U15: 17.63 | V15: 17.63 | W15: 3.26 | X15: 10.99 | Y15: 17.05 | Z15: 15.31 | AA15: 31.08 | AB15: 65.28 | AC15: 32.32 | AD15: 3.26 | AE15: 10.99 | AF15: 17.05 | AG15: 15.31 | AH15: 20.98 | AI15: 7 | AJ15: 54.5 | AK15: 40.08 | AL15: 3.26 | AM15: 10.99 | AN15: 15.87 | AO15: 20.98 | AP15: 7 | AQ15: 54.5 | AR15: 40.08 | AS15: 3.26 | AT15: 10.99 | AU15: 119.26 | AV15: 125.2 | AW15: 15.31 | AX15: 55.15 | AY15: 3.55 | AZ15: 46.82 | BA15: 3.47 | BB15: 45.72 | BC15: 3.55 | BD15: 14.44 | BE15: 2.79 | BF15: 2.79 | BG15: 33.36 | BH15: 2.79 | BI15: 2.79 | BJ15: 10.01 | BK15: 66.71 | BL15: 2.86 | BM15: 2.86 | BN15: 68.31 | BO15: 3.47 | BP15: 1.89 | BQ15: 33.91 | BR15: 3.47 | BS15: 1.89 | BT15: 10.17 | BU15: 67.81 | BV15: 3.55 | BW15: 1.94 | BX15: 69.44 | BY15: 3.47 | BZ15: 0 | CA15: 33.3 | CB15: 3.47 | CC15: 0 | CD15: 9.99 | CE15: 66.6 | CF15: 3.55 | CG15: 0 | CH15: 68.2 | CI15: 0 | CJ15: 0 | CK15: 0 | CL15: 0 | CM15: 0 | CN15: 0 | CO15: 0 | CP15: 0 | CQ15: 0 | CR15: 0
A16: PL0212 | B16: 8.68 | C16: 15.44 | D16: 13.42 | E16: 26.38 | F16: 16.24 | G16: 17.72 | H16: 3.26 | I16: 8.68 | J16: 15.44 | K16: 13.42 | L16: 28.5 | M16: 14.18 | N16: 18.23 | O16: 17.97 | P16: 3.26 | Q16: 8.68 | R16: 14.09 | S16: 28.5 | T16: 14.18 | U16: 18.23 | V16: 17.97 | W16: 3.26 | X16: 8.68 | Y16: 17.15 | Z16: 14.92 | AA16: 28.71 | AB16: 65.37 | AC16: 32.32 | AD16: 3.26 | AE16: 8.68 | AF16: 17.15 | AG16: 14.92 | AH16: 19.38 | AI16: 6.47 | AJ16: 54.56 | AK16: 40.11 | AL16: 3.26 | AM16: 8.68 | AN16: 15.66 | AO16: 19.38 | AP16: 6.47 | AQ16: 54.56 | AR16: 40.11 | AS16: 3.26 | AT16: 8.68 | AU16: 116.95 | AV16: 122.76 | AW16: 14.92 | AX16: 55.15 | AY16: 3.18 | AZ16: 45.86 | BA16: 3.11 | BB16: 44.79 | BC16: 3.18 | BD16: 15.65 | BE16: 2.62 | BF16: 2.34 | BG16: 24.65 | BH16: 2.62 | BI16: 2.34 | BJ16: 7.4 | BK16: 49.3 | BL16: 2.68 | BM16: 2.4 | BN16: 50.48 | BO16: 3.11 | BP16: 1.7 | BQ16: 25.06 | BR16: 3.11 | BS16: 1.7 | BT16: 7.52 | BU16: 50.11 | BV16: 3.18 | BW16: 1.74 | BX16: 51.31 | BY16: 3.11 | BZ16: 0 | CA16: 24.41 | CB16: 3.11 | CC16: 0 | CD16: 7.32 | CE16: 48.81 | CF16: 3.18 | CG16: 0 | CH16: 49.98 | CI16: 0 | CJ16: 0 | CK16: 0 | CL16: 0 | CM16: 0 | CN16: 0 | CO16: 0 | CP16: 0 | CQ16: 0 | CR16: 0
A17: PR0213 | B17: 10.99 | C17: 14.87 | D17: 12.79 | E17: 26.99 | F17: 15.85 | G17: 17.27 | H17: 3.26 | I17: 10.99 | J17: 14.87 | K17: 12.79 | L17: 17.46 | M17: 17.46 | N17: 17.63 | O17: 17.63 | P17: 3.26 | Q17: 10.99 | R17: 13.47 | S17: 17.46 | T17: 17.46 | U17: 17.63 | V17: 17.63 | W17: 3.26 | X17: 10.99 | Y17: 16.46 | Z17: 14.15 | AA17: 29.92 | AB17: 65.28 | AC17: 32.32 | AD17: 3.26 | AE17: 10.99 | AF17: 16.46 | AG17: 14.15 | AH17: 20.2 | AI17: 6.75 | AJ17: 54.5 | AK17: 40.08 | AL17: 3.26 | AM17: 10.99 | AN17: 14.91 | AO17: 20.2 | AP17: 6.75 | AQ17: 54.5 | AR17: 40.08 | AS17: 3.26 | AT17: 10.99 | AU17: 117.43 | AV17: 123.31 | AW17: 14.15 | AX17: 55.15 | AY17: 3.55 | AZ17: 45.48 | BA17: 3.47 | BB17: 44.41 | BC17: 3.55 | BD17: 14.11 | BE17: 2.79 | BF17: 2.79 | BG17: 32.58 | BH17: 2.79 | BI17: 2.79 | BJ17: 9.77 | BK17: 65.16 | BL17: 2.86 | BM17: 2.86 | BN17: 66.72 | BO17: 3.47 | BP17: 1.89 | BQ17: 33.12 | BR17: 3.47 | BS17: 1.89 | BT17: 9.93 | BU17: 66.23 | BV17: 3.55 | BW17: 1.94 | BX17: 67.82 | BY17: 3.47 | BZ17: 0 | CA17: 32.53 | CB17: 3.47 | CC17: 0 | CD17: 9.76 | CE17: 65.06 | CF17: 3.55 | CG17: 0 | CH17: 66.62 | CI17: 0 | CJ17: 0 | CK17: 0 | CL17: 0 | CM17: 0 | CN17: 0 | CO17: 0 | CP17: 0 | CQ17: 0 | CR17: 0
A18: PR0214 | B18: 10.99 | C18: 13.86 | D18: 12.61 | E18: 27.28 | F18: 15.85 | G18: 17.27 | H18: 3.26 | I18: 10.99 | J18: 13.86 | K18: 12.61 | L18: 17.64 | M18: 17.64 | N18: 17.63 | O18: 17.63 | P18: 3.26 | Q18: 10.99 | R18: 13.02 | S18: 17.64 | T18: 17.64 | U18: 17.63 | V18: 17.63 | W18: 3.26 | X18: 10.99 | Y18: 15.34 | Z18: 13.95 | AA18: 30.24 | AB18: 65.28 | AC18: 32.32 | AD18: 3.26 | AE18: 10.99 | AF18: 15.34 | AG18: 13.95 | AH18: 20.42 | AI18: 6.82 | AJ18: 54.5 | AK18: 40.08 | AL18: 3.26 | AM18: 10.99 | AN18: 14.4 | AO18: 20.42 | AP18: 6.82 | AQ18: 54.5 | AR18: 40.08 | AS18: 3.26 | AT18: 10.99 | AU18: 116.64 | AV18: 122.55 | AW18: 13.95 | AX18: 55.15 | AY18: 3.55 | AZ18: 45.08 | BA18: 3.47 | BB18: 44.02 | BC18: 3.55 | BD18: 14.04 | BE18: 2.79 | BF18: 2.79 | BG18: 32.42 | BH18: 2.79 | BI18: 2.79 | BJ18: 9.73 | BK18: 64.84 | BL18: 2.86 | BM18: 2.86 | BN18: 66.4 | BO18: 3.47 | BP18: 1.89 | BQ18: 32.96 | BR18: 3.47 | BS18: 1.89 | BT18: 9.89 | BU18: 65.91 | BV18: 3.55 | BW18: 1.94 | BX18: 67.49 | BY18: 3.47 | BZ18: 0 | CA18: 32.37 | CB18: 3.47 | CC18: 0 | CD18: 9.71 | CE18: 64.74 | CF18: 3.55 | CG18: 0 | CH18: 66.29 | CI18: 0 | CJ18: 0 | CK18: 0 | CL18: 0 | CM18: 0 | CN18: 0 | CO18: 0 | CP18: 0 | CQ18: 0 | CR18: 0
A19: PL0216 | B19: 10.73 | C19: 17.83 | D19: 17.83 | E19: 19.08 | F19: 15.48 | G19: 16.87 | H19: 3.18 | I19: 10.73 | J19: 17.83 | K19: 17.83 | L19: 12.34 | M19: 12.34 | N19: 17.22 | O19: 17.22 | P19: 3.18 | Q19: 10.73 | R19: 17.83 | S19: 12.34 | T19: 12.34 | U19: 17.22 | V19: 17.22 | W19: 3.18 | X19: 10.73 | Y19: 19.73 | Z19: 19.73 | AA19: 21.15 | AB19: 63.75 | AC19: 31.56 | AD19: 3.18 | AE19: 10.73 | AF19: 19.73 | AG19: 19.73 | AH19: 14.28 | AI19: 4.77 | AJ19: 53.22 | AK19: 39.14 | AL19: 3.18 | AM19: 10.73 | AN19: 19.73 | AO19: 14.28 | AP19: 4.77 | AQ19: 53.22 | AR19: 39.14 | AS19: 3.18 | AT19: 10.73 | AU19: 109.77 | AV19: 115.02 | AW19: 19.73 | AX19: 53.86 | AY19: 3.47 | AZ19: 46.99 | BA19: 3.47 | BB19: 46.99 | BC19: 3.47 | BD19: 13.92 | BE19: 2.79 | BF19: 2.79 | BG19: 24.69 | BH19: 2.79 | BI19: 2.79 | BJ19: 7.41 | BK19: 65.83 | BL19: 2.79 | BM19: 2.79 | BN19: 65.83 | BO19: 3.47 | BP19: 1.89 | BQ19: 25.1 | BR19: 3.47 | BS19: 1.89 | BT19: 7.53 | BU19: 66.92 | BV19: 3.47 | BW19: 1.89 | BX19: 66.92 | BY19: 3.47 | BZ19: 0 | CA19: 24.69 | CB19: 3.47 | CC19: 0 | CD19: 7.41 | CE19: 65.84 | CF19: 3.47 | CG19: 0 | CH19: 65.84 | CI19: 0 | CJ19: 0 | CK19: 0 | CL19: 0 | CM19: 0 | CN19: 0 | CO19: 0 | CP19: 0 | CQ19: 0 | CR19: 0
A20: PL0265 | B20: 8.68 | C20: 14.47 | D20: 12.62 | E20: 25.86 | F20: 16.24 | G20: 17.72 | H20: 3.26 | I20: 8.68 | J20: 14.47 | K20: 12.62 | L20: 27.92 | M20: 13.91 | N20: 18.23 | O20: 17.97 | P20: 3.26 | Q20: 8.68 | R20: 13.22 | S20: 27.92 | T20: 13.91 | U20: 18.23 | V20: 17.97 | W20: 3.26 | X20: 8.68 | Y20: 16.08 | Z20: 14.02 | AA20: 28.15 | AB20: 65.37 | AC20: 32.32 | AD20: 3.26 | AE20: 8.68 | AF20: 16.08 | AG20: 14.02 | AH20: 19.01 | AI20: 6.35 | AJ20: 54.56 | AK20: 40.11 | AL20: 3.26 | AM20: 8.68 | AN20: 14.69 | AO20: 19.01 | AP20: 6.35 | AQ20: 54.56 | AR20: 40.11 | AS20: 3.26 | AT20: 8.68 | AU20: 115.27 | AV20: 121.05 | AW20: 14.02 | AX20: 55.15 | AY20: 3.18 | AZ20: 44.73 | BA20: 3.11 | BB20: 43.68 | BC20: 3.18 | BD20: 15.29 | BE20: 2.62 | BF20: 2.34 | BG20: 24.09 | BH20: 2.62 | BI20: 2.34 | BJ20: 7.23 | BK20: 48.17 | BL20: 2.68 | BM20: 2.4 | BN20: 49.33 | BO20: 3.11 | BP20: 1.7 | BQ20: 24.49 | BR20: 3.11 | BS20: 1.7 | BT20: 7.35 | BU20: 48.97 | BV20: 3.18 | BW20: 1.74 | BX20: 50.15 | BY20: 3.11 | BZ20: 0 | CA20: 23.85 | CB20: 3.11 | CC20: 0 | CD20: 7.16 | CE20: 47.7 | CF20: 3.18 | CG20: 0 | CH20: 48.84 | CI20: 0 | CJ20: 0 | CK20: 0 | CL20: 0 | CM20: 0 | CN20: 0 | CO20: 0 | CP20: 0 | CQ20: 0 | CR20: 0
A21: PL0266 | B21: 10.73 | C21: 17.83 | D21: 17.83 | E21: 19.08 | F21: 15.48 | G21: 16.87 | H21: 3.18 | I21: 10.73 | J21: 17.83 | K21: 17.83 | L21: 12.34 | M21: 12.34 | N21: 17.22 | O21: 17.22 | P21: 3.18 | Q21: 10.73 | R21: 17.83 | S21: 12.34 | T21: 12.34 | U21: 17.22 | V21: 17.22 | W21: 3.18 | X21: 10.73 | Y21: 19.73 | Z21: 19.73 | AA21: 21.15 | AB21: 63.75 | AC21: 31.56 | AD21: 3.18 | AE21: 10.73 | AF21: 19.73 | AG21: 19.73 | AH21: 14.28 | AI21: 4.77 | AJ21: 53.22 | AK21: 39.14 | AL21: 3.18 | AM21: 10.73 | AN21: 19.73 | AO21: 14.28 | AP21: 4.77 | AQ21: 53.22 | AR21: 39.14 | AS21: 3.18 | AT21: 10.73 | AU21: 109.77 | AV21: 115.02 | AW21: 19.73 | AX21: 53.86 | AY21: 3.47 | AZ21: 46.99 | BA21: 3.47 | BB21: 46.99 | BC21: 3.47 | BD21: 13.92 | BE21: 2.79 | BF21: 2.79 | BG21: 24.69 | BH21: 2.79 | BI21: 2.79 | BJ21: 7.41 | BK21: 65.83 | BL21: 2.79 | BM21: 2.79 | BN21: 65.83 | BO21: 3.47 | BP21: 1.89 | BQ21: 25.1 | BR21: 3.47 | BS21: 1.89 | BT21: 7.53 | BU21: 66.92 | BV21: 3.47 | BW21: 1.89 | BX21: 66.92 | BY21: 3.47 | BZ21: 0 | CA21: 24.69 | CB21: 3.47 | CC21: 0 | CD21: 7.41 | CE21: 65.84 | CF21: 3.47 | CG21: 0 | CH21: 65.84 | CI21: 0 | CJ21: 0 | CK21: 0 | CL21: 0 | CM21: 0 | CN21: 0 | CO21: 0 | CP21: 0 | CQ21: 0 | CR21: 0
A22: PL0157 | B22: 7.77 | C22: 14.6 | D22: 12.65 | E22: 28.08 | F22: 17.3 | G22: 14.43 | H22: 3.26 | I22: 7.77 | J22: 14.6 | K22: 12.65 | L22: 26.2 | M22: 21.66 | N22: 17.36 | O22: 16.58 | P22: 3.26 | Q22: 7.77 | R22: 13.1 | S22: 26.2 | T22: 21.66 | U22: 17.36 | V22: 16.58 | W22: 3.26 | X22: 7.77 | Y22: 16.19 | Z22: 14.03 | AA22: 30.03 | AB22: 67.92 | AC22: 42.08 | AD22: 3.26 | AE22: 7.77 | AF22: 16.19 | AG22: 14.03 | AH22: 25.85 | AI22: 13.64 | AJ22: 66.84 | AK22: 54.35 | AL22: 3.26 | AM22: 7.77 | AN22: 14.53 | AO22: 25.85 | AP22: 13.64 | AQ22: 66.84 | AR22: 54.35 | AS22: 3.26 | AT22: 7.77 | AU22: 116.49 | AV22: 122.33 | AW22: 14.03 | AX22: 55.15 | AY22: 3.1 | AZ22: 44.89 | BA22: 5.12 | BB22: 43.84 | BC22: 3.1 | BD22: 16.06 | BE22: 2.07 | BF22: 2.07 | BG22: 32.85 | BH22: 2.07 | BI22: 2.07 | BJ22: 9.86 | BK22: 43.8 | BL22: 2.12 | BM22: 2.12 | BN22: 44.85 | BO22: 3.03 | BP22: 0 | BQ22: 33.32 | BR22: 3.03 | BS22: 0 | BT22: 10 | BU22: 44.43 | BV22: 3.1 | BW22: 0 | BX22: 45.5 | BY22: 3.03 | BZ22: 0 | CA22: 32.33 | CB22: 3.03 | CC22: 0 | CD22: 9.7 | CE22: 43.11 | CF22: 3.1 | CG22: 0 | CH22: 44.14 | CI22: 0 | CJ22: 0 | CK22: 0 | CL22: 0 | CM22: 0 | CN22: 0 | CO22: 0 | CP22: 0 | CQ22: 0 | CR22: 0
A23: PL0260 | B23: 7.59 | C23: 17.55 | D23: 17.55 | E23: 19.77 | F23: 16.89 | G23: 14.09 | H23: 3.18 | I23: 7.59 | J23: 17.55 | K23: 17.55 | L23: 18.46 | M23: 15.25 | N23: 16.95 | O23: 16.19 | P23: 3.18 | Q23: 7.59 | R23: 17.55 | S23: 18.46 | T23: 15.25 | U23: 16.95 | V23: 16.19 | W23: 3.18 | X23: 7.59 | Y23: 19.46 | Z23: 19.46 | AA23: 21.15 | AB23: 66.33 | AC23: 41.09 | AD23: 3.18 | AE23: 7.59 | AF23: 19.46 | AG23: 19.46 | AH23: 18.2 | AI23: 9.61 | AJ23: 65.27 | AK23: 53.08 | AL23: 3.18 | AM23: 7.59 | AN23: 19.46 | AO23: 18.2 | AP23: 9.61 | AQ23: 65.27 | AR23: 53.08 | AS23: 3.18 | AT23: 7.59 | AU23: 109.03 | AV23: 114.25 | AW23: 19.46 | AX23: 53.86 | AY23: 3.03 | AZ23: 46.58 | BA23: 5.12 | BB23: 46.58 | BC23: 3.03 | BD23: 16.63 | BE23: 2.07 | BF23: 2.07 | BG23: 23.23 | BH23: 2.07 | BI23: 2.07 | BJ23: 6.97 | BK23: 46.45 | BL23: 2.07 | BM23: 2.07 | BN23: 46.45 | BO23: 3.03 | BP23: 0 | BQ23: 23.56 | BR23: 3.03 | BS23: 0 | BT23: 7.07 | BU23: 47.12 | BV23: 3.03 | BW23: 0 | BX23: 47.12 | BY23: 3.03 | BZ23: 0 | CA23: 22.88 | CB23: 3.03 | CC23: 0 | CD23: 6.86 | CE23: 45.75 | CF23: 3.03 | CG23: 0 | CH23: 45.75 | CI23: 0 | CJ23: 0 | CK23: 0 | CL23: 0 | CM23: 0 | CN23: 0 | CO23: 0 | CP23: 0 | CQ23: 0 | CR23: 0
A24: PL0001 | B24: 16.83 | C24: 15.16 | D24: 13.58 | E24: 30.21 | F24: 19.1 | G24: 17.32 | H24: 3.26 | I24: 16.83 | J24: 15.16 | K24: 13.58 | L24: 4.18 | M24: 0.06 | N24: 17.97 | O24: 17.82 | P24: 3.26 | Q24: 16.83 | R24: 13.94 | S24: 4.18 | T24: 0.06 | U24: 17.97 | V24: 17.82 | W24: 3.26 | X24: 16.83 | Y24: 16.37 | Z24: 14.66 | AA24: 20.15 | AB24: 35.55 | AC24: 35.16 | AD24: 3.26 | AE24: 16.83 | AF24: 16.37 | AG24: 14.66 | AH24: 6.94 | AI24: 2.07 | AJ24: 48.44 | AK24: 46.06 | AL24: 3.26 | AM24: 16.83 | AN24: 15.05 | AO24: 6.94 | AP24: 2.07 | AQ24: 48.44 | AR24: 46.06 | AS24: 3.26 | AT24: 16.83 | AU24: 100.98 | AV24: 105.9 | AW24: 14.66 | AX24: 37.78 | AY24: 3.81 | AZ24: 40.66 | BA24: 3.72 | BB24: 39.71 | BC24: 3.81 | BD24: 14.02 | BE24: 0 | BF24: 0 | BG24: 21.16 | BH24: 0 | BI24: 0 | BJ24: 6.35 | BK24: 42.32 | BL24: 0 | BM24: 0 | BN24: 43.34 | BO24: 3.72 | BP24: 0 | BQ24: 21.47 | BR24: 3.72 | BS24: 0 | BT24: 6.44 | BU24: 42.93 | BV24: 3.81 | BW24: 0 | BX24: 43.96 | BY24: 3.72 | BZ24: 0 | CA24: 17.61 | CB24: 3.72 | CC24: 0 | CD24: 5.28 | CE24: 35.22 | CF24: 3.81 | CG24: 0 | CH24: 36.07 | CI24: 0 | CJ24: 0 | CK24: 0 | CL24: 0 | CM24: 0 | CN24: 0 | CO24: 0 | CP24: 0 | CQ24: 0 | CR24: 0
A25: PL0263 | B25: 10.72 | C25: 15.12 | D25: 13.12 | E25: 25.95 | F25: 16.59 | G25: 18.08 | H25: 3.26 | I25: 9.56 | J25: 15.12 | K25: 13.12 | L25: 16.78 | M25: 16.78 | N25: 18.45 | O25: 18.45 | P25: 3.26 | Q25: 9.56 | R25: 13.57 | S25: 16.78 | T25: 16.78 | U25: 18.45 | V25: 18.45 | W25: 3.26 | X25: 10.72 | Y25: 17.08 | Z25: 14.82 | AA25: 29.37 | AB25: 51.45 | AC25: 22.14 | AD25: 3.26 | AE25: 9.56 | AF25: 17.08 | AG25: 14.82 | AH25: 19.82 | AI25: 6.63 | AJ25: 41.33 | AK25: 28.86 | AL25: 3.26 | AM25: 9.56 | AN25: 15.33 | AO25: 19.82 | AP25: 6.63 | AQ25: 41.33 | AR25: 28.86 | AS25: 3.26 | AT25: 9.56 | AU25: 102.79 | AV25: 107.78 | AW25: 14.82 | AX25: 37.78 | AY25: 3.33 | AZ25: 41.28 | BA25: 3.25 | BB25: 40.31 | BC25: 3.33 | BD25: 13.35 | BE25: 2.62 | BF25: 2.34 | BG25: 24.52 | BH25: 2.62 | BI25: 2.34 | BJ25: 7.36 | BK25: 49.04 | BL25: 2.68 | BM25: 2.4 | BN25: 50.22 | BO25: 3.25 | BP25: 1.75 | BQ25: 24.9 | BR25: 3.25 | BS25: 1.75 | BT25: 7.47 | BU25: 49.79 | BV25: 3.33 | BW25: 1.79 | BX25: 50.98 | BY25: 3.25 | BZ25: 0 | CA25: 19.52 | CB25: 3.25 | CC25: 0 | CD25: 5.85 | CE25: 39.03 | CF25: 3.33 | CG25: 0 | CH25: 39.97 | CI25: 0 | CJ25: 0 | CK25: 0 | CL25: 0 | CM25: 0 | CN25: 0 | CO25: 0 | CP25: 0 | CQ25: 0 | CR25: 0
A26: PL0002 | B26: 5.02 | C26: 14.94 | D26: 13.05 | E26: 25.23 | F26: 16.47 | G26: 15.51 | H26: 3.26 | I26: 5.02 | J26: 14.94 | K26: 13.05 | L26: 22.92 | M26: 12.91 | N26: 17.82 | O26: 16.89 | P26: 3.26 | Q26: 5.02 | R26: 13.48 | S26: 22.92 | T26: 12.91 | U26: 17.82 | V26: 16.89 | W26: 3.26 | X26: 5.02 | Y26: 16.42 | Z26: 14.35 | AA26: 28.79 | AB26: 40.59 | AC26: 33.01 | AD26: 3.26 | AE26: 5.02 | AF26: 16.42 | AG26: 14.35 | AH26: 27.79 | AI26: 21.58 | AJ26: 42.34 | AK26: 40 | AL26: 3.26 | AM26: 5.02 | AN26: 14.82 | AO26: 27.79 | AP26: 21.58 | AQ26: 42.34 | AR26: 40 | AS26: 3.26 | AT26: 5.02 | AU26: 87.71 | AV26: 91.86 | AW26: 14.35 | AX26: 24.41 | AY26: 2.41 | AZ26: 36.39 | BA26: 2.56 | BB26: 35.54 | BC26: 2.41 | BD26: 13.13 | BE26: 2.06 | BF26: 2.06 | BG26: 26.19 | BH26: 2.06 | BI26: 2.06 | BJ26: 7.86 | BK26: 34.92 | BL26: 2.11 | BM26: 2.11 | BN26: 35.76 | BO26: 2.35 | BP26: 0 | BQ26: 26.57 | BR26: 2.35 | BS26: 0 | BT26: 7.97 | BU26: 35.43 | BV26: 2.41 | BW26: 0 | BX26: 36.28 | BY26: 2.35 | BZ26: 0 | CA26: 22.52 | CB26: 2.35 | CC26: 0 | CD26: 6.75 | CE26: 30.02 | CF26: 2.41 | CG26: 0 | CH26: 30.74 | CI26: 0 | CJ26: 0 | CK26: 0 | CL26: 0 | CM26: 0 | CN26: 0 | CO26: 0 | CP26: 0 | CQ26: 0 | CR26: 0
A27: PL0004 | B27: 8.68 | C27: 13.79 | D27: 12.43 | E27: 26.01 | F27: 7.03 | G27: 10.24 | H27: 3.26 | I27: 8.68 | J27: 13.79 | K27: 12.43 | L27: 28.09 | M27: 13.99 | N27: 8.23 | O27: 9.24 | P27: 3.26 | Q27: 8.68 | R27: 12.78 | S27: 28.09 | T27: 13.99 | U27: 8.23 | V27: 9.24 | W27: 3.26 | X27: 8.68 | Y27: 15.33 | Z27: 13.8 | AA27: 28.3 | AB27: 42.12 | AC27: 23.9 | AD27: 3.26 | AE27: 8.68 | AF27: 15.33 | AG27: 13.8 | AH27: 19.11 | AI27: 6.38 | AJ27: 36.64 | AK27: 28.36 | AL27: 3.26 | AM27: 8.68 | AN27: 14.2 | AO27: 19.11 | AP27: 6.38 | AQ27: 36.64 | AR27: 28.36 | AS27: 3.26 | AT27: 8.68 | AU27: 90.02 | AV27: 94.37 | AW27: 13.8 | AX27: 39.83 | AY27: 3.18 | AZ27: 36.81 | BA27: 3.11 | BB27: 35.95 | BC27: 3.18 | BD27: 12.47 | BE27: 2.62 | BF27: 2.34 | BG27: 19.66 | BH27: 2.62 | BI27: 2.34 | BJ27: 5.9 | BK27: 39.31 | BL27: 2.68 | BM27: 2.4 | BN27: 40.25 | BO27: 3.11 | BP27: 1.7 | BQ27: 19.97 | BR27: 3.11 | BS27: 1.7 | BT27: 5.99 | BU27: 39.94 | BV27: 3.18 | BW27: 1.74 | BX27: 40.9 | BY27: 3.11 | BZ27: 0 | CA27: 14.09 | CB27: 3.11 | CC27: 0 | CD27: 4.23 | CE27: 28.18 | CF27: 3.18 | CG27: 0 | CH27: 28.86 | CI27: 0 | CJ27: 0 | CK27: 0 | CL27: 0 | CM27: 0 | CN27: 0 | CO27: 0 | CP27: 0 | CQ27: 0 | CR27: 0
A28: PL0003 | B28: 5.02 | C28: 13.82 | D28: 12.45 | E28: 25.37 | F28: 6.1 | G28: 7.65 | H28: 3.26 | I28: 5.02 | J28: 13.82 | K28: 12.45 | L28: 23.05 | M28: 12.98 | N28: 7.29 | O28: 7.43 | P28: 3.26 | Q28: 5.02 | R28: 12.81 | S28: 23.05 | T28: 12.98 | U28: 7.29 | V28: 7.43 | W28: 3.26 | X28: 5.02 | Y28: 15.2 | Z28: 13.69 | AA28: 28.96 | AB28: 38.75 | AC28: 31.85 | AD28: 3.26 | AE28: 5.02 | AF28: 15.2 | AG28: 13.69 | AH28: 27.96 | AI28: 21.7 | AJ28: 40.51 | AK28: 38.32 | AL28: 3.26 | AM28: 5.02 | AN28: 14.08 | AO28: 27.96 | AP28: 21.7 | AQ28: 40.51 | AR28: 38.32 | AS28: 3.26 | AT28: 5.02 | AU28: 84.76 | AV28: 88.81 | AW28: 13.69 | AX28: 35.58 | AY28: 2.41 | AZ28: 35.14 | BA28: 2.56 | BB28: 34.32 | BC28: 2.41 | BD28: 12.68 | BE28: 2.06 | BF28: 2.06 | BG28: 25.29 | BH28: 2.06 | BI28: 2.06 | BJ28: 7.59 | BK28: 33.72 | BL28: 2.11 | BM28: 2.11 | BN28: 34.53 | BO28: 2.35 | BP28: 0 | BQ28: 25.66 | BR28: 2.35 | BS28: 0 | BT28: 7.7 | BU28: 34.21 | BV28: 2.41 | BW28: 0 | BX28: 35.03 | BY28: 2.35 | BZ28: 0 | CA28: 18.96 | CB28: 2.35 | CC28: 0 | CD28: 5.69 | CE28: 25.28 | CF28: 2.41 | CG28: 0 | CH28: 25.89 | CI28: 0 | CJ28: 0 | CK28: 0 | CL28: 0 | CM28: 0 | CN28: 0 | CO28: 0 | CP28: 0 | CQ28: 0 | CR28: 0
A29: PL0014 | B29: 10.47 | C29: 17.62 | D29: 17.62 | E29: 18.12 | F29: 8.63 | G29: 11.32 | H29: 3.18 | I29: 9.34 | J29: 17.62 | K29: 17.62 | L29: 11.72 | M29: 11.72 | N29: 10.85 | O29: 10.85 | P29: 3.18 | Q29: 9.34 | R29: 17.62 | S29: 11.72 | T29: 11.72 | U29: 10.85 | V29: 10.85 | W29: 3.18 | X29: 10.47 | Y29: 19.9 | Z29: 19.9 | AA29: 20.51 | AB29: 44.46 | AC29: 25.52 | AD29: 3.18 | AE29: 9.34 | AF29: 19.9 | AG29: 19.9 | AH29: 13.84 | AI29: 4.62 | AJ29: 38.82 | AK29: 30.18 | AL29: 3.18 | AM29: 9.34 | AN29: 19.9 | AO29: 13.84 | AP29: 4.62 | AQ29: 38.82 | AR29: 30.18 | AS29: 3.18 | AT29: 9.34 | AU29: 88.8 | AV29: 92.81 | AW29: 19.9 | AX29: 40.1 | AY29: 3.25 | AZ29: 40.76 | BA29: 3.25 | BB29: 40.76 | BC29: 3.25 | BD29: 12.72 | BE29: 2.62 | BF29: 2.34 | BG29: 17.94 | BH29: 2.62 | BI29: 2.34 | BJ29: 5.38 | BK29: 47.84 | BL29: 2.62 | BM29: 2.34 | BN29: 47.84 | BO29: 3.25 | BP29: 1.75 | BQ29: 18.21 | BR29: 3.25 | BS29: 1.75 | BT29: 5.46 | BU29: 48.56 | BV29: 3.25 | BW29: 1.75 | BX29: 48.56 | BY29: 3.25 | BZ29: 0 | CA29: 13.46 | CB29: 3.25 | CC29: 0 | CD29: 4.04 | CE29: 35.88 | CF29: 3.25 | CG29: 0 | CH29: 35.88 | CI29: 0 | CJ29: 0 | CK29: 0 | CL29: 0 | CM29: 0 | CN29: 0 | CO29: 0 | CP29: 0 | CQ29: 0 | CR29: 0
A30: PL0011 | B30: 8.48 | C30: 17.37 | D30: 17.37 | E30: 18.19 | F30: 8.84 | G30: 11.6 | H30: 3.18 | I30: 8.48 | J30: 17.37 | K30: 17.37 | L30: 19.65 | M30: 9.78 | N30: 10.18 | O30: 10.89 | P30: 3.18 | Q30: 8.48 | R30: 17.37 | S30: 19.65 | T30: 9.78 | U30: 10.18 | V30: 10.89 | W30: 3.18 | X30: 8.48 | Y30: 19.3 | Z30: 19.3 | AA30: 19.8 | AB30: 44.31 | AC30: 25.52 | AD30: 3.18 | AE30: 8.48 | AF30: 19.3 | AG30: 19.3 | AH30: 13.37 | AI30: 4.46 | AJ30: 38.73 | AK30: 30.15 | AL30: 3.18 | AM30: 8.48 | AN30: 19.3 | AO30: 13.37 | AP30: 4.46 | AQ30: 38.73 | AR30: 30.15 | AS30: 3.18 | AT30: 8.48 | AU30: 87.3 | AV30: 91.26 | AW30: 19.3 | AX30: 40.1 | AY30: 3.11 | AZ30: 39.89 | BA30: 3.11 | BB30: 39.89 | BC30: 3.11 | BD30: 13.3 | BE30: 2.62 | BF30: 2.34 | BG30: 16.1 | BH30: 2.62 | BI30: 2.34 | BJ30: 4.83 | BK30: 42.92 | BL30: 2.62 | BM30: 2.34 | BN30: 42.92 | BO30: 3.11 | BP30: 1.7 | BQ30: 16.35 | BR30: 3.11 | BS30: 1.7 | BT30: 4.91 | BU30: 43.6 | BV30: 3.11 | BW30: 1.7 | BX30: 43.6 | BY30: 3.11 | BZ30: 0 | CA30: 12.21 | CB30: 3.11 | CC30: 0 | CD30: 3.66 | CE30: 32.57 | CF30: 3.11 | CG30: 0 | CH30: 32.57 | CI30: 0 | CJ30: 0 | CK30: 0 | CL30: 0 | CM30: 0 | CN30: 0 | CO30: 0 | CP30: 0 | CQ30: 0 | CR30: 0
A31: PL0012 | B31: 8.48 | C31: 17.37 | D31: 17.37 | E31: 18.19 | F31: 8.84 | G31: 11.6 | H31: 3.18 | I31: 8.48 | J31: 17.37 | K31: 17.37 | L31: 19.65 | M31: 9.78 | N31: 10.18 | O31: 10.89 | P31: 3.18 | Q31: 8.48 | R31: 17.37 | S31: 19.65 | T31: 9.78 | U31: 10.18 | V31: 10.89 | W31: 3.18 | X31: 8.48 | Y31: 19.3 | Z31: 19.3 | AA31: 19.8 | AB31: 44.31 | AC31: 25.52 | AD31: 3.18 | AE31: 8.48 | AF31: 19.3 | AG31: 19.3 | AH31: 13.37 | AI31: 4.46 | AJ31: 38.73 | AK31: 30.15 | AL31: 3.18 | AM31: 8.48 | AN31: 19.3 | AO31: 13.37 | AP31: 4.46 | AQ31: 38.73 | AR31: 30.15 | AS31: 3.18 | AT31: 8.48 | AU31: 87.3 | AV31: 91.26 | AW31: 19.3 | AX31: 40.1 | AY31: 3.11 | AZ31: 39.89 | BA31: 3.11 | BB31: 39.89 | BC31: 3.11 | BD31: 13.3 | BE31: 2.62 | BF31: 2.34 | BG31: 16.1 | BH31: 2.62 | BI31: 2.34 | BJ31: 4.83 | BK31: 42.92 | BL31: 2.62 | BM31: 2.34 | BN31: 42.92 | BO31: 3.11 | BP31: 1.7 | BQ31: 16.35 | BR31: 3.11 | BS31: 1.7 | BT31: 4.91 | BU31: 43.6 | BV31: 3.11 | BW31: 1.7 | BX31: 43.6 | BY31: 3.11 | BZ31: 0 | CA31: 12.21 | CB31: 3.11 | CC31: 0 | CD31: 3.66 | CE31: 32.57 | CF31: 3.11 | CG31: 0 | CH31: 32.57 | CI31: 0 | CJ31: 0 | CK31: 0 | CL31: 0 | CM31: 0 | CN31: 0 | CO31: 0 | CP31: 0 | CQ31: 0 | CR31: 0
A32: PL0013 | B32: 8.48 | C32: 17.37 | D32: 17.37 | E32: 18.19 | F32: 8.84 | G32: 11.6 | H32: 3.18 | I32: 8.48 | J32: 17.37 | K32: 17.37 | L32: 19.65 | M32: 9.78 | N32: 10.18 | O32: 10.89 | P32: 3.18 | Q32: 8.48 | R32: 17.37 | S32: 19.65 | T32: 9.78 | U32: 10.18 | V32: 10.89 | W32: 3.18 | X32: 8.48 | Y32: 19.3 | Z32: 19.3 | AA32: 19.8 | AB32: 44.31 | AC32: 25.52 | AD32: 3.18 | AE32: 8.48 | AF32: 19.3 | AG32: 19.3 | AH32: 13.37 | AI32: 4.46 | AJ32: 38.73 | AK32: 30.15 | AL32: 3.18 | AM32: 8.48 | AN32: 19.3 | AO32: 13.37 | AP32: 4.46 | AQ32: 38.73 | AR32: 30.15 | AS32: 3.18 | AT32: 8.48 | AU32: 87.3 | AV32: 91.26 | AW32: 19.3 | AX32: 40.1 | AY32: 3.11 | AZ32: 39.89 | BA32: 3.11 | BB32: 39.89 | BC32: 3.11 | BD32: 13.3 | BE32: 2.62 | BF32: 2.34 | BG32: 16.1 | BH32: 2.62 | BI32: 2.34 | BJ32: 4.83 | BK32: 42.92 | BL32: 2.62 | BM32: 2.34 | BN32: 42.92 | BO32: 3.11 | BP32: 1.7 | BQ32: 16.35 | BR32: 3.11 | BS32: 1.7 | BT32: 4.91 | BU32: 43.6 | BV32: 3.11 | BW32: 1.7 | BX32: 43.6 | BY32: 3.11 | BZ32: 0 | CA32: 12.21 | CB32: 3.11 | CC32: 0 | CD32: 3.66 | CE32: 32.57 | CF32: 3.11 | CG32: 0 | CH32: 32.57 | CI32: 0 | CJ32: 0 | CK32: 0 | CL32: 0 | CM32: 0 | CN32: 0 | CO32: 0 | CP32: 0 | CQ32: 0 | CR32: 0
A33: PL0016 | B33: 8.48 | C33: 17.37 | D33: 17.37 | E33: 18.19 | F33: 8.84 | G33: 11.6 | H33: 3.18 | I33: 8.48 | J33: 17.37 | K33: 17.37 | L33: 19.65 | M33: 9.78 | N33: 10.18 | O33: 10.89 | P33: 3.18 | Q33: 8.48 | R33: 17.37 | S33: 19.65 | T33: 9.78 | U33: 10.18 | V33: 10.89 | W33: 3.18 | X33: 8.48 | Y33: 19.3 | Z33: 19.3 | AA33: 19.8 | AB33: 44.31 | AC33: 25.52 | AD33: 3.18 | AE33: 8.48 | AF33: 19.3 | AG33: 19.3 | AH33: 13.37 | AI33: 4.46 | AJ33: 38.73 | AK33: 30.15 | AL33: 3.18 | AM33: 8.48 | AN33: 19.3 | AO33: 13.37 | AP33: 4.46 | AQ33: 38.73 | AR33: 30.15 | AS33: 3.18 | AT33: 8.48 | AU33: 87.3 | AV33: 91.26 | AW33: 19.3 | AX33: 40.1 | AY33: 3.11 | AZ33: 39.89 | BA33: 3.11 | BB33: 39.89 | BC33: 3.11 | BD33: 13.3 | BE33: 2.62 | BF33: 2.34 | BG33: 16.1 | BH33: 2.62 | BI33: 2.34 | BJ33: 4.83 | BK33: 42.92 | BL33: 2.62 | BM33: 2.34 | BN33: 42.92 | BO33: 3.11 | BP33: 1.7 | BQ33: 16.35 | BR33: 3.11 | BS33: 1.7 | BT33: 4.91 | BU33: 43.6 | BV33: 3.11 | BW33: 1.7 | BX33: 43.6 | BY33: 3.11 | BZ33: 0 | CA33: 12.21 | CB33: 3.11 | CC33: 0 | CD33: 3.66 | CE33: 32.57 | CF33: 3.11 | CG33: 0 | CH33: 32.57 | CI33: 0 | CJ33: 0 | CK33: 0 | CL33: 0 | CM33: 0 | CN33: 0 | CO33: 0 | CP33: 0 | CQ33: 0 | CR33: 0
A34: PL0221 | B34: 8.68 | C34: 14.91 | D34: 13.02 | E34: 25.86 | F34: 9.05 | G34: 11.88 | H34: 3.26 | I34: 8.68 | J34: 14.91 | K34: 13.02 | L34: 27.93 | M34: 13.91 | N34: 10.42 | O34: 11.15 | P34: 3.26 | Q34: 8.68 | R34: 13.48 | S34: 27.93 | T34: 13.91 | U34: 10.42 | V34: 11.15 | W34: 3.26 | X34: 8.68 | Y34: 16.57 | Z34: 14.47 | AA34: 28.15 | AB34: 45.37 | AC34: 26.13 | AD34: 3.26 | AE34: 8.68 | AF34: 16.57 | AG34: 14.47 | AH34: 19.01 | AI34: 6.35 | AJ34: 39.66 | AK34: 30.87 | AL34: 3.26 | AM34: 8.68 | AN34: 14.97 | AO34: 19.01 | AP34: 6.35 | AQ34: 39.66 | AR34: 30.87 | AS34: 3.26 | AT34: 8.68 | AU34: 94.55 | AV34: 99.08 | AW34: 14.47 | AX34: 41.06 | AY34: 3.18 | AZ34: 38.58 | BA34: 3.11 | BB34: 37.68 | BC34: 3.18 | BD34: 13.07 | BE34: 2.62 | BF34: 2.34 | BG34: 20.59 | BH34: 2.62 | BI34: 2.34 | BJ34: 6.18 | BK34: 41.18 | BL34: 2.68 | BM34: 2.4 | BN34: 42.17 | BO34: 3.11 | BP34: 1.7 | BQ34: 20.92 | BR34: 3.11 | BS34: 1.7 | BT34: 6.28 | BU34: 41.84 | BV34: 3.18 | BW34: 1.74 | BX34: 42.84 | BY34: 3.11 | BZ34: 0 | CA34: 15.4 | CB34: 3.11 | CC34: 0 | CD34: 4.62 | CE34: 30.79 | CF34: 3.18 | CG34: 0 | CH34: 31.53 | CI34: 0 | CJ34: 0 | CK34: 0 | CL34: 0 | CM34: 0 | CN34: 0 | CO34: 0 | CP34: 0 | CQ34: 0 | CR34: 0
A35: PL0007 | B35: 7.77 | C35: 15.25 | D35: 13.07 | E35: 28.11 | F35: 9.15 | G35: 9.18 | H35: 3.26 | I35: 7.77 | J35: 15.25 | K35: 13.07 | L35: 26.23 | M35: 21.69 | N35: 9.56 | O35: 9.46 | P35: 3.26 | Q35: 7.77 | R35: 13.6 | S35: 26.23 | T35: 21.69 | U35: 9.56 | V35: 9.46 | W35: 3.26 | X35: 7.77 | Y35: 16.91 | Z35: 14.49 | AA35: 30.06 | AB35: 44.7 | AC35: 32.28 | AD35: 3.26 | AE35: 7.77 | AF35: 16.91 | AG35: 14.49 | AH35: 25.88 | AI35: 13.66 | AJ35: 45.21 | AK35: 38.69 | AL35: 3.26 | AM35: 7.77 | AN35: 15.07 | AO35: 25.88 | AP35: 13.66 | AQ35: 45.21 | AR35: 38.69 | AS35: 3.26 | AT35: 7.77 | AU35: 93.47 | AV35: 97.93 | AW35: 14.49 | AX35: 38.96 | AY35: 3.1 | AZ35: 38.26 | BA35: 5.12 | BB35: 37.36 | BC35: 3.1 | BD35: 13.67 | BE35: 2.07 | BF35: 2.07 | BG35: 27.95 | BH35: 2.07 | BI35: 2.07 | BJ35: 8.39 | BK35: 37.27 | BL35: 2.12 | BM35: 2.12 | BN35: 38.16 | BO35: 3.03 | BP35: 0 | BQ35: 28.36 | BR35: 3.03 | BS35: 0 | BT35: 8.51 | BU35: 37.81 | BV35: 3.1 | BW35: 0 | BX35: 38.72 | BY35: 3.03 | BZ35: 0 | CA35: 21.36 | CB35: 3.03 | CC35: 0 | CD35: 6.41 | CE35: 28.48 | CF35: 3.1 | CG35: 0 | CH35: 29.16 | CI35: 0 | CJ35: 0 | CK35: 0 | CL35: 0 | CM35: 0 | CN35: 0 | CO35: 0 | CP35: 0 | CQ35: 0 | CR35: 0
A36: PL0008 | B36: 7.77 | C36: 15.12 | D36: 13.22 | E36: 28.11 | F36: 9.65 | G36: 9.68 | H36: 3.26 | I36: 7.77 | J36: 15.12 | K36: 13.22 | L36: 26.23 | M36: 21.69 | N36: 10.08 | O36: 9.97 | P36: 3.26 | Q36: 7.77 | R36: 13.68 | S36: 26.23 | T36: 21.69 | U36: 10.08 | V36: 9.97 | W36: 3.26 | X36: 7.77 | Y36: 16.77 | Z36: 14.65 | AA36: 30.06 | AB36: 47.11 | AC36: 34.03 | AD36: 3.26 | AE36: 7.77 | AF36: 16.77 | AG36: 14.65 | AH36: 25.88 | AI36: 13.66 | AJ36: 47.65 | AK36: 40.78 | AL36: 3.26 | AM36: 7.77 | AN36: 15.17 | AO36: 25.88 | AP36: 13.66 | AQ36: 47.65 | AR36: 40.78 | AS36: 3.26 | AT36: 7.77 | AU36: 95.8 | AV36: 100.4 | AW36: 14.65 | AX36: 41.06 | AY36: 3.1 | AZ36: 39.1 | BA36: 5.12 | BB36: 38.18 | BC36: 3.1 | BD36: 13.97 | BE36: 2.07 | BF36: 2.07 | BG36: 28.58 | BH36: 2.07 | BI36: 2.07 | BJ36: 8.57 | BK36: 38.1 | BL36: 2.12 | BM36: 2.12 | BN36: 39.01 | BO36: 3.03 | BP36: 0 | BQ36: 28.98 | BR36: 3.03 | BS36: 0 | BT36: 8.69 | BU36: 38.64 | BV36: 3.1 | BW36: 0 | BX36: 39.57 | BY36: 3.03 | BZ36: 0 | CA36: 21.65 | CB36: 3.03 | CC36: 0 | CD36: 6.5 | CE36: 28.87 | CF36: 3.1 | CG36: 0 | CH36: 29.56 | CI36: 0 | CJ36: 0 | CK36: 0 | CL36: 0 | CM36: 0 | CN36: 0 | CO36: 0 | CP36: 0 | CQ36: 0 | CR36: 0
A37: PL0261 | B37: 7.77 | C37: 15.06 | D37: 13.15 | E37: 28.11 | F37: 9.15 | G37: 9.18 | H37: 3.26 | I37: 7.77 | J37: 15.06 | K37: 13.15 | L37: 26.23 | M37: 21.69 | N37: 9.56 | O37: 9.46 | P37: 3.26 | Q37: 7.77 | R37: 13.62 | S37: 26.23 | T37: 21.69 | U37: 9.56 | V37: 9.46 | W37: 3.26 | X37: 7.77 | Y37: 16.7 | Z37: 14.58 | AA37: 30.06 | AB37: 44.7 | AC37: 32.28 | AD37: 3.26 | AE37: 7.77 | AF37: 16.7 | AG37: 14.58 | AH37: 25.88 | AI37: 13.66 | AJ37: 45.21 | AK37: 38.69 | AL37: 3.26 | AM37: 7.77 | AN37: 15.09 | AO37: 25.88 | AP37: 13.66 | AQ37: 45.21 | AR37: 38.69 | AS37: 3.26 | AT37: 7.77 | AU37: 93.26 | AV37: 97.71 | AW37: 14.58 | AX37: 38.96 | AY37: 3.1 | AZ37: 38.28 | BA37: 5.12 | BB37: 37.38 | BC37: 3.1 | BD37: 13.67 | BE37: 2.07 | BF37: 2.07 | BG37: 27.97 | BH37: 2.07 | BI37: 2.07 | BJ37: 8.39 | BK37: 37.29 | BL37: 2.12 | BM37: 2.12 | BN37: 38.18 | BO37: 3.03 | BP37: 0 | BQ37: 28.37 | BR37: 3.03 | BS37: 0 | BT37: 8.51 | BU37: 37.83 | BV37: 3.1 | BW37: 0 | BX37: 38.74 | BY37: 3.03 | BZ37: 0 | CA37: 21.38 | CB37: 3.03 | CC37: 0 | CD37: 6.41 | CE37: 28.5 | CF37: 3.1 | CG37: 0 | CH37: 29.18 | CI37: 0 | CJ37: 0 | CK37: 0 | CL37: 0 | CM37: 0 | CN37: 0 | CO37: 0 | CP37: 0 | CQ37: 0 | CR37: 0
A38: PL0262 | B38: 7.77 | C38: 15.12 | D38: 13.22 | E38: 28.11 | F38: 9.15 | G38: 9.18 | H38: 3.26 | I38: 7.77 | J38: 15.12 | K38: 13.22 | L38: 26.23 | M38: 21.69 | N38: 9.56 | O38: 9.46 | P38: 3.26 | Q38: 7.77 | R38: 13.68 | S38: 26.23 | T38: 21.69 | U38: 9.56 | V38: 9.46 | W38: 3.26 | X38: 7.77 | Y38: 16.77 | Z38: 14.65 | AA38: 30.06 | AB38: 44.7 | AC38: 32.28 | AD38: 3.26 | AE38: 7.77 | AF38: 16.77 | AG38: 14.65 | AH38: 25.88 | AI38: 13.66 | AJ38: 45.21 | AK38: 38.69 | AL38: 3.26 | AM38: 7.77 | AN38: 15.17 | AO38: 25.88 | AP38: 13.66 | AQ38: 45.21 | AR38: 38.69 | AS38: 3.26 | AT38: 7.77 | AU38: 93.33 | AV38: 97.78 | AW38: 14.65 | AX38: 38.96 | AY38: 3.1 | AZ38: 38.35 | BA38: 5.12 | BB38: 37.45 | BC38: 3.1 | BD38: 13.7 | BE38: 2.07 | BF38: 2.07 | BG38: 28.02 | BH38: 2.07 | BI38: 2.07 | BJ38: 8.41 | BK38: 37.36 | BL38: 2.12 | BM38: 2.12 | BN38: 38.26 | BO38: 3.03 | BP38: 0 | BQ38: 28.43 | BR38: 3.03 | BS38: 0 | BT38: 8.53 | BU38: 37.9 | BV38: 3.1 | BW38: 0 | BX38: 38.81 | BY38: 3.03 | BZ38: 0 | CA38: 21.43 | CB38: 3.03 | CC38: 0 | CD38: 6.43 | CE38: 28.57 | CF38: 3.1 | CG38: 0 | CH38: 29.26 | CI38: 0 | CJ38: 0 | CK38: 0 | CL38: 0 | CM38: 0 | CN38: 0 | CO38: 0 | CP38: 0 | CQ38: 0 | CR38: 0
A39: PL0005 | B39: 3.42 | C39: 15.13 | D39: 12.96 | E39: 28.19 | F39: 9.15 | G39: 10.77 | H39: 3.26 | I39: 2.86 | J39: 15.13 | K39: 12.96 | L39: 22.64 | M39: 13.94 | N39: 9.86 | O39: 10.22 | P39: 3.26 | Q39: 2.86 | R39: 13.5 | S39: 22.64 | T39: 13.94 | U39: 9.86 | V39: 10.22 | W39: 3.26 | X39: 3.42 | Y39: 16.57 | Z39: 14.19 | AA39: 29.95 | AB39: 46.55 | AC39: 37.07 | AD39: 3.26 | AE39: 2.86 | AF39: 16.57 | AG39: 14.19 | AH39: 22.74 | AI39: 14.06 | AJ39: 45.52 | AK39: 42.21 | AL39: 3.26 | AM39: 2.86 | AN39: 14.78 | AO39: 22.74 | AP39: 14.06 | AQ39: 45.52 | AR39: 42.21 | AS39: 3.26 | AT39: 2.86 | AU39: 86.21 | AV39: 79.3 | AW39: 14.19 | AX39: 39.56 | AY39: 2.41 | AZ39: 37.6 | BA39: 3.34 | BB39: 36.72 | BC39: 2.41 | BD39: 14.51 | BE39: 2.12 | BF39: 2.12 | BG39: 24.59 | BH39: 2.12 | BI39: 2.12 | BJ39: 7.38 | BK39: 32.78 | BL39: 2.17 | BM39: 2.17 | BN39: 33.57 | BO39: 2.35 | BP39: 0 | BQ39: 24.95 | BR39: 2.35 | BS39: 0 | BT39: 7.49 | BU39: 33.27 | BV39: 2.41 | BW39: 0 | BX39: 34.07 | BY39: 2.35 | BZ39: 0 | CA39: 19.21 | CB39: 2.35 | CC39: 0 | CD39: 5.76 | CE39: 25.61 | CF39: 2.41 | CG39: 0 | CH39: 26.22 | CI39: 2.18 | CJ39: 0 | CK39: 24.93 | CL39: 2.18 | CM39: 0 | CN39: 7.48 | CO39: 33.24 | CP39: 2.23 | CQ39: 0 | CR39: 34.04
A40: PL0159 | B40: 7.94 | C40: 18.12 | D40: 15.63 | E40: 33.73 | F40: 17.3 | G40: 14.43 | H40: 3.26 | I40: 7.94 | J40: 18.12 | K40: 15.63 | L40: 31.48 | M40: 26.02 | N40: 17.36 | O40: 16.58 | P40: 3.26 | Q40: 7.94 | R40: 16.22 | S40: 31.48 | T40: 26.02 | U40: 17.36 | V40: 16.58 | W40: 3.26 | X40: 7.94 | Y40: 20.1 | Z40: 17.33 | AA40: 36.09 | AB40: 67.92 | AC40: 42.08 | AD40: 3.26 | AE40: 7.94 | AF40: 20.1 | AG40: 17.33 | AH40: 31.05 | AI40: 16.39 | AJ40: 66.84 | AK40: 54.35 | AL40: 3.26 | AM40: 7.94 | AN40: 17.99 | AO40: 31.05 | AP40: 16.39 | AQ40: 66.84 | AR40: 54.35 | AS40: 3.26 | AT40: 7.94 | AU40: 126.59 | AV40: 132.79 | AW40: 17.33 | AX40: 55.15 | AY40: 3.21 | AZ40: 50.23 | BA40: 5.27 | BB40: 49.05 | BC40: 3.21 | BD40: 17.96 | BE40: 2.07 | BF40: 2.07 | BG40: 36.73 | BH40: 2.07 | BI40: 2.07 | BJ40: 11.02 | BK40: 48.97 | BL40: 2.12 | BM40: 2.12 | BN40: 50.15 | BO40: 3.13 | BP40: 0 | BQ40: 37.26 | BR40: 3.13 | BS40: 0 | BT40: 11.18 | BU40: 49.68 | BV40: 3.21 | BW40: 0 | BX40: 50.87 | BY40: 3.13 | BZ40: 0 | CA40: 36.1 | CB40: 3.13 | CC40: 0 | CD40: 10.83 | CE40: 48.13 | CF40: 3.21 | CG40: 0 | CH40: 49.29 | CI40: 0 | CJ40: 0 | CK40: 0 | CL40: 0 | CM40: 0 | CN40: 0 | CO40: 0 | CP40: 0 | CQ40: 0 | CR40: 0
A41: PR0061 | B41: 10.99 | C41: 15.5 | D41: 13.6 | E41: 27.67 | F41: 14.35 | G41: 16.91 | H41: 3.26 | I41: 10.99 | J41: 15.5 | K41: 13.6 | L41: 17.89 | M41: 17.89 | N41: 16.79 | O41: 16.79 | P41: 3.26 | Q41: 10.99 | R41: 14.14 | S41: 17.89 | T41: 17.89 | U41: 16.79 | V41: 16.79 | W41: 3.26 | X41: 10.99 | Y41: 17.16 | Z41: 15.05 | AA41: 30.67 | AB41: 59.81 | AC41: 30.33 | AD41: 3.26 | AE41: 10.99 | AF41: 17.16 | AG41: 15.05 | AH41: 20.71 | AI41: 6.91 | AJ41: 50.29 | AK41: 37.32 | AL41: 3.26 | AM41: 10.99 | AN41: 15.65 | AO41: 20.71 | AP41: 6.91 | AQ41: 50.29 | AR41: 37.32 | AS41: 3.26 | AT41: 10.99 | AU41: 113.13 | AV41: 118.72 | AW41: 15.05 | AX41: 50.76 | AY41: 3.55 | AZ41: 44.71 | BA41: 3.47 | BB41: 43.66 | BC41: 3.55 | BD41: 13.71 | BE41: 2.79 | BF41: 2.79 | BG41: 31.68 | BH41: 2.79 | BI41: 2.79 | BJ41: 9.5 | BK41: 63.36 | BL41: 2.86 | BM41: 2.86 | BN41: 64.88 | BO41: 3.47 | BP41: 1.89 | BQ41: 32.2 | BR41: 3.47 | BS41: 1.89 | BT41: 9.66 | BU41: 64.4 | BV41: 3.55 | BW41: 1.94 | BX41: 65.95 | BY41: 3.47 | BZ41: 0 | CA41: 21.76 | CB41: 3.47 | CC41: 0 | CD41: 6.53 | CE41: 43.51 | CF41: 3.55 | CG41: 0 | CH41: 44.55 | CI41: 0 | CJ41: 0 | CK41: 0 | CL41: 0 | CM41: 0 | CN41: 0 | CO41: 0 | CP41: 0 | CQ41: 0 | CR41: 0
A42: PR0063 | B42: 10.99 | C42: 15.86 | D42: 13.7 | E42: 27.59 | F42: 14.35 | G42: 16.91 | H42: 3.26 | I42: 10.99 | J42: 15.86 | K42: 13.7 | L42: 17.84 | M42: 17.84 | N42: 16.79 | O42: 16.79 | P42: 3.26 | Q42: 10.99 | R42: 14.32 | S42: 17.84 | T42: 17.84 | U42: 16.79 | V42: 16.79 | W42: 3.26 | X42: 10.99 | Y42: 17.55 | Z42: 15.17 | AA42: 30.58 | AB42: 59.81 | AC42: 30.33 | AD42: 3.26 | AE42: 10.99 | AF42: 17.55 | AG42: 15.17 | AH42: 20.64 | AI42: 6.89 | AJ42: 50.29 | AK42: 37.32 | AL42: 3.26 | AM42: 10.99 | AN42: 15.84 | AO42: 20.64 | AP42: 6.89 | AQ42: 50.29 | AR42: 37.32 | AS42: 3.26 | AT42: 10.99 | AU42: 113.42 | AV42: 119.01 | AW42: 15.17 | AX42: 50.76 | AY42: 3.55 | AZ42: 44.87 | BA42: 3.47 | BB42: 43.82 | BC42: 3.55 | BD42: 13.74 | BE42: 2.79 | BF42: 2.79 | BG42: 31.75 | BH42: 2.79 | BI42: 2.79 | BJ42: 9.52 | BK42: 63.49 | BL42: 2.86 | BM42: 2.86 | BN42: 65.01 | BO42: 3.47 | BP42: 1.89 | BQ42: 32.27 | BR42: 3.47 | BS42: 1.89 | BT42: 9.68 | BU42: 64.53 | BV42: 3.55 | BW42: 1.94 | BX42: 66.08 | BY42: 3.47 | BZ42: 0 | CA42: 21.83 | CB42: 3.47 | CC42: 0 | CD42: 6.55 | CE42: 43.65 | CF42: 3.55 | CG42: 0 | CH42: 44.7 | CI42: 0 | CJ42: 0 | CK42: 0 | CL42: 0 | CM42: 0 | CN42: 0 | CO42: 0 | CP42: 0 | CQ42: 0 | CR42: 0
A43: PR0064 | B43: 10.99 | C43: 15.89 | D43: 13.79 | E43: 27.59 | F43: 14.35 | G43: 16.91 | H43: 3.26 | I43: 10.99 | J43: 15.89 | K43: 13.79 | L43: 17.84 | M43: 17.84 | N43: 16.79 | O43: 16.79 | P43: 3.26 | Q43: 10.99 | R43: 14.39 | S43: 17.84 | T43: 17.84 | U43: 16.79 | V43: 16.79 | W43: 3.26 | X43: 10.99 | Y43: 17.59 | Z43: 15.27 | AA43: 30.58 | AB43: 59.81 | AC43: 30.33 | AD43: 3.26 | AE43: 10.99 | AF43: 17.59 | AG43: 15.27 | AH43: 20.64 | AI43: 6.89 | AJ43: 50.29 | AK43: 37.32 | AL43: 3.26 | AM43: 10.99 | AN43: 15.92 | AO43: 20.64 | AP43: 6.89 | AQ43: 50.29 | AR43: 37.32 | AS43: 3.26 | AT43: 10.99 | AU43: 113.46 | AV43: 119.04 | AW43: 15.27 | AX43: 50.76 | AY43: 3.55 | AZ43: 44.95 | BA43: 3.47 | BB43: 43.9 | BC43: 3.55 | BD43: 13.76 | BE43: 2.79 | BF43: 2.79 | BG43: 31.79 | BH43: 2.79 | BI43: 2.79 | BJ43: 9.54 | BK43: 63.57 | BL43: 2.86 | BM43: 2.86 | BN43: 65.1 | BO43: 3.47 | BP43: 1.89 | BQ43: 32.31 | BR43: 3.47 | BS43: 1.89 | BT43: 9.69 | BU43: 64.61 | BV43: 3.55 | BW43: 1.94 | BX43: 66.16 | BY43: 3.47 | BZ43: 0 | CA43: 21.86 | CB43: 3.47 | CC43: 0 | CD43: 6.56 | CE43: 43.72 | CF43: 3.55 | CG43: 0 | CH43: 44.77 | CI43: 0 | CJ43: 0 | CK43: 0 | CL43: 0 | CM43: 0 | CN43: 0 | CO43: 0 | CP43: 0 | CQ43: 0 | CR43: 0
A44: PR0065 | B44: 10.99 | C44: 16.47 | D44: 14.24 | E44: 27.67 | F44: 14.35 | G44: 16.91 | H44: 3.26 | I44: 10.99 | J44: 16.47 | K44: 14.24 | L44: 17.89 | M44: 17.89 | N44: 16.79 | O44: 16.79 | P44: 3.26 | Q44: 10.99 | R44: 14.87 | S44: 17.89 | T44: 17.89 | U44: 16.79 | V44: 16.79 | W44: 3.26 | X44: 10.99 | Y44: 18.23 | Z44: 15.76 | AA44: 30.67 | AB44: 59.81 | AC44: 30.33 | AD44: 3.26 | AE44: 10.99 | AF44: 18.23 | AG44: 15.76 | AH44: 20.71 | AI44: 6.91 | AJ44: 50.29 | AK44: 37.32 | AL44: 3.26 | AM44: 10.99 | AN44: 16.46 | AO44: 20.71 | AP44: 6.91 | AQ44: 50.29 | AR44: 37.32 | AS44: 3.26 | AT44: 10.99 | AU44: 114.2 | AV44: 119.79 | AW44: 15.76 | AX44: 50.76 | AY44: 3.55 | AZ44: 45.52 | BA44: 3.47 | BB44: 44.45 | BC44: 3.55 | BD44: 13.89 | BE44: 2.79 | BF44: 2.79 | BG44: 32.07 | BH44: 2.79 | BI44: 2.79 | BJ44: 9.62 | BK44: 64.14 | BL44: 2.86 | BM44: 2.86 | BN44: 65.68 | BO44: 3.47 | BP44: 1.89 | BQ44: 32.6 | BR44: 3.47 | BS44: 1.89 | BT44: 9.78 | BU44: 65.19 | BV44: 3.55 | BW44: 1.94 | BX44: 66.75 | BY44: 3.47 | BZ44: 0 | CA44: 22.15 | CB44: 3.47 | CC44: 0 | CD44: 6.64 | CE44: 44.29 | CF44: 3.55 | CG44: 0 | CH44: 45.35 | CI44: 0 | CJ44: 0 | CK44: 0 | CL44: 0 | CM44: 0 | CN44: 0 | CO44: 0 | CP44: 0 | CQ44: 0 | CR44: 0
A45: PR0066 | B45: 10.99 | C45: 16.32 | D45: 14.13 | E45: 27.67 | F45: 14.35 | G45: 16.91 | H45: 3.26 | I45: 10.99 | J45: 16.32 | K45: 14.13 | L45: 17.89 | M45: 17.89 | N45: 16.79 | O45: 16.79 | P45: 3.26 | Q45: 10.99 | R45: 14.75 | S45: 17.89 | T45: 17.89 | U45: 16.79 | V45: 16.79 | W45: 3.26 | X45: 10.99 | Y45: 18.06 | Z45: 15.64 | AA45: 30.67 | AB45: 59.81 | AC45: 30.33 | AD45: 3.26 | AE45: 10.99 | AF45: 18.06 | AG45: 15.64 | AH45: 20.71 | AI45: 6.91 | AJ45: 50.29 | AK45: 37.32 | AL45: 3.26 | AM45: 10.99 | AN45: 16.32 | AO45: 20.71 | AP45: 6.91 | AQ45: 50.29 | AR45: 37.32 | AS45: 3.26 | AT45: 10.99 | AU45: 114.04 | AV45: 119.63 | AW45: 15.64 | AX45: 50.76 | AY45: 3.55 | AZ45: 45.38 | BA45: 3.47 | BB45: 44.32 | BC45: 3.55 | BD45: 13.85 | BE45: 2.79 | BF45: 2.79 | BG45: 32.01 | BH45: 2.79 | BI45: 2.79 | BJ45: 9.6 | BK45: 64.01 | BL45: 2.86 | BM45: 2.86 | BN45: 65.55 | BO45: 3.47 | BP45: 1.89 | BQ45: 32.53 | BR45: 3.47 | BS45: 1.89 | BT45: 9.76 | BU45: 65.06 | BV45: 3.55 | BW45: 1.94 | BX45: 66.62 | BY45: 3.47 | BZ45: 0 | CA45: 22.08 | CB45: 3.47 | CC45: 0 | CD45: 6.62 | CE45: 44.16 | CF45: 3.55 | CG45: 0 | CH45: 45.22 | CI45: 0 | CJ45: 0 | CK45: 0 | CL45: 0 | CM45: 0 | CN45: 0 | CO45: 0 | CP45: 0 | CQ45: 0 | CR45: 0
A46: PR0071 | B46: 10.99 | C46: 15.66 | D46: 13.63 | E46: 27.67 | F46: 14.35 | G46: 16.91 | H46: 3.26 | I46: 10.99 | J46: 15.66 | K46: 13.63 | L46: 17.89 | M46: 17.89 | N46: 16.79 | O46: 16.79 | P46: 3.26 | Q46: 10.99 | R46: 14.2 | S46: 17.89 | T46: 17.89 | U46: 16.79 | V46: 16.79 | W46: 3.26 | X46: 10.99 | Y46: 17.33 | Z46: 15.08 | AA46: 30.67 | AB46: 59.81 | AC46: 30.33 | AD46: 3.26 | AE46: 10.99 | AF46: 17.33 | AG46: 15.08 | AH46: 20.71 | AI46: 6.91 | AJ46: 50.29 | AK46: 37.32 | AL46: 3.26 | AM46: 10.99 | AN46: 15.72 | AO46: 20.71 | AP46: 6.91 | AQ46: 50.29 | AR46: 37.32 | AS46: 3.26 | AT46: 10.99 | AU46: 113.3 | AV46: 118.89 | AW46: 15.08 | AX46: 50.76 | AY46: 3.55 | AZ46: 44.77 | BA46: 3.47 | BB46: 43.72 | BC46: 3.55 | BD46: 13.73 | BE46: 2.79 | BF46: 2.79 | BG46: 31.71 | BH46: 2.79 | BI46: 2.79 | BJ46: 9.51 | BK46: 63.42 | BL46: 2.86 | BM46: 2.86 | BN46: 64.94 | BO46: 3.47 | BP46: 1.89 | BQ46: 32.23 | BR46: 3.47 | BS46: 1.89 | BT46: 9.67 | BU46: 64.46 | BV46: 3.55 | BW46: 1.94 | BX46: 66.01 | BY46: 3.47 | BZ46: 0 | CA46: 21.79 | CB46: 3.47 | CC46: 0 | CD46: 6.54 | CE46: 43.57 | CF46: 3.55 | CG46: 0 | CH46: 44.62 | CI46: 0 | CJ46: 0 | CK46: 0 | CL46: 0 | CM46: 0 | CN46: 0 | CO46: 0 | CP46: 0 | CQ46: 0 | CR46: 0
A47: PR0073 | B47: 10.99 | C47: 15.86 | D47: 13.7 | E47: 27.59 | F47: 14.35 | G47: 16.91 | H47: 3.26 | I47: 10.99 | J47: 15.86 | K47: 13.7 | L47: 17.84 | M47: 17.84 | N47: 16.79 | O47: 16.79 | P47: 3.26 | Q47: 10.99 | R47: 14.32 | S47: 17.84 | T47: 17.84 | U47: 16.79 | V47: 16.79 | W47: 3.26 | X47: 10.99 | Y47: 17.55 | Z47: 15.17 | AA47: 30.58 | AB47: 59.81 | AC47: 30.33 | AD47: 3.26 | AE47: 10.99 | AF47: 17.55 | AG47: 15.17 | AH47: 20.64 | AI47: 6.89 | AJ47: 50.29 | AK47: 37.32 | AL47: 3.26 | AM47: 10.99 | AN47: 15.84 | AO47: 20.64 | AP47: 6.89 | AQ47: 50.29 | AR47: 37.32 | AS47: 3.26 | AT47: 10.99 | AU47: 113.42 | AV47: 119.01 | AW47: 15.17 | AX47: 50.76 | AY47: 3.55 | AZ47: 44.87 | BA47: 3.47 | BB47: 43.82 | BC47: 3.55 | BD47: 13.74 | BE47: 2.79 | BF47: 2.79 | BG47: 26.79 | BH47: 2.79 | BI47: 2.79 | BJ47: 8.04 | BK47: 63.49 | BL47: 2.86 | BM47: 2.86 | BN47: 65.01 | BO47: 3.47 | BP47: 1.89 | BQ47: 27.23 | BR47: 3.47 | BS47: 1.89 | BT47: 8.17 | BU47: 64.53 | BV47: 3.55 | BW47: 1.94 | BX47: 66.08 | BY47: 3.47 | BZ47: 0 | CA47: 18.42 | CB47: 3.47 | CC47: 0 | CD47: 5.53 | CE47: 43.65 | CF47: 3.55 | CG47: 0 | CH47: 44.7 | CI47: 0 | CJ47: 0 | CK47: 0 | CL47: 0 | CM47: 0 | CN47: 0 | CO47: 0 | CP47: 0 | CQ47: 0 | CR47: 0
A48: PR0078 | B48: 10.99 | C48: 15.54 | D48: 13.54 | E48: 27.67 | F48: 14.35 | G48: 16.91 | H48: 3.26 | I48: 10.99 | J48: 15.54 | K48: 13.54 | L48: 17.89 | M48: 17.89 | N48: 16.79 | O48: 16.79 | P48: 3.26 | Q48: 10.99 | R48: 14.1 | S48: 17.89 | T48: 17.89 | U48: 16.79 | V48: 16.79 | W48: 3.26 | X48: 10.99 | Y48: 17.2 | Z48: 14.98 | AA48: 30.67 | AB48: 59.81 | AC48: 30.33 | AD48: 3.26 | AE48: 10.99 | AF48: 17.2 | AG48: 14.98 | AH48: 20.71 | AI48: 6.91 | AJ48: 50.29 | AK48: 37.32 | AL48: 3.26 | AM48: 10.99 | AN48: 15.61 | AO48: 20.71 | AP48: 6.91 | AQ48: 50.29 | AR48: 37.32 | AS48: 3.26 | AT48: 10.99 | AU48: 113.17 | AV48: 118.76 | AW48: 14.98 | AX48: 50.76 | AY48: 3.55 | AZ48: 44.67 | BA48: 3.47 | BB48: 43.62 | BC48: 3.55 | BD48: 13.71 | BE48: 2.79 | BF48: 2.79 | BG48: 31.66 | BH48: 2.79 | BI48: 2.79 | BJ48: 9.5 | BK48: 63.32 | BL48: 2.86 | BM48: 2.86 | BN48: 64.84 | BO48: 3.47 | BP48: 1.89 | BQ48: 32.18 | BR48: 3.47 | BS48: 1.89 | BT48: 9.65 | BU48: 64.36 | BV48: 3.55 | BW48: 1.94 | BX48: 65.9 | BY48: 3.47 | BZ48: 0 | CA48: 21.74 | CB48: 3.47 | CC48: 0 | CD48: 6.52 | CE48: 43.47 | CF48: 3.55 | CG48: 0 | CH48: 44.51 | CI48: 0 | CJ48: 0 | CK48: 0 | CL48: 0 | CM48: 0 | CN48: 0 | CO48: 0 | CP48: 0 | CQ48: 0 | CR48: 0
A49: PL0068 | B49: 10.72 | C49: 15.36 | D49: 13.38 | E49: 26.28 | F49: 14.35 | G49: 16.91 | H49: 3.26 | I49: 9.56 | J49: 15.36 | K49: 13.38 | L49: 16.99 | M49: 16.99 | N49: 16.79 | O49: 16.79 | P49: 3.26 | Q49: 9.56 | R49: 13.94 | S49: 16.99 | T49: 16.99 | U49: 16.79 | V49: 16.79 | W49: 3.26 | X49: 10.72 | Y49: 17.35 | Z49: 15.1 | AA49: 29.74 | AB49: 60.15 | AC49: 30.33 | AD49: 3.26 | AE49: 9.56 | AF49: 17.35 | AG49: 15.1 | AH49: 20.08 | AI49: 6.71 | AJ49: 50.48 | AK49: 37.39 | AL49: 3.26 | AM49: 9.56 | AN49: 15.74 | AO49: 20.08 | AP49: 6.71 | AQ49: 50.48 | AR49: 37.39 | AS49: 3.26 | AT49: 9.56 | AU49: 112.68 | AV49: 118.23 | AW49: 15.1 | AX49: 50.76 | AY49: 3.33 | AZ49: 44.61 | BA49: 3.25 | BB49: 43.56 | BC49: 3.33 | BD49: 14.52 | BE49: 2.62 | BF49: 2.34 | BG49: 26.65 | BH49: 2.62 | BI49: 2.34 | BJ49: 7.99 | BK49: 53.29 | BL49: 2.68 | BM49: 2.4 | BN49: 54.57 | BO49: 3.25 | BP49: 1.75 | BQ49: 27.05 | BR49: 3.25 | BS49: 1.75 | BT49: 8.12 | BU49: 54.1 | BV49: 3.33 | BW49: 1.79 | BX49: 55.4 | BY49: 3.25 | BZ49: 0 | CA49: 18.53 | CB49: 3.25 | CC49: 0 | CD49: 5.56 | CE49: 37.06 | CF49: 3.33 | CG49: 0 | CH49: 37.95 | CI49: 0 | CJ49: 0 | CK49: 0 | CL49: 0 | CM49: 0 | CN49: 0 | CO49: 0 | CP49: 0 | CQ49: 0 | CR49: 0
A50: PL0070 | B50: 10.72 | C50: 15.36 | D50: 13.38 | E50: 26.28 | F50: 14.35 | G50: 16.91 | H50: 3.26 | I50: 9.56 | J50: 15.36 | K50: 13.38 | L50: 16.99 | M50: 16.99 | N50: 16.79 | O50: 16.79 | P50: 3.26 | Q50: 9.56 | R50: 13.94 | S50: 16.99 | T50: 16.99 | U50: 16.79 | V50: 16.79 | W50: 3.26 | X50: 10.72 | Y50: 17.35 | Z50: 15.1 | AA50: 29.74 | AB50: 60.15 | AC50: 30.33 | AD50: 3.26 | AE50: 9.56 | AF50: 17.35 | AG50: 15.1 | AH50: 20.08 | AI50: 6.71 | AJ50: 50.48 | AK50: 37.39 | AL50: 3.26 | AM50: 9.56 | AN50: 15.74 | AO50: 20.08 | AP50: 6.71 | AQ50: 50.48 | AR50: 37.39 | AS50: 3.26 | AT50: 9.56 | AU50: 112.68 | AV50: 118.23 | AW50: 15.1 | AX50: 50.76 | AY50: 3.33 | AZ50: 44.61 | BA50: 3.25 | BB50: 43.56 | BC50: 3.33 | BD50: 14.52 | BE50: 2.62 | BF50: 2.34 | BG50: 26.65 | BH50: 2.62 | BI50: 2.34 | BJ50: 7.99 | BK50: 53.29 | BL50: 2.68 | BM50: 2.4 | BN50: 54.57 | BO50: 3.25 | BP50: 1.75 | BQ50: 27.05 | BR50: 3.25 | BS50: 1.75 | BT50: 8.12 | BU50: 54.1 | BV50: 3.33 | BW50: 1.79 | BX50: 55.4 | BY50: 3.25 | BZ50: 0 | CA50: 18.53 | CB50: 3.25 | CC50: 0 | CD50: 5.56 | CE50: 37.06 | CF50: 3.33 | CG50: 0 | CH50: 37.95 | CI50: 0 | CJ50: 0 | CK50: 0 | CL50: 0 | CM50: 0 | CN50: 0 | CO50: 0 | CP50: 0 | CQ50: 0 | CR50: 0
A51: PL0075 | B51: 10.72 | C51: 15.33 | D51: 13.45 | E51: 26.28 | F51: 14.35 | G51: 16.91 | H51: 3.26 | I51: 9.56 | J51: 15.33 | K51: 13.45 | L51: 16.99 | M51: 16.99 | N51: 16.79 | O51: 16.79 | P51: 3.26 | Q51: 9.56 | R51: 13.98 | S51: 16.99 | T51: 16.99 | U51: 16.79 | V51: 16.79 | W51: 3.26 | X51: 10.72 | Y51: 17.31 | Z51: 15.19 | AA51: 29.74 | AB51: 60.15 | AC51: 30.33 | AD51: 3.26 | AE51: 9.56 | AF51: 17.31 | AG51: 15.19 | AH51: 20.08 | AI51: 6.71 | AJ51: 50.48 | AK51: 37.39 | AL51: 3.26 | AM51: 9.56 | AN51: 15.78 | AO51: 20.08 | AP51: 6.71 | AQ51: 50.48 | AR51: 37.39 | AS51: 3.26 | AT51: 9.56 | AU51: 112.64 | AV51: 118.2 | AW51: 15.19 | AX51: 50.76 | AY51: 3.33 | AZ51: 44.65 | BA51: 3.25 | BB51: 43.6 | BC51: 3.33 | BD51: 14.53 | BE51: 2.62 | BF51: 2.34 | BG51: 26.67 | BH51: 2.62 | BI51: 2.34 | BJ51: 8 | BK51: 53.33 | BL51: 2.68 | BM51: 2.4 | BN51: 54.61 | BO51: 3.25 | BP51: 1.75 | BQ51: 27.08 | BR51: 3.25 | BS51: 1.75 | BT51: 8.12 | BU51: 54.15 | BV51: 3.33 | BW51: 1.79 | BX51: 55.45 | BY51: 3.25 | BZ51: 0 | CA51: 18.56 | CB51: 3.25 | CC51: 0 | CD51: 5.57 | CE51: 37.11 | CF51: 3.33 | CG51: 0 | CH51: 38 | CI51: 0 | CJ51: 0 | CK51: 0 | CL51: 0 | CM51: 0 | CN51: 0 | CO51: 0 | CP51: 0 | CQ51: 0 | CR51: 0
A52: PL0077 | B52: 10.72 | C52: 15.47 | D52: 13.47 | E52: 26.28 | F52: 14.35 | G52: 16.91 | H52: 3.26 | I52: 9.56 | J52: 15.47 | K52: 13.47 | L52: 16.99 | M52: 16.99 | N52: 16.79 | O52: 16.79 | P52: 3.26 | Q52: 9.56 | R52: 14.04 | S52: 16.99 | T52: 16.99 | U52: 16.79 | V52: 16.79 | W52: 3.26 | X52: 10.72 | Y52: 17.47 | Z52: 15.21 | AA52: 29.74 | AB52: 60.15 | AC52: 30.33 | AD52: 3.26 | AE52: 9.56 | AF52: 17.47 | AG52: 15.21 | AH52: 20.08 | AI52: 6.71 | AJ52: 50.48 | AK52: 37.39 | AL52: 3.26 | AM52: 9.56 | AN52: 15.85 | AO52: 20.08 | AP52: 6.71 | AQ52: 50.48 | AR52: 37.39 | AS52: 3.26 | AT52: 9.56 | AU52: 112.8 | AV52: 118.35 | AW52: 15.21 | AX52: 50.76 | AY52: 3.33 | AZ52: 44.71 | BA52: 3.25 | BB52: 43.66 | BC52: 3.33 | BD52: 14.54 | BE52: 2.62 | BF52: 2.34 | BG52: 26.7 | BH52: 2.62 | BI52: 2.34 | BJ52: 8.01 | BK52: 53.39 | BL52: 2.68 | BM52: 2.4 | BN52: 54.67 | BO52: 3.25 | BP52: 1.75 | BQ52: 27.11 | BR52: 3.25 | BS52: 1.75 | BT52: 8.13 | BU52: 54.21 | BV52: 3.33 | BW52: 1.79 | BX52: 55.51 | BY52: 3.25 | BZ52: 0 | CA52: 18.59 | CB52: 3.25 | CC52: 0 | CD52: 5.58 | CE52: 37.17 | CF52: 3.33 | CG52: 0 | CH52: 38.06 | CI52: 0 | CJ52: 0 | CK52: 0 | CL52: 0 | CM52: 0 | CN52: 0 | CO52: 0 | CP52: 0 | CQ52: 0 | CR52: 0
A53: PL0078 | B53: 10.72 | C53: 15.36 | D53: 13.38 | E53: 26.28 | F53: 14.35 | G53: 16.91 | H53: 3.26 | I53: 9.56 | J53: 15.36 | K53: 13.38 | L53: 16.99 | M53: 16.99 | N53: 16.79 | O53: 16.79 | P53: 3.26 | Q53: 9.56 | R53: 13.94 | S53: 16.99 | T53: 16.99 | U53: 16.79 | V53: 16.79 | W53: 3.26 | X53: 10.72 | Y53: 17.35 | Z53: 15.1 | AA53: 29.74 | AB53: 60.15 | AC53: 30.33 | AD53: 3.26 | AE53: 9.56 | AF53: 17.35 | AG53: 15.1 | AH53: 20.08 | AI53: 6.71 | AJ53: 50.48 | AK53: 37.39 | AL53: 3.26 | AM53: 9.56 | AN53: 15.74 | AO53: 20.08 | AP53: 6.71 | AQ53: 50.48 | AR53: 37.39 | AS53: 3.26 | AT53: 9.56 | AU53: 112.68 | AV53: 118.23 | AW53: 15.1 | AX53: 50.76 | AY53: 3.33 | AZ53: 44.61 | BA53: 3.25 | BB53: 43.56 | BC53: 3.33 | BD53: 14.52 | BE53: 2.62 | BF53: 2.34 | BG53: 26.65 | BH53: 2.62 | BI53: 2.34 | BJ53: 7.99 | BK53: 53.29 | BL53: 2.68 | BM53: 2.4 | BN53: 54.57 | BO53: 3.25 | BP53: 1.75 | BQ53: 27.05 | BR53: 3.25 | BS53: 1.75 | BT53: 8.12 | BU53: 54.1 | BV53: 3.33 | BW53: 1.79 | BX53: 55.4 | BY53: 3.25 | BZ53: 0 | CA53: 18.53 | CB53: 3.25 | CC53: 0 | CD53: 5.56 | CE53: 37.06 | CF53: 3.33 | CG53: 0 | CH53: 37.95 | CI53: 0 | CJ53: 0 | CK53: 0 | CL53: 0 | CM53: 0 | CN53: 0 | CO53: 0 | CP53: 0 | CQ53: 0 | CR53: 0
A54: PL0079 | B54: 10.72 | C54: 15.47 | D54: 13.47 | E54: 26.28 | F54: 14.35 | G54: 16.91 | H54: 3.26 | I54: 9.56 | J54: 15.47 | K54: 13.47 | L54: 16.99 | M54: 16.99 | N54: 16.79 | O54: 16.79 | P54: 3.26 | Q54: 9.56 | R54: 14.04 | S54: 16.99 | T54: 16.99 | U54: 16.79 | V54: 16.79 | W54: 3.26 | X54: 10.72 | Y54: 17.47 | Z54: 15.21 | AA54: 29.74 | AB54: 60.15 | AC54: 30.33 | AD54: 3.26 | AE54: 9.56 | AF54: 17.47 | AG54: 15.21 | AH54: 20.08 | AI54: 6.71 | AJ54: 50.48 | AK54: 37.39 | AL54: 3.26 | AM54: 9.56 | AN54: 15.85 | AO54: 20.08 | AP54: 6.71 | AQ54: 50.48 | AR54: 37.39 | AS54: 3.26 | AT54: 9.56 | AU54: 112.8 | AV54: 118.35 | AW54: 15.21 | AX54: 50.76 | AY54: 3.33 | AZ54: 44.71 | BA54: 3.25 | BB54: 43.66 | BC54: 3.33 | BD54: 14.54 | BE54: 2.62 | BF54: 2.34 | BG54: 26.7 | BH54: 2.62 | BI54: 2.34 | BJ54: 8.01 | BK54: 53.39 | BL54: 2.68 | BM54: 2.4 | BN54: 54.67 | BO54: 3.25 | BP54: 1.75 | BQ54: 27.11 | BR54: 3.25 | BS54: 1.75 | BT54: 8.13 | BU54: 54.21 | BV54: 3.33 | BW54: 1.79 | BX54: 55.51 | BY54: 3.25 | BZ54: 0 | CA54: 18.59 | CB54: 3.25 | CC54: 0 | CD54: 5.58 | CE54: 37.17 | CF54: 3.33 | CG54: 0 | CH54: 38.06 | CI54: 0 | CJ54: 0 | CK54: 0 | CL54: 0 | CM54: 0 | CN54: 0 | CO54: 0 | CP54: 0 | CQ54: 0 | CR54: 0
A55: PL0080 | B55: 10.72 | C55: 15.68 | D55: 13.55 | E55: 26.19 | F55: 14.35 | G55: 16.91 | H55: 3.26 | I55: 9.56 | J55: 15.68 | K55: 13.55 | L55: 16.94 | M55: 16.94 | N55: 16.79 | O55: 16.79 | P55: 3.26 | Q55: 9.56 | R55: 14.15 | S55: 16.94 | T55: 16.94 | U55: 16.79 | V55: 16.79 | W55: 3.26 | X55: 10.72 | Y55: 17.7 | Z55: 15.3 | AA55: 29.64 | AB55: 60.15 | AC55: 30.33 | AD55: 3.26 | AE55: 9.56 | AF55: 17.7 | AG55: 15.3 | AH55: 20.02 | AI55: 6.69 | AJ55: 50.48 | AK55: 37.39 | AL55: 3.26 | AM55: 9.56 | AN55: 15.97 | AO55: 20.02 | AP55: 6.69 | AQ55: 50.48 | AR55: 37.39 | AS55: 3.26 | AT55: 9.56 | AU55: 112.94 | AV55: 118.49 | AW55: 15.3 | AX55: 50.76 | AY55: 3.33 | AZ55: 44.81 | BA55: 3.25 | BB55: 43.76 | BC55: 3.33 | BD55: 14.57 | BE55: 2.62 | BF55: 2.34 | BG55: 22.57 | BH55: 2.62 | BI55: 2.34 | BJ55: 6.77 | BK55: 53.48 | BL55: 2.68 | BM55: 2.4 | BN55: 54.76 | BO55: 3.25 | BP55: 1.75 | BQ55: 22.91 | BR55: 3.25 | BS55: 1.75 | BT55: 6.87 | BU55: 54.29 | BV55: 3.33 | BW55: 1.79 | BX55: 55.59 | BY55: 3.25 | BZ55: 0 | CA55: 15.72 | CB55: 3.25 | CC55: 0 | CD55: 4.72 | CE55: 37.25 | CF55: 3.33 | CG55: 0 | CH55: 38.14 | CI55: 0 | CJ55: 0 | CK55: 0 | CL55: 0 | CM55: 0 | CN55: 0 | CO55: 0 | CP55: 0 | CQ55: 0 | CR55: 0
A56: PL0161 | B56: 10.72 | C56: 15.36 | D56: 13.38 | E56: 26.28 | F56: 14.35 | G56: 16.91 | H56: 3.26 | I56: 9.56 | J56: 15.36 | K56: 13.38 | L56: 16.99 | M56: 16.99 | N56: 16.79 | O56: 16.79 | P56: 3.26 | Q56: 9.56 | R56: 13.94 | S56: 16.99 | T56: 16.99 | U56: 16.79 | V56: 16.79 | W56: 3.26 | X56: 10.72 | Y56: 17.35 | Z56: 15.1 | AA56: 29.74 | AB56: 60.15 | AC56: 30.33 | AD56: 3.26 | AE56: 9.56 | AF56: 17.35 | AG56: 15.1 | AH56: 20.08 | AI56: 6.71 | AJ56: 50.48 | AK56: 37.39 | AL56: 3.26 | AM56: 9.56 | AN56: 15.74 | AO56: 20.08 | AP56: 6.71 | AQ56: 50.48 | AR56: 37.39 | AS56: 3.26 | AT56: 9.56 | AU56: 112.68 | AV56: 118.23 | AW56: 15.1 | AX56: 50.76 | AY56: 3.33 | AZ56: 44.61 | BA56: 3.25 | BB56: 43.56 | BC56: 3.33 | BD56: 14.52 | BE56: 2.62 | BF56: 2.34 | BG56: 26.65 | BH56: 2.62 | BI56: 2.34 | BJ56: 7.99 | BK56: 53.29 | BL56: 2.68 | BM56: 2.4 | BN56: 54.57 | BO56: 3.25 | BP56: 1.75 | BQ56: 27.05 | BR56: 3.25 | BS56: 1.75 | BT56: 8.12 | BU56: 54.1 | BV56: 3.33 | BW56: 1.79 | BX56: 55.4 | BY56: 3.25 | BZ56: 0 | CA56: 18.53 | CB56: 3.25 | CC56: 0 | CD56: 5.56 | CE56: 37.06 | CF56: 3.33 | CG56: 0 | CH56: 37.95 | CI56: 0 | CJ56: 0 | CK56: 0 | CL56: 0 | CM56: 0 | CN56: 0 | CO56: 0 | CP56: 0 | CQ56: 0 | CR56: 0
A57: PL0162 | B57: 10.72 | C57: 16.14 | D57: 13.97 | E57: 26.28 | F57: 14.35 | G57: 16.91 | H57: 3.26 | I57: 9.56 | J57: 16.14 | K57: 13.97 | L57: 16.99 | M57: 16.99 | N57: 16.79 | O57: 16.79 | P57: 3.26 | Q57: 9.56 | R57: 14.58 | S57: 16.99 | T57: 16.99 | U57: 16.79 | V57: 16.79 | W57: 3.26 | X57: 10.72 | Y57: 18.22 | Z57: 15.77 | AA57: 29.74 | AB57: 60.15 | AC57: 30.33 | AD57: 3.26 | AE57: 9.56 | AF57: 18.22 | AG57: 15.77 | AH57: 20.08 | AI57: 6.71 | AJ57: 50.48 | AK57: 37.39 | AL57: 3.26 | AM57: 9.56 | AN57: 16.47 | AO57: 20.08 | AP57: 6.71 | AQ57: 50.48 | AR57: 37.39 | AS57: 3.26 | AT57: 9.56 | AU57: 113.55 | AV57: 119.11 | AW57: 15.77 | AX57: 50.76 | AY57: 3.33 | AZ57: 45.33 | BA57: 3.25 | BB57: 44.27 | BC57: 3.33 | BD57: 14.7 | BE57: 2.62 | BF57: 2.34 | BG57: 26.99 | BH57: 2.62 | BI57: 2.34 | BJ57: 8.1 | BK57: 53.98 | BL57: 2.68 | BM57: 2.4 | BN57: 55.28 | BO57: 3.25 | BP57: 1.75 | BQ57: 27.41 | BR57: 3.25 | BS57: 1.75 | BT57: 8.22 | BU57: 54.81 | BV57: 3.33 | BW57: 1.79 | BX57: 56.13 | BY57: 3.25 | BZ57: 0 | CA57: 18.88 | CB57: 3.25 | CC57: 0 | CD57: 5.66 | CE57: 37.76 | CF57: 3.33 | CG57: 0 | CH57: 38.67 | CI57: 0 | CJ57: 0 | CK57: 0 | CL57: 0 | CM57: 0 | CN57: 0 | CO57: 0 | CP57: 0 | CQ57: 0 | CR57: 0
A58: PL0164 | B58: 10.72 | C58: 15.71 | D58: 13.64 | E58: 26.19 | F58: 14.35 | G58: 16.91 | H58: 3.26 | I58: 9.56 | J58: 15.71 | K58: 13.64 | L58: 16.94 | M58: 16.94 | N58: 16.79 | O58: 16.79 | P58: 3.26 | Q58: 9.56 | R58: 14.22 | S58: 16.94 | T58: 16.94 | U58: 16.79 | V58: 16.79 | W58: 3.26 | X58: 10.72 | Y58: 17.74 | Z58: 15.4 | AA58: 29.64 | AB58: 60.15 | AC58: 30.33 | AD58: 3.26 | AE58: 9.56 | AF58: 17.74 | AG58: 15.4 | AH58: 20.02 | AI58: 6.69 | AJ58: 50.48 | AK58: 37.39 | AL58: 3.26 | AM58: 9.56 | AN58: 16.06 | AO58: 20.02 | AP58: 6.69 | AQ58: 50.48 | AR58: 37.39 | AS58: 3.26 | AT58: 9.56 | AU58: 112.97 | AV58: 118.52 | AW58: 15.4 | AX58: 50.76 | AY58: 3.33 | AZ58: 44.89 | BA58: 3.25 | BB58: 43.84 | BC58: 3.33 | BD58: 14.59 | BE58: 2.62 | BF58: 2.34 | BG58: 26.78 | BH58: 2.62 | BI58: 2.34 | BJ58: 8.03 | BK58: 53.56 | BL58: 2.68 | BM58: 2.4 | BN58: 54.85 | BO58: 3.25 | BP58: 1.75 | BQ58: 27.19 | BR58: 3.25 | BS58: 1.75 | BT58: 8.16 | BU58: 54.37 | BV58: 3.33 | BW58: 1.79 | BX58: 55.67 | BY58: 3.25 | BZ58: 0 | CA58: 18.67 | CB58: 3.25 | CC58: 0 | CD58: 5.6 | CE58: 37.33 | CF58: 3.33 | CG58: 0 | CH58: 38.23 | CI58: 0 | CJ58: 0 | CK58: 0 | CL58: 0 | CM58: 0 | CN58: 0 | CO58: 0 | CP58: 0 | CQ58: 0 | CR58: 0
A59: PL0170 | B59: 10.72 | C59: 15.36 | D59: 13.38 | E59: 26.28 | F59: 14.35 | G59: 16.91 | H59: 3.26 | I59: 9.56 | J59: 15.36 | K59: 13.38 | L59: 16.99 | M59: 16.99 | N59: 16.79 | O59: 16.79 | P59: 3.26 | Q59: 9.56 | R59: 13.94 | S59: 16.99 | T59: 16.99 | U59: 16.79 | V59: 16.79 | W59: 3.26 | X59: 10.72 | Y59: 17.35 | Z59: 15.1 | AA59: 29.74 | AB59: 60.15 | AC59: 30.33 | AD59: 3.26 | AE59: 9.56 | AF59: 17.35 | AG59: 15.1 | AH59: 20.08 | AI59: 6.71 | AJ59: 50.48 | AK59: 37.39 | AL59: 3.26 | AM59: 9.56 | AN59: 15.74 | AO59: 20.08 | AP59: 6.71 | AQ59: 50.48 | AR59: 37.39 | AS59: 3.26 | AT59: 9.56 | AU59: 112.68 | AV59: 118.23 | AW59: 15.1 | AX59: 50.76 | AY59: 3.33 | AZ59: 44.61 | BA59: 3.25 | BB59: 43.56 | BC59: 3.33 | BD59: 14.52 | BE59: 2.62 | BF59: 2.34 | BG59: 26.65 | BH59: 2.62 | BI59: 2.34 | BJ59: 7.99 | BK59: 53.29 | BL59: 2.68 | BM59: 2.4 | BN59: 54.57 | BO59: 3.25 | BP59: 1.75 | BQ59: 27.05 | BR59: 3.25 | BS59: 1.75 | BT59: 8.12 | BU59: 54.1 | BV59: 3.33 | BW59: 1.79 | BX59: 55.4 | BY59: 3.25 | BZ59: 0 | CA59: 18.53 | CB59: 3.25 | CC59: 0 | CD59: 5.56 | CE59: 37.06 | CF59: 3.33 | CG59: 0 | CH59: 37.95 | CI59: 0 | CJ59: 0 | CK59: 0 | CL59: 0 | CM59: 0 | CN59: 0 | CO59: 0 | CP59: 0 | CQ59: 0 | CR59: 0
A60: PL0223 | B60: 10.72 | C60: 15.36 | D60: 13.38 | E60: 26.28 | F60: 14.35 | G60: 16.91 | H60: 3.26 | I60: 9.56 | J60: 15.36 | K60: 13.38 | L60: 16.99 | M60: 16.99 | N60: 16.79 | O60: 16.79 | P60: 3.26 | Q60: 9.56 | R60: 13.94 | S60: 16.99 | T60: 16.99 | U60: 16.79 | V60: 16.79 | W60: 3.26 | X60: 10.72 | Y60: 17.35 | Z60: 15.1 | AA60: 29.74 | AB60: 60.15 | AC60: 30.33 | AD60: 3.26 | AE60: 9.56 | AF60: 17.35 | AG60: 15.1 | AH60: 20.08 | AI60: 6.71 | AJ60: 50.48 | AK60: 37.39 | AL60: 3.26 | AM60: 9.56 | AN60: 15.74 | AO60: 20.08 | AP60: 6.71 | AQ60: 50.48 | AR60: 37.39 | AS60: 3.26 | AT60: 9.56 | AU60: 112.68 | AV60: 118.23 | AW60: 15.1 | AX60: 50.76 | AY60: 3.33 | AZ60: 44.61 | BA60: 3.25 | BB60: 43.56 | BC60: 3.33 | BD60: 14.52 | BE60: 2.62 | BF60: 2.34 | BG60: 26.65 | BH60: 2.62 | BI60: 2.34 | BJ60: 7.99 | BK60: 53.29 | BL60: 2.68 | BM60: 2.4 | BN60: 54.57 | BO60: 3.25 | BP60: 1.75 | BQ60: 27.05 | BR60: 3.25 | BS60: 1.75 | BT60: 8.12 | BU60: 54.1 | BV60: 3.33 | BW60: 1.79 | BX60: 55.4 | BY60: 3.25 | BZ60: 0 | CA60: 18.53 | CB60: 3.25 | CC60: 0 | CD60: 5.56 | CE60: 37.06 | CF60: 3.33 | CG60: 0 | CH60: 37.95 | CI60: 0 | CJ60: 0 | CK60: 0 | CL60: 0 | CM60: 0 | CN60: 0 | CO60: 0 | CP60: 0 | CQ60: 0 | CR60: 0
A61: PL0071 | B61: 8.68 | C61: 15.25 | D61: 13.28 | E61: 26.38 | F61: 14.69 | G61: 17.34 | H61: 3.26 | I61: 8.68 | J61: 15.25 | K61: 13.28 | L61: 28.5 | M61: 14.18 | N61: 16.67 | O61: 17.01 | P61: 3.26 | Q61: 8.68 | R61: 13.83 | S61: 28.5 | T61: 14.18 | U61: 16.67 | V61: 17.01 | W61: 3.26 | X61: 8.68 | Y61: 16.95 | Z61: 14.76 | AA61: 28.71 | AB61: 59.9 | AC61: 30.33 | AD61: 3.26 | AE61: 8.68 | AF61: 16.95 | AG61: 14.76 | AH61: 19.38 | AI61: 6.47 | AJ61: 50.34 | AK61: 37.34 | AL61: 3.26 | AM61: 8.68 | AN61: 15.37 | AO61: 19.38 | AP61: 6.47 | AQ61: 50.34 | AR61: 37.34 | AS61: 3.26 | AT61: 8.68 | AU61: 110.94 | AV61: 116.42 | AW61: 14.76 | AX61: 50.76 | AY61: 3.18 | AZ61: 43.84 | BA61: 3.11 | BB61: 42.81 | BC61: 3.18 | BD61: 14.93 | BE61: 2.62 | BF61: 2.34 | BG61: 23.52 | BH61: 2.62 | BI61: 2.34 | BJ61: 7.06 | BK61: 47.04 | BL61: 2.68 | BM61: 2.4 | BN61: 48.17 | BO61: 3.11 | BP61: 1.7 | BQ61: 23.91 | BR61: 3.11 | BS61: 1.7 | BT61: 7.17 | BU61: 47.82 | BV61: 3.18 | BW61: 1.74 | BX61: 48.97 | BY61: 3.11 | BZ61: 0 | CA61: 16.55 | CB61: 3.11 | CC61: 0 | CD61: 4.97 | CE61: 33.1 | CF61: 3.18 | CG61: 0 | CH61: 33.89 | CI61: 0 | CJ61: 0 | CK61: 0 | CL61: 0 | CM61: 0 | CN61: 0 | CO61: 0 | CP61: 0 | CQ61: 0 | CR61: 0
A62: PL0072 | B62: 8.68 | C62: 15.25 | D62: 13.28 | E62: 26.38 | F62: 14.69 | G62: 17.34 | H62: 3.26 | I62: 8.68 | J62: 15.25 | K62: 13.28 | L62: 28.5 | M62: 14.18 | N62: 16.67 | O62: 17.01 | P62: 3.26 | Q62: 8.68 | R62: 13.83 | S62: 28.5 | T62: 14.18 | U62: 16.67 | V62: 17.01 | W62: 3.26 | X62: 8.68 | Y62: 16.95 | Z62: 14.76 | AA62: 28.71 | AB62: 59.9 | AC62: 30.33 | AD62: 3.26 | AE62: 8.68 | AF62: 16.95 | AG62: 14.76 | AH62: 19.38 | AI62: 6.47 | AJ62: 50.34 | AK62: 37.34 | AL62: 3.26 | AM62: 8.68 | AN62: 15.37 | AO62: 19.38 | AP62: 6.47 | AQ62: 50.34 | AR62: 37.34 | AS62: 3.26 | AT62: 8.68 | AU62: 110.94 | AV62: 116.42 | AW62: 14.76 | AX62: 50.76 | AY62: 3.18 | AZ62: 43.84 | BA62: 3.11 | BB62: 42.81 | BC62: 3.18 | BD62: 14.93 | BE62: 2.62 | BF62: 2.34 | BG62: 23.52 | BH62: 2.62 | BI62: 2.34 | BJ62: 7.06 | BK62: 47.04 | BL62: 2.68 | BM62: 2.4 | BN62: 48.17 | BO62: 3.11 | BP62: 1.7 | BQ62: 23.91 | BR62: 3.11 | BS62: 1.7 | BT62: 7.17 | BU62: 47.82 | BV62: 3.18 | BW62: 1.74 | BX62: 48.97 | BY62: 3.11 | BZ62: 0 | CA62: 16.55 | CB62: 3.11 | CC62: 0 | CD62: 4.97 | CE62: 33.1 | CF62: 3.18 | CG62: 0 | CH62: 33.89 | CI62: 0 | CJ62: 0 | CK62: 0 | CL62: 0 | CM62: 0 | CN62: 0 | CO62: 0 | CP62: 0 | CQ62: 0 | CR62: 0
A63: PL0073 | B63: 8.68 | C63: 15.45 | D63: 13.35 | E63: 26.3 | F63: 14.69 | G63: 17.34 | H63: 3.26 | I63: 8.68 | J63: 15.45 | K63: 13.35 | L63: 28.41 | M63: 14.14 | N63: 16.67 | O63: 17.01 | P63: 3.26 | Q63: 8.68 | R63: 13.95 | S63: 28.41 | T63: 14.14 | U63: 16.67 | V63: 17.01 | W63: 3.26 | X63: 8.68 | Y63: 17.17 | Z63: 14.84 | AA63: 28.62 | AB63: 59.9 | AC63: 30.33 | AD63: 3.26 | AE63: 8.68 | AF63: 17.17 | AG63: 14.84 | AH63: 19.32 | AI63: 6.45 | AJ63: 50.34 | AK63: 37.34 | AL63: 3.26 | AM63: 8.68 | AN63: 15.5 | AO63: 19.32 | AP63: 6.45 | AQ63: 50.34 | AR63: 37.34 | AS63: 3.26 | AT63: 8.68 | AU63: 111.06 | AV63: 116.53 | AW63: 14.84 | AX63: 50.76 | AY63: 3.18 | AZ63: 43.93 | BA63: 3.11 | BB63: 42.9 | BC63: 3.18 | BD63: 14.96 | BE63: 2.62 | BF63: 2.34 | BG63: 23.57 | BH63: 2.62 | BI63: 2.34 | BJ63: 7.07 | BK63: 47.13 | BL63: 2.68 | BM63: 2.4 | BN63: 48.26 | BO63: 3.11 | BP63: 1.7 | BQ63: 23.96 | BR63: 3.11 | BS63: 1.7 | BT63: 7.19 | BU63: 47.91 | BV63: 3.18 | BW63: 1.74 | BX63: 49.06 | BY63: 3.11 | BZ63: 0 | CA63: 16.6 | CB63: 3.11 | CC63: 0 | CD63: 4.98 | CE63: 33.19 | CF63: 3.18 | CG63: 0 | CH63: 33.99 | CI63: 0 | CJ63: 0 | CK63: 0 | CL63: 0 | CM63: 0 | CN63: 0 | CO63: 0 | CP63: 0 | CQ63: 0 | CR63: 0
A64: PL0076 | B64: 8.68 | C64: 15.25 | D64: 13.28 | E64: 26.38 | F64: 14.69 | G64: 17.34 | H64: 3.26 | I64: 8.68 | J64: 15.25 | K64: 13.28 | L64: 28.5 | M64: 14.18 | N64: 16.67 | O64: 17.01 | P64: 3.26 | Q64: 8.68 | R64: 13.83 | S64: 28.5 | T64: 14.18 | U64: 16.67 | V64: 17.01 | W64: 3.26 | X64: 8.68 | Y64: 16.95 | Z64: 14.76 | AA64: 28.71 | AB64: 59.9 | AC64: 30.33 | AD64: 3.26 | AE64: 8.68 | AF64: 16.95 | AG64: 14.76 | AH64: 19.38 | AI64: 6.47 | AJ64: 50.34 | AK64: 37.34 | AL64: 3.26 | AM64: 8.68 | AN64: 15.37 | AO64: 19.38 | AP64: 6.47 | AQ64: 50.34 | AR64: 37.34 | AS64: 3.26 | AT64: 8.68 | AU64: 110.94 | AV64: 116.42 | AW64: 14.76 | AX64: 50.76 | AY64: 3.18 | AZ64: 43.84 | BA64: 3.11 | BB64: 42.81 | BC64: 3.18 | BD64: 14.93 | BE64: 2.62 | BF64: 2.34 | BG64: 23.52 | BH64: 2.62 | BI64: 2.34 | BJ64: 7.06 | BK64: 47.04 | BL64: 2.68 | BM64: 2.4 | BN64: 48.17 | BO64: 3.11 | BP64: 1.7 | BQ64: 23.91 | BR64: 3.11 | BS64: 1.7 | BT64: 7.17 | BU64: 47.82 | BV64: 3.18 | BW64: 1.74 | BX64: 48.97 | BY64: 3.11 | BZ64: 0 | CA64: 16.55 | CB64: 3.11 | CC64: 0 | CD64: 4.97 | CE64: 33.1 | CF64: 3.18 | CG64: 0 | CH64: 33.89 | CI64: 0 | CJ64: 0 | CK64: 0 | CL64: 0 | CM64: 0 | CN64: 0 | CO64: 0 | CP64: 0 | CQ64: 0 | CR64: 0
A65: PL0224 | B65: 8.68 | C65: 15.45 | D65: 13.35 | E65: 26.3 | F65: 14.69 | G65: 17.34 | H65: 3.26 | I65: 8.68 | J65: 15.45 | K65: 13.35 | L65: 28.41 | M65: 14.14 | N65: 16.67 | O65: 17.01 | P65: 3.26 | Q65: 8.68 | R65: 13.95 | S65: 28.41 | T65: 14.14 | U65: 16.67 | V65: 17.01 | W65: 3.26 | X65: 8.68 | Y65: 17.17 | Z65: 14.84 | AA65: 28.62 | AB65: 59.9 | AC65: 30.33 | AD65: 3.26 | AE65: 8.68 | AF65: 17.17 | AG65: 14.84 | AH65: 19.32 | AI65: 6.45 | AJ65: 50.34 | AK65: 37.34 | AL65: 3.26 | AM65: 8.68 | AN65: 15.5 | AO65: 19.32 | AP65: 6.45 | AQ65: 50.34 | AR65: 37.34 | AS65: 3.26 | AT65: 8.68 | AU65: 111.06 | AV65: 116.53 | AW65: 14.84 | AX65: 50.76 | AY65: 3.18 | AZ65: 43.93 | BA65: 3.11 | BB65: 42.9 | BC65: 3.18 | BD65: 14.96 | BE65: 2.62 | BF65: 2.34 | BG65: 23.57 | BH65: 2.62 | BI65: 2.34 | BJ65: 7.07 | BK65: 47.13 | BL65: 2.68 | BM65: 2.4 | BN65: 48.26 | BO65: 3.11 | BP65: 1.7 | BQ65: 23.96 | BR65: 3.11 | BS65: 1.7 | BT65: 7.19 | BU65: 47.91 | BV65: 3.18 | BW65: 1.74 | BX65: 49.06 | BY65: 3.11 | BZ65: 0 | CA65: 16.6 | CB65: 3.11 | CC65: 0 | CD65: 4.98 | CE65: 33.19 | CF65: 3.18 | CG65: 0 | CH65: 33.99 | CI65: 0 | CJ65: 0 | CK65: 0 | CL65: 0 | CM65: 0 | CN65: 0 | CO65: 0 | CP65: 0 | CQ65: 0 | CR65: 0
A66: PL0258 | B66: 8.68 | C66: 15.9 | D66: 13.76 | E66: 26.38 | F66: 14.69 | G66: 17.34 | H66: 3.26 | I66: 8.68 | J66: 15.9 | K66: 13.76 | L66: 28.5 | M66: 14.18 | N66: 16.67 | O66: 17.01 | P66: 3.26 | Q66: 8.68 | R66: 14.38 | S66: 28.5 | T66: 14.18 | U66: 16.67 | V66: 17.01 | W66: 3.26 | X66: 8.68 | Y66: 17.67 | Z66: 15.3 | AA66: 28.71 | AB66: 59.9 | AC66: 30.33 | AD66: 3.26 | AE66: 8.68 | AF66: 17.67 | AG66: 15.3 | AH66: 19.38 | AI66: 6.47 | AJ66: 50.34 | AK66: 37.34 | AL66: 3.26 | AM66: 8.68 | AN66: 15.97 | AO66: 19.38 | AP66: 6.47 | AQ66: 50.34 | AR66: 37.34 | AS66: 3.26 | AT66: 8.68 | AU66: 111.67 | AV66: 117.15 | AW66: 15.3 | AX66: 50.76 | AY66: 3.18 | AZ66: 44.43 | BA66: 3.11 | BB66: 43.39 | BC66: 3.18 | BD66: 15.11 | BE66: 2.62 | BF66: 2.34 | BG66: 23.81 | BH66: 2.62 | BI66: 2.34 | BJ66: 7.14 | BK66: 47.62 | BL66: 2.68 | BM66: 2.4 | BN66: 48.76 | BO66: 3.11 | BP66: 1.7 | BQ66: 24.2 | BR66: 3.11 | BS66: 1.7 | BT66: 7.26 | BU66: 48.4 | BV66: 3.18 | BW66: 1.74 | BX66: 49.56 | BY66: 3.11 | BZ66: 0 | CA66: 16.84 | CB66: 3.11 | CC66: 0 | CD66: 5.05 | CE66: 33.67 | CF66: 3.18 | CG66: 0 | CH66: 34.48 | CI66: 0 | CJ66: 0 | CK66: 0 | CL66: 0 | CM66: 0 | CN66: 0 | CO66: 0 | CP66: 0 | CQ66: 0 | CR66: 0
A67: PL1224 | B67: 8.68 | C67: 15.45 | D67: 13.35 | E67: 26.3 | F67: 14.69 | G67: 17.34 | H67: 3.26 | I67: 8.68 | J67: 15.45 | K67: 13.35 | L67: 28.41 | M67: 14.14 | N67: 16.67 | O67: 17.01 | P67: 3.26 | Q67: 8.68 | R67: 13.95 | S67: 28.41 | T67: 14.14 | U67: 16.67 | V67: 17.01 | W67: 3.26 | X67: 8.68 | Y67: 17.17 | Z67: 14.84 | AA67: 28.62 | AB67: 59.9 | AC67: 30.33 | AD67: 3.26 | AE67: 8.68 | AF67: 17.17 | AG67: 14.84 | AH67: 19.32 | AI67: 6.45 | AJ67: 50.34 | AK67: 37.34 | AL67: 3.26 | AM67: 8.68 | AN67: 15.5 | AO67: 19.32 | AP67: 6.45 | AQ67: 50.34 | AR67: 37.34 | AS67: 3.26 | AT67: 8.68 | AU67: 111.06 | AV67: 116.53 | AW67: 14.84 | AX67: 50.76 | AY67: 3.18 | AZ67: 43.93 | BA67: 3.11 | BB67: 42.9 | BC67: 3.18 | BD67: 14.96 | BE67: 2.62 | BF67: 2.34 | BG67: 23.57 | BH67: 2.62 | BI67: 2.34 | BJ67: 7.07 | BK67: 47.13 | BL67: 2.68 | BM67: 2.4 | BN67: 48.26 | BO67: 3.11 | BP67: 1.7 | BQ67: 23.96 | BR67: 3.11 | BS67: 1.7 | BT67: 7.19 | BU67: 47.91 | BV67: 3.18 | BW67: 1.74 | BX67: 49.06 | BY67: 3.11 | BZ67: 0 | CA67: 16.6 | CB67: 3.11 | CC67: 0 | CD67: 4.98 | CE67: 33.19 | CF67: 3.18 | CG67: 0 | CH67: 33.99 | CI67: 0 | CJ67: 0 | CK67: 0 | CL67: 0 | CM67: 0 | CN67: 0 | CO67: 0 | CP67: 0 | CQ67: 0 | CR67: 0
A68: PL0061 | B68: 7.77 | C68: 15.27 | D68: 13.39 | E68: 28.67 | F68: 15.66 | G68: 14.11 | H68: 3.26 | I68: 7.77 | J68: 15.27 | K68: 13.39 | L68: 26.77 | M68: 22.12 | N68: 15.96 | O68: 15.48 | P68: 3.26 | Q68: 7.77 | R68: 13.93 | S68: 26.77 | T68: 22.12 | U68: 15.96 | V68: 15.48 | W68: 3.26 | X68: 7.77 | Y68: 16.93 | Z68: 14.85 | AA68: 30.68 | AB68: 62.23 | AC68: 39.5 | AD68: 3.26 | AE68: 7.77 | AF68: 16.93 | AG68: 14.85 | AH68: 26.4 | AI68: 13.94 | AJ68: 61.48 | AK68: 50.4 | AL68: 3.26 | AM68: 7.77 | AN68: 15.43 | AO68: 26.4 | AP68: 13.94 | AQ68: 61.48 | AR68: 50.4 | AS68: 3.26 | AT68: 7.77 | AU68: 112.06 | AV68: 117.6 | AW68: 14.85 | AX68: 50.76 | AY68: 3.1 | AZ68: 44.24 | BA68: 5.12 | BB68: 43.2 | BC68: 3.1 | BD68: 15.82 | BE68: 2.07 | BF68: 2.07 | BG68: 32.36 | BH68: 2.07 | BI68: 2.07 | BJ68: 9.71 | BK68: 43.14 | BL68: 2.12 | BM68: 2.12 | BN68: 44.18 | BO68: 3.03 | BP68: 0 | BQ68: 32.82 | BR68: 3.03 | BS68: 0 | BT68: 9.85 | BU68: 43.76 | BV68: 3.1 | BW68: 0 | BX68: 44.81 | BY68: 3.03 | BZ68: 0 | CA68: 23.1 | CB68: 3.03 | CC68: 0 | CD68: 6.93 | CE68: 30.8 | CF68: 3.1 | CG68: 0 | CH68: 31.54 | CI68: 0 | CJ68: 0 | CK68: 0 | CL68: 0 | CM68: 0 | CN68: 0 | CO68: 0 | CP68: 0 | CQ68: 0 | CR68: 0
A69: PL0063 | B69: 7.77 | C69: 15.62 | D69: 13.5 | E69: 28.58 | F69: 15.66 | G69: 14.11 | H69: 3.26 | I69: 7.77 | J69: 15.62 | K69: 13.5 | L69: 26.68 | M69: 22.05 | N69: 15.96 | O69: 15.48 | P69: 3.26 | Q69: 7.77 | R69: 14.09 | S69: 26.68 | T69: 22.05 | U69: 15.96 | V69: 15.48 | W69: 3.26 | X69: 7.77 | Y69: 17.31 | Z69: 14.96 | AA69: 30.58 | AB69: 62.23 | AC69: 39.5 | AD69: 3.26 | AE69: 7.77 | AF69: 17.31 | AG69: 14.96 | AH69: 26.31 | AI69: 13.89 | AJ69: 61.48 | AK69: 50.4 | AL69: 3.26 | AM69: 7.77 | AN69: 15.63 | AO69: 26.31 | AP69: 13.89 | AQ69: 61.48 | AR69: 50.4 | AS69: 3.26 | AT69: 7.77 | AU69: 112.34 | AV69: 117.87 | AW69: 14.96 | AX69: 50.76 | AY69: 3.1 | AZ69: 44.4 | BA69: 5.12 | BB69: 43.36 | BC69: 3.1 | BD69: 15.87 | BE69: 2.07 | BF69: 2.07 | BG69: 32.47 | BH69: 2.07 | BI69: 2.07 | BJ69: 9.74 | BK69: 43.29 | BL69: 2.12 | BM69: 2.12 | BN69: 44.33 | BO69: 3.03 | BP69: 0 | BQ69: 32.93 | BR69: 3.03 | BS69: 0 | BT69: 9.88 | BU69: 43.91 | BV69: 3.1 | BW69: 0 | BX69: 44.96 | BY69: 3.03 | BZ69: 0 | CA69: 23.21 | CB69: 3.03 | CC69: 0 | CD69: 6.96 | CE69: 30.95 | CF69: 3.1 | CG69: 0 | CH69: 31.69 | CI69: 0 | CJ69: 0 | CK69: 0 | CL69: 0 | CM69: 0 | CN69: 0 | CO69: 0 | CP69: 0 | CQ69: 0 | CR69: 0
A70: PL0064 | B70: 7.77 | C70: 15.65 | D70: 13.58 | E70: 28.58 | F70: 15.66 | G70: 14.11 | H70: 3.26 | I70: 7.77 | J70: 15.65 | K70: 13.58 | L70: 26.68 | M70: 22.05 | N70: 15.96 | O70: 15.48 | P70: 3.26 | Q70: 7.77 | R70: 14.16 | S70: 26.68 | T70: 22.05 | U70: 15.96 | V70: 15.48 | W70: 3.26 | X70: 7.77 | Y70: 17.35 | Z70: 15.06 | AA70: 30.58 | AB70: 62.23 | AC70: 39.5 | AD70: 3.26 | AE70: 7.77 | AF70: 17.35 | AG70: 15.06 | AH70: 26.31 | AI70: 13.89 | AJ70: 61.48 | AK70: 50.4 | AL70: 3.26 | AM70: 7.77 | AN70: 15.71 | AO70: 26.31 | AP70: 13.89 | AQ70: 61.48 | AR70: 50.4 | AS70: 3.26 | AT70: 7.77 | AU70: 112.37 | AV70: 117.91 | AW70: 15.06 | AX70: 50.76 | AY70: 3.1 | AZ70: 44.48 | BA70: 5.12 | BB70: 43.44 | BC70: 3.1 | BD70: 15.9 | BE70: 2.07 | BF70: 2.07 | BG70: 32.53 | BH70: 2.07 | BI70: 2.07 | BJ70: 9.76 | BK70: 43.37 | BL70: 2.12 | BM70: 2.12 | BN70: 44.41 | BO70: 3.03 | BP70: 0 | BQ70: 32.99 | BR70: 3.03 | BS70: 0 | BT70: 9.9 | BU70: 43.99 | BV70: 3.1 | BW70: 0 | BX70: 45.05 | BY70: 3.03 | BZ70: 0 | CA70: 23.27 | CB70: 3.03 | CC70: 0 | CD70: 6.98 | CE70: 31.03 | CF70: 3.1 | CG70: 0 | CH70: 31.77 | CI70: 0 | CJ70: 0 | CK70: 0 | CL70: 0 | CM70: 0 | CN70: 0 | CO70: 0 | CP70: 0 | CQ70: 0 | CR70: 0
A71: PL0065 | B71: 7.77 | C71: 16.21 | D71: 14.02 | E71: 28.67 | F71: 15.66 | G71: 14.11 | H71: 3.26 | I71: 7.77 | J71: 16.21 | K71: 14.02 | L71: 26.77 | M71: 22.12 | N71: 15.96 | O71: 15.48 | P71: 3.26 | Q71: 7.77 | R71: 14.64 | S71: 26.77 | T71: 22.12 | U71: 15.96 | V71: 15.48 | W71: 3.26 | X71: 7.77 | Y71: 17.98 | Z71: 15.54 | AA71: 30.68 | AB71: 62.23 | AC71: 39.5 | AD71: 3.26 | AE71: 7.77 | AF71: 17.98 | AG71: 15.54 | AH71: 26.4 | AI71: 13.94 | AJ71: 61.48 | AK71: 50.4 | AL71: 3.26 | AM71: 7.77 | AN71: 16.23 | AO71: 26.4 | AP71: 13.94 | AQ71: 61.48 | AR71: 50.4 | AS71: 3.26 | AT71: 7.77 | AU71: 113.11 | AV71: 118.65 | AW71: 15.54 | AX71: 50.76 | AY71: 3.1 | AZ71: 45.04 | BA71: 5.12 | BB71: 43.98 | BC71: 3.1 | BD71: 16.1 | BE71: 2.07 | BF71: 2.07 | BG71: 32.93 | BH71: 2.07 | BI71: 2.07 | BJ71: 9.88 | BK71: 43.91 | BL71: 2.12 | BM71: 2.12 | BN71: 44.96 | BO71: 3.03 | BP71: 0 | BQ71: 33.41 | BR71: 3.03 | BS71: 0 | BT71: 10.02 | BU71: 44.54 | BV71: 3.1 | BW71: 0 | BX71: 45.61 | BY71: 3.03 | BZ71: 0 | CA71: 23.66 | CB71: 3.03 | CC71: 0 | CD71: 7.1 | CE71: 31.55 | CF71: 3.1 | CG71: 0 | CH71: 32.31 | CI71: 0 | CJ71: 0 | CK71: 0 | CL71: 0 | CM71: 0 | CN71: 0 | CO71: 0 | CP71: 0 | CQ71: 0 | CR71: 0
A72: PL0074 | B72: 7.77 | C72: 15.3 | D72: 13.32 | E72: 28.67 | F72: 15.66 | G72: 14.11 | H72: 3.26 | I72: 7.77 | J72: 15.3 | K72: 13.32 | L72: 26.77 | M72: 22.12 | N72: 15.96 | O72: 15.48 | P72: 3.26 | Q72: 7.77 | R72: 13.89 | S72: 26.77 | T72: 22.12 | U72: 15.96 | V72: 15.48 | W72: 3.26 | X72: 7.77 | Y72: 16.97 | Z72: 14.78 | AA72: 30.68 | AB72: 62.23 | AC72: 39.5 | AD72: 3.26 | AE72: 7.77 | AF72: 16.97 | AG72: 14.78 | AH72: 26.4 | AI72: 13.94 | AJ72: 61.48 | AK72: 50.4 | AL72: 3.26 | AM72: 7.77 | AN72: 15.39 | AO72: 26.4 | AP72: 13.94 | AQ72: 61.48 | AR72: 50.4 | AS72: 3.26 | AT72: 7.77 | AU72: 112.09 | AV72: 117.64 | AW72: 14.78 | AX72: 50.76 | AY72: 3.1 | AZ72: 44.2 | BA72: 5.12 | BB72: 43.16 | BC72: 3.1 | BD72: 15.8 | BE72: 2.07 | BF72: 2.07 | BG72: 32.33 | BH72: 2.07 | BI72: 2.07 | BJ72: 9.7 | BK72: 43.1 | BL72: 2.12 | BM72: 2.12 | BN72: 44.13 | BO72: 3.03 | BP72: 0 | BQ72: 32.79 | BR72: 3.03 | BS72: 0 | BT72: 9.84 | BU72: 43.72 | BV72: 3.1 | BW72: 0 | BX72: 44.77 | BY72: 3.03 | BZ72: 0 | CA72: 23.07 | CB72: 3.03 | CC72: 0 | CD72: 6.92 | CE72: 30.76 | CF72: 3.1 | CG72: 0 | CH72: 31.5 | CI72: 0 | CJ72: 0 | CK72: 0 | CL72: 0 | CM72: 0 | CN72: 0 | CO72: 0 | CP72: 0 | CQ72: 0 | CR72: 0
A73: PL0222 | B73: 7.77 | C73: 15.3 | D73: 13.32 | E73: 28.67 | F73: 15.66 | G73: 14.11 | H73: 3.26 | I73: 7.77 | J73: 15.3 | K73: 13.32 | L73: 26.77 | M73: 22.12 | N73: 15.96 | O73: 15.48 | P73: 3.26 | Q73: 7.77 | R73: 13.89 | S73: 26.77 | T73: 22.12 | U73: 15.96 | V73: 15.48 | W73: 3.26 | X73: 7.77 | Y73: 16.97 | Z73: 14.78 | AA73: 30.68 | AB73: 62.23 | AC73: 39.5 | AD73: 3.26 | AE73: 7.77 | AF73: 16.97 | AG73: 14.78 | AH73: 26.4 | AI73: 13.94 | AJ73: 61.48 | AK73: 50.4 | AL73: 3.26 | AM73: 7.77 | AN73: 15.39 | AO73: 26.4 | AP73: 13.94 | AQ73: 61.48 | AR73: 50.4 | AS73: 3.26 | AT73: 7.77 | AU73: 112.09 | AV73: 117.64 | AW73: 14.78 | AX73: 50.76 | AY73: 3.1 | AZ73: 44.2 | BA73: 5.12 | BB73: 43.16 | BC73: 3.1 | BD73: 15.8 | BE73: 2.07 | BF73: 2.07 | BG73: 32.33 | BH73: 2.07 | BI73: 2.07 | BJ73: 9.7 | BK73: 43.1 | BL73: 2.12 | BM73: 2.12 | BN73: 44.13 | BO73: 3.03 | BP73: 0 | BQ73: 32.79 | BR73: 3.03 | BS73: 0 | BT73: 9.84 | BU73: 43.72 | BV73: 3.1 | BW73: 0 | BX73: 44.77 | BY73: 3.03 | BZ73: 0 | CA73: 23.07 | CB73: 3.03 | CC73: 0 | CD73: 6.92 | CE73: 30.76 | CF73: 3.1 | CG73: 0 | CH73: 31.5 | CI73: 0 | CJ73: 0 | CK73: 0 | CL73: 0 | CM73: 0 | CN73: 0 | CO73: 0 | CP73: 0 | CQ73: 0 | CR73: 0
A74: PL0060 | B74: 5.02 | C74: 15.18 | D74: 13.22 | E74: 25.74 | F74: 14.28 | G74: 14.51 | H74: 3.26 | I74: 5.02 | J74: 15.18 | K74: 13.22 | L74: 23.38 | M74: 13.17 | N74: 15.83 | O74: 15.29 | P74: 3.26 | Q74: 5.02 | R74: 13.77 | S74: 23.38 | T74: 13.17 | U74: 15.83 | V74: 15.29 | W74: 3.26 | X74: 5.02 | Y74: 16.68 | Z74: 14.53 | AA74: 29.38 | AB74: 61.63 | AC74: 45.24 | AD74: 3.26 | AE74: 5.02 | AF74: 16.68 | AG74: 14.53 | AH74: 28.35 | AI74: 22.01 | AJ74: 63.07 | AK74: 58.57 | AL74: 3.26 | AM74: 5.02 | AN74: 15.14 | AO74: 28.35 | AP74: 22.01 | AQ74: 63.07 | AR74: 58.57 | AS74: 3.26 | AT74: 5.02 | AU74: 110.18 | AV74: 115.62 | AW74: 14.53 | AX74: 50.76 | AY74: 2.41 | AZ74: 43.45 | BA74: 2.56 | BB74: 42.43 | BC74: 2.41 | BD74: 15.67 | BE74: 2.06 | BF74: 2.06 | BG74: 31.26 | BH74: 2.06 | BI74: 2.06 | BJ74: 9.38 | BK74: 41.68 | BL74: 2.11 | BM74: 2.11 | BN74: 42.68 | BO74: 2.35 | BP74: 0 | BQ74: 31.71 | BR74: 2.35 | BS74: 0 | BT74: 9.51 | BU74: 42.28 | BV74: 2.41 | BW74: 0 | BX74: 43.29 | BY74: 2.35 | BZ74: 0 | CA74: 22.44 | CB74: 2.35 | CC74: 0 | CD74: 6.73 | CE74: 29.92 | CF74: 2.41 | CG74: 0 | CH74: 30.64 | CI74: 0 | CJ74: 0 | CK74: 0 | CL74: 0 | CM74: 0 | CN74: 0 | CO74: 0 | CP74: 0 | CQ74: 0 | CR74: 0
A75: PL0062 | B75: 5.02 | C75: 15.29 | D75: 13.3 | E75: 25.74 | F75: 13.35 | G75: 13.57 | H75: 3.26 | I75: 5.02 | J75: 15.29 | K75: 13.3 | L75: 23.38 | M75: 13.17 | N75: 14.8 | O75: 14.3 | P75: 3.26 | Q75: 5.02 | R75: 13.86 | S75: 23.38 | T75: 13.17 | U75: 14.8 | V75: 14.3 | W75: 3.26 | X75: 5.02 | Y75: 16.8 | Z75: 14.62 | AA75: 29.38 | AB75: 57.61 | AC75: 42.29 | AD75: 3.26 | AE75: 5.02 | AF75: 16.8 | AG75: 14.62 | AH75: 28.35 | AI75: 22.01 | AJ75: 58.96 | AK75: 54.76 | AL75: 3.26 | AM75: 5.02 | AN75: 15.25 | AO75: 28.35 | AP75: 22.01 | AQ75: 58.96 | AR75: 54.76 | AS75: 3.26 | AT75: 5.02 | AU75: 106.17 | AV75: 111.38 | AW75: 14.62 | AX75: 47.45 | AY75: 2.41 | AZ75: 42.3 | BA75: 2.56 | BB75: 41.31 | BC75: 2.41 | BD75: 15.26 | BE75: 2.06 | BF75: 2.06 | BG75: 30.44 | BH75: 2.06 | BI75: 2.06 | BJ75: 9.13 | BK75: 40.58 | BL75: 2.11 | BM75: 2.11 | BN75: 41.55 | BO75: 2.35 | BP75: 0 | BQ75: 30.87 | BR75: 2.35 | BS75: 0 | BT75: 9.26 | BU75: 41.16 | BV75: 2.41 | BW75: 0 | BX75: 42.15 | BY75: 2.35 | BZ75: 0 | CA75: 22.16 | CB75: 2.35 | CC75: 0 | CD75: 6.65 | CE75: 29.55 | CF75: 2.41 | CG75: 0 | CH75: 30.26 | CI75: 0 | CJ75: 0 | CK75: 0 | CL75: 0 | CM75: 0 | CN75: 0 | CO75: 0 | CP75: 0 | CQ75: 0 | CR75: 0
A76: PL0066 | B76: 5.02 | C76: 15.94 | D76: 13.79 | E76: 25.74 | F76: 13.35 | G76: 13.57 | H76: 3.26 | I76: 5.02 | J76: 15.94 | K76: 13.79 | L76: 23.38 | M76: 13.17 | N76: 14.8 | O76: 14.3 | P76: 3.26 | Q76: 5.02 | R76: 14.41 | S76: 23.38 | T76: 13.17 | U76: 14.8 | V76: 14.3 | W76: 3.26 | X76: 5.02 | Y76: 17.53 | Z76: 15.17 | AA76: 29.38 | AB76: 57.61 | AC76: 42.29 | AD76: 3.26 | AE76: 5.02 | AF76: 17.53 | AG76: 15.17 | AH76: 28.35 | AI76: 22.01 | AJ76: 58.96 | AK76: 54.76 | AL76: 3.26 | AM76: 5.02 | AN76: 15.83 | AO76: 28.35 | AP76: 22.01 | AQ76: 58.96 | AR76: 54.76 | AS76: 3.26 | AT76: 5.02 | AU76: 106.9 | AV76: 112.1 | AW76: 15.17 | AX76: 47.45 | AY76: 2.41 | AZ76: 42.9 | BA76: 2.56 | BB76: 41.89 | BC76: 2.41 | BD76: 15.47 | BE76: 2.06 | BF76: 2.06 | BG76: 30.86 | BH76: 2.06 | BI76: 2.06 | BJ76: 9.26 | BK76: 41.15 | BL76: 2.11 | BM76: 2.11 | BN76: 42.14 | BO76: 2.35 | BP76: 0 | BQ76: 31.31 | BR76: 2.35 | BS76: 0 | BT76: 9.39 | BU76: 41.74 | BV76: 2.41 | BW76: 0 | BX76: 42.74 | BY76: 2.35 | BZ76: 0 | CA76: 22.58 | CB76: 2.35 | CC76: 0 | CD76: 6.77 | CE76: 30.11 | CF76: 2.41 | CG76: 0 | CH76: 30.83 | CI76: 0 | CJ76: 0 | CK76: 0 | CL76: 0 | CM76: 0 | CN76: 0 | CO76: 0 | CP76: 0 | CQ76: 0 | CR76: 0
A77: PL0067 | B77: 5.02 | C77: 15.48 | D77: 13.38 | E77: 25.66 | F77: 14.28 | G77: 14.51 | H77: 3.26 | I77: 5.02 | J77: 15.48 | K77: 13.38 | L77: 23.31 | M77: 13.13 | N77: 15.83 | O77: 15.29 | P77: 3.26 | Q77: 5.02 | R77: 13.98 | S77: 23.31 | T77: 13.13 | U77: 15.83 | V77: 15.29 | W77: 3.26 | X77: 5.02 | Y77: 17.03 | Z77: 14.71 | AA77: 29.28 | AB77: 61.63 | AC77: 45.24 | AD77: 3.26 | AE77: 5.02 | AF77: 17.03 | AG77: 14.71 | AH77: 28.26 | AI77: 21.93 | AJ77: 63.07 | AK77: 58.57 | AL77: 3.26 | AM77: 5.02 | AN77: 15.37 | AO77: 28.26 | AP77: 21.93 | AQ77: 63.07 | AR77: 58.57 | AS77: 3.26 | AT77: 5.02 | AU77: 110.43 | AV77: 115.87 | AW77: 14.71 | AX77: 50.76 | AY77: 2.41 | AZ77: 43.64 | BA77: 2.56 | BB77: 42.62 | BC77: 2.41 | BD77: 15.74 | BE77: 2.06 | BF77: 2.06 | BG77: 31.4 | BH77: 2.06 | BI77: 2.06 | BJ77: 9.42 | BK77: 41.87 | BL77: 2.11 | BM77: 2.11 | BN77: 42.87 | BO77: 2.35 | BP77: 0 | BQ77: 31.85 | BR77: 2.35 | BS77: 0 | BT77: 9.56 | BU77: 42.47 | BV77: 2.41 | BW77: 0 | BX77: 43.49 | BY77: 2.35 | BZ77: 0 | CA77: 22.58 | CB77: 2.35 | CC77: 0 | CD77: 6.77 | CE77: 30.1 | CF77: 2.41 | CG77: 0 | CH77: 30.82 | CI77: 0 | CJ77: 0 | CK77: 0 | CL77: 0 | CM77: 0 | CN77: 0 | CO77: 0 | CP77: 0 | CQ77: 0 | CR77: 0
A78: PR0094 | B78: 10.99 | C78: 15.3 | D78: 13.27 | E78: 27.33 | F78: 9 | G78: 12.6 | H78: 3.26 | I78: 10.99 | J78: 15.3 | K78: 13.27 | L78: 17.67 | M78: 17.67 | N78: 11.83 | O78: 11.83 | P78: 3.26 | Q78: 10.99 | R78: 13.81 | S78: 17.67 | T78: 17.67 | U78: 11.83 | V78: 11.83 | W78: 3.26 | X78: 10.99 | Y78: 16.94 | Z78: 14.68 | AA78: 30.29 | AB78: 46.79 | AC78: 25.75 | AD78: 3.26 | AE78: 10.99 | AF78: 16.94 | AG78: 14.68 | AH78: 20.45 | AI78: 6.83 | AJ78: 40.31 | AK78: 30.85 | AL78: 3.26 | AM78: 10.99 | AN78: 15.28 | AO78: 20.45 | AP78: 6.83 | AQ78: 40.31 | AR78: 30.85 | AS78: 3.26 | AT78: 10.99 | AU78: 98.68 | AV78: 103.44 | AW78: 14.68 | AX78: 42.55 | AY78: 3.55 | AZ78: 40.04 | BA78: 3.47 | BB78: 39.1 | BC78: 3.55 | BD78: 12.09 | BE78: 2.79 | BF78: 2.79 | BG78: 27.93 | BH78: 2.79 | BI78: 2.79 | BJ78: 8.38 | BK78: 55.86 | BL78: 2.86 | BM78: 2.86 | BN78: 57.2 | BO78: 3.47 | BP78: 1.89 | BQ78: 28.38 | BR78: 3.47 | BS78: 1.89 | BT78: 8.51 | BU78: 56.76 | BV78: 3.55 | BW78: 1.94 | BX78: 58.12 | BY78: 3.47 | BZ78: 0 | CA78: 19.58 | CB78: 3.47 | CC78: 0 | CD78: 5.87 | CE78: 39.16 | CF78: 3.55 | CG78: 0 | CH78: 40.1 | CI78: 0 | CJ78: 0 | CK78: 0 | CL78: 0 | CM78: 0 | CN78: 0 | CO78: 0 | CP78: 0 | CQ78: 0 | CR78: 0
A79: PR0095 | B79: 10.73 | C79: 17.88 | D79: 17.88 | E79: 19.08 | F79: 8.79 | G79: 12.3 | H79: 3.18 | I79: 10.73 | J79: 17.88 | K79: 17.88 | L79: 12.34 | M79: 12.34 | N79: 11.55 | O79: 11.55 | P79: 3.18 | Q79: 10.73 | R79: 17.88 | S79: 12.34 | T79: 12.34 | U79: 11.55 | V79: 11.55 | W79: 3.18 | X79: 10.73 | Y79: 19.79 | Z79: 19.79 | AA79: 21.15 | AB79: 45.69 | AC79: 25.15 | AD79: 3.18 | AE79: 10.73 | AF79: 19.79 | AG79: 19.79 | AH79: 14.28 | AI79: 4.77 | AJ79: 39.37 | AK79: 30.13 | AL79: 3.18 | AM79: 10.73 | AN79: 19.79 | AO79: 14.28 | AP79: 4.77 | AQ79: 39.37 | AR79: 30.13 | AS79: 3.18 | AT79: 10.73 | AU79: 90.68 | AV79: 94.81 | AW79: 19.79 | AX79: 41.55 | AY79: 3.47 | AZ79: 41.25 | BA79: 3.47 | BB79: 41.25 | BC79: 3.47 | BD79: 11.84 | BE79: 2.79 | BF79: 2.79 | BG79: 21.01 | BH79: 2.79 | BI79: 2.79 | BJ79: 6.3 | BK79: 56.03 | BL79: 2.79 | BM79: 2.79 | BN79: 56.03 | BO79: 3.47 | BP79: 1.89 | BQ79: 21.35 | BR79: 3.47 | BS79: 1.89 | BT79: 6.41 | BU79: 56.94 | BV79: 3.47 | BW79: 1.89 | BX79: 56.94 | BY79: 3.47 | BZ79: 0 | CA79: 14.79 | CB79: 3.47 | CC79: 0 | CD79: 4.44 | CE79: 39.44 | CF79: 3.47 | CG79: 0 | CH79: 39.44 | CI79: 0 | CJ79: 0 | CK79: 0 | CL79: 0 | CM79: 0 | CN79: 0 | CO79: 0 | CP79: 0 | CQ79: 0 | CR79: 0
A80: PR0098 | B80: 10.99 | C80: 15.16 | D80: 13.18 | E80: 27.33 | F80: 9 | G80: 12.6 | H80: 3.26 | I80: 10.99 | J80: 15.16 | K80: 13.18 | L80: 17.67 | M80: 17.67 | N80: 11.83 | O80: 11.83 | P80: 3.26 | Q80: 10.99 | R80: 13.7 | S80: 17.67 | T80: 17.67 | U80: 11.83 | V80: 11.83 | W80: 3.26 | X80: 10.99 | Y80: 16.77 | Z80: 14.58 | AA80: 30.29 | AB80: 46.79 | AC80: 25.75 | AD80: 3.26 | AE80: 10.99 | AF80: 16.77 | AG80: 14.58 | AH80: 20.45 | AI80: 6.83 | AJ80: 40.31 | AK80: 30.85 | AL80: 3.26 | AM80: 10.99 | AN80: 15.17 | AO80: 20.45 | AP80: 6.83 | AQ80: 40.31 | AR80: 30.85 | AS80: 3.26 | AT80: 10.99 | AU80: 98.52 | AV80: 103.29 | AW80: 14.58 | AX80: 42.55 | AY80: 3.55 | AZ80: 39.92 | BA80: 3.47 | BB80: 38.98 | BC80: 3.55 | BD80: 12.06 | BE80: 2.79 | BF80: 2.79 | BG80: 27.87 | BH80: 2.79 | BI80: 2.79 | BJ80: 8.36 | BK80: 55.74 | BL80: 2.86 | BM80: 2.86 | BN80: 57.08 | BO80: 3.47 | BP80: 1.89 | BQ80: 28.32 | BR80: 3.47 | BS80: 1.89 | BT80: 8.5 | BU80: 56.64 | BV80: 3.55 | BW80: 1.94 | BX80: 58 | BY80: 3.47 | BZ80: 0 | CA80: 19.53 | CB80: 3.47 | CC80: 0 | CD80: 5.86 | CE80: 39.05 | CF80: 3.55 | CG80: 0 | CH80: 39.99 | CI80: 0 | CJ80: 0 | CK80: 0 | CL80: 0 | CM80: 0 | CN80: 0 | CO80: 0 | CP80: 0 | CQ80: 0 | CR80: 0
A81: PR0099 | B81: 10.99 | C81: 15.13 | D81: 13.12 | E81: 27.33 | F81: 9 | G81: 12.6 | H81: 3.26 | I81: 10.99 | J81: 15.13 | K81: 13.12 | L81: 17.67 | M81: 17.67 | N81: 11.83 | O81: 11.83 | P81: 3.26 | Q81: 10.99 | R81: 13.65 | S81: 17.67 | T81: 17.67 | U81: 11.83 | V81: 11.83 | W81: 3.26 | X81: 10.99 | Y81: 16.75 | Z81: 14.52 | AA81: 30.29 | AB81: 46.79 | AC81: 25.75 | AD81: 3.26 | AE81: 10.99 | AF81: 16.75 | AG81: 14.52 | AH81: 20.45 | AI81: 6.83 | AJ81: 40.31 | AK81: 30.85 | AL81: 3.26 | AM81: 10.99 | AN81: 15.11 | AO81: 20.45 | AP81: 6.83 | AQ81: 40.31 | AR81: 30.85 | AS81: 3.26 | AT81: 10.99 | AU81: 98.5 | AV81: 103.26 | AW81: 14.52 | AX81: 42.55 | AY81: 3.55 | AZ81: 39.86 | BA81: 3.47 | BB81: 38.93 | BC81: 3.55 | BD81: 12.05 | BE81: 2.79 | BF81: 2.79 | BG81: 27.85 | BH81: 2.79 | BI81: 2.79 | BJ81: 8.35 | BK81: 55.69 | BL81: 2.86 | BM81: 2.86 | BN81: 57.03 | BO81: 3.47 | BP81: 1.89 | BQ81: 28.3 | BR81: 3.47 | BS81: 1.89 | BT81: 8.49 | BU81: 56.59 | BV81: 3.55 | BW81: 1.94 | BX81: 57.95 | BY81: 3.47 | BZ81: 0 | CA81: 19.5 | CB81: 3.47 | CC81: 0 | CD81: 5.85 | CE81: 39 | CF81: 3.55 | CG81: 0 | CH81: 39.94 | CI81: 0 | CJ81: 0 | CK81: 0 | CL81: 0 | CM81: 0 | CN81: 0 | CO81: 0 | CP81: 0 | CQ81: 0 | CR81: 0
A82: PL0225 | B82: 10.72 | C82: 14.98 | D82: 13.03 | E82: 25.95 | F82: 9 | G82: 12.6 | H82: 3.26 | I82: 9.56 | J82: 14.98 | K82: 13.03 | L82: 16.78 | M82: 16.78 | N82: 11.83 | O82: 11.83 | P82: 3.26 | Q82: 9.56 | R82: 13.55 | S82: 16.78 | T82: 16.78 | U82: 11.83 | V82: 11.83 | W82: 3.26 | X82: 10.72 | Y82: 16.92 | Z82: 14.7 | AA82: 29.37 | AB82: 46.99 | AC82: 25.75 | AD82: 3.26 | AE82: 9.56 | AF82: 16.92 | AG82: 14.7 | AH82: 19.82 | AI82: 6.63 | AJ82: 40.44 | AK82: 30.89 | AL82: 3.26 | AM82: 9.56 | AN82: 15.29 | AO82: 19.82 | AP82: 6.63 | AQ82: 40.44 | AR82: 30.89 | AS82: 3.26 | AT82: 9.56 | AU82: 97.9 | AV82: 102.63 | AW82: 14.7 | AX82: 42.55 | AY82: 3.33 | AZ82: 39.81 | BA82: 3.25 | BB82: 38.88 | BC82: 3.33 | BD82: 12.83 | BE82: 2.62 | BF82: 2.34 | BG82: 23.56 | BH82: 2.62 | BI82: 2.34 | BJ82: 7.07 | BK82: 47.12 | BL82: 2.68 | BM82: 2.4 | BN82: 48.25 | BO82: 3.25 | BP82: 1.75 | BQ82: 23.92 | BR82: 3.25 | BS82: 1.75 | BT82: 7.18 | BU82: 47.84 | BV82: 3.33 | BW82: 1.79 | BX82: 48.99 | BY82: 3.25 | BZ82: 0 | CA82: 16.73 | CB82: 3.25 | CC82: 0 | CD82: 5.02 | CE82: 33.46 | CF82: 3.33 | CG82: 0 | CH82: 34.26 | CI82: 0 | CJ82: 0 | CK82: 0 | CL82: 0 | CM82: 0 | CN82: 0 | CO82: 0 | CP82: 0 | CQ82: 0 | CR82: 0
A83: PL0226 | B83: 10.47 | C83: 17.67 | D83: 17.67 | E83: 18.12 | F83: 8.79 | G83: 12.3 | H83: 3.18 | I83: 9.34 | J83: 17.67 | K83: 17.67 | L83: 11.72 | M83: 11.72 | N83: 11.55 | O83: 11.55 | P83: 3.18 | Q83: 9.34 | R83: 17.67 | S83: 11.72 | T83: 11.72 | U83: 11.55 | V83: 11.55 | W83: 3.18 | X83: 10.47 | Y83: 19.96 | Z83: 19.96 | AA83: 20.51 | AB83: 45.89 | AC83: 25.15 | AD83: 3.18 | AE83: 9.34 | AF83: 19.96 | AG83: 19.96 | AH83: 13.84 | AI83: 4.62 | AJ83: 39.49 | AK83: 30.17 | AL83: 3.18 | AM83: 9.34 | AN83: 19.96 | AO83: 13.84 | AP83: 4.62 | AQ83: 39.49 | AR83: 30.17 | AS83: 3.18 | AT83: 9.34 | AU83: 90.38 | AV83: 94.48 | AW83: 19.96 | AX83: 41.55 | AY83: 3.25 | AZ83: 41.28 | BA83: 3.25 | BB83: 41.28 | BC83: 3.25 | BD83: 12.9 | BE83: 2.62 | BF83: 2.34 | BG83: 18.2 | BH83: 2.62 | BI83: 2.34 | BJ83: 5.46 | BK83: 48.52 | BL83: 2.62 | BM83: 2.34 | BN83: 48.52 | BO83: 3.25 | BP83: 1.75 | BQ83: 18.47 | BR83: 3.25 | BS83: 1.75 | BT83: 5.54 | BU83: 49.25 | BV83: 3.25 | BW83: 1.75 | BX83: 49.25 | BY83: 3.25 | BZ83: 0 | CA83: 13.11 | CB83: 3.25 | CC83: 0 | CD83: 3.93 | CE83: 34.96 | CF83: 3.25 | CG83: 0 | CH83: 34.96 | CI83: 0 | CJ83: 0 | CK83: 0 | CL83: 0 | CM83: 0 | CN83: 0 | CO83: 0 | CP83: 0 | CQ83: 0 | CR83: 0
A84: PL0229 | B84: 10.47 | C84: 17.67 | D84: 17.67 | E84: 18.12 | F84: 8.79 | G84: 12.3 | H84: 3.18 | I84: 9.34 | J84: 17.67 | K84: 17.67 | L84: 11.72 | M84: 11.72 | N84: 11.55 | O84: 11.55 | P84: 3.18 | Q84: 9.34 | R84: 17.67 | S84: 11.72 | T84: 11.72 | U84: 11.55 | V84: 11.55 | W84: 3.18 | X84: 10.47 | Y84: 19.96 | Z84: 19.96 | AA84: 20.51 | AB84: 45.89 | AC84: 25.15 | AD84: 3.18 | AE84: 9.34 | AF84: 19.96 | AG84: 19.96 | AH84: 13.84 | AI84: 4.62 | AJ84: 39.49 | AK84: 30.17 | AL84: 3.18 | AM84: 9.34 | AN84: 19.96 | AO84: 13.84 | AP84: 4.62 | AQ84: 39.49 | AR84: 30.17 | AS84: 3.18 | AT84: 9.34 | AU84: 90.38 | AV84: 94.48 | AW84: 19.96 | AX84: 41.55 | AY84: 3.25 | AZ84: 41.28 | BA84: 3.25 | BB84: 41.28 | BC84: 3.25 | BD84: 12.9 | BE84: 2.62 | BF84: 2.34 | BG84: 18.2 | BH84: 2.62 | BI84: 2.34 | BJ84: 5.46 | BK84: 48.52 | BL84: 2.62 | BM84: 2.34 | BN84: 48.52 | BO84: 3.25 | BP84: 1.75 | BQ84: 18.47 | BR84: 3.25 | BS84: 1.75 | BT84: 5.54 | BU84: 49.25 | BV84: 3.25 | BW84: 1.75 | BX84: 49.25 | BY84: 3.25 | BZ84: 0 | CA84: 13.11 | CB84: 3.25 | CC84: 0 | CD84: 3.93 | CE84: 34.96 | CF84: 3.25 | CG84: 0 | CH84: 34.96 | CI84: 0 | CJ84: 0 | CK84: 0 | CL84: 0 | CM84: 0 | CN84: 0 | CO84: 0 | CP84: 0 | CQ84: 0 | CR84: 0
A85: PL0097 | B85: 8.68 | C85: 14.77 | D85: 12.84 | E85: 26.05 | F85: 9.22 | G85: 12.91 | H85: 3.26 | I85: 8.68 | J85: 14.77 | K85: 12.84 | L85: 28.14 | M85: 14.01 | N85: 10.72 | O85: 11.82 | P85: 3.26 | Q85: 8.68 | R85: 13.35 | S85: 28.14 | T85: 14.01 | U85: 10.72 | V85: 11.82 | W85: 3.26 | X85: 8.68 | Y85: 16.41 | Z85: 14.26 | AA85: 28.35 | AB85: 46.84 | AC85: 25.75 | AD85: 3.26 | AE85: 8.68 | AF85: 16.41 | AG85: 14.26 | AH85: 19.15 | AI85: 6.39 | AJ85: 40.35 | AK85: 30.86 | AL85: 3.26 | AM85: 8.68 | AN85: 14.84 | AO85: 19.15 | AP85: 6.39 | AQ85: 40.35 | AR85: 30.86 | AS85: 3.26 | AT85: 8.68 | AU85: 96.17 | AV85: 100.81 | AW85: 14.26 | AX85: 42.55 | AY85: 3.18 | AZ85: 38.98 | BA85: 3.11 | BB85: 38.07 | BC85: 3.18 | BD85: 13.22 | BE85: 2.62 | BF85: 2.34 | BG85: 20.83 | BH85: 2.62 | BI85: 2.34 | BJ85: 6.25 | BK85: 41.65 | BL85: 2.68 | BM85: 2.4 | BN85: 42.65 | BO85: 3.11 | BP85: 1.7 | BQ85: 21.16 | BR85: 3.11 | BS85: 1.7 | BT85: 6.35 | BU85: 42.32 | BV85: 3.18 | BW85: 1.74 | BX85: 43.34 | BY85: 3.11 | BZ85: 0 | CA85: 14.95 | CB85: 3.11 | CC85: 0 | CD85: 4.48 | CE85: 29.89 | CF85: 3.18 | CG85: 0 | CH85: 30.61 | CI85: 0 | CJ85: 0 | CK85: 0 | CL85: 0 | CM85: 0 | CN85: 0 | CO85: 0 | CP85: 0 | CQ85: 0 | CR85: 0
A86: PL0098 | B86: 8.68 | C86: 14.77 | D86: 12.84 | E86: 26.05 | F86: 9.22 | G86: 12.91 | H86: 3.26 | I86: 8.68 | J86: 14.77 | K86: 12.84 | L86: 28.14 | M86: 14.01 | N86: 10.72 | O86: 11.82 | P86: 3.26 | Q86: 8.68 | R86: 13.35 | S86: 28.14 | T86: 14.01 | U86: 10.72 | V86: 11.82 | W86: 3.26 | X86: 8.68 | Y86: 16.41 | Z86: 14.26 | AA86: 28.35 | AB86: 46.84 | AC86: 25.75 | AD86: 3.26 | AE86: 8.68 | AF86: 16.41 | AG86: 14.26 | AH86: 19.15 | AI86: 6.39 | AJ86: 40.35 | AK86: 30.86 | AL86: 3.26 | AM86: 8.68 | AN86: 14.84 | AO86: 19.15 | AP86: 6.39 | AQ86: 40.35 | AR86: 30.86 | AS86: 3.26 | AT86: 8.68 | AU86: 96.17 | AV86: 100.81 | AW86: 14.26 | AX86: 42.55 | AY86: 3.18 | AZ86: 38.98 | BA86: 3.11 | BB86: 38.07 | BC86: 3.18 | BD86: 13.22 | BE86: 2.62 | BF86: 2.34 | BG86: 20.83 | BH86: 2.62 | BI86: 2.34 | BJ86: 6.25 | BK86: 41.65 | BL86: 2.68 | BM86: 2.4 | BN86: 42.65 | BO86: 3.11 | BP86: 1.7 | BQ86: 21.16 | BR86: 3.11 | BS86: 1.7 | BT86: 6.35 | BU86: 42.32 | BV86: 3.18 | BW86: 1.74 | BX86: 43.34 | BY86: 3.11 | BZ86: 0 | CA86: 14.95 | CB86: 3.11 | CC86: 0 | CD86: 4.48 | CE86: 29.89 | CF86: 3.18 | CG86: 0 | CH86: 30.61 | CI86: 0 | CJ86: 0 | CK86: 0 | CL86: 0 | CM86: 0 | CN86: 0 | CO86: 0 | CP86: 0 | CQ86: 0 | CR86: 0
A87: PL0099 | B87: 8.68 | C87: 14.77 | D87: 12.84 | E87: 26.05 | F87: 9.22 | G87: 12.91 | H87: 3.26 | I87: 8.68 | J87: 14.77 | K87: 12.84 | L87: 28.14 | M87: 14.01 | N87: 10.72 | O87: 11.82 | P87: 3.26 | Q87: 8.68 | R87: 13.35 | S87: 28.14 | T87: 14.01 | U87: 10.72 | V87: 11.82 | W87: 3.26 | X87: 8.68 | Y87: 16.41 | Z87: 14.26 | AA87: 28.35 | AB87: 46.84 | AC87: 25.75 | AD87: 3.26 | AE87: 8.68 | AF87: 16.41 | AG87: 14.26 | AH87: 19.15 | AI87: 6.39 | AJ87: 40.35 | AK87: 30.86 | AL87: 3.26 | AM87: 8.68 | AN87: 14.84 | AO87: 19.15 | AP87: 6.39 | AQ87: 40.35 | AR87: 30.86 | AS87: 3.26 | AT87: 8.68 | AU87: 96.17 | AV87: 100.81 | AW87: 14.26 | AX87: 42.55 | AY87: 3.18 | AZ87: 38.98 | BA87: 3.11 | BB87: 38.07 | BC87: 3.18 | BD87: 13.22 | BE87: 2.62 | BF87: 2.34 | BG87: 20.83 | BH87: 2.62 | BI87: 2.34 | BJ87: 6.25 | BK87: 41.65 | BL87: 2.68 | BM87: 2.4 | BN87: 42.65 | BO87: 3.11 | BP87: 1.7 | BQ87: 21.16 | BR87: 3.11 | BS87: 1.7 | BT87: 6.35 | BU87: 42.32 | BV87: 3.18 | BW87: 1.74 | BX87: 43.34 | BY87: 3.11 | BZ87: 0 | CA87: 14.95 | CB87: 3.11 | CC87: 0 | CD87: 4.48 | CE87: 29.89 | CF87: 3.18 | CG87: 0 | CH87: 30.61 | CI87: 0 | CJ87: 0 | CK87: 0 | CL87: 0 | CM87: 0 | CN87: 0 | CO87: 0 | CP87: 0 | CQ87: 0 | CR87: 0
A88: PL1099 | B88: 8.68 | C88: 14.75 | D88: 12.78 | E88: 26.05 | F88: 9.22 | G88: 12.91 | H88: 3.26 | I88: 8.68 | J88: 14.75 | K88: 12.78 | L88: 28.14 | M88: 14.01 | N88: 10.72 | O88: 11.82 | P88: 3.26 | Q88: 8.68 | R88: 13.3 | S88: 28.14 | T88: 14.01 | U88: 10.72 | V88: 11.82 | W88: 3.26 | X88: 8.68 | Y88: 16.38 | Z88: 14.2 | AA88: 28.35 | AB88: 46.84 | AC88: 25.75 | AD88: 3.26 | AE88: 8.68 | AF88: 16.38 | AG88: 14.2 | AH88: 19.15 | AI88: 6.39 | AJ88: 40.35 | AK88: 30.86 | AL88: 3.26 | AM88: 8.68 | AN88: 14.79 | AO88: 19.15 | AP88: 6.39 | AQ88: 40.35 | AR88: 30.86 | AS88: 3.26 | AT88: 8.68 | AU88: 96.14 | AV88: 100.79 | AW88: 14.2 | AX88: 42.55 | AY88: 3.18 | AZ88: 38.93 | BA88: 3.11 | BB88: 38.02 | BC88: 3.18 | BD88: 13.2 | BE88: 2.62 | BF88: 2.34 | BG88: 20.8 | BH88: 2.62 | BI88: 2.34 | BJ88: 6.24 | BK88: 41.6 | BL88: 2.68 | BM88: 2.4 | BN88: 42.6 | BO88: 3.11 | BP88: 1.7 | BQ88: 21.14 | BR88: 3.11 | BS88: 1.7 | BT88: 6.34 | BU88: 42.27 | BV88: 3.18 | BW88: 1.74 | BX88: 43.28 | BY88: 3.11 | BZ88: 0 | CA88: 14.92 | CB88: 3.11 | CC88: 0 | CD88: 4.48 | CE88: 29.84 | CF88: 3.18 | CG88: 0 | CH88: 30.56 | CI88: 0 | CJ88: 0 | CK88: 0 | CL88: 0 | CM88: 0 | CN88: 0 | CO88: 0 | CP88: 0 | CQ88: 0 | CR88: 0
A89: PL0100 | B89: 8.68 | C89: 14.77 | D89: 12.84 | E89: 26.05 | F89: 9.22 | G89: 12.91 | H89: 3.26 | I89: 8.68 | J89: 14.77 | K89: 12.84 | L89: 28.14 | M89: 14.01 | N89: 10.72 | O89: 11.82 | P89: 3.26 | Q89: 8.68 | R89: 13.35 | S89: 28.14 | T89: 14.01 | U89: 10.72 | V89: 11.82 | W89: 3.26 | X89: 8.68 | Y89: 16.41 | Z89: 14.26 | AA89: 28.35 | AB89: 46.84 | AC89: 25.75 | AD89: 3.26 | AE89: 8.68 | AF89: 16.41 | AG89: 14.26 | AH89: 19.15 | AI89: 6.39 | AJ89: 40.35 | AK89: 30.86 | AL89: 3.26 | AM89: 8.68 | AN89: 14.84 | AO89: 19.15 | AP89: 6.39 | AQ89: 40.35 | AR89: 30.86 | AS89: 3.26 | AT89: 8.68 | AU89: 96.17 | AV89: 100.81 | AW89: 14.26 | AX89: 42.55 | AY89: 3.18 | AZ89: 38.98 | BA89: 3.11 | BB89: 38.07 | BC89: 3.18 | BD89: 13.22 | BE89: 2.62 | BF89: 2.34 | BG89: 20.83 | BH89: 2.62 | BI89: 2.34 | BJ89: 6.25 | BK89: 41.65 | BL89: 2.68 | BM89: 2.4 | BN89: 42.65 | BO89: 3.11 | BP89: 1.7 | BQ89: 21.16 | BR89: 3.11 | BS89: 1.7 | BT89: 6.35 | BU89: 42.32 | BV89: 3.18 | BW89: 1.74 | BX89: 43.34 | BY89: 3.11 | BZ89: 0 | CA89: 14.95 | CB89: 3.11 | CC89: 0 | CD89: 4.48 | CE89: 29.89 | CF89: 3.18 | CG89: 0 | CH89: 30.61 | CI89: 0 | CJ89: 0 | CK89: 0 | CL89: 0 | CM89: 0 | CN89: 0 | CO89: 0 | CP89: 0 | CQ89: 0 | CR89: 0
A90: PL0101 | B90: 8.48 | C90: 17.42 | D90: 17.42 | E90: 18.19 | F90: 9 | G90: 12.61 | H90: 3.18 | I90: 8.48 | J90: 17.42 | K90: 17.42 | L90: 19.65 | M90: 9.78 | N90: 10.47 | O90: 11.54 | P90: 3.18 | Q90: 8.48 | R90: 17.42 | S90: 19.65 | T90: 9.78 | U90: 10.47 | V90: 11.54 | W90: 3.18 | X90: 8.48 | Y90: 19.36 | Z90: 19.36 | AA90: 19.8 | AB90: 45.74 | AC90: 25.15 | AD90: 3.18 | AE90: 8.48 | AF90: 19.36 | AG90: 19.36 | AH90: 13.37 | AI90: 4.46 | AJ90: 39.4 | AK90: 30.14 | AL90: 3.18 | AM90: 8.48 | AN90: 19.36 | AO90: 13.37 | AP90: 4.46 | AQ90: 39.4 | AR90: 30.14 | AS90: 3.18 | AT90: 8.48 | AU90: 88.88 | AV90: 92.93 | AW90: 19.36 | AX90: 41.55 | AY90: 3.11 | AZ90: 40.41 | BA90: 3.11 | BB90: 40.41 | BC90: 3.11 | BD90: 13.48 | BE90: 2.62 | BF90: 2.34 | BG90: 16.31 | BH90: 2.62 | BI90: 2.34 | BJ90: 4.89 | BK90: 43.5 | BL90: 2.62 | BM90: 2.34 | BN90: 43.5 | BO90: 3.11 | BP90: 1.7 | BQ90: 16.58 | BR90: 3.11 | BS90: 1.7 | BT90: 4.97 | BU90: 44.2 | BV90: 3.11 | BW90: 1.7 | BX90: 44.2 | BY90: 3.11 | BZ90: 0 | CA90: 11.92 | CB90: 3.11 | CC90: 0 | CD90: 3.58 | CE90: 31.78 | CF90: 3.11 | CG90: 0 | CH90: 31.78 | CI90: 0 | CJ90: 0 | CK90: 0 | CL90: 0 | CM90: 0 | CN90: 0 | CO90: 0 | CP90: 0 | CQ90: 0 | CR90: 0
A91: PL0103 | B91: 8.48 | C91: 17.42 | D91: 17.42 | E91: 18.19 | F91: 9 | G91: 12.61 | H91: 3.18 | I91: 8.48 | J91: 17.42 | K91: 17.42 | L91: 19.65 | M91: 9.78 | N91: 10.47 | O91: 11.54 | P91: 3.18 | Q91: 8.48 | R91: 17.42 | S91: 19.65 | T91: 9.78 | U91: 10.47 | V91: 11.54 | W91: 3.18 | X91: 8.48 | Y91: 19.36 | Z91: 19.36 | AA91: 19.8 | AB91: 45.74 | AC91: 25.15 | AD91: 3.18 | AE91: 8.48 | AF91: 19.36 | AG91: 19.36 | AH91: 13.37 | AI91: 4.46 | AJ91: 39.4 | AK91: 30.14 | AL91: 3.18 | AM91: 8.48 | AN91: 19.36 | AO91: 13.37 | AP91: 4.46 | AQ91: 39.4 | AR91: 30.14 | AS91: 3.18 | AT91: 8.48 | AU91: 88.88 | AV91: 92.93 | AW91: 19.36 | AX91: 41.55 | AY91: 3.11 | AZ91: 40.41 | BA91: 3.11 | BB91: 40.41 | BC91: 3.11 | BD91: 13.48 | BE91: 2.62 | BF91: 2.34 | BG91: 16.31 | BH91: 2.62 | BI91: 2.34 | BJ91: 4.89 | BK91: 43.5 | BL91: 2.62 | BM91: 2.34 | BN91: 43.5 | BO91: 3.11 | BP91: 1.7 | BQ91: 16.58 | BR91: 3.11 | BS91: 1.7 | BT91: 4.97 | BU91: 44.2 | BV91: 3.11 | BW91: 1.7 | BX91: 44.2 | BY91: 3.11 | BZ91: 0 | CA91: 11.92 | CB91: 3.11 | CC91: 0 | CD91: 3.58 | CE91: 31.78 | CF91: 3.11 | CG91: 0 | CH91: 31.78 | CI91: 0 | CJ91: 0 | CK91: 0 | CL91: 0 | CM91: 0 | CN91: 0 | CO91: 0 | CP91: 0 | CQ91: 0 | CR91: 0
A92: PL0106 | B92: 8.68 | C92: 14.77 | D92: 12.84 | E92: 26.05 | F92: 9.22 | G92: 12.91 | H92: 3.26 | I92: 8.68 | J92: 14.77 | K92: 12.84 | L92: 28.14 | M92: 14.01 | N92: 10.72 | O92: 11.82 | P92: 3.26 | Q92: 8.68 | R92: 13.35 | S92: 28.14 | T92: 14.01 | U92: 10.72 | V92: 11.82 | W92: 3.26 | X92: 8.68 | Y92: 16.41 | Z92: 14.26 | AA92: 28.35 | AB92: 46.84 | AC92: 25.75 | AD92: 3.26 | AE92: 8.68 | AF92: 16.41 | AG92: 14.26 | AH92: 19.15 | AI92: 6.39 | AJ92: 40.35 | AK92: 30.86 | AL92: 3.26 | AM92: 8.68 | AN92: 14.84 | AO92: 19.15 | AP92: 6.39 | AQ92: 40.35 | AR92: 30.86 | AS92: 3.26 | AT92: 8.68 | AU92: 96.17 | AV92: 100.81 | AW92: 14.26 | AX92: 42.55 | AY92: 3.18 | AZ92: 38.98 | BA92: 3.11 | BB92: 38.07 | BC92: 3.18 | BD92: 13.22 | BE92: 2.62 | BF92: 2.34 | BG92: 20.83 | BH92: 2.62 | BI92: 2.34 | BJ92: 6.25 | BK92: 41.65 | BL92: 2.68 | BM92: 2.4 | BN92: 42.65 | BO92: 3.11 | BP92: 1.7 | BQ92: 21.16 | BR92: 3.11 | BS92: 1.7 | BT92: 6.35 | BU92: 42.32 | BV92: 3.18 | BW92: 1.74 | BX92: 43.34 | BY92: 3.11 | BZ92: 0 | CA92: 14.95 | CB92: 3.11 | CC92: 0 | CD92: 4.48 | CE92: 29.89 | CF92: 3.18 | CG92: 0 | CH92: 30.61 | CI92: 0 | CJ92: 0 | CK92: 0 | CL92: 0 | CM92: 0 | CN92: 0 | CO92: 0 | CP92: 0 | CQ92: 0 | CR92: 0
A93: PL0109 | B93: 8.48 | C93: 17.42 | D93: 17.42 | E93: 18.19 | F93: 9 | G93: 12.61 | H93: 3.18 | I93: 8.48 | J93: 17.42 | K93: 17.42 | L93: 19.65 | M93: 9.78 | N93: 10.47 | O93: 11.54 | P93: 3.18 | Q93: 8.48 | R93: 17.42 | S93: 19.65 | T93: 9.78 | U93: 10.47 | V93: 11.54 | W93: 3.18 | X93: 8.48 | Y93: 19.36 | Z93: 19.36 | AA93: 19.8 | AB93: 45.74 | AC93: 25.15 | AD93: 3.18 | AE93: 8.48 | AF93: 19.36 | AG93: 19.36 | AH93: 13.37 | AI93: 4.46 | AJ93: 39.4 | AK93: 30.14 | AL93: 3.18 | AM93: 8.48 | AN93: 19.36 | AO93: 13.37 | AP93: 4.46 | AQ93: 39.4 | AR93: 30.14 | AS93: 3.18 | AT93: 8.48 | AU93: 88.88 | AV93: 92.93 | AW93: 19.36 | AX93: 41.55 | AY93: 3.11 | AZ93: 40.41 | BA93: 3.11 | BB93: 40.41 | BC93: 3.11 | BD93: 13.48 | BE93: 2.62 | BF93: 2.34 | BG93: 16.31 | BH93: 2.62 | BI93: 2.34 | BJ93: 4.89 | BK93: 43.5 | BL93: 2.62 | BM93: 2.34 | BN93: 43.5 | BO93: 3.11 | BP93: 1.7 | BQ93: 16.58 | BR93: 3.11 | BS93: 1.7 | BT93: 4.97 | BU93: 44.2 | BV93: 3.11 | BW93: 1.7 | BX93: 44.2 | BY93: 3.11 | BZ93: 0 | CA93: 11.92 | CB93: 3.11 | CC93: 0 | CD93: 3.58 | CE93: 31.78 | CF93: 3.11 | CG93: 0 | CH93: 31.78 | CI93: 0 | CJ93: 0 | CK93: 0 | CL93: 0 | CM93: 0 | CN93: 0 | CO93: 0 | CP93: 0 | CQ93: 0 | CR93: 0
A94: PL0166 | B94: 7.59 | C94: 17.6 | D94: 17.6 | E94: 19.77 | F94: 9.59 | G94: 10.26 | H94: 3.18 | I94: 7.59 | J94: 17.6 | K94: 17.6 | L94: 18.46 | M94: 15.25 | N94: 10.18 | O94: 10.2 | P94: 3.18 | Q94: 7.59 | R94: 17.6 | S94: 18.46 | T94: 15.25 | U94: 10.18 | V94: 10.2 | W94: 3.18 | X94: 7.59 | Y94: 19.52 | Z94: 19.52 | AA94: 21.15 | AB94: 47.49 | AC94: 32.75 | AD94: 3.18 | AE94: 7.59 | AF94: 19.52 | AG94: 19.52 | AH94: 18.2 | AI94: 9.61 | AJ94: 47.62 | AK94: 40.12 | AL94: 3.18 | AM94: 7.59 | AN94: 19.52 | AO94: 18.2 | AP94: 9.61 | AQ94: 47.62 | AR94: 40.12 | AS94: 3.18 | AT94: 7.59 | AU94: 89.8 | AV94: 93.9 | AW94: 19.52 | AX94: 41.55 | AY94: 3.03 | AZ94: 40.8 | BA94: 5.12 | BB94: 40.8 | BC94: 3.03 | BD94: 14.55 | BE94: 2.07 | BF94: 2.07 | BG94: 20.32 | BH94: 2.07 | BI94: 2.07 | BJ94: 6.1 | BK94: 40.64 | BL94: 2.07 | BM94: 2.07 | BN94: 40.64 | BO94: 3.03 | BP94: 0 | BQ94: 20.61 | BR94: 3.03 | BS94: 0 | BT94: 6.18 | BU94: 41.22 | BV94: 3.03 | BW94: 0 | BX94: 41.22 | BY94: 3.03 | BZ94: 0 | CA94: 15.12 | CB94: 3.03 | CC94: 0 | CD94: 4.53 | CE94: 30.23 | CF94: 3.03 | CG94: 0 | CH94: 30.23 | CI94: 0 | CJ94: 0 | CK94: 0 | CL94: 0 | CM94: 0 | CN94: 0 | CO94: 0 | CP94: 0 | CQ94: 0 | CR94: 0
A95: PL0167 | B95: 7.59 | C95: 17.6 | D95: 17.6 | E95: 19.77 | F95: 9.59 | G95: 10.26 | H95: 3.18 | I95: 7.59 | J95: 17.6 | K95: 17.6 | L95: 18.46 | M95: 15.25 | N95: 10.18 | O95: 10.2 | P95: 3.18 | Q95: 7.59 | R95: 17.6 | S95: 18.46 | T95: 15.25 | U95: 10.18 | V95: 10.2 | W95: 3.18 | X95: 7.59 | Y95: 19.52 | Z95: 19.52 | AA95: 21.15 | AB95: 47.49 | AC95: 32.75 | AD95: 3.18 | AE95: 7.59 | AF95: 19.52 | AG95: 19.52 | AH95: 18.2 | AI95: 9.61 | AJ95: 47.62 | AK95: 40.12 | AL95: 3.18 | AM95: 7.59 | AN95: 19.52 | AO95: 18.2 | AP95: 9.61 | AQ95: 47.62 | AR95: 40.12 | AS95: 3.18 | AT95: 7.59 | AU95: 89.8 | AV95: 93.9 | AW95: 19.52 | AX95: 41.55 | AY95: 3.03 | AZ95: 40.8 | BA95: 5.12 | BB95: 40.8 | BC95: 3.03 | BD95: 14.55 | BE95: 2.07 | BF95: 2.07 | BG95: 20.32 | BH95: 2.07 | BI95: 2.07 | BJ95: 6.1 | BK95: 40.64 | BL95: 2.07 | BM95: 2.07 | BN95: 40.64 | BO95: 3.03 | BP95: 0 | BQ95: 20.61 | BR95: 3.03 | BS95: 0 | BT95: 6.18 | BU95: 41.22 | BV95: 3.03 | BW95: 0 | BX95: 41.22 | BY95: 3.03 | BZ95: 0 | CA95: 15.12 | CB95: 3.03 | CC95: 0 | CD95: 4.53 | CE95: 30.23 | CF95: 3.03 | CG95: 0 | CH95: 30.23 | CI95: 0 | CJ95: 0 | CK95: 0 | CL95: 0 | CM95: 0 | CN95: 0 | CO95: 0 | CP95: 0 | CQ95: 0 | CR95: 0
A96: PL0227 | B96: 7.77 | C96: 15.06 | D96: 13.07 | E96: 28.31 | F96: 8.54 | G96: 9.14 | H96: 3.26 | I96: 7.77 | J96: 15.06 | K96: 13.07 | L96: 26.43 | M96: 21.84 | N96: 9.06 | O96: 9.08 | P96: 3.26 | Q96: 7.77 | R96: 13.6 | S96: 26.43 | T96: 21.84 | U96: 9.06 | V96: 9.08 | W96: 3.26 | X96: 7.77 | Y96: 16.7 | Z96: 14.49 | AA96: 30.29 | AB96: 42.29 | AC96: 29.16 | AD96: 3.26 | AE96: 7.77 | AF96: 16.7 | AG96: 14.49 | AH96: 26.06 | AI96: 13.76 | AJ96: 42.4 | AK96: 35.73 | AL96: 3.26 | AM96: 7.77 | AN96: 15.07 | AO96: 26.06 | AP96: 13.76 | AQ96: 42.4 | AR96: 35.73 | AS96: 3.26 | AT96: 7.77 | AU96: 91.02 | AV96: 95.34 | AW96: 14.49 | AX96: 37 | AY96: 3.1 | AZ96: 37.58 | BA96: 5.12 | BB96: 36.7 | BC96: 3.1 | BD96: 13.42 | BE96: 2.07 | BF96: 2.07 | BG96: 27.46 | BH96: 2.07 | BI96: 2.07 | BJ96: 8.24 | BK96: 36.61 | BL96: 2.12 | BM96: 2.12 | BN96: 37.49 | BO96: 3.03 | BP96: 0 | BQ96: 27.85 | BR96: 3.03 | BS96: 0 | BT96: 8.35 | BU96: 37.13 | BV96: 3.1 | BW96: 0 | BX96: 38.02 | BY96: 3.03 | BZ96: 0 | CA96: 20.59 | CB96: 3.03 | CC96: 0 | CD96: 6.18 | CE96: 27.45 | CF96: 3.1 | CG96: 0 | CH96: 28.11 | CI96: 0 | CJ96: 0 | CK96: 0 | CL96: 0 | CM96: 0 | CN96: 0 | CO96: 0 | CP96: 0 | CQ96: 0 | CR96: 0
A97: PL0094 | B97: 5.02 | C97: 14.94 | D97: 12.96 | E97: 25.42 | F97: 7.79 | G97: 9.4 | H97: 3.26 | I97: 5.02 | J97: 14.94 | K97: 12.96 | L97: 23.09 | M97: 13 | N97: 9.16 | O97: 9.26 | P97: 3.26 | Q97: 5.02 | R97: 13.49 | S97: 23.09 | T97: 13 | U97: 9.16 | V97: 9.26 | W97: 3.26 | X97: 5.02 | Y97: 16.42 | Z97: 14.25 | AA97: 29.01 | AB97: 41.93 | AC97: 33.4 | AD97: 3.26 | AE97: 5.02 | AF97: 16.42 | AG97: 14.25 | AH97: 28 | AI97: 21.73 | AJ97: 43.57 | AK97: 41.01 | AL97: 3.26 | AM97: 5.02 | AN97: 14.83 | AO97: 28 | AP97: 21.73 | AQ97: 43.57 | AR97: 41.01 | AS97: 3.26 | AT97: 5.02 | AU97: 89.31 | AV97: 93.55 | AW97: 14.25 | AX97: 37 | AY97: 2.41 | AZ97: 36.89 | BA97: 2.56 | BB97: 36.03 | BC97: 2.41 | BD97: 13.31 | BE97: 2.06 | BF97: 2.06 | BG97: 26.55 | BH97: 2.06 | BI97: 2.06 | BJ97: 7.97 | BK97: 35.4 | BL97: 2.11 | BM97: 2.11 | BN97: 36.25 | BO97: 2.35 | BP97: 0 | BQ97: 26.93 | BR97: 2.35 | BS97: 0 | BT97: 8.08 | BU97: 35.91 | BV97: 2.41 | BW97: 0 | BX97: 36.77 | BY97: 2.35 | BZ97: 0 | CA97: 20.03 | CB97: 2.35 | CC97: 0 | CD97: 6.01 | CE97: 26.71 | CF97: 2.41 | CG97: 0 | CH97: 27.35 | CI97: 0 | CJ97: 0 | CK97: 0 | CL97: 0 | CM97: 0 | CN97: 0 | CO97: 0 | CP97: 0 | CQ97: 0 | CR97: 0
A98: PL0095 | B98: 4.9 | C98: 17.46 | D98: 17.46 | E98: 17.75 | F98: 8.75 | G98: 10.55 | H98: 3.18 | I98: 4.9 | J98: 17.46 | K98: 17.46 | L98: 16.12 | M98: 9.08 | N98: 10.29 | O98: 10.4 | P98: 3.18 | Q98: 4.9 | R98: 17.46 | S98: 16.12 | T98: 9.08 | U98: 10.29 | V98: 10.4 | W98: 3.18 | X98: 4.9 | Y98: 19.2 | Z98: 19.2 | AA98: 20.26 | AB98: 47.09 | AC98: 37.51 | AD98: 3.18 | AE98: 4.9 | AF98: 19.2 | AG98: 19.2 | AH98: 19.55 | AI98: 15.17 | AJ98: 48.93 | AK98: 46.05 | AL98: 3.18 | AM98: 4.9 | AN98: 19.2 | AO98: 19.55 | AP98: 15.17 | AQ98: 48.93 | AR98: 46.05 | AS98: 3.18 | AT98: 4.9 | AU98: 88.39 | AV98: 92.42 | AW98: 19.2 | AX98: 41.55 | AY98: 2.35 | AZ98: 40.15 | BA98: 2.56 | BB98: 40.15 | BC98: 2.35 | BD98: 14.49 | BE98: 2.06 | BF98: 2.06 | BG98: 19.73 | BH98: 2.06 | BI98: 2.06 | BJ98: 5.92 | BK98: 39.46 | BL98: 2.06 | BM98: 2.06 | BN98: 39.46 | BO98: 2.35 | BP98: 0 | BQ98: 20.02 | BR98: 2.35 | BS98: 0 | BT98: 6 | BU98: 40.03 | BV98: 2.35 | BW98: 0 | BX98: 40.03 | BY98: 2.35 | BZ98: 0 | CA98: 14.76 | CB98: 2.35 | CC98: 0 | CD98: 4.43 | CE98: 29.51 | CF98: 2.35 | CG98: 0 | CH98: 29.51 | CI98: 0 | CJ98: 0 | CK98: 0 | CL98: 0 | CM98: 0 | CN98: 0 | CO98: 0 | CP98: 0 | CQ98: 0 | CR98: 0
A99: PL0096 | B99: 5.02 | C99: 14.8 | D99: 12.86 | E99: 25.42 | F99: 8.96 | G99: 10.8 | H99: 3.26 | I99: 5.02 | J99: 14.8 | K99: 12.86 | L99: 23.09 | M99: 13 | N99: 10.54 | O99: 10.65 | P99: 3.26 | Q99: 5.02 | R99: 13.37 | S99: 23.09 | T99: 13 | U99: 10.54 | V99: 10.65 | W99: 3.26 | X99: 5.02 | Y99: 16.27 | Z99: 14.14 | AA99: 29.01 | AB99: 48.22 | AC99: 38.41 | AD99: 3.26 | AE99: 5.02 | AF99: 16.27 | AG99: 14.14 | AH99: 28 | AI99: 21.73 | AJ99: 50.1 | AK99: 47.16 | AL99: 3.26 | AM99: 5.02 | AN99: 14.7 | AO99: 28 | AP99: 21.73 | AQ99: 50.1 | AR99: 47.16 | AS99: 3.26 | AT99: 5.02 | AU99: 95.62 | AV99: 100.24 | AW99: 14.14 | AX99: 42.55 | AY99: 2.41 | AZ99: 38.73 | BA99: 2.56 | BB99: 37.82 | BC99: 2.41 | BD99: 13.98 | BE99: 2.06 | BF99: 2.06 | BG99: 27.87 | BH99: 2.06 | BI99: 2.06 | BJ99: 8.36 | BK99: 37.16 | BL99: 2.11 | BM99: 2.11 | BN99: 38.05 | BO99: 2.35 | BP99: 0 | BQ99: 28.27 | BR99: 2.35 | BS99: 0 | BT99: 8.48 | BU99: 37.69 | BV99: 2.41 | BW99: 0 | BX99: 38.59 | BY99: 2.35 | BZ99: 0 | CA99: 20.43 | CB99: 2.35 | CC99: 0 | CD99: 6.13 | CE99: 27.24 | CF99: 2.41 | CG99: 0 | CH99: 27.89 | CI99: 0 | CJ99: 0 | CK99: 0 | CL99: 0 | CM99: 0 | CN99: 0 | CO99: 0 | CP99: 0 | CQ99: 0 | CR99: 0
A100: PR0122 | B100: 10.99 | C100: 14.83 | D100: 12.85 | E100: 27.1 | F100: 7.85 | G100: 11.44 | H100: 3.26 | I100: 10.99 | J100: 14.83 | K100: 12.85 | L100: 17.52 | M100: 17.52 | N100: 10.62 | O100: 10.62 | P100: 3.26 | Q100: 10.99 | R100: 13.38 | S100: 17.52 | T100: 17.52 | U100: 10.62 | V100: 10.62 | W100: 3.26 | X100: 10.99 | Y100: 16.41 | Z100: 14.22 | AA100: 30.03 | AB100: 44.42 | AC100: 24.61 | AD100: 3.26 | AE100: 10.99 | AF100: 16.41 | AG100: 14.22 | AH100: 20.28 | AI100: 6.77 | AJ100: 38.36 | AK100: 29.42 | AL100: 3.26 | AM100: 10.99 | AN100: 14.81 | AO100: 20.28 | AP100: 6.77 | AQ100: 38.36 | AR100: 29.42 | AS100: 3.26 | AT100: 10.99 | AU100: 95.39 | AV100: 99.98 | AW100: 14.22 | AX100: 41.29 | AY100: 3.55 | AZ100: 38.72 | BA100: 3.47 | BB100: 37.81 | BC100: 3.55 | BD100: 11.68 | BE100: 2.79 | BF100: 2.79 | BG100: 27 | BH100: 2.79 | BI100: 2.79 | BJ100: 8.1 | BK100: 54 | BL100: 2.86 | BM100: 2.86 | BN100: 55.3 | BO100: 3.47 | BP100: 1.89 | BQ100: 27.44 | BR100: 3.47 | BS100: 1.89 | BT100: 8.23 | BU100: 54.87 | BV100: 3.55 | BW100: 1.94 | BX100: 56.19 | BY100: 3.47 | BZ100: 0 | CA100: 18.9 | CB100: 3.47 | CC100: 0 | CD100: 5.67 | CE100: 37.79 | CF100: 3.55 | CG100: 0 | CH100: 38.7 | CI100: 0 | CJ100: 0 | CK100: 0 | CL100: 0 | CM100: 0 | CN100: 0 | CO100: 0 | CP100: 0 | CQ100: 0 | CR100: 0
A101: PR0125 | B101: 10.99 | C101: 14.52 | D101: 12.6 | E101: 27.1 | F101: 7.85 | G101: 11.44 | H101: 3.26 | I101: 10.99 | J101: 14.52 | K101: 12.6 | L101: 17.52 | M101: 17.52 | N101: 10.62 | O101: 10.62 | P101: 3.26 | Q101: 10.99 | R101: 13.11 | S101: 17.52 | T101: 17.52 | U101: 10.62 | V101: 10.62 | W101: 3.26 | X101: 10.99 | Y101: 16.07 | Z101: 13.94 | AA101: 30.03 | AB101: 44.42 | AC101: 24.61 | AD101: 3.26 | AE101: 10.99 | AF101: 16.07 | AG101: 13.94 | AH101: 20.28 | AI101: 6.77 | AJ101: 38.36 | AK101: 29.42 | AL101: 3.26 | AM101: 10.99 | AN101: 14.5 | AO101: 20.28 | AP101: 6.77 | AQ101: 38.36 | AR101: 29.42 | AS101: 3.26 | AT101: 10.99 | AU101: 95.04 | AV101: 99.64 | AW101: 13.94 | AX101: 41.29 | AY101: 3.55 | AZ101: 38.41 | BA101: 3.47 | BB101: 37.51 | BC101: 3.55 | BD101: 11.62 | BE101: 2.79 | BF101: 2.79 | BG101: 26.86 | BH101: 2.79 | BI101: 2.79 | BJ101: 8.06 | BK101: 53.71 | BL101: 2.86 | BM101: 2.86 | BN101: 55 | BO101: 3.47 | BP101: 1.89 | BQ101: 27.29 | BR101: 3.47 | BS101: 1.89 | BT101: 8.19 | BU101: 54.58 | BV101: 3.55 | BW101: 1.94 | BX101: 55.89 | BY101: 3.47 | BZ101: 0 | CA101: 18.75 | CB101: 3.47 | CC101: 0 | CD101: 5.63 | CE101: 37.5 | CF101: 3.55 | CG101: 0 | CH101: 38.4 | CI101: 0 | CJ101: 0 | CK101: 0 | CL101: 0 | CM101: 0 | CN101: 0 | CO101: 0 | CP101: 0 | CQ101: 0 | CR101: 0
A102: PR0126 | B102: 10.99 | C102: 14.52 | D102: 12.6 | E102: 27.1 | F102: 7.85 | G102: 11.44 | H102: 3.26 | I102: 10.99 | J102: 14.52 | K102: 12.6 | L102: 17.52 | M102: 17.52 | N102: 10.62 | O102: 10.62 | P102: 3.26 | Q102: 10.99 | R102: 13.11 | S102: 17.52 | T102: 17.52 | U102: 10.62 | V102: 10.62 | W102: 3.26 | X102: 10.99 | Y102: 16.07 | Z102: 13.94 | AA102: 30.03 | AB102: 44.42 | AC102: 24.61 | AD102: 3.26 | AE102: 10.99 | AF102: 16.07 | AG102: 13.94 | AH102: 20.28 | AI102: 6.77 | AJ102: 38.36 | AK102: 29.42 | AL102: 3.26 | AM102: 10.99 | AN102: 14.5 | AO102: 20.28 | AP102: 6.77 | AQ102: 38.36 | AR102: 29.42 | AS102: 3.26 | AT102: 10.99 | AU102: 95.04 | AV102: 99.64 | AW102: 13.94 | AX102: 41.29 | AY102: 3.55 | AZ102: 38.41 | BA102: 3.47 | BB102: 37.51 | BC102: 3.55 | BD102: 11.62 | BE102: 2.79 | BF102: 2.79 | BG102: 26.86 | BH102: 2.79 | BI102: 2.79 | BJ102: 8.06 | BK102: 53.71 | BL102: 2.86 | BM102: 2.86 | BN102: 55 | BO102: 3.47 | BP102: 1.89 | BQ102: 27.29 | BR102: 3.47 | BS102: 1.89 | BT102: 8.19 | BU102: 54.58 | BV102: 3.55 | BW102: 1.94 | BX102: 55.89 | BY102: 3.47 | BZ102: 0 | CA102: 18.75 | CB102: 3.47 | CC102: 0 | CD102: 5.63 | CE102: 37.5 | CF102: 3.55 | CG102: 0 | CH102: 38.4 | CI102: 0 | CJ102: 0 | CK102: 0 | CL102: 0 | CM102: 0 | CN102: 0 | CO102: 0 | CP102: 0 | CQ102: 0 | CR102: 0
A103: PL0127 | B103: 10.72 | C103: 14.36 | D103: 12.44 | E103: 25.73 | F103: 7.85 | G103: 11.44 | H103: 3.26 | I103: 9.56 | J103: 14.36 | K103: 12.44 | L103: 16.64 | M103: 16.64 | N103: 10.62 | O103: 10.62 | P103: 3.26 | Q103: 9.56 | R103: 12.95 | S103: 16.64 | T103: 16.64 | U103: 10.62 | V103: 10.62 | W103: 3.26 | X103: 10.72 | Y103: 16.2 | Z103: 14.05 | AA103: 29.12 | AB103: 44.61 | AC103: 24.61 | AD103: 3.26 | AE103: 9.56 | AF103: 16.2 | AG103: 14.05 | AH103: 19.66 | AI103: 6.56 | AJ103: 38.46 | AK103: 29.46 | AL103: 3.26 | AM103: 9.56 | AN103: 14.62 | AO103: 19.66 | AP103: 6.56 | AQ103: 38.46 | AR103: 29.46 | AS103: 3.26 | AT103: 9.56 | AU103: 94.39 | AV103: 98.95 | AW103: 14.05 | AX103: 41.29 | AY103: 3.33 | AZ103: 38.3 | BA103: 3.25 | BB103: 37.4 | BC103: 3.33 | BD103: 12.36 | BE103: 2.62 | BF103: 2.34 | BG103: 22.68 | BH103: 2.62 | BI103: 2.34 | BJ103: 6.8 | BK103: 45.36 | BL103: 2.68 | BM103: 2.4 | BN103: 46.45 | BO103: 3.25 | BP103: 1.75 | BQ103: 23.03 | BR103: 3.25 | BS103: 1.75 | BT103: 6.91 | BU103: 46.05 | BV103: 3.33 | BW103: 1.79 | BX103: 47.16 | BY103: 3.25 | BZ103: 0 | CA103: 16.05 | CB103: 3.25 | CC103: 0 | CD103: 4.82 | CE103: 32.1 | CF103: 3.33 | CG103: 0 | CH103: 32.87 | CI103: 0 | CJ103: 0 | CK103: 0 | CL103: 0 | CM103: 0 | CN103: 0 | CO103: 0 | CP103: 0 | CQ103: 0 | CR103: 0
A104: PL0128 | B104: 10.72 | C104: 14.71 | D104: 12.75 | E104: 25.56 | F104: 7.85 | G104: 11.44 | H104: 3.26 | I104: 9.56 | J104: 14.71 | K104: 12.75 | L104: 16.53 | M104: 16.53 | N104: 10.62 | O104: 10.62 | P104: 3.26 | Q104: 9.56 | R104: 13.27 | S104: 16.53 | T104: 16.53 | U104: 10.62 | V104: 10.62 | W104: 3.26 | X104: 10.72 | Y104: 16.62 | Z104: 14.39 | AA104: 28.92 | AB104: 44.61 | AC104: 24.61 | AD104: 3.26 | AE104: 9.56 | AF104: 16.62 | AG104: 14.39 | AH104: 19.53 | AI104: 6.52 | AJ104: 38.46 | AK104: 29.46 | AL104: 3.26 | AM104: 9.56 | AN104: 14.98 | AO104: 19.53 | AP104: 6.52 | AQ104: 38.46 | AR104: 29.46 | AS104: 3.26 | AT104: 9.56 | AU104: 94.6 | AV104: 99.14 | AW104: 14.39 | AX104: 41.29 | AY104: 3.33 | AZ104: 38.59 | BA104: 3.25 | BB104: 37.69 | BC104: 3.33 | BD104: 12.42 | BE104: 2.62 | BF104: 2.34 | BG104: 22.81 | BH104: 2.62 | BI104: 2.34 | BJ104: 6.84 | BK104: 45.62 | BL104: 2.68 | BM104: 2.4 | BN104: 46.71 | BO104: 3.25 | BP104: 1.75 | BQ104: 23.16 | BR104: 3.25 | BS104: 1.75 | BT104: 6.95 | BU104: 46.32 | BV104: 3.33 | BW104: 1.79 | BX104: 47.43 | BY104: 3.25 | BZ104: 0 | CA104: 16.19 | CB104: 3.25 | CC104: 0 | CD104: 4.86 | CE104: 32.37 | CF104: 3.33 | CG104: 0 | CH104: 33.15 | CI104: 0 | CJ104: 0 | CK104: 0 | CL104: 0 | CM104: 0 | CN104: 0 | CO104: 0 | CP104: 0 | CQ104: 0 | CR104: 0
A105: PL0130 | B105: 10.72 | C105: 14.63 | D105: 12.66 | E105: 25.73 | F105: 7.85 | G105: 11.44 | H105: 3.26 | I105: 9.56 | J105: 14.63 | K105: 12.66 | L105: 16.64 | M105: 16.64 | N105: 10.62 | O105: 10.62 | P105: 3.26 | Q105: 9.56 | R105: 13.19 | S105: 16.64 | T105: 16.64 | U105: 10.62 | V105: 10.62 | W105: 3.26 | X105: 10.72 | Y105: 16.52 | Z105: 14.3 | AA105: 29.12 | AB105: 44.61 | AC105: 24.61 | AD105: 3.26 | AE105: 9.56 | AF105: 16.52 | AG105: 14.3 | AH105: 19.66 | AI105: 6.56 | AJ105: 38.46 | AK105: 29.46 | AL105: 3.26 | AM105: 9.56 | AN105: 14.89 | AO105: 19.66 | AP105: 6.56 | AQ105: 38.46 | AR105: 29.46 | AS105: 3.26 | AT105: 9.56 | AU105: 94.71 | AV105: 99.27 | AW105: 14.3 | AX105: 41.29 | AY105: 3.33 | AZ105: 38.56 | BA105: 3.25 | BB105: 37.66 | BC105: 3.33 | BD105: 12.42 | BE105: 2.62 | BF105: 2.34 | BG105: 21.38 | BH105: 2.62 | BI105: 2.34 | BJ105: 6.41 | BK105: 45.62 | BL105: 2.68 | BM105: 2.4 | BN105: 46.71 | BO105: 3.25 | BP105: 1.75 | BQ105: 21.7 | BR105: 3.25 | BS105: 1.75 | BT105: 6.51 | BU105: 46.31 | BV105: 3.33 | BW105: 1.79 | BX105: 47.42 | BY105: 3.25 | BZ105: 0 | CA105: 15.16 | CB105: 3.25 | CC105: 0 | CD105: 4.55 | CE105: 32.35 | CF105: 3.33 | CG105: 0 | CH105: 33.13 | CI105: 0 | CJ105: 0 | CK105: 0 | CL105: 0 | CM105: 0 | CN105: 0 | CO105: 0 | CP105: 0 | CQ105: 0 | CR105: 0
A106: PL1118 | B106: 10.72 | C106: 14.66 | D106: 12.68 | E106: 25.73 | F106: 7.85 | G106: 11.44 | H106: 3.26 | I106: 9.56 | J106: 14.66 | K106: 12.68 | L106: 16.64 | M106: 16.64 | N106: 10.62 | O106: 10.62 | P106: 3.26 | Q106: 9.56 | R106: 13.21 | S106: 16.64 | T106: 16.64 | U106: 10.62 | V106: 10.62 | W106: 3.26 | X106: 10.72 | Y106: 16.56 | Z106: 14.32 | AA106: 29.12 | AB106: 44.61 | AC106: 24.61 | AD106: 3.26 | AE106: 9.56 | AF106: 16.56 | AG106: 14.32 | AH106: 19.66 | AI106: 6.56 | AJ106: 38.46 | AK106: 29.46 | AL106: 3.26 | AM106: 9.56 | AN106: 14.92 | AO106: 19.66 | AP106: 6.56 | AQ106: 38.46 | AR106: 29.46 | AS106: 3.26 | AT106: 9.56 | AU106: 94.75 | AV106: 99.3 | AW106: 14.32 | AX106: 41.29 | AY106: 3.33 | AZ106: 38.59 | BA106: 3.25 | BB106: 37.69 | BC106: 3.33 | BD106: 12.43 | BE106: 2.62 | BF106: 2.34 | BG106: 22.82 | BH106: 2.62 | BI106: 2.34 | BJ106: 6.85 | BK106: 45.64 | BL106: 2.68 | BM106: 2.4 | BN106: 46.74 | BO106: 3.25 | BP106: 1.75 | BQ106: 23.17 | BR106: 3.25 | BS106: 1.75 | BT106: 6.95 | BU106: 46.33 | BV106: 3.33 | BW106: 1.79 | BX106: 47.44 | BY106: 3.25 | BZ106: 0 | CA106: 16.19 | CB106: 3.25 | CC106: 0 | CD106: 4.86 | CE106: 32.38 | CF106: 3.33 | CG106: 0 | CH106: 33.16 | CI106: 0 | CJ106: 0 | CK106: 0 | CL106: 0 | CM106: 0 | CN106: 0 | CO106: 0 | CP106: 0 | CQ106: 0 | CR106: 0
A107: PL0124 | B107: 8.68 | C107: 14.15 | D107: 12.27 | E107: 25.84 | F107: 8.05 | G107: 11.74 | H107: 3.26 | I107: 8.68 | J107: 14.15 | K107: 12.27 | L107: 27.9 | M107: 13.9 | N107: 9.42 | O107: 10.58 | P107: 3.26 | Q107: 8.68 | R107: 12.77 | S107: 27.9 | T107: 13.9 | U107: 9.42 | V107: 10.58 | W107: 3.26 | X107: 8.68 | Y107: 15.72 | Z107: 13.63 | AA107: 28.12 | AB107: 44.47 | AC107: 24.61 | AD107: 3.26 | AE107: 8.68 | AF107: 15.72 | AG107: 13.63 | AH107: 18.98 | AI107: 6.34 | AJ107: 38.39 | AK107: 29.44 | AL107: 3.26 | AM107: 8.68 | AN107: 14.19 | AO107: 18.98 | AP107: 6.34 | AQ107: 38.39 | AR107: 29.44 | AS107: 3.26 | AT107: 8.68 | AU107: 92.7 | AV107: 97.19 | AW107: 13.63 | AX107: 41.29 | AY107: 3.18 | AZ107: 37.5 | BA107: 3.11 | BB107: 36.62 | BC107: 3.18 | BD107: 12.72 | BE107: 2.62 | BF107: 2.34 | BG107: 20.04 | BH107: 2.62 | BI107: 2.34 | BJ107: 6.01 | BK107: 40.08 | BL107: 2.68 | BM107: 2.4 | BN107: 41.04 | BO107: 3.11 | BP107: 1.7 | BQ107: 20.37 | BR107: 3.11 | BS107: 1.7 | BT107: 6.11 | BU107: 40.73 | BV107: 3.18 | BW107: 1.74 | BX107: 41.71 | BY107: 3.11 | BZ107: 0 | CA107: 14.34 | CB107: 3.11 | CC107: 0 | CD107: 4.3 | CE107: 28.67 | CF107: 3.18 | CG107: 0 | CH107: 29.36 | CI107: 0 | CJ107: 0 | CK107: 0 | CL107: 0 | CM107: 0 | CN107: 0 | CO107: 0 | CP107: 0 | CQ107: 0 | CR107: 0
A108: PL0125 | B108: 8.68 | C108: 14.15 | D108: 12.27 | E108: 25.84 | F108: 8.05 | G108: 11.74 | H108: 3.26 | I108: 8.68 | J108: 14.15 | K108: 12.27 | L108: 27.9 | M108: 13.9 | N108: 9.42 | O108: 10.58 | P108: 3.26 | Q108: 8.68 | R108: 12.77 | S108: 27.9 | T108: 13.9 | U108: 9.42 | V108: 10.58 | W108: 3.26 | X108: 8.68 | Y108: 15.72 | Z108: 13.63 | AA108: 28.12 | AB108: 44.47 | AC108: 24.61 | AD108: 3.26 | AE108: 8.68 | AF108: 15.72 | AG108: 13.63 | AH108: 18.98 | AI108: 6.34 | AJ108: 38.39 | AK108: 29.44 | AL108: 3.26 | AM108: 8.68 | AN108: 14.19 | AO108: 18.98 | AP108: 6.34 | AQ108: 38.39 | AR108: 29.44 | AS108: 3.26 | AT108: 8.68 | AU108: 92.7 | AV108: 97.19 | AW108: 13.63 | AX108: 41.29 | AY108: 3.18 | AZ108: 37.5 | BA108: 3.11 | BB108: 36.62 | BC108: 3.18 | BD108: 12.72 | BE108: 2.62 | BF108: 2.34 | BG108: 20.04 | BH108: 2.62 | BI108: 2.34 | BJ108: 6.01 | BK108: 40.08 | BL108: 2.68 | BM108: 2.4 | BN108: 41.04 | BO108: 3.11 | BP108: 1.7 | BQ108: 20.37 | BR108: 3.11 | BS108: 1.7 | BT108: 6.11 | BU108: 40.73 | BV108: 3.18 | BW108: 1.74 | BX108: 41.71 | BY108: 3.11 | BZ108: 0 | CA108: 14.34 | CB108: 3.11 | CC108: 0 | CD108: 4.3 | CE108: 28.67 | CF108: 3.18 | CG108: 0 | CH108: 29.36 | CI108: 0 | CJ108: 0 | CK108: 0 | CL108: 0 | CM108: 0 | CN108: 0 | CO108: 0 | CP108: 0 | CQ108: 0 | CR108: 0
A109: PL0126 | B109: 8.68 | C109: 14.15 | D109: 12.27 | E109: 25.84 | F109: 8.05 | G109: 11.74 | H109: 3.26 | I109: 8.68 | J109: 14.15 | K109: 12.27 | L109: 27.9 | M109: 13.9 | N109: 9.42 | O109: 10.58 | P109: 3.26 | Q109: 8.68 | R109: 12.77 | S109: 27.9 | T109: 13.9 | U109: 9.42 | V109: 10.58 | W109: 3.26 | X109: 8.68 | Y109: 15.72 | Z109: 13.63 | AA109: 28.12 | AB109: 44.47 | AC109: 24.61 | AD109: 3.26 | AE109: 8.68 | AF109: 15.72 | AG109: 13.63 | AH109: 18.98 | AI109: 6.34 | AJ109: 38.39 | AK109: 29.44 | AL109: 3.26 | AM109: 8.68 | AN109: 14.19 | AO109: 18.98 | AP109: 6.34 | AQ109: 38.39 | AR109: 29.44 | AS109: 3.26 | AT109: 8.68 | AU109: 92.7 | AV109: 97.19 | AW109: 13.63 | AX109: 41.29 | AY109: 3.18 | AZ109: 37.5 | BA109: 3.11 | BB109: 36.62 | BC109: 3.18 | BD109: 12.72 | BE109: 2.62 | BF109: 2.34 | BG109: 20.04 | BH109: 2.62 | BI109: 2.34 | BJ109: 6.01 | BK109: 40.08 | BL109: 2.68 | BM109: 2.4 | BN109: 41.04 | BO109: 3.11 | BP109: 1.7 | BQ109: 20.37 | BR109: 3.11 | BS109: 1.7 | BT109: 6.11 | BU109: 40.73 | BV109: 3.18 | BW109: 1.74 | BX109: 41.71 | BY109: 3.11 | BZ109: 0 | CA109: 14.34 | CB109: 3.11 | CC109: 0 | CD109: 4.3 | CE109: 28.67 | CF109: 3.18 | CG109: 0 | CH109: 29.36 | CI109: 0 | CJ109: 0 | CK109: 0 | CL109: 0 | CM109: 0 | CN109: 0 | CO109: 0 | CP109: 0 | CQ109: 0 | CR109: 0
A110: PL0129 | B110: 8.48 | C110: 17.5 | D110: 17.5 | E110: 18.19 | F110: 7.86 | G110: 11.46 | H110: 3.18 | I110: 8.48 | J110: 17.5 | K110: 17.5 | L110: 19.65 | M110: 9.78 | N110: 9.2 | O110: 10.33 | P110: 3.18 | Q110: 8.48 | R110: 17.5 | S110: 19.65 | T110: 9.78 | U110: 9.2 | V110: 10.33 | W110: 3.18 | X110: 8.48 | Y110: 19.45 | Z110: 19.45 | AA110: 19.8 | AB110: 43.43 | AC110: 24.03 | AD110: 3.18 | AE110: 8.48 | AF110: 19.45 | AG110: 19.45 | AH110: 13.37 | AI110: 4.46 | AJ110: 37.49 | AK110: 28.75 | AL110: 3.18 | AM110: 8.48 | AN110: 19.45 | AO110: 13.37 | AP110: 4.46 | AQ110: 37.49 | AR110: 28.75 | AS110: 3.18 | AT110: 8.48 | AU110: 86.51 | AV110: 90.42 | AW110: 19.45 | AX110: 40.32 | AY110: 3.11 | AZ110: 39.75 | BA110: 3.11 | BB110: 39.75 | BC110: 3.11 | BD110: 13.24 | BE110: 2.62 | BF110: 2.34 | BG110: 16.02 | BH110: 2.62 | BI110: 2.34 | BJ110: 4.81 | BK110: 42.73 | BL110: 2.62 | BM110: 2.34 | BN110: 42.73 | BO110: 3.11 | BP110: 1.7 | BQ110: 16.28 | BR110: 3.11 | BS110: 1.7 | BT110: 4.88 | BU110: 43.42 | BV110: 3.11 | BW110: 1.7 | BX110: 43.42 | BY110: 3.11 | BZ110: 0 | CA110: 11.75 | CB110: 3.11 | CC110: 0 | CD110: 3.53 | CE110: 31.34 | CF110: 3.11 | CG110: 0 | CH110: 31.34 | CI110: 0 | CJ110: 0 | CK110: 0 | CL110: 0 | CM110: 0 | CN110: 0 | CO110: 0 | CP110: 0 | CQ110: 0 | CR110: 0
A111: PL0131 | B111: 8.68 | C111: 14.51 | D111: 12.56 | E111: 25.65 | F111: 8.05 | G111: 11.74 | H111: 3.26 | I111: 8.68 | J111: 14.51 | K111: 12.56 | L111: 27.71 | M111: 13.79 | N111: 9.42 | O111: 10.58 | P111: 3.26 | Q111: 8.68 | R111: 13.09 | S111: 27.71 | T111: 13.79 | U111: 9.42 | V111: 10.58 | W111: 3.26 | X111: 8.68 | Y111: 16.12 | Z111: 13.96 | AA111: 27.92 | AB111: 44.47 | AC111: 24.61 | AD111: 3.26 | AE111: 8.68 | AF111: 16.12 | AG111: 13.96 | AH111: 18.85 | AI111: 6.3 | AJ111: 38.39 | AK111: 29.44 | AL111: 3.26 | AM111: 8.68 | AN111: 14.54 | AO111: 18.85 | AP111: 6.3 | AQ111: 38.39 | AR111: 29.44 | AS111: 3.26 | AT111: 8.68 | AU111: 92.91 | AV111: 97.37 | AW111: 13.96 | AX111: 41.29 | AY111: 3.18 | AZ111: 37.79 | BA111: 3.11 | BB111: 36.9 | BC111: 3.18 | BD111: 12.8 | BE111: 2.62 | BF111: 2.34 | BG111: 20.17 | BH111: 2.62 | BI111: 2.34 | BJ111: 6.05 | BK111: 40.34 | BL111: 2.68 | BM111: 2.4 | BN111: 41.31 | BO111: 3.11 | BP111: 1.7 | BQ111: 20.5 | BR111: 3.11 | BS111: 1.7 | BT111: 6.15 | BU111: 40.99 | BV111: 3.18 | BW111: 1.74 | BX111: 41.97 | BY111: 3.11 | BZ111: 0 | CA111: 14.47 | CB111: 3.11 | CC111: 0 | CD111: 4.34 | CE111: 28.93 | CF111: 3.18 | CG111: 0 | CH111: 29.62 | CI111: 0 | CJ111: 0 | CK111: 0 | CL111: 0 | CM111: 0 | CN111: 0 | CO111: 0 | CP111: 0 | CQ111: 0 | CR111: 0
A112: PL0132 | B112: 8.68 | C112: 14.15 | D112: 12.27 | E112: 25.84 | F112: 8.05 | G112: 11.74 | H112: 3.26 | I112: 8.68 | J112: 14.15 | K112: 12.27 | L112: 27.9 | M112: 13.9 | N112: 9.42 | O112: 10.58 | P112: 3.26 | Q112: 8.68 | R112: 12.77 | S112: 27.9 | T112: 13.9 | U112: 9.42 | V112: 10.58 | W112: 3.26 | X112: 8.68 | Y112: 15.72 | Z112: 13.63 | AA112: 28.12 | AB112: 44.47 | AC112: 24.61 | AD112: 3.26 | AE112: 8.68 | AF112: 15.72 | AG112: 13.63 | AH112: 18.98 | AI112: 6.34 | AJ112: 38.39 | AK112: 29.44 | AL112: 3.26 | AM112: 8.68 | AN112: 14.19 | AO112: 18.98 | AP112: 6.34 | AQ112: 38.39 | AR112: 29.44 | AS112: 3.26 | AT112: 8.68 | AU112: 92.7 | AV112: 97.19 | AW112: 13.63 | AX112: 41.29 | AY112: 3.18 | AZ112: 37.5 | BA112: 3.11 | BB112: 36.62 | BC112: 3.18 | BD112: 12.72 | BE112: 2.62 | BF112: 2.34 | BG112: 20.04 | BH112: 2.62 | BI112: 2.34 | BJ112: 6.01 | BK112: 40.08 | BL112: 2.68 | BM112: 2.4 | BN112: 41.04 | BO112: 3.11 | BP112: 1.7 | BQ112: 20.37 | BR112: 3.11 | BS112: 1.7 | BT112: 6.11 | BU112: 40.73 | BV112: 3.18 | BW112: 1.74 | BX112: 41.71 | BY112: 3.11 | BZ112: 0 | CA112: 14.34 | CB112: 3.11 | CC112: 0 | CD112: 4.3 | CE112: 28.67 | CF112: 3.18 | CG112: 0 | CH112: 29.36 | CI112: 0 | CJ112: 0 | CK112: 0 | CL112: 0 | CM112: 0 | CN112: 0 | CO112: 0 | CP112: 0 | CQ112: 0 | CR112: 0
A113: PL0168 | B113: 8.68 | C113: 14.45 | D113: 12.52 | E113: 25.84 | F113: 8.05 | G113: 11.74 | H113: 3.26 | I113: 8.68 | J113: 14.45 | K113: 12.52 | L113: 27.9 | M113: 13.9 | N113: 9.42 | O113: 10.58 | P113: 3.26 | Q113: 8.68 | R113: 13.04 | S113: 27.9 | T113: 13.9 | U113: 9.42 | V113: 10.58 | W113: 3.26 | X113: 8.68 | Y113: 16.06 | Z113: 13.92 | AA113: 28.12 | AB113: 44.47 | AC113: 24.61 | AD113: 3.26 | AE113: 8.68 | AF113: 16.06 | AG113: 13.92 | AH113: 18.98 | AI113: 6.34 | AJ113: 38.39 | AK113: 29.44 | AL113: 3.26 | AM113: 8.68 | AN113: 14.49 | AO113: 18.98 | AP113: 6.34 | AQ113: 38.39 | AR113: 29.44 | AS113: 3.26 | AT113: 8.68 | AU113: 93.05 | AV113: 97.54 | AW113: 13.92 | AX113: 41.29 | AY113: 3.18 | AZ113: 37.8 | BA113: 3.11 | BB113: 36.91 | BC113: 3.18 | BD113: 12.81 | BE113: 2.62 | BF113: 2.34 | BG113: 20.19 | BH113: 2.62 | BI113: 2.34 | BJ113: 6.06 | BK113: 40.37 | BL113: 2.68 | BM113: 2.4 | BN113: 41.34 | BO113: 3.11 | BP113: 1.7 | BQ113: 20.51 | BR113: 3.11 | BS113: 1.7 | BT113: 6.15 | BU113: 41.02 | BV113: 3.18 | BW113: 1.74 | BX113: 42 | BY113: 3.11 | BZ113: 0 | CA113: 14.48 | CB113: 3.11 | CC113: 0 | CD113: 4.34 | CE113: 28.95 | CF113: 3.18 | CG113: 0 | CH113: 29.64 | CI113: 0 | CJ113: 0 | CK113: 0 | CL113: 0 | CM113: 0 | CN113: 0 | CO113: 0 | CP113: 0 | CQ113: 0 | CR113: 0
A114: PL0169 | B114: 8.68 | C114: 14.42 | D114: 12.48 | E114: 25.84 | F114: 8.05 | G114: 11.74 | H114: 3.26 | I114: 8.68 | J114: 14.42 | K114: 12.48 | L114: 27.9 | M114: 13.9 | N114: 9.42 | O114: 10.58 | P114: 3.26 | Q114: 8.68 | R114: 12.99 | S114: 27.9 | T114: 13.9 | U114: 9.42 | V114: 10.58 | W114: 3.26 | X114: 8.68 | Y114: 16.03 | Z114: 13.86 | AA114: 28.12 | AB114: 44.47 | AC114: 24.61 | AD114: 3.26 | AE114: 8.68 | AF114: 16.03 | AG114: 13.86 | AH114: 18.98 | AI114: 6.34 | AJ114: 38.39 | AK114: 29.44 | AL114: 3.26 | AM114: 8.68 | AN114: 14.44 | AO114: 18.98 | AP114: 6.34 | AQ114: 38.39 | AR114: 29.44 | AS114: 3.26 | AT114: 8.68 | AU114: 93.01 | AV114: 97.5 | AW114: 13.86 | AX114: 41.29 | AY114: 3.18 | AZ114: 37.75 | BA114: 3.11 | BB114: 36.87 | BC114: 3.18 | BD114: 12.8 | BE114: 2.62 | BF114: 2.34 | BG114: 20.16 | BH114: 2.62 | BI114: 2.34 | BJ114: 6.05 | BK114: 40.32 | BL114: 2.68 | BM114: 2.4 | BN114: 41.29 | BO114: 3.11 | BP114: 1.7 | BQ114: 20.49 | BR114: 3.11 | BS114: 1.7 | BT114: 6.15 | BU114: 40.97 | BV114: 3.18 | BW114: 1.74 | BX114: 41.95 | BY114: 3.11 | BZ114: 0 | CA114: 14.46 | CB114: 3.11 | CC114: 0 | CD114: 4.34 | CE114: 28.91 | CF114: 3.18 | CG114: 0 | CH114: 29.6 | CI114: 0 | CJ114: 0 | CK114: 0 | CL114: 0 | CM114: 0 | CN114: 0 | CO114: 0 | CP114: 0 | CQ114: 0 | CR114: 0
A115: PL0230 | B115: 8.68 | C115: 14.51 | D115: 12.56 | E115: 25.65 | F115: 8.05 | G115: 11.74 | H115: 3.26 | I115: 8.68 | J115: 14.51 | K115: 12.56 | L115: 27.71 | M115: 13.79 | N115: 9.42 | O115: 10.58 | P115: 3.26 | Q115: 8.68 | R115: 13.09 | S115: 27.71 | T115: 13.79 | U115: 9.42 | V115: 10.58 | W115: 3.26 | X115: 8.68 | Y115: 16.12 | Z115: 13.96 | AA115: 27.92 | AB115: 44.47 | AC115: 24.61 | AD115: 3.26 | AE115: 8.68 | AF115: 16.12 | AG115: 13.96 | AH115: 18.85 | AI115: 6.3 | AJ115: 38.39 | AK115: 29.44 | AL115: 3.26 | AM115: 8.68 | AN115: 14.54 | AO115: 18.85 | AP115: 6.3 | AQ115: 38.39 | AR115: 29.44 | AS115: 3.26 | AT115: 8.68 | AU115: 92.91 | AV115: 97.37 | AW115: 13.96 | AX115: 41.29 | AY115: 3.18 | AZ115: 37.79 | BA115: 3.11 | BB115: 36.9 | BC115: 3.18 | BD115: 12.8 | BE115: 2.62 | BF115: 2.34 | BG115: 20.17 | BH115: 2.62 | BI115: 2.34 | BJ115: 6.05 | BK115: 40.34 | BL115: 2.68 | BM115: 2.4 | BN115: 41.31 | BO115: 3.11 | BP115: 1.7 | BQ115: 20.5 | BR115: 3.11 | BS115: 1.7 | BT115: 6.15 | BU115: 40.99 | BV115: 3.18 | BW115: 1.74 | BX115: 41.97 | BY115: 3.11 | BZ115: 0 | CA115: 14.47 | CB115: 3.11 | CC115: 0 | CD115: 4.34 | CE115: 28.93 | CF115: 3.18 | CG115: 0 | CH115: 29.62 | CI115: 0 | CJ115: 0 | CK115: 0 | CL115: 0 | CM115: 0 | CN115: 0 | CO115: 0 | CP115: 0 | CQ115: 0 | CR115: 0
A116: PL0255 | B116: 8.68 | C116: 14.51 | D116: 12.56 | E116: 25.65 | F116: 8.05 | G116: 11.74 | H116: 3.26 | I116: 8.68 | J116: 14.51 | K116: 12.56 | L116: 27.71 | M116: 13.79 | N116: 9.42 | O116: 10.58 | P116: 3.26 | Q116: 8.68 | R116: 13.09 | S116: 27.71 | T116: 13.79 | U116: 9.42 | V116: 10.58 | W116: 3.26 | X116: 8.68 | Y116: 16.12 | Z116: 13.96 | AA116: 27.92 | AB116: 44.47 | AC116: 24.61 | AD116: 3.26 | AE116: 8.68 | AF116: 16.12 | AG116: 13.96 | AH116: 18.85 | AI116: 6.3 | AJ116: 38.39 | AK116: 29.44 | AL116: 3.26 | AM116: 8.68 | AN116: 14.54 | AO116: 18.85 | AP116: 6.3 | AQ116: 38.39 | AR116: 29.44 | AS116: 3.26 | AT116: 8.68 | AU116: 92.91 | AV116: 97.37 | AW116: 13.96 | AX116: 41.29 | AY116: 3.18 | AZ116: 37.79 | BA116: 3.11 | BB116: 36.9 | BC116: 3.18 | BD116: 12.8 | BE116: 2.62 | BF116: 2.34 | BG116: 20.17 | BH116: 2.62 | BI116: 2.34 | BJ116: 6.05 | BK116: 40.34 | BL116: 2.68 | BM116: 2.4 | BN116: 41.31 | BO116: 3.11 | BP116: 1.7 | BQ116: 20.5 | BR116: 3.11 | BS116: 1.7 | BT116: 6.15 | BU116: 40.99 | BV116: 3.18 | BW116: 1.74 | BX116: 41.97 | BY116: 3.11 | BZ116: 0 | CA116: 14.47 | CB116: 3.11 | CC116: 0 | CD116: 4.34 | CE116: 28.93 | CF116: 3.18 | CG116: 0 | CH116: 29.62 | CI116: 0 | CJ116: 0 | CK116: 0 | CL116: 0 | CM116: 0 | CN116: 0 | CO116: 0 | CP116: 0 | CQ116: 0 | CR116: 0
A117: PL0256 | B117: 8.68 | C117: 14.42 | D117: 12.48 | E117: 25.84 | F117: 8.05 | G117: 11.74 | H117: 3.26 | I117: 8.68 | J117: 14.42 | K117: 12.48 | L117: 27.9 | M117: 13.9 | N117: 9.42 | O117: 10.58 | P117: 3.26 | Q117: 8.68 | R117: 12.99 | S117: 27.9 | T117: 13.9 | U117: 9.42 | V117: 10.58 | W117: 3.26 | X117: 8.68 | Y117: 16.03 | Z117: 13.86 | AA117: 28.12 | AB117: 44.47 | AC117: 24.61 | AD117: 3.26 | AE117: 8.68 | AF117: 16.03 | AG117: 13.86 | AH117: 18.98 | AI117: 6.34 | AJ117: 38.39 | AK117: 29.44 | AL117: 3.26 | AM117: 8.68 | AN117: 14.44 | AO117: 18.98 | AP117: 6.34 | AQ117: 38.39 | AR117: 29.44 | AS117: 3.26 | AT117: 8.68 | AU117: 93.01 | AV117: 97.5 | AW117: 13.86 | AX117: 41.29 | AY117: 3.18 | AZ117: 37.75 | BA117: 3.11 | BB117: 36.87 | BC117: 3.18 | BD117: 12.8 | BE117: 2.62 | BF117: 2.34 | BG117: 20.16 | BH117: 2.62 | BI117: 2.34 | BJ117: 6.05 | BK117: 40.32 | BL117: 2.68 | BM117: 2.4 | BN117: 41.29 | BO117: 3.11 | BP117: 1.7 | BQ117: 20.49 | BR117: 3.11 | BS117: 1.7 | BT117: 6.15 | BU117: 40.97 | BV117: 3.18 | BW117: 1.74 | BX117: 41.95 | BY117: 3.11 | BZ117: 0 | CA117: 14.46 | CB117: 3.11 | CC117: 0 | CD117: 4.34 | CE117: 28.91 | CF117: 3.18 | CG117: 0 | CH117: 29.6 | CI117: 0 | CJ117: 0 | CK117: 0 | CL117: 0 | CM117: 0 | CN117: 0 | CO117: 0 | CP117: 0 | CQ117: 0 | CR117: 0
A118: PL0257 | B118: 8.48 | C118: 17.5 | D118: 17.5 | E118: 18.19 | F118: 7.86 | G118: 11.46 | H118: 3.18 | I118: 8.48 | J118: 17.5 | K118: 17.5 | L118: 19.65 | M118: 9.78 | N118: 9.2 | O118: 10.33 | P118: 3.18 | Q118: 8.48 | R118: 17.5 | S118: 19.65 | T118: 9.78 | U118: 9.2 | V118: 10.33 | W118: 3.18 | X118: 8.48 | Y118: 19.45 | Z118: 19.45 | AA118: 19.8 | AB118: 43.43 | AC118: 24.03 | AD118: 3.18 | AE118: 8.48 | AF118: 19.45 | AG118: 19.45 | AH118: 13.37 | AI118: 4.46 | AJ118: 37.49 | AK118: 28.75 | AL118: 3.18 | AM118: 8.48 | AN118: 19.45 | AO118: 13.37 | AP118: 4.46 | AQ118: 37.49 | AR118: 28.75 | AS118: 3.18 | AT118: 8.48 | AU118: 86.51 | AV118: 90.42 | AW118: 19.45 | AX118: 40.32 | AY118: 3.11 | AZ118: 39.75 | BA118: 3.11 | BB118: 39.75 | BC118: 3.11 | BD118: 13.24 | BE118: 2.62 | BF118: 2.34 | BG118: 16.02 | BH118: 2.62 | BI118: 2.34 | BJ118: 4.81 | BK118: 42.73 | BL118: 2.62 | BM118: 2.34 | BN118: 42.73 | BO118: 3.11 | BP118: 1.7 | BQ118: 16.28 | BR118: 3.11 | BS118: 1.7 | BT118: 4.88 | BU118: 43.42 | BV118: 3.11 | BW118: 1.7 | BX118: 43.42 | BY118: 3.11 | BZ118: 0 | CA118: 11.75 | CB118: 3.11 | CC118: 0 | CD118: 3.53 | CE118: 31.34 | CF118: 3.11 | CG118: 0 | CH118: 31.34 | CI118: 0 | CJ118: 0 | CK118: 0 | CL118: 0 | CM118: 0 | CN118: 0 | CO118: 0 | CP118: 0 | CQ118: 0 | CR118: 0
A119: PL1168 | B119: 8.68 | C119: 14.45 | D119: 12.52 | E119: 25.84 | F119: 8.05 | G119: 11.74 | H119: 3.26 | I119: 8.68 | J119: 14.45 | K119: 12.52 | L119: 27.9 | M119: 13.9 | N119: 9.42 | O119: 10.58 | P119: 3.26 | Q119: 8.68 | R119: 13.04 | S119: 27.9 | T119: 13.9 | U119: 9.42 | V119: 10.58 | W119: 3.26 | X119: 8.68 | Y119: 16.06 | Z119: 13.92 | AA119: 28.12 | AB119: 44.47 | AC119: 24.61 | AD119: 3.26 | AE119: 8.68 | AF119: 16.06 | AG119: 13.92 | AH119: 18.98 | AI119: 6.34 | AJ119: 38.39 | AK119: 29.44 | AL119: 3.26 | AM119: 8.68 | AN119: 14.49 | AO119: 18.98 | AP119: 6.34 | AQ119: 38.39 | AR119: 29.44 | AS119: 3.26 | AT119: 8.68 | AU119: 93.05 | AV119: 97.54 | AW119: 13.92 | AX119: 41.29 | AY119: 3.18 | AZ119: 37.8 | BA119: 3.11 | BB119: 36.91 | BC119: 3.18 | BD119: 12.81 | BE119: 2.62 | BF119: 2.34 | BG119: 20.19 | BH119: 2.62 | BI119: 2.34 | BJ119: 6.06 | BK119: 40.37 | BL119: 2.68 | BM119: 2.4 | BN119: 41.34 | BO119: 3.11 | BP119: 1.7 | BQ119: 20.51 | BR119: 3.11 | BS119: 1.7 | BT119: 6.15 | BU119: 41.02 | BV119: 3.18 | BW119: 1.74 | BX119: 42 | BY119: 3.11 | BZ119: 0 | CA119: 14.48 | CB119: 3.11 | CC119: 0 | CD119: 4.34 | CE119: 28.95 | CF119: 3.18 | CG119: 0 | CH119: 29.64 | CI119: 0 | CJ119: 0 | CK119: 0 | CL119: 0 | CM119: 0 | CN119: 0 | CO119: 0 | CP119: 0 | CQ119: 0 | CR119: 0
A120: PL0121 | B120: 7.77 | C120: 15.12 | D120: 13.22 | E120: 28.11 | F120: 8.57 | G120: 9.55 | H120: 3.26 | I120: 7.77 | J120: 15.12 | K120: 13.22 | L120: 26.23 | M120: 21.69 | N120: 9.19 | O120: 9.29 | P120: 3.26 | Q120: 7.77 | R120: 13.72 | S120: 26.23 | T120: 21.69 | U120: 9.19 | V120: 9.29 | W120: 3.26 | X120: 7.77 | Y120: 16.77 | Z120: 14.65 | AA120: 30.06 | AB120: 46.16 | AC120: 32.04 | AD120: 3.26 | AE120: 7.77 | AF120: 16.77 | AG120: 14.65 | AH120: 25.88 | AI120: 13.66 | AJ120: 46.34 | AK120: 39.14 | AL120: 3.26 | AM120: 7.77 | AN120: 15.22 | AO120: 25.88 | AP120: 13.66 | AQ120: 46.34 | AR120: 39.14 | AS120: 3.26 | AT120: 7.77 | AU120: 94.82 | AV120: 99.37 | AW120: 14.65 | AX120: 41.29 | AY120: 3.1 | AZ120: 38.85 | BA120: 5.12 | BB120: 37.94 | BC120: 3.1 | BD120: 13.88 | BE120: 2.07 | BF120: 2.07 | BG120: 28.39 | BH120: 2.07 | BI120: 2.07 | BJ120: 8.52 | BK120: 37.85 | BL120: 2.12 | BM120: 2.12 | BN120: 38.76 | BO120: 3.03 | BP120: 0 | BQ120: 28.8 | BR120: 3.03 | BS120: 0 | BT120: 8.64 | BU120: 38.4 | BV120: 3.1 | BW120: 0 | BX120: 39.32 | BY120: 3.03 | BZ120: 0 | CA120: 20.8 | CB120: 3.03 | CC120: 0 | CD120: 6.24 | CE120: 27.73 | CF120: 3.1 | CG120: 0 | CH120: 28.4 | CI120: 0 | CJ120: 0 | CK120: 0 | CL120: 0 | CM120: 0 | CN120: 0 | CO120: 0 | CP120: 0 | CQ120: 0 | CR120: 0
A121: PL0123 | B121: 7.77 | C121: 14.3 | D121: 12.39 | E121: 28.08 | F121: 7.85 | G121: 8.74 | H121: 3.26 | I121: 7.77 | J121: 14.3 | K121: 12.39 | L121: 26.2 | M121: 21.66 | N121: 8.42 | O121: 8.5 | P121: 3.26 | Q121: 7.77 | R121: 12.9 | S121: 26.2 | T121: 21.66 | U121: 8.42 | V121: 8.5 | W121: 3.26 | X121: 7.77 | Y121: 15.85 | Z121: 13.74 | AA121: 30.03 | AB121: 42.28 | AC121: 29.35 | AD121: 3.26 | AE121: 7.77 | AF121: 15.85 | AG121: 13.74 | AH121: 25.85 | AI121: 13.64 | AJ121: 42.44 | AK121: 35.84 | AL121: 3.26 | AM121: 7.77 | AN121: 14.31 | AO121: 25.85 | AP121: 13.64 | AQ121: 42.44 | AR121: 35.84 | AS121: 3.26 | AT121: 7.77 | AU121: 89.9 | AV121: 94.21 | AW121: 13.74 | AX121: 37.82 | AY121: 3.1 | AZ121: 36.72 | BA121: 5.12 | BB121: 35.86 | BC121: 3.1 | BD121: 13.12 | BE121: 2.07 | BF121: 2.07 | BG121: 26.84 | BH121: 2.07 | BI121: 2.07 | BJ121: 8.05 | BK121: 35.78 | BL121: 2.12 | BM121: 2.12 | BN121: 36.64 | BO121: 3.03 | BP121: 0 | BQ121: 27.23 | BR121: 3.03 | BS121: 0 | BT121: 8.17 | BU121: 36.3 | BV121: 3.1 | BW121: 0 | BX121: 37.17 | BY121: 3.03 | BZ121: 0 | CA121: 19.85 | CB121: 3.03 | CC121: 0 | CD121: 5.96 | CE121: 26.47 | CF121: 3.1 | CG121: 0 | CH121: 27.11 | CI121: 0 | CJ121: 0 | CK121: 0 | CL121: 0 | CM121: 0 | CN121: 0 | CO121: 0 | CP121: 0 | CQ121: 0 | CR121: 0
A122: PL0253 | B122: 7.77 | C122: 14.6 | D122: 12.65 | E122: 28.08 | F122: 8.57 | G122: 9.55 | H122: 3.26 | I122: 7.77 | J122: 14.6 | K122: 12.65 | L122: 26.2 | M122: 21.66 | N122: 9.19 | O122: 9.29 | P122: 3.26 | Q122: 7.77 | R122: 13.17 | S122: 26.2 | T122: 21.66 | U122: 9.19 | V122: 9.29 | W122: 3.26 | X122: 7.77 | Y122: 16.19 | Z122: 14.03 | AA122: 30.03 | AB122: 46.16 | AC122: 32.04 | AD122: 3.26 | AE122: 7.77 | AF122: 16.19 | AG122: 14.03 | AH122: 25.85 | AI122: 13.64 | AJ122: 46.34 | AK122: 39.14 | AL122: 3.26 | AM122: 7.77 | AN122: 14.6 | AO122: 25.85 | AP122: 13.64 | AQ122: 46.34 | AR122: 39.14 | AS122: 3.26 | AT122: 7.77 | AU122: 94.21 | AV122: 98.75 | AW122: 14.03 | AX122: 41.29 | AY122: 3.1 | AZ122: 38.23 | BA122: 5.12 | BB122: 37.33 | BC122: 3.1 | BD122: 13.66 | BE122: 2.07 | BF122: 2.07 | BG122: 27.94 | BH122: 2.07 | BI122: 2.07 | BJ122: 8.38 | BK122: 37.25 | BL122: 2.12 | BM122: 2.12 | BN122: 38.14 | BO122: 3.03 | BP122: 0 | BQ122: 28.34 | BR122: 3.03 | BS122: 0 | BT122: 8.5 | BU122: 37.79 | BV122: 3.1 | BW122: 0 | BX122: 38.7 | BY122: 3.03 | BZ122: 0 | CA122: 20.36 | CB122: 3.03 | CC122: 0 | CD122: 6.11 | CE122: 27.14 | CF122: 3.1 | CG122: 0 | CH122: 27.79 | CI122: 0 | CJ122: 0 | CK122: 0 | CL122: 0 | CM122: 0 | CN122: 0 | CO122: 0 | CP122: 0 | CQ122: 0 | CR122: 0
A123: PL0254 | B123: 7.77 | C123: 14.65 | D123: 12.7 | E123: 27.88 | F123: 8.57 | G123: 9.55 | H123: 3.26 | I123: 7.77 | J123: 14.65 | K123: 12.7 | L123: 26.03 | M123: 21.51 | N123: 9.19 | O123: 9.29 | P123: 3.26 | Q123: 7.77 | R123: 13.22 | S123: 26.03 | T123: 21.51 | U123: 9.19 | V123: 9.29 | W123: 3.26 | X123: 7.77 | Y123: 16.25 | Z123: 14.08 | AA123: 29.83 | AB123: 46.16 | AC123: 32.04 | AD123: 3.26 | AE123: 7.77 | AF123: 16.25 | AG123: 14.08 | AH123: 25.67 | AI123: 13.55 | AJ123: 46.34 | AK123: 39.14 | AL123: 3.26 | AM123: 7.77 | AN123: 14.65 | AO123: 25.67 | AP123: 13.55 | AQ123: 46.34 | AR123: 39.14 | AS123: 3.26 | AT123: 7.77 | AU123: 94.06 | AV123: 98.59 | AW123: 14.08 | AX123: 41.29 | AY123: 3.1 | AZ123: 38.22 | BA123: 5.12 | BB123: 37.32 | BC123: 3.1 | BD123: 13.65 | BE123: 2.07 | BF123: 2.07 | BG123: 27.93 | BH123: 2.07 | BI123: 2.07 | BJ123: 8.38 | BK123: 37.24 | BL123: 2.12 | BM123: 2.12 | BN123: 38.13 | BO123: 3.03 | BP123: 0 | BQ123: 28.34 | BR123: 3.03 | BS123: 0 | BT123: 8.5 | BU123: 37.78 | BV123: 3.1 | BW123: 0 | BX123: 38.69 | BY123: 3.03 | BZ123: 0 | CA123: 20.35 | CB123: 3.03 | CC123: 0 | CD123: 6.1 | CE123: 27.13 | CF123: 3.1 | CG123: 0 | CH123: 27.78 | CI123: 0 | CJ123: 0 | CK123: 0 | CL123: 0 | CM123: 0 | CN123: 0 | CO123: 0 | CP123: 0 | CQ123: 0 | CR123: 0
A124: PL1122 | B124: 7.77 | C124: 14.6 | D124: 12.65 | E124: 28.08 | F124: 8.57 | G124: 9.55 | H124: 3.26 | I124: 7.77 | J124: 14.6 | K124: 12.65 | L124: 26.2 | M124: 21.66 | N124: 9.19 | O124: 9.29 | P124: 3.26 | Q124: 7.77 | R124: 13.17 | S124: 26.2 | T124: 21.66 | U124: 9.19 | V124: 9.29 | W124: 3.26 | X124: 7.77 | Y124: 16.19 | Z124: 14.03 | AA124: 30.03 | AB124: 46.16 | AC124: 32.04 | AD124: 3.26 | AE124: 7.77 | AF124: 16.19 | AG124: 14.03 | AH124: 25.85 | AI124: 13.64 | AJ124: 46.34 | AK124: 39.14 | AL124: 3.26 | AM124: 7.77 | AN124: 14.6 | AO124: 25.85 | AP124: 13.64 | AQ124: 46.34 | AR124: 39.14 | AS124: 3.26 | AT124: 7.77 | AU124: 94.21 | AV124: 98.75 | AW124: 14.03 | AX124: 41.29 | AY124: 3.1 | AZ124: 38.23 | BA124: 5.12 | BB124: 37.33 | BC124: 3.1 | BD124: 13.66 | BE124: 2.07 | BF124: 2.07 | BG124: 27.94 | BH124: 2.07 | BI124: 2.07 | BJ124: 8.38 | BK124: 37.25 | BL124: 2.12 | BM124: 2.12 | BN124: 38.14 | BO124: 3.03 | BP124: 0 | BQ124: 28.34 | BR124: 3.03 | BS124: 0 | BT124: 8.5 | BU124: 37.79 | BV124: 3.1 | BW124: 0 | BX124: 38.7 | BY124: 3.03 | BZ124: 0 | CA124: 20.36 | CB124: 3.03 | CC124: 0 | CD124: 6.11 | CE124: 27.14 | CF124: 3.1 | CG124: 0 | CH124: 27.79 | CI124: 0 | CJ124: 0 | CK124: 0 | CL124: 0 | CM124: 0 | CN124: 0 | CO124: 0 | CP124: 0 | CQ124: 0 | CR124: 0
A125: PL1230 | B125: 7.77 | C125: 14.65 | D125: 12.7 | E125: 27.88 | F125: 8.57 | G125: 9.55 | H125: 3.26 | I125: 7.77 | J125: 14.65 | K125: 12.7 | L125: 26.03 | M125: 21.51 | N125: 9.19 | O125: 9.29 | P125: 3.26 | Q125: 7.77 | R125: 13.22 | S125: 26.03 | T125: 21.51 | U125: 9.19 | V125: 9.29 | W125: 3.26 | X125: 7.77 | Y125: 16.25 | Z125: 14.08 | AA125: 29.83 | AB125: 46.16 | AC125: 32.04 | AD125: 3.26 | AE125: 7.77 | AF125: 16.25 | AG125: 14.08 | AH125: 25.67 | AI125: 13.55 | AJ125: 46.34 | AK125: 39.14 | AL125: 3.26 | AM125: 7.77 | AN125: 14.65 | AO125: 25.67 | AP125: 13.55 | AQ125: 46.34 | AR125: 39.14 | AS125: 3.26 | AT125: 7.77 | AU125: 94.06 | AV125: 98.59 | AW125: 14.08 | AX125: 41.29 | AY125: 3.1 | AZ125: 38.22 | BA125: 5.12 | BB125: 37.32 | BC125: 3.1 | BD125: 13.65 | BE125: 2.07 | BF125: 2.07 | BG125: 27.93 | BH125: 2.07 | BI125: 2.07 | BJ125: 8.38 | BK125: 37.24 | BL125: 2.12 | BM125: 2.12 | BN125: 38.13 | BO125: 3.03 | BP125: 0 | BQ125: 28.34 | BR125: 3.03 | BS125: 0 | BT125: 8.5 | BU125: 37.78 | BV125: 3.1 | BW125: 0 | BX125: 38.69 | BY125: 3.03 | BZ125: 0 | CA125: 20.35 | CB125: 3.03 | CC125: 0 | CD125: 6.1 | CE125: 27.13 | CF125: 3.1 | CG125: 0 | CH125: 27.78 | CI125: 0 | CJ125: 0 | CK125: 0 | CL125: 0 | CM125: 0 | CN125: 0 | CO125: 0 | CP125: 0 | CQ125: 0 | CR125: 0
A126: PL2230 | B126: 7.77 | C126: 14.65 | D126: 12.7 | E126: 27.88 | F126: 8.57 | G126: 9.55 | H126: 3.26 | I126: 7.77 | J126: 14.65 | K126: 12.7 | L126: 26.03 | M126: 21.51 | N126: 9.19 | O126: 9.29 | P126: 3.26 | Q126: 7.77 | R126: 13.22 | S126: 26.03 | T126: 21.51 | U126: 9.19 | V126: 9.29 | W126: 3.26 | X126: 7.77 | Y126: 16.25 | Z126: 14.08 | AA126: 29.83 | AB126: 46.16 | AC126: 32.04 | AD126: 3.26 | AE126: 7.77 | AF126: 16.25 | AG126: 14.08 | AH126: 25.67 | AI126: 13.55 | AJ126: 46.34 | AK126: 39.14 | AL126: 3.26 | AM126: 7.77 | AN126: 14.65 | AO126: 25.67 | AP126: 13.55 | AQ126: 46.34 | AR126: 39.14 | AS126: 3.26 | AT126: 7.77 | AU126: 94.06 | AV126: 98.59 | AW126: 14.08 | AX126: 41.29 | AY126: 3.1 | AZ126: 38.22 | BA126: 5.12 | BB126: 37.32 | BC126: 3.1 | BD126: 13.65 | BE126: 2.07 | BF126: 2.07 | BG126: 27.93 | BH126: 2.07 | BI126: 2.07 | BJ126: 8.38 | BK126: 37.24 | BL126: 2.12 | BM126: 2.12 | BN126: 38.13 | BO126: 3.03 | BP126: 0 | BQ126: 28.34 | BR126: 3.03 | BS126: 0 | BT126: 8.5 | BU126: 37.78 | BV126: 3.1 | BW126: 0 | BX126: 38.69 | BY126: 3.03 | BZ126: 0 | CA126: 20.35 | CB126: 3.03 | CC126: 0 | CD126: 6.1 | CE126: 27.13 | CF126: 3.1 | CG126: 0 | CH126: 27.78 | CI126: 0 | CJ126: 0 | CK126: 0 | CL126: 0 | CM126: 0 | CN126: 0 | CO126: 0 | CP126: 0 | CQ126: 0 | CR126: 0
A127: PL0118 | B127: 5.02 | C127: 14.54 | D127: 12.6 | E127: 25.03 | F127: 7.17 | G127: 8.99 | H127: 3.26 | I127: 5.02 | J127: 14.54 | K127: 12.6 | L127: 22.73 | M127: 12.81 | N127: 8.55 | O127: 8.73 | P127: 3.26 | Q127: 5.02 | R127: 13.11 | S127: 22.73 | T127: 12.81 | U127: 8.55 | V127: 8.73 | W127: 3.26 | X127: 5.02 | Y127: 15.98 | Z127: 13.84 | AA127: 28.57 | AB127: 41.94 | AC127: 33.62 | AD127: 3.26 | AE127: 5.02 | AF127: 15.98 | AG127: 13.84 | AH127: 27.58 | AI127: 21.4 | AJ127: 43.63 | AK127: 41.1 | AL127: 3.26 | AM127: 5.02 | AN127: 14.42 | AO127: 27.58 | AP127: 21.4 | AQ127: 43.63 | AR127: 41.1 | AS127: 3.26 | AT127: 5.02 | AU127: 88.42 | AV127: 92.64 | AW127: 13.84 | AX127: 37.82 | AY127: 2.41 | AZ127: 36.34 | BA127: 2.56 | BB127: 35.49 | BC127: 2.41 | BD127: 13.12 | BE127: 2.06 | BF127: 2.06 | BG127: 26.16 | BH127: 2.06 | BI127: 2.06 | BJ127: 7.85 | BK127: 34.88 | BL127: 2.11 | BM127: 2.11 | BN127: 35.72 | BO127: 2.35 | BP127: 0 | BQ127: 26.54 | BR127: 2.35 | BS127: 0 | BT127: 7.96 | BU127: 35.38 | BV127: 2.41 | BW127: 0 | BX127: 36.23 | BY127: 2.35 | BZ127: 0 | CA127: 19.51 | CB127: 2.35 | CC127: 0 | CD127: 5.85 | CE127: 26.01 | CF127: 2.41 | CG127: 0 | CH127: 26.63 | CI127: 0 | CJ127: 0 | CK127: 0 | CL127: 0 | CM127: 0 | CN127: 0 | CO127: 0 | CP127: 0 | CQ127: 0 | CR127: 0
A128: PL0119 | B128: 5.02 | C128: 14.45 | D128: 12.5 | E128: 25.2 | F128: 7.17 | G128: 8.99 | H128: 3.26 | I128: 5.02 | J128: 14.45 | K128: 12.5 | L128: 22.9 | M128: 12.89 | N128: 8.55 | O128: 8.73 | P128: 3.26 | Q128: 5.02 | R128: 13.03 | S128: 22.9 | T128: 12.89 | U128: 8.55 | V128: 8.73 | W128: 3.26 | X128: 5.02 | Y128: 15.89 | Z128: 13.75 | AA128: 28.76 | AB128: 41.94 | AC128: 33.62 | AD128: 3.26 | AE128: 5.02 | AF128: 15.89 | AG128: 13.75 | AH128: 27.76 | AI128: 21.54 | AJ128: 43.63 | AK128: 41.1 | AL128: 3.26 | AM128: 5.02 | AN128: 14.33 | AO128: 27.76 | AP128: 21.54 | AQ128: 43.63 | AR128: 41.1 | AS128: 3.26 | AT128: 5.02 | AU128: 88.52 | AV128: 92.76 | AW128: 13.75 | AX128: 37.82 | AY128: 2.41 | AZ128: 36.31 | BA128: 2.56 | BB128: 35.46 | BC128: 2.41 | BD128: 13.1 | BE128: 2.06 | BF128: 2.06 | BG128: 26.13 | BH128: 2.06 | BI128: 2.06 | BJ128: 7.84 | BK128: 34.84 | BL128: 2.11 | BM128: 2.11 | BN128: 35.68 | BO128: 2.35 | BP128: 0 | BQ128: 26.51 | BR128: 2.35 | BS128: 0 | BT128: 7.95 | BU128: 35.34 | BV128: 2.41 | BW128: 0 | BX128: 36.19 | BY128: 2.35 | BZ128: 0 | CA128: 19.49 | CB128: 2.35 | CC128: 0 | CD128: 5.85 | CE128: 25.98 | CF128: 2.41 | CG128: 0 | CH128: 26.6 | CI128: 0 | CJ128: 0 | CK128: 0 | CL128: 0 | CM128: 0 | CN128: 0 | CO128: 0 | CP128: 0 | CQ128: 0 | CR128: 0
A129: PL0120 | B129: 5.02 | C129: 14.54 | D129: 12.6 | E129: 25.03 | F129: 7.82 | G129: 9.82 | H129: 3.26 | I129: 5.02 | J129: 14.54 | K129: 12.6 | L129: 22.73 | M129: 12.81 | N129: 9.34 | O129: 9.53 | P129: 3.26 | Q129: 5.02 | R129: 13.11 | S129: 22.73 | T129: 12.81 | U129: 9.34 | V129: 9.53 | W129: 3.26 | X129: 5.02 | Y129: 15.98 | Z129: 13.84 | AA129: 28.57 | AB129: 45.79 | AC129: 36.71 | AD129: 3.26 | AE129: 5.02 | AF129: 15.98 | AG129: 13.84 | AH129: 27.58 | AI129: 21.4 | AJ129: 47.64 | AK129: 44.88 | AL129: 3.26 | AM129: 5.02 | AN129: 14.42 | AO129: 27.58 | AP129: 21.4 | AQ129: 47.64 | AR129: 44.88 | AS129: 3.26 | AT129: 5.02 | AU129: 92.38 | AV129: 96.83 | AW129: 13.84 | AX129: 41.29 | AY129: 2.41 | AZ129: 37.54 | BA129: 2.56 | BB129: 36.66 | BC129: 2.41 | BD129: 13.55 | BE129: 2.06 | BF129: 2.06 | BG129: 27.02 | BH129: 2.06 | BI129: 2.06 | BJ129: 8.1 | BK129: 36.02 | BL129: 2.11 | BM129: 2.11 | BN129: 36.88 | BO129: 2.35 | BP129: 0 | BQ129: 27.41 | BR129: 2.35 | BS129: 0 | BT129: 8.22 | BU129: 36.54 | BV129: 2.41 | BW129: 0 | BX129: 37.42 | BY129: 2.35 | BZ129: 0 | CA129: 19.79 | CB129: 2.35 | CC129: 0 | CD129: 5.94 | CE129: 26.39 | CF129: 2.41 | CG129: 0 | CH129: 27.02 | CI129: 0 | CJ129: 0 | CK129: 0 | CL129: 0 | CM129: 0 | CN129: 0 | CO129: 0 | CP129: 0 | CQ129: 0 | CR129: 0
A130: PL0122 | B130: 5.02 | C130: 14.48 | D130: 12.54 | E130: 25.2 | F130: 7.17 | G130: 8.99 | H130: 3.26 | I130: 5.02 | J130: 14.48 | K130: 12.54 | L130: 22.9 | M130: 12.89 | N130: 8.55 | O130: 8.73 | P130: 3.26 | Q130: 5.02 | R130: 13.07 | S130: 22.9 | T130: 12.89 | U130: 8.55 | V130: 8.73 | W130: 3.26 | X130: 5.02 | Y130: 15.92 | Z130: 13.79 | AA130: 28.76 | AB130: 41.94 | AC130: 33.62 | AD130: 3.26 | AE130: 5.02 | AF130: 15.92 | AG130: 13.79 | AH130: 27.76 | AI130: 21.54 | AJ130: 43.63 | AK130: 41.1 | AL130: 3.26 | AM130: 5.02 | AN130: 14.37 | AO130: 27.76 | AP130: 21.54 | AQ130: 43.63 | AR130: 41.1 | AS130: 3.26 | AT130: 5.02 | AU130: 88.57 | AV130: 92.79 | AW130: 13.79 | AX130: 37.82 | AY130: 2.41 | AZ130: 36.36 | BA130: 2.56 | BB130: 35.51 | BC130: 2.41 | BD130: 13.12 | BE130: 2.06 | BF130: 2.06 | BG130: 26.17 | BH130: 2.06 | BI130: 2.06 | BJ130: 7.85 | BK130: 34.89 | BL130: 2.11 | BM130: 2.11 | BN130: 35.73 | BO130: 2.35 | BP130: 0 | BQ130: 26.54 | BR130: 2.35 | BS130: 0 | BT130: 7.96 | BU130: 35.39 | BV130: 2.41 | BW130: 0 | BX130: 36.24 | BY130: 2.35 | BZ130: 0 | CA130: 19.52 | CB130: 2.35 | CC130: 0 | CD130: 5.85 | CE130: 26.02 | CF130: 2.41 | CG130: 0 | CH130: 26.64 | CI130: 0 | CJ130: 0 | CK130: 0 | CL130: 0 | CM130: 0 | CN130: 0 | CO130: 0 | CP130: 0 | CQ130: 0 | CR130: 0
A131: PR0081 | B131: 10.99 | C131: 15.47 | D131: 13.4 | E131: 27.14 | F131: 6.36 | G131: 11.26 | H131: 3.26 | I131: 10.99 | J131: 15.47 | K131: 13.4 | L131: 17.55 | M131: 17.55 | N131: 9.9 | O131: 9.9 | P131: 3.26 | Q131: 10.99 | R131: 13.95 | S131: 17.55 | T131: 17.55 | U131: 9.9 | V131: 9.9 | W131: 3.26 | X131: 10.99 | Y131: 17.13 | Z131: 14.83 | AA131: 30.09 | AB131: 42.61 | AC131: 24.77 | AD131: 3.26 | AE131: 10.99 | AF131: 17.13 | AG131: 14.83 | AH131: 20.32 | AI131: 6.78 | AJ131: 37.36 | AK131: 29.18 | AL131: 3.26 | AM131: 10.99 | AN131: 15.43 | AO131: 20.32 | AP131: 6.78 | AQ131: 37.36 | AR131: 29.18 | AS131: 3.26 | AT131: 10.99 | AU131: 94.23 | AV131: 98.71 | AW131: 14.83 | AX131: 41.1 | AY131: 3.55 | AZ131: 38.78 | BA131: 3.47 | BB131: 37.87 | BC131: 3.55 | BD131: 11.61 | BE131: 2.79 | BF131: 2.79 | BG131: 26.84 | BH131: 2.79 | BI131: 2.79 | BJ131: 8.05 | BK131: 53.67 | BL131: 2.86 | BM131: 2.86 | BN131: 54.96 | BO131: 3.47 | BP131: 1.89 | BQ131: 27.27 | BR131: 3.47 | BS131: 1.89 | BT131: 8.18 | BU131: 54.53 | BV131: 3.55 | BW131: 1.94 | BX131: 55.84 | BY131: 3.47 | BZ131: 0 | CA131: 18.74 | CB131: 3.47 | CC131: 0 | CD131: 5.62 | CE131: 37.47 | CF131: 3.55 | CG131: 0 | CH131: 38.37 | CI131: 0 | CJ131: 0 | CK131: 0 | CL131: 0 | CM131: 0 | CN131: 0 | CO131: 0 | CP131: 0 | CQ131: 0 | CR131: 0
A132: PR0084 | B132: 10.99 | C132: 15.41 | D132: 13.38 | E132: 27.14 | F132: 6.36 | G132: 11.26 | H132: 3.26 | I132: 10.99 | J132: 15.41 | K132: 13.38 | L132: 17.55 | M132: 17.55 | N132: 9.9 | O132: 9.9 | P132: 3.26 | Q132: 10.99 | R132: 13.92 | S132: 17.55 | T132: 17.55 | U132: 9.9 | V132: 9.9 | W132: 3.26 | X132: 10.99 | Y132: 17.06 | Z132: 14.82 | AA132: 30.09 | AB132: 42.61 | AC132: 24.77 | AD132: 3.26 | AE132: 10.99 | AF132: 17.06 | AG132: 14.82 | AH132: 20.32 | AI132: 6.78 | AJ132: 37.36 | AK132: 29.18 | AL132: 3.26 | AM132: 10.99 | AN132: 15.4 | AO132: 20.32 | AP132: 6.78 | AQ132: 37.36 | AR132: 29.18 | AS132: 3.26 | AT132: 10.99 | AU132: 94.16 | AV132: 98.64 | AW132: 14.82 | AX132: 41.1 | AY132: 3.55 | AZ132: 38.75 | BA132: 3.47 | BB132: 37.84 | BC132: 3.55 | BD132: 11.61 | BE132: 2.79 | BF132: 2.79 | BG132: 26.82 | BH132: 2.79 | BI132: 2.79 | BJ132: 8.05 | BK132: 53.64 | BL132: 2.86 | BM132: 2.86 | BN132: 54.93 | BO132: 3.47 | BP132: 1.89 | BQ132: 27.25 | BR132: 3.47 | BS132: 1.89 | BT132: 8.18 | BU132: 54.5 | BV132: 3.55 | BW132: 1.94 | BX132: 55.81 | BY132: 3.47 | BZ132: 0 | CA132: 18.72 | CB132: 3.47 | CC132: 0 | CD132: 5.62 | CE132: 37.44 | CF132: 3.55 | CG132: 0 | CH132: 38.34 | CI132: 0 | CJ132: 0 | CK132: 0 | CL132: 0 | CM132: 0 | CN132: 0 | CO132: 0 | CP132: 0 | CQ132: 0 | CR132: 0
A133: PL0306 | B133: 10.72 | C133: 15.3 | D133: 13.24 | E133: 25.77 | F133: 6.36 | G133: 11.26 | H133: 3.26 | I133: 9.56 | J133: 15.3 | K133: 13.24 | L133: 16.67 | M133: 16.67 | N133: 9.9 | O133: 9.9 | P133: 3.26 | Q133: 9.56 | R133: 13.78 | S133: 16.67 | T133: 16.67 | U133: 9.9 | V133: 9.9 | W133: 3.26 | X133: 10.72 | Y133: 17.27 | Z133: 14.95 | AA133: 29.17 | AB133: 42.75 | AC133: 24.77 | AD133: 3.26 | AE133: 9.56 | AF133: 17.27 | AG133: 14.95 | AH133: 19.69 | AI133: 6.57 | AJ133: 37.45 | AK133: 29.21 | AL133: 3.26 | AM133: 9.56 | AN133: 15.56 | AO133: 19.69 | AP133: 6.57 | AQ133: 37.45 | AR133: 29.21 | AS133: 3.26 | AT133: 9.56 | AU133: 93.55 | AV133: 98 | AW133: 14.95 | AX133: 41.1 | AY133: 3.33 | AZ133: 38.66 | BA133: 3.25 | BB133: 37.75 | BC133: 3.33 | BD133: 12.39 | BE133: 2.62 | BF133: 2.34 | BG133: 22.75 | BH133: 2.62 | BI133: 2.34 | BJ133: 6.83 | BK133: 45.5 | BL133: 2.68 | BM133: 2.4 | BN133: 46.59 | BO133: 3.25 | BP133: 1.75 | BQ133: 23.1 | BR133: 3.25 | BS133: 1.75 | BT133: 6.93 | BU133: 46.19 | BV133: 3.33 | BW133: 1.79 | BX133: 47.3 | BY133: 3.25 | BZ133: 0 | CA133: 16.13 | CB133: 3.25 | CC133: 0 | CD133: 4.84 | CE133: 32.26 | CF133: 3.33 | CG133: 0 | CH133: 33.03 | CI133: 0 | CJ133: 0 | CK133: 0 | CL133: 0 | CM133: 0 | CN133: 0 | CO133: 0 | CP133: 0 | CQ133: 0 | CR133: 0
A134: PL0307 | B134: 10.72 | C134: 15.3 | D134: 13.24 | E134: 25.77 | F134: 6.36 | G134: 11.26 | H134: 3.26 | I134: 9.56 | J134: 15.3 | K134: 13.24 | L134: 16.67 | M134: 16.67 | N134: 9.9 | O134: 9.9 | P134: 3.26 | Q134: 9.56 | R134: 13.78 | S134: 16.67 | T134: 16.67 | U134: 9.9 | V134: 9.9 | W134: 3.26 | X134: 10.72 | Y134: 17.27 | Z134: 14.95 | AA134: 29.17 | AB134: 42.75 | AC134: 24.77 | AD134: 3.26 | AE134: 9.56 | AF134: 17.27 | AG134: 14.95 | AH134: 19.69 | AI134: 6.57 | AJ134: 37.45 | AK134: 29.21 | AL134: 3.26 | AM134: 9.56 | AN134: 15.56 | AO134: 19.69 | AP134: 6.57 | AQ134: 37.45 | AR134: 29.21 | AS134: 3.26 | AT134: 9.56 | AU134: 93.55 | AV134: 98 | AW134: 14.95 | AX134: 41.1 | AY134: 3.33 | AZ134: 38.66 | BA134: 3.25 | BB134: 37.75 | BC134: 3.33 | BD134: 12.39 | BE134: 2.62 | BF134: 2.34 | BG134: 22.75 | BH134: 2.62 | BI134: 2.34 | BJ134: 6.83 | BK134: 45.5 | BL134: 2.68 | BM134: 2.4 | BN134: 46.59 | BO134: 3.25 | BP134: 1.75 | BQ134: 23.1 | BR134: 3.25 | BS134: 1.75 | BT134: 6.93 | BU134: 46.19 | BV134: 3.33 | BW134: 1.79 | BX134: 47.3 | BY134: 3.25 | BZ134: 0 | CA134: 16.13 | CB134: 3.25 | CC134: 0 | CD134: 4.84 | CE134: 32.26 | CF134: 3.33 | CG134: 0 | CH134: 33.03 | CI134: 0 | CJ134: 0 | CK134: 0 | CL134: 0 | CM134: 0 | CN134: 0 | CO134: 0 | CP134: 0 | CQ134: 0 | CR134: 0
A135: PL0085 | B135: 8.68 | C135: 15.08 | D135: 13.06 | E135: 25.88 | F135: 6.51 | G135: 11.55 | H135: 3.26 | I135: 8.68 | J135: 15.08 | K135: 13.06 | L135: 27.94 | M135: 13.92 | N135: 7.9 | O135: 9.73 | P135: 3.26 | Q135: 8.68 | R135: 13.59 | S135: 27.94 | T135: 13.92 | U135: 7.9 | V135: 9.73 | W135: 3.26 | X135: 8.68 | Y135: 16.76 | Z135: 14.51 | AA135: 28.16 | AB135: 42.65 | AC135: 24.77 | AD135: 3.26 | AE135: 8.68 | AF135: 16.76 | AG135: 14.51 | AH135: 19.02 | AI135: 6.35 | AJ135: 37.38 | AK135: 29.18 | AL135: 3.26 | AM135: 8.68 | AN135: 15.1 | AO135: 19.02 | AP135: 6.35 | AQ135: 37.38 | AR135: 29.18 | AS135: 3.26 | AT135: 8.68 | AU135: 91.86 | AV135: 96.24 | AW135: 14.51 | AX135: 41.1 | AY135: 3.18 | AZ135: 37.84 | BA135: 3.11 | BB135: 36.95 | BC135: 3.18 | BD135: 12.79 | BE135: 2.62 | BF135: 2.34 | BG135: 20.16 | BH135: 2.62 | BI135: 2.34 | BJ135: 6.05 | BK135: 40.31 | BL135: 2.68 | BM135: 2.4 | BN135: 41.28 | BO135: 3.11 | BP135: 1.7 | BQ135: 20.48 | BR135: 3.11 | BS135: 1.7 | BT135: 6.14 | BU135: 40.96 | BV135: 3.18 | BW135: 1.74 | BX135: 41.94 | BY135: 3.11 | BZ135: 0 | CA135: 14.45 | CB135: 3.11 | CC135: 0 | CD135: 4.34 | CE135: 28.9 | CF135: 3.18 | CG135: 0 | CH135: 29.59 | CI135: 0 | CJ135: 0 | CK135: 0 | CL135: 0 | CM135: 0 | CN135: 0 | CO135: 0 | CP135: 0 | CQ135: 0 | CR135: 0
A136: PL0086 | B136: 8.68 | C136: 15.08 | D136: 13.06 | E136: 25.88 | F136: 6.51 | G136: 11.55 | H136: 3.26 | I136: 8.68 | J136: 15.08 | K136: 13.06 | L136: 27.94 | M136: 13.92 | N136: 7.9 | O136: 9.73 | P136: 3.26 | Q136: 8.68 | R136: 13.59 | S136: 27.94 | T136: 13.92 | U136: 7.9 | V136: 9.73 | W136: 3.26 | X136: 8.68 | Y136: 16.76 | Z136: 14.51 | AA136: 28.16 | AB136: 42.65 | AC136: 24.77 | AD136: 3.26 | AE136: 8.68 | AF136: 16.76 | AG136: 14.51 | AH136: 19.02 | AI136: 6.35 | AJ136: 37.38 | AK136: 29.18 | AL136: 3.26 | AM136: 8.68 | AN136: 15.1 | AO136: 19.02 | AP136: 6.35 | AQ136: 37.38 | AR136: 29.18 | AS136: 3.26 | AT136: 8.68 | AU136: 91.86 | AV136: 96.24 | AW136: 14.51 | AX136: 41.1 | AY136: 3.18 | AZ136: 37.84 | BA136: 3.11 | BB136: 36.95 | BC136: 3.18 | BD136: 12.79 | BE136: 2.62 | BF136: 2.34 | BG136: 20.16 | BH136: 2.62 | BI136: 2.34 | BJ136: 6.05 | BK136: 40.31 | BL136: 2.68 | BM136: 2.4 | BN136: 41.28 | BO136: 3.11 | BP136: 1.7 | BQ136: 20.48 | BR136: 3.11 | BS136: 1.7 | BT136: 6.14 | BU136: 40.96 | BV136: 3.18 | BW136: 1.74 | BX136: 41.94 | BY136: 3.11 | BZ136: 0 | CA136: 14.45 | CB136: 3.11 | CC136: 0 | CD136: 4.34 | CE136: 28.9 | CF136: 3.18 | CG136: 0 | CH136: 29.59 | CI136: 0 | CJ136: 0 | CK136: 0 | CL136: 0 | CM136: 0 | CN136: 0 | CO136: 0 | CP136: 0 | CQ136: 0 | CR136: 0
A137: PL0165 | B137: 8.68 | C137: 15.02 | D137: 13.05 | E137: 25.88 | F137: 6.51 | G137: 11.55 | H137: 3.26 | I137: 8.68 | J137: 15.02 | K137: 13.05 | L137: 27.94 | M137: 13.92 | N137: 7.9 | O137: 9.73 | P137: 3.26 | Q137: 8.68 | R137: 13.57 | S137: 27.94 | T137: 13.92 | U137: 7.9 | V137: 9.73 | W137: 3.26 | X137: 8.68 | Y137: 16.69 | Z137: 14.5 | AA137: 28.16 | AB137: 42.65 | AC137: 24.77 | AD137: 3.26 | AE137: 8.68 | AF137: 16.69 | AG137: 14.5 | AH137: 19.02 | AI137: 6.35 | AJ137: 37.38 | AK137: 29.18 | AL137: 3.26 | AM137: 8.68 | AN137: 15.07 | AO137: 19.02 | AP137: 6.35 | AQ137: 37.38 | AR137: 29.18 | AS137: 3.26 | AT137: 8.68 | AU137: 91.79 | AV137: 96.16 | AW137: 14.5 | AX137: 41.1 | AY137: 3.18 | AZ137: 37.82 | BA137: 3.11 | BB137: 36.93 | BC137: 3.18 | BD137: 12.78 | BE137: 2.62 | BF137: 2.34 | BG137: 20.14 | BH137: 2.62 | BI137: 2.34 | BJ137: 6.04 | BK137: 40.28 | BL137: 2.68 | BM137: 2.4 | BN137: 41.25 | BO137: 3.11 | BP137: 1.7 | BQ137: 20.47 | BR137: 3.11 | BS137: 1.7 | BT137: 6.14 | BU137: 40.93 | BV137: 3.18 | BW137: 1.74 | BX137: 41.91 | BY137: 3.11 | BZ137: 0 | CA137: 14.44 | CB137: 3.11 | CC137: 0 | CD137: 4.33 | CE137: 28.88 | CF137: 3.18 | CG137: 0 | CH137: 29.57 | CI137: 0 | CJ137: 0 | CK137: 0 | CL137: 0 | CM137: 0 | CN137: 0 | CO137: 0 | CP137: 0 | CQ137: 0 | CR137: 0
A138: PL0232 | B138: 8.68 | C138: 15.02 | D138: 13.05 | E138: 25.88 | F138: 6.51 | G138: 11.55 | H138: 3.26 | I138: 8.68 | J138: 15.02 | K138: 13.05 | L138: 27.94 | M138: 13.92 | N138: 7.9 | O138: 9.73 | P138: 3.26 | Q138: 8.68 | R138: 13.57 | S138: 27.94 | T138: 13.92 | U138: 7.9 | V138: 9.73 | W138: 3.26 | X138: 8.68 | Y138: 16.69 | Z138: 14.5 | AA138: 28.16 | AB138: 42.65 | AC138: 24.77 | AD138: 3.26 | AE138: 8.68 | AF138: 16.69 | AG138: 14.5 | AH138: 19.02 | AI138: 6.35 | AJ138: 37.38 | AK138: 29.18 | AL138: 3.26 | AM138: 8.68 | AN138: 15.07 | AO138: 19.02 | AP138: 6.35 | AQ138: 37.38 | AR138: 29.18 | AS138: 3.26 | AT138: 8.68 | AU138: 91.79 | AV138: 96.16 | AW138: 14.5 | AX138: 41.1 | AY138: 3.18 | AZ138: 37.82 | BA138: 3.11 | BB138: 36.93 | BC138: 3.18 | BD138: 12.78 | BE138: 2.62 | BF138: 2.34 | BG138: 20.14 | BH138: 2.62 | BI138: 2.34 | BJ138: 6.04 | BK138: 40.28 | BL138: 2.68 | BM138: 2.4 | BN138: 41.25 | BO138: 3.11 | BP138: 1.7 | BQ138: 20.47 | BR138: 3.11 | BS138: 1.7 | BT138: 6.14 | BU138: 40.93 | BV138: 3.18 | BW138: 1.74 | BX138: 41.91 | BY138: 3.11 | BZ138: 0 | CA138: 14.44 | CB138: 3.11 | CC138: 0 | CD138: 4.33 | CE138: 28.88 | CF138: 3.18 | CG138: 0 | CH138: 29.57 | CI138: 0 | CJ138: 0 | CK138: 0 | CL138: 0 | CM138: 0 | CN138: 0 | CO138: 0 | CP138: 0 | CQ138: 0 | CR138: 0
A139: PL0259 | B139: 8.68 | C139: 15.02 | D139: 13.05 | E139: 25.88 | F139: 6.51 | G139: 11.55 | H139: 3.26 | I139: 8.68 | J139: 15.02 | K139: 13.05 | L139: 27.94 | M139: 13.92 | N139: 7.9 | O139: 9.73 | P139: 3.26 | Q139: 8.68 | R139: 13.57 | S139: 27.94 | T139: 13.92 | U139: 7.9 | V139: 9.73 | W139: 3.26 | X139: 8.68 | Y139: 16.69 | Z139: 14.5 | AA139: 28.16 | AB139: 42.65 | AC139: 24.77 | AD139: 3.26 | AE139: 8.68 | AF139: 16.69 | AG139: 14.5 | AH139: 19.02 | AI139: 6.35 | AJ139: 37.38 | AK139: 29.18 | AL139: 3.26 | AM139: 8.68 | AN139: 15.07 | AO139: 19.02 | AP139: 6.35 | AQ139: 37.38 | AR139: 29.18 | AS139: 3.26 | AT139: 8.68 | AU139: 91.79 | AV139: 96.16 | AW139: 14.5 | AX139: 41.1 | AY139: 3.18 | AZ139: 37.82 | BA139: 3.11 | BB139: 36.93 | BC139: 3.18 | BD139: 12.78 | BE139: 2.62 | BF139: 2.34 | BG139: 20.14 | BH139: 2.62 | BI139: 2.34 | BJ139: 6.04 | BK139: 40.28 | BL139: 2.68 | BM139: 2.4 | BN139: 41.25 | BO139: 3.11 | BP139: 1.7 | BQ139: 20.47 | BR139: 3.11 | BS139: 1.7 | BT139: 6.14 | BU139: 40.93 | BV139: 3.18 | BW139: 1.74 | BX139: 41.91 | BY139: 3.11 | BZ139: 0 | CA139: 14.44 | CB139: 3.11 | CC139: 0 | CD139: 4.33 | CE139: 28.88 | CF139: 3.18 | CG139: 0 | CH139: 29.57 | CI139: 0 | CJ139: 0 | CK139: 0 | CL139: 0 | CM139: 0 | CN139: 0 | CO139: 0 | CP139: 0 | CQ139: 0 | CR139: 0
A140: PL0308 | B140: 8.68 | C140: 15.08 | D140: 13.06 | E140: 25.88 | F140: 6.51 | G140: 11.55 | H140: 3.26 | I140: 8.68 | J140: 15.08 | K140: 13.06 | L140: 27.94 | M140: 13.92 | N140: 7.9 | O140: 9.73 | P140: 3.26 | Q140: 8.68 | R140: 13.59 | S140: 27.94 | T140: 13.92 | U140: 7.9 | V140: 9.73 | W140: 3.26 | X140: 8.68 | Y140: 16.76 | Z140: 14.51 | AA140: 28.16 | AB140: 42.65 | AC140: 24.77 | AD140: 3.26 | AE140: 8.68 | AF140: 16.76 | AG140: 14.51 | AH140: 19.02 | AI140: 6.35 | AJ140: 37.38 | AK140: 29.18 | AL140: 3.26 | AM140: 8.68 | AN140: 15.1 | AO140: 19.02 | AP140: 6.35 | AQ140: 37.38 | AR140: 29.18 | AS140: 3.26 | AT140: 8.68 | AU140: 91.86 | AV140: 96.24 | AW140: 14.51 | AX140: 41.1 | AY140: 3.18 | AZ140: 37.84 | BA140: 3.11 | BB140: 36.95 | BC140: 3.18 | BD140: 12.79 | BE140: 2.62 | BF140: 2.34 | BG140: 20.16 | BH140: 2.62 | BI140: 2.34 | BJ140: 6.05 | BK140: 40.31 | BL140: 2.68 | BM140: 2.4 | BN140: 41.28 | BO140: 3.11 | BP140: 1.7 | BQ140: 20.48 | BR140: 3.11 | BS140: 1.7 | BT140: 6.14 | BU140: 40.96 | BV140: 3.18 | BW140: 1.74 | BX140: 41.94 | BY140: 3.11 | BZ140: 0 | CA140: 14.45 | CB140: 3.11 | CC140: 0 | CD140: 4.34 | CE140: 28.9 | CF140: 3.18 | CG140: 0 | CH140: 29.59 | CI140: 0 | CJ140: 0 | CK140: 0 | CL140: 0 | CM140: 0 | CN140: 0 | CO140: 0 | CP140: 0 | CQ140: 0 | CR140: 0
A141: PL1082 | B141: 8.68 | C141: 15.08 | D141: 13.06 | E141: 25.88 | F141: 6.51 | G141: 11.55 | H141: 3.26 | I141: 8.68 | J141: 15.08 | K141: 13.06 | L141: 27.94 | M141: 13.92 | N141: 7.9 | O141: 9.73 | P141: 3.26 | Q141: 8.68 | R141: 13.59 | S141: 27.94 | T141: 13.92 | U141: 7.9 | V141: 9.73 | W141: 3.26 | X141: 8.68 | Y141: 16.76 | Z141: 14.51 | AA141: 28.16 | AB141: 42.65 | AC141: 24.77 | AD141: 3.26 | AE141: 8.68 | AF141: 16.76 | AG141: 14.51 | AH141: 19.02 | AI141: 6.35 | AJ141: 37.38 | AK141: 29.18 | AL141: 3.26 | AM141: 8.68 | AN141: 15.1 | AO141: 19.02 | AP141: 6.35 | AQ141: 37.38 | AR141: 29.18 | AS141: 3.26 | AT141: 8.68 | AU141: 91.86 | AV141: 96.24 | AW141: 14.51 | AX141: 41.1 | AY141: 3.18 | AZ141: 37.84 | BA141: 3.11 | BB141: 36.95 | BC141: 3.18 | BD141: 12.79 | BE141: 2.62 | BF141: 2.34 | BG141: 20.16 | BH141: 2.62 | BI141: 2.34 | BJ141: 6.05 | BK141: 40.31 | BL141: 2.68 | BM141: 2.4 | BN141: 41.28 | BO141: 3.11 | BP141: 1.7 | BQ141: 20.48 | BR141: 3.11 | BS141: 1.7 | BT141: 6.14 | BU141: 40.96 | BV141: 3.18 | BW141: 1.74 | BX141: 41.94 | BY141: 3.11 | BZ141: 0 | CA141: 14.45 | CB141: 3.11 | CC141: 0 | CD141: 4.34 | CE141: 28.9 | CF141: 3.18 | CG141: 0 | CH141: 29.59 | CI141: 0 | CJ141: 0 | CK141: 0 | CL141: 0 | CM141: 0 | CN141: 0 | CO141: 0 | CP141: 0 | CQ141: 0 | CR141: 0
A142: PL0231 | B142: 7.77 | C142: 15.24 | D142: 13.19 | E142: 28.13 | F142: 6.94 | G142: 9.4 | H142: 3.26 | I142: 7.77 | J142: 15.24 | K142: 13.19 | L142: 26.26 | M142: 21.7 | N142: 7.84 | O142: 8.26 | P142: 3.26 | Q142: 7.77 | R142: 13.73 | S142: 26.26 | T142: 21.7 | U142: 7.84 | V142: 8.26 | W142: 3.26 | X142: 7.77 | Y142: 16.9 | Z142: 14.62 | AA142: 30.09 | AB142: 44.26 | AC142: 32.26 | AD142: 3.26 | AE142: 7.77 | AF142: 16.9 | AG142: 14.62 | AH142: 25.89 | AI142: 13.67 | AJ142: 44.83 | AK142: 38.49 | AL142: 3.26 | AM142: 7.77 | AN142: 15.23 | AO142: 25.89 | AP142: 13.67 | AQ142: 44.83 | AR142: 38.49 | AS142: 3.26 | AT142: 7.77 | AU142: 93.01 | AV142: 97.44 | AW142: 14.62 | AX142: 41.1 | AY142: 3.1 | AZ142: 38.27 | BA142: 5.12 | BB142: 37.37 | BC142: 3.1 | BD142: 13.67 | BE142: 2.07 | BF142: 2.07 | BG142: 27.96 | BH142: 2.07 | BI142: 2.07 | BJ142: 8.39 | BK142: 37.28 | BL142: 2.12 | BM142: 2.12 | BN142: 38.17 | BO142: 3.03 | BP142: 0 | BQ142: 28.37 | BR142: 3.03 | BS142: 0 | BT142: 8.51 | BU142: 37.82 | BV142: 3.1 | BW142: 0 | BX142: 38.73 | BY142: 3.03 | BZ142: 0 | CA142: 20.39 | CB142: 3.03 | CC142: 0 | CD142: 6.12 | CE142: 27.18 | CF142: 3.1 | CG142: 0 | CH142: 27.83 | CI142: 0 | CJ142: 0 | CK142: 0 | CL142: 0 | CM142: 0 | CN142: 0 | CO142: 0 | CP142: 0 | CQ142: 0 | CR142: 0
A143: PL0081 | B143: 5.02 | C143: 15.11 | D143: 13.09 | E143: 25.24 | F143: 6.29 | G143: 9.59 | H143: 3.26 | I143: 5.02 | J143: 15.11 | K143: 13.09 | L143: 22.93 | M143: 12.91 | N143: 8.12 | O143: 8.71 | P143: 3.26 | Q143: 5.02 | R143: 13.62 | S143: 22.93 | T143: 12.91 | U143: 8.12 | V143: 8.71 | W143: 3.26 | X143: 5.02 | Y143: 16.62 | Z143: 14.39 | AA143: 28.82 | AB143: 43.6 | AC143: 36.68 | AD143: 3.26 | AE143: 5.02 | AF143: 16.62 | AG143: 14.39 | AH143: 27.81 | AI143: 21.59 | AJ143: 45.79 | AK143: 43.49 | AL143: 3.26 | AM143: 5.02 | AN143: 14.97 | AO143: 27.81 | AP143: 21.59 | AQ143: 45.79 | AR143: 43.49 | AS143: 3.26 | AT143: 5.02 | AU143: 91.01 | AV143: 95.34 | AW143: 14.39 | AX143: 40.8 | AY143: 2.41 | AZ143: 37.5 | BA143: 2.56 | BB143: 36.62 | BC143: 2.41 | BD143: 13.53 | BE143: 2.06 | BF143: 2.06 | BG143: 26.99 | BH143: 2.06 | BI143: 2.06 | BJ143: 8.1 | BK143: 35.98 | BL143: 2.11 | BM143: 2.11 | BN143: 36.84 | BO143: 2.35 | BP143: 0 | BQ143: 27.38 | BR143: 2.35 | BS143: 0 | BT143: 8.21 | BU143: 36.5 | BV143: 2.41 | BW143: 0 | BX143: 37.38 | BY143: 2.35 | BZ143: 0 | CA143: 19.81 | CB143: 2.35 | CC143: 0 | CD143: 5.94 | CE143: 26.41 | CF143: 2.41 | CG143: 0 | CH143: 27.04 | CI143: 0 | CJ143: 0 | CK143: 0 | CL143: 0 | CM143: 0 | CN143: 0 | CO143: 0 | CP143: 0 | CQ143: 0 | CR143: 0
A144: PL0083 | B144: 5.02 | C144: 14.99 | D144: 13.05 | E144: 25.24 | F144: 6.33 | G144: 9.67 | H144: 3.26 | I144: 5.02 | J144: 14.99 | K144: 13.05 | L144: 22.93 | M144: 12.91 | N144: 8.18 | O144: 8.79 | P144: 3.26 | Q144: 5.02 | R144: 13.56 | S144: 22.93 | T144: 12.91 | U144: 8.18 | V144: 8.79 | W144: 3.26 | X144: 5.02 | Y144: 16.49 | Z144: 14.34 | AA144: 28.82 | AB144: 43.93 | AC144: 36.95 | AD144: 3.26 | AE144: 5.02 | AF144: 16.49 | AG144: 14.34 | AH144: 27.81 | AI144: 21.59 | AJ144: 46.13 | AK144: 43.82 | AL144: 3.26 | AM144: 5.02 | AN144: 14.9 | AO144: 27.81 | AP144: 21.59 | AQ144: 46.13 | AR144: 43.82 | AS144: 3.26 | AT144: 5.02 | AU144: 91.22 | AV144: 95.57 | AW144: 14.34 | AX144: 41.1 | AY144: 2.41 | AZ144: 37.53 | BA144: 2.56 | BB144: 36.65 | BC144: 2.41 | BD144: 13.54 | BE144: 2.06 | BF144: 2.06 | BG144: 27.01 | BH144: 2.06 | BI144: 2.06 | BJ144: 8.1 | BK144: 36.01 | BL144: 2.11 | BM144: 2.11 | BN144: 36.87 | BO144: 2.35 | BP144: 0 | BQ144: 27.4 | BR144: 2.35 | BS144: 0 | BT144: 8.22 | BU144: 36.53 | BV144: 2.41 | BW144: 0 | BX144: 37.41 | BY144: 2.35 | BZ144: 0 | CA144: 19.79 | CB144: 2.35 | CC144: 0 | CD144: 5.94 | CE144: 26.38 | CF144: 2.41 | CG144: 0 | CH144: 27.01 | CI144: 0 | CJ144: 0 | CK144: 0 | CL144: 0 | CM144: 0 | CN144: 0 | CO144: 0 | CP144: 0 | CQ144: 0 | CR144: 0
A145: PL0084 | B145: 5.02 | C145: 15.05 | D145: 13.08 | E145: 25.24 | F145: 6.29 | G145: 9.59 | H145: 3.26 | I145: 5.02 | J145: 15.05 | K145: 13.08 | L145: 22.93 | M145: 12.91 | N145: 8.12 | O145: 8.71 | P145: 3.26 | Q145: 5.02 | R145: 13.59 | S145: 22.93 | T145: 12.91 | U145: 8.12 | V145: 8.71 | W145: 3.26 | X145: 5.02 | Y145: 16.55 | Z145: 14.38 | AA145: 28.82 | AB145: 43.6 | AC145: 36.68 | AD145: 3.26 | AE145: 5.02 | AF145: 16.55 | AG145: 14.38 | AH145: 27.81 | AI145: 21.59 | AJ145: 45.79 | AK145: 43.49 | AL145: 3.26 | AM145: 5.02 | AN145: 14.94 | AO145: 27.81 | AP145: 21.59 | AQ145: 45.79 | AR145: 43.49 | AS145: 3.26 | AT145: 5.02 | AU145: 90.94 | AV145: 95.27 | AW145: 14.38 | AX145: 40.8 | AY145: 2.41 | AZ145: 37.47 | BA145: 2.56 | BB145: 36.59 | BC145: 2.41 | BD145: 13.52 | BE145: 2.06 | BF145: 2.06 | BG145: 26.96 | BH145: 2.06 | BI145: 2.06 | BJ145: 8.09 | BK145: 35.95 | BL145: 2.11 | BM145: 2.11 | BN145: 36.81 | BO145: 2.35 | BP145: 0 | BQ145: 27.35 | BR145: 2.35 | BS145: 0 | BT145: 8.21 | BU145: 36.47 | BV145: 2.41 | BW145: 0 | BX145: 37.35 | BY145: 2.35 | BZ145: 0 | CA145: 19.79 | CB145: 2.35 | CC145: 0 | CD145: 5.94 | CE145: 26.39 | CF145: 2.41 | CG145: 0 | CH145: 27.02 | CI145: 0 | CJ145: 0 | CK145: 0 | CL145: 0 | CM145: 0 | CN145: 0 | CO145: 0 | CP145: 0 | CQ145: 0 | CR145: 0
A146: PL2082 | B146: 5.02 | C146: 15.11 | D146: 13.09 | E146: 25.24 | F146: 6.29 | G146: 9.59 | H146: 3.26 | I146: 5.02 | J146: 15.11 | K146: 13.09 | L146: 22.93 | M146: 12.91 | N146: 8.12 | O146: 8.71 | P146: 3.26 | Q146: 5.02 | R146: 13.62 | S146: 22.93 | T146: 12.91 | U146: 8.12 | V146: 8.71 | W146: 3.26 | X146: 5.02 | Y146: 16.62 | Z146: 14.39 | AA146: 28.82 | AB146: 43.6 | AC146: 36.68 | AD146: 3.26 | AE146: 5.02 | AF146: 16.62 | AG146: 14.39 | AH146: 27.81 | AI146: 21.59 | AJ146: 45.79 | AK146: 43.49 | AL146: 3.26 | AM146: 5.02 | AN146: 14.97 | AO146: 27.81 | AP146: 21.59 | AQ146: 45.79 | AR146: 43.49 | AS146: 3.26 | AT146: 5.02 | AU146: 91.01 | AV146: 95.34 | AW146: 14.39 | AX146: 40.8 | AY146: 2.41 | AZ146: 37.5 | BA146: 2.56 | BB146: 36.62 | BC146: 2.41 | BD146: 13.53 | BE146: 2.06 | BF146: 2.06 | BG146: 26.99 | BH146: 2.06 | BI146: 2.06 | BJ146: 8.1 | BK146: 35.98 | BL146: 2.11 | BM146: 2.11 | BN146: 36.84 | BO146: 2.35 | BP146: 0 | BQ146: 27.38 | BR146: 2.35 | BS146: 0 | BT146: 8.21 | BU146: 36.5 | BV146: 2.41 | BW146: 0 | BX146: 37.38 | BY146: 2.35 | BZ146: 0 | CA146: 19.81 | CB146: 2.35 | CC146: 0 | CD146: 5.94 | CE146: 26.41 | CF146: 2.41 | CG146: 0 | CH146: 27.04 | CI146: 0 | CJ146: 0 | CK146: 0 | CL146: 0 | CM146: 0 | CN146: 0 | CO146: 0 | CP146: 0 | CQ146: 0 | CR146: 0
A147: PL3082 | B147: 5.02 | C147: 15.11 | D147: 13.09 | E147: 25.24 | F147: 6.29 | G147: 9.59 | H147: 3.26 | I147: 5.02 | J147: 15.11 | K147: 13.09 | L147: 22.93 | M147: 12.91 | N147: 8.12 | O147: 8.71 | P147: 3.26 | Q147: 5.02 | R147: 13.62 | S147: 22.93 | T147: 12.91 | U147: 8.12 | V147: 8.71 | W147: 3.26 | X147: 5.02 | Y147: 16.62 | Z147: 14.39 | AA147: 28.82 | AB147: 43.6 | AC147: 36.68 | AD147: 3.26 | AE147: 5.02 | AF147: 16.62 | AG147: 14.39 | AH147: 27.81 | AI147: 21.59 | AJ147: 45.79 | AK147: 43.49 | AL147: 3.26 | AM147: 5.02 | AN147: 14.97 | AO147: 27.81 | AP147: 21.59 | AQ147: 45.79 | AR147: 43.49 | AS147: 3.26 | AT147: 5.02 | AU147: 91.01 | AV147: 95.34 | AW147: 14.39 | AX147: 40.8 | AY147: 2.41 | AZ147: 37.5 | BA147: 2.56 | BB147: 36.62 | BC147: 2.41 | BD147: 13.53 | BE147: 2.06 | BF147: 2.06 | BG147: 26.99 | BH147: 2.06 | BI147: 2.06 | BJ147: 8.1 | BK147: 35.98 | BL147: 2.11 | BM147: 2.11 | BN147: 36.84 | BO147: 2.35 | BP147: 0 | BQ147: 27.38 | BR147: 2.35 | BS147: 0 | BT147: 8.21 | BU147: 36.5 | BV147: 2.41 | BW147: 0 | BX147: 37.38 | BY147: 2.35 | BZ147: 0 | CA147: 19.81 | CB147: 2.35 | CC147: 0 | CD147: 5.94 | CE147: 26.41 | CF147: 2.41 | CG147: 0 | CH147: 27.04 | CI147: 0 | CJ147: 0 | CK147: 0 | CL147: 0 | CM147: 0 | CN147: 0 | CO147: 0 | CP147: 0 | CQ147: 0 | CR147: 0
A148: PR0019 | B148: 10.94 | C148: 25.12 | D148: 25.12 | E148: 19.08 | F148: 9.17 | G148: 12.78 | H148: 3.18 | I148: 10.94 | J148: 25.12 | K148: 25.12 | L148: 12.34 | M148: 12.34 | N148: 12.02 | O148: 12.02 | P148: 3.18 | Q148: 10.94 | R148: 25.12 | S148: 12.34 | T148: 12.34 | U148: 12.02 | V148: 12.02 | W148: 3.18 | X148: 10.94 | Y148: 27.81 | Z148: 27.81 | AA148: 21.15 | AB148: 48.58 | AC148: 26.43 | AD148: 3.18 | AE148: 10.94 | AF148: 27.81 | AG148: 27.81 | AH148: 14.28 | AI148: 4.77 | AJ148: 41.71 | AK148: 31.78 | AL148: 3.18 | AM148: 10.94 | AN148: 27.81 | AO148: 14.28 | AP148: 4.77 | AQ148: 41.71 | AR148: 31.78 | AS148: 3.18 | AT148: 10.94 | AU148: 101.76 | AV148: 106.07 | AW148: 27.81 | AX148: 44.41 | AY148: 3.54 | AZ148: 50.2 | BA148: 3.54 | BB148: 50.2 | BC148: 3.54 | BD148: 13.84 | BE148: 2.89 | BF148: 2.89 | BG148: 24.57 | BH148: 2.89 | BI148: 2.89 | BJ148: 7.37 | BK148: 65.52 | BL148: 2.89 | BM148: 2.89 | BN148: 65.52 | BO148: 3.54 | BP148: 1.92 | BQ148: 24.96 | BR148: 3.54 | BS148: 1.92 | BT148: 7.49 | BU148: 66.56 | BV148: 3.54 | BW148: 1.92 | BX148: 66.56 | BY148: 3.54 | BZ148: 0 | CA148: 17.9 | CB148: 3.54 | CC148: 0 | CD148: 5.37 | CE148: 47.74 | CF148: 3.54 | CG148: 0 | CH148: 47.74 | CI148: 0 | CJ148: 0 | CK148: 0 | CL148: 0 | CM148: 0 | CN148: 0 | CO148: 0 | CP148: 0 | CQ148: 0 | CR148: 0
A149: PL0172 | B149: 8.65 | C149: 24.48 | D149: 24.48 | E149: 18.19 | F149: 9.39 | G149: 13.11 | H149: 3.18 | I149: 8.65 | J149: 24.48 | K149: 24.48 | L149: 19.65 | M149: 9.78 | N149: 10.91 | O149: 12.01 | P149: 3.18 | Q149: 8.65 | R149: 24.48 | S149: 19.65 | T149: 9.78 | U149: 10.91 | V149: 12.01 | W149: 3.18 | X149: 8.65 | Y149: 27.2 | Z149: 27.2 | AA149: 19.8 | AB149: 48.63 | AC149: 26.43 | AD149: 3.18 | AE149: 8.65 | AF149: 27.2 | AG149: 27.2 | AH149: 13.37 | AI149: 4.46 | AJ149: 41.74 | AK149: 31.79 | AL149: 3.18 | AM149: 8.65 | AN149: 27.2 | AO149: 13.37 | AP149: 4.46 | AQ149: 41.74 | AR149: 31.79 | AS149: 3.18 | AT149: 8.65 | AU149: 99.79 | AV149: 104.02 | AW149: 27.2 | AX149: 44.41 | AY149: 3.17 | AZ149: 49.18 | BA149: 3.17 | BB149: 49.18 | BC149: 3.17 | BD149: 16.21 | BE149: 2.62 | BF149: 2.34 | BG149: 19.62 | BH149: 2.62 | BI149: 2.34 | BJ149: 5.88 | BK149: 52.31 | BL149: 2.62 | BM149: 2.34 | BN149: 52.31 | BO149: 3.17 | BP149: 1.74 | BQ149: 19.93 | BR149: 3.17 | BS149: 1.74 | BT149: 5.98 | BU149: 53.14 | BV149: 3.17 | BW149: 1.74 | BX149: 53.14 | BY149: 3.17 | BZ149: 0 | CA149: 14.88 | CB149: 3.17 | CC149: 0 | CD149: 4.46 | CE149: 39.67 | CF149: 3.17 | CG149: 0 | CH149: 39.67 | CI149: 0 | CJ149: 0 | CK149: 0 | CL149: 0 | CM149: 0 | CN149: 0 | CO149: 0 | CP149: 0 | CQ149: 0 | CR149: 0
A150: PL0235 | B150: 8.86 | C150: 20.52 | D150: 17.6 | E150: 31.25 | F150: 9.62 | G150: 13.42 | H150: 3.26 | I150: 8.86 | J150: 20.52 | K150: 17.6 | L150: 33.76 | M150: 16.8 | N150: 11.17 | O150: 12.3 | P150: 3.26 | Q150: 8.86 | R150: 18.39 | S150: 33.76 | T150: 16.8 | U150: 11.17 | V150: 12.3 | W150: 3.26 | X150: 8.86 | Y150: 22.8 | Z150: 19.56 | AA150: 34.02 | AB150: 49.8 | AC150: 27.06 | AD150: 3.26 | AE150: 8.86 | AF150: 22.8 | AG150: 19.56 | AH150: 22.97 | AI150: 7.67 | AJ150: 42.74 | AK150: 32.55 | AL150: 3.26 | AM150: 8.86 | AN150: 20.43 | AO150: 22.97 | AP150: 7.67 | AQ150: 42.74 | AR150: 32.55 | AS150: 3.26 | AT150: 8.86 | AU150: 111.7 | AV150: 116.88 | AW150: 19.56 | AX150: 45.48 | AY150: 3.25 | AZ150: 47.35 | BA150: 3.17 | BB150: 46.24 | BC150: 3.25 | BD150: 15.92 | BE150: 2.62 | BF150: 2.34 | BG150: 25.09 | BH150: 2.62 | BI150: 2.34 | BJ150: 7.53 | BK150: 50.18 | BL150: 2.68 | BM150: 2.4 | BN150: 51.38 | BO150: 3.17 | BP150: 1.74 | BQ150: 25.49 | BR150: 3.17 | BS150: 1.74 | BT150: 7.65 | BU150: 50.98 | BV150: 3.25 | BW150: 1.78 | BX150: 52.2 | BY150: 3.17 | BZ150: 0 | CA150: 18.73 | CB150: 3.17 | CC150: 0 | CD150: 5.62 | CE150: 37.46 | CF150: 3.25 | CG150: 0 | CH150: 38.36 | CI150: 0 | CJ150: 0 | CK150: 0 | CL150: 0 | CM150: 0 | CN150: 0 | CO150: 0 | CP150: 0 | CQ150: 0 | CR150: 0
A151: PL1233 | B151: 8.86 | C151: 20.52 | D151: 17.6 | E151: 31.25 | F151: 9.62 | G151: 13.42 | H151: 3.26 | I151: 8.86 | J151: 20.52 | K151: 17.6 | L151: 33.76 | M151: 16.8 | N151: 11.17 | O151: 12.3 | P151: 3.26 | Q151: 8.86 | R151: 18.39 | S151: 33.76 | T151: 16.8 | U151: 11.17 | V151: 12.3 | W151: 3.26 | X151: 8.86 | Y151: 22.8 | Z151: 19.56 | AA151: 34.02 | AB151: 49.8 | AC151: 27.06 | AD151: 3.26 | AE151: 8.86 | AF151: 22.8 | AG151: 19.56 | AH151: 22.97 | AI151: 7.67 | AJ151: 42.74 | AK151: 32.55 | AL151: 3.26 | AM151: 8.86 | AN151: 20.43 | AO151: 22.97 | AP151: 7.67 | AQ151: 42.74 | AR151: 32.55 | AS151: 3.26 | AT151: 8.86 | AU151: 111.7 | AV151: 116.88 | AW151: 19.56 | AX151: 45.48 | AY151: 3.25 | AZ151: 47.35 | BA151: 3.17 | BB151: 46.24 | BC151: 3.25 | BD151: 15.92 | BE151: 2.62 | BF151: 2.34 | BG151: 25.09 | BH151: 2.62 | BI151: 2.34 | BJ151: 7.53 | BK151: 50.18 | BL151: 2.68 | BM151: 2.4 | BN151: 51.38 | BO151: 3.17 | BP151: 1.74 | BQ151: 25.49 | BR151: 3.17 | BS151: 1.74 | BT151: 7.65 | BU151: 50.98 | BV151: 3.25 | BW151: 1.78 | BX151: 52.2 | BY151: 3.17 | BZ151: 0 | CA151: 18.73 | CB151: 3.17 | CC151: 0 | CD151: 5.62 | CE151: 37.46 | CF151: 3.25 | CG151: 0 | CH151: 38.36 | CI151: 0 | CJ151: 0 | CK151: 0 | CL151: 0 | CM151: 0 | CN151: 0 | CO151: 0 | CP151: 0 | CQ151: 0 | CR151: 0
A152: PL2233 | B152: 8.86 | C152: 20.52 | D152: 17.6 | E152: 31.25 | F152: 9.62 | G152: 13.42 | H152: 3.26 | I152: 8.86 | J152: 20.52 | K152: 17.6 | L152: 33.76 | M152: 16.8 | N152: 11.17 | O152: 12.3 | P152: 3.26 | Q152: 8.86 | R152: 18.39 | S152: 33.76 | T152: 16.8 | U152: 11.17 | V152: 12.3 | W152: 3.26 | X152: 8.86 | Y152: 22.8 | Z152: 19.56 | AA152: 34.02 | AB152: 49.8 | AC152: 27.06 | AD152: 3.26 | AE152: 8.86 | AF152: 22.8 | AG152: 19.56 | AH152: 22.97 | AI152: 7.67 | AJ152: 42.74 | AK152: 32.55 | AL152: 3.26 | AM152: 8.86 | AN152: 20.43 | AO152: 22.97 | AP152: 7.67 | AQ152: 42.74 | AR152: 32.55 | AS152: 3.26 | AT152: 8.86 | AU152: 111.7 | AV152: 116.88 | AW152: 19.56 | AX152: 45.48 | AY152: 3.25 | AZ152: 47.35 | BA152: 3.17 | BB152: 46.24 | BC152: 3.25 | BD152: 15.92 | BE152: 2.62 | BF152: 2.34 | BG152: 25.09 | BH152: 2.62 | BI152: 2.34 | BJ152: 7.53 | BK152: 50.18 | BL152: 2.68 | BM152: 2.4 | BN152: 51.38 | BO152: 3.17 | BP152: 1.74 | BQ152: 25.49 | BR152: 3.17 | BS152: 1.74 | BT152: 7.65 | BU152: 50.98 | BV152: 3.25 | BW152: 1.78 | BX152: 52.2 | BY152: 3.17 | BZ152: 0 | CA152: 18.73 | CB152: 3.17 | CC152: 0 | CD152: 5.62 | CE152: 37.46 | CF152: 3.25 | CG152: 0 | CH152: 38.36 | CI152: 0 | CJ152: 0 | CK152: 0 | CL152: 0 | CM152: 0 | CN152: 0 | CO152: 0 | CP152: 0 | CQ152: 0 | CR152: 0
A153: PL3233 | B153: 8.86 | C153: 20.52 | D153: 17.6 | E153: 31.25 | F153: 9.62 | G153: 13.42 | H153: 3.26 | I153: 8.86 | J153: 20.52 | K153: 17.6 | L153: 33.76 | M153: 16.8 | N153: 11.17 | O153: 12.3 | P153: 3.26 | Q153: 8.86 | R153: 18.39 | S153: 33.76 | T153: 16.8 | U153: 11.17 | V153: 12.3 | W153: 3.26 | X153: 8.86 | Y153: 22.8 | Z153: 19.56 | AA153: 34.02 | AB153: 49.8 | AC153: 27.06 | AD153: 3.26 | AE153: 8.86 | AF153: 22.8 | AG153: 19.56 | AH153: 22.97 | AI153: 7.67 | AJ153: 42.74 | AK153: 32.55 | AL153: 3.26 | AM153: 8.86 | AN153: 20.43 | AO153: 22.97 | AP153: 7.67 | AQ153: 42.74 | AR153: 32.55 | AS153: 3.26 | AT153: 8.86 | AU153: 111.7 | AV153: 116.88 | AW153: 19.56 | AX153: 45.48 | AY153: 3.25 | AZ153: 47.35 | BA153: 3.17 | BB153: 46.24 | BC153: 3.25 | BD153: 15.92 | BE153: 2.62 | BF153: 2.34 | BG153: 25.09 | BH153: 2.62 | BI153: 2.34 | BJ153: 7.53 | BK153: 50.18 | BL153: 2.68 | BM153: 2.4 | BN153: 51.38 | BO153: 3.17 | BP153: 1.74 | BQ153: 25.49 | BR153: 3.17 | BS153: 1.74 | BT153: 7.65 | BU153: 50.98 | BV153: 3.25 | BW153: 1.78 | BX153: 52.2 | BY153: 3.17 | BZ153: 0 | CA153: 18.73 | CB153: 3.17 | CC153: 0 | CD153: 5.62 | CE153: 37.46 | CF153: 3.25 | CG153: 0 | CH153: 38.36 | CI153: 0 | CJ153: 0 | CK153: 0 | CL153: 0 | CM153: 0 | CN153: 0 | CO153: 0 | CP153: 0 | CQ153: 0 | CR153: 0
A154: PL0023 | B154: 7.94 | C154: 20.73 | D154: 17.79 | E154: 33.98 | F154: 10.24 | G154: 10.93 | H154: 3.26 | I154: 7.94 | J154: 20.73 | K154: 17.79 | L154: 31.7 | M154: 26.2 | N154: 10.86 | O154: 10.87 | P154: 3.26 | Q154: 7.94 | R154: 18.58 | S154: 31.7 | T154: 26.2 | U154: 10.86 | V154: 10.87 | W154: 3.26 | X154: 7.94 | Y154: 22.99 | Z154: 19.72 | AA154: 36.34 | AB154: 51.7 | AC154: 35.24 | AD154: 3.26 | AE154: 7.94 | AF154: 22.99 | AG154: 19.72 | AH154: 31.27 | AI154: 16.51 | AJ154: 51.73 | AK154: 43.42 | AL154: 3.26 | AM154: 7.94 | AN154: 20.6 | AO154: 31.27 | AP154: 16.51 | AQ154: 51.73 | AR154: 43.42 | AS154: 3.26 | AT154: 7.94 | AU154: 113.13 | AV154: 118.38 | AW154: 19.72 | AX154: 45.48 | AY154: 3.21 | AZ154: 47.89 | BA154: 5.27 | BB154: 46.77 | BC154: 3.21 | BD154: 17.1 | BE154: 2.07 | BF154: 2.07 | BG154: 34.97 | BH154: 2.07 | BI154: 2.07 | BJ154: 10.49 | BK154: 46.63 | BL154: 2.12 | BM154: 2.12 | BN154: 47.75 | BO154: 3.13 | BP154: 0 | BQ154: 35.48 | BR154: 3.13 | BS154: 0 | BT154: 10.64 | BU154: 47.3 | BV154: 3.21 | BW154: 0 | BX154: 48.44 | BY154: 3.13 | BZ154: 0 | CA154: 26.49 | CB154: 3.13 | CC154: 0 | CD154: 7.95 | CE154: 35.32 | CF154: 3.21 | CG154: 0 | CH154: 36.17 | CI154: 0 | CJ154: 0 | CK154: 0 | CL154: 0 | CM154: 0 | CN154: 0 | CO154: 0 | CP154: 0 | CQ154: 0 | CR154: 0
A155: PL0234 | B155: 7.75 | C155: 24.73 | D155: 24.73 | E155: 19.77 | F155: 10 | G155: 10.67 | H155: 3.18 | I155: 7.75 | J155: 24.73 | K155: 24.73 | L155: 18.46 | M155: 15.25 | N155: 10.61 | O155: 10.62 | P155: 3.18 | Q155: 7.75 | R155: 24.73 | S155: 18.46 | T155: 15.25 | U155: 10.61 | V155: 10.62 | W155: 3.18 | X155: 7.75 | Y155: 27.43 | Z155: 27.43 | AA155: 21.15 | AB155: 50.49 | AC155: 34.41 | AD155: 3.18 | AE155: 7.75 | AF155: 27.43 | AG155: 27.43 | AH155: 18.2 | AI155: 9.61 | AJ155: 50.52 | AK155: 42.4 | AL155: 3.18 | AM155: 7.75 | AN155: 27.43 | AO155: 18.2 | AP155: 9.61 | AQ155: 50.52 | AR155: 42.4 | AS155: 3.18 | AT155: 7.75 | AU155: 100.78 | AV155: 105.06 | AW155: 27.43 | AX155: 44.41 | AY155: 3.13 | AZ155: 49.64 | BA155: 5.27 | BB155: 49.64 | BC155: 3.13 | BD155: 17.68 | BE155: 2.07 | BF155: 2.07 | BG155: 24.69 | BH155: 2.07 | BI155: 2.07 | BJ155: 7.41 | BK155: 49.37 | BL155: 2.07 | BM155: 2.07 | BN155: 49.37 | BO155: 3.13 | BP155: 0 | BQ155: 25.04 | BR155: 3.13 | BS155: 0 | BT155: 7.51 | BU155: 50.08 | BV155: 3.13 | BW155: 0 | BX155: 50.08 | BY155: 3.13 | BZ155: 0 | CA155: 19.05 | CB155: 3.13 | CC155: 0 | CD155: 5.71 | CE155: 38.09 | CF155: 3.13 | CG155: 0 | CH155: 38.09 | CI155: 0 | CJ155: 0 | CK155: 0 | CL155: 0 | CM155: 0 | CN155: 0 | CO155: 0 | CP155: 0 | CQ155: 0 | CR155: 0
A156: PL0017 | B156: 5.08 | C156: 24.53 | D156: 24.53 | E156: 17.75 | F156: 9.12 | G156: 10.97 | H156: 3.18 | I156: 5.08 | J156: 24.53 | K156: 24.53 | L156: 16.12 | M156: 9.08 | N156: 10.72 | O156: 10.82 | P156: 3.18 | Q156: 5.08 | R156: 24.53 | S156: 16.12 | T156: 9.08 | U156: 10.72 | V156: 10.82 | W156: 3.18 | X156: 5.08 | Y156: 26.97 | Z156: 26.97 | AA156: 20.26 | AB156: 50.07 | AC156: 39.41 | AD156: 3.18 | AE156: 5.08 | AF156: 26.97 | AG156: 26.97 | AH156: 19.55 | AI156: 15.17 | AJ156: 51.91 | AK156: 48.76 | AL156: 3.18 | AM156: 5.08 | AN156: 26.97 | AO156: 19.55 | AP156: 15.17 | AQ156: 51.91 | AR156: 48.76 | AS156: 3.18 | AT156: 5.08 | AU156: 99.22 | AV156: 103.43 | AW156: 26.97 | AX156: 44.41 | AY156: 2.44 | AZ156: 48.85 | BA156: 2.7 | BB156: 48.85 | BC156: 2.44 | BD156: 17.64 | BE156: 2.06 | BF156: 2.06 | BG156: 24.02 | BH156: 2.06 | BI156: 2.06 | BJ156: 7.21 | BK156: 48.04 | BL156: 2.06 | BM156: 2.06 | BN156: 48.04 | BO156: 2.44 | BP156: 0 | BQ156: 24.37 | BR156: 2.44 | BS156: 0 | BT156: 7.31 | BU156: 48.73 | BV156: 2.44 | BW156: 0 | BX156: 48.73 | BY156: 2.44 | BZ156: 0 | CA156: 18.63 | CB156: 2.44 | CC156: 0 | CD156: 5.59 | CE156: 37.26 | CF156: 2.44 | CG156: 0 | CH156: 37.26 | CI156: 0 | CJ156: 0 | CK156: 0 | CL156: 0 | CM156: 0 | CN156: 0 | CO156: 0 | CP156: 0 | CQ156: 0 | CR156: 0
A157: PL0018 | B157: 5.08 | C157: 24.53 | D157: 24.53 | E157: 17.75 | F157: 9.12 | G157: 10.97 | H157: 3.18 | I157: 5.08 | J157: 24.53 | K157: 24.53 | L157: 16.12 | M157: 9.08 | N157: 10.72 | O157: 10.82 | P157: 3.18 | Q157: 5.08 | R157: 24.53 | S157: 16.12 | T157: 9.08 | U157: 10.72 | V157: 10.82 | W157: 3.18 | X157: 5.08 | Y157: 26.97 | Z157: 26.97 | AA157: 20.26 | AB157: 50.07 | AC157: 39.41 | AD157: 3.18 | AE157: 5.08 | AF157: 26.97 | AG157: 26.97 | AH157: 19.55 | AI157: 15.17 | AJ157: 51.91 | AK157: 48.76 | AL157: 3.18 | AM157: 5.08 | AN157: 26.97 | AO157: 19.55 | AP157: 15.17 | AQ157: 51.91 | AR157: 48.76 | AS157: 3.18 | AT157: 5.08 | AU157: 99.22 | AV157: 103.43 | AW157: 26.97 | AX157: 44.41 | AY157: 2.44 | AZ157: 48.85 | BA157: 2.7 | BB157: 48.85 | BC157: 2.44 | BD157: 17.64 | BE157: 2.06 | BF157: 2.06 | BG157: 24.02 | BH157: 2.06 | BI157: 2.06 | BJ157: 7.21 | BK157: 48.04 | BL157: 2.06 | BM157: 2.06 | BN157: 48.04 | BO157: 2.44 | BP157: 0 | BQ157: 24.37 | BR157: 2.44 | BS157: 0 | BT157: 7.31 | BU157: 48.73 | BV157: 2.44 | BW157: 0 | BX157: 48.73 | BY157: 2.44 | BZ157: 0 | CA157: 18.63 | CB157: 2.44 | CC157: 0 | CD157: 5.59 | CE157: 37.26 | CF157: 2.44 | CG157: 0 | CH157: 37.26 | CI157: 0 | CJ157: 0 | CK157: 0 | CL157: 0 | CM157: 0 | CN157: 0 | CO157: 0 | CP157: 0 | CQ157: 0 | CR157: 0
A158: PL0019 | B158: 5.08 | C158: 24.53 | D158: 24.53 | E158: 17.75 | F158: 7.91 | G158: 9.51 | H158: 3.18 | I158: 5.08 | J158: 24.53 | K158: 24.53 | L158: 16.12 | M158: 9.08 | N158: 9.3 | O158: 9.38 | P158: 3.18 | Q158: 5.08 | R158: 24.53 | S158: 16.12 | T158: 9.08 | U158: 9.3 | V158: 9.38 | W158: 3.18 | X158: 5.08 | Y158: 26.97 | Z158: 26.97 | AA158: 20.26 | AB158: 43.42 | AC158: 34.18 | AD158: 3.18 | AE158: 5.08 | AF158: 26.97 | AG158: 26.97 | AH158: 19.55 | AI158: 15.17 | AJ158: 45.01 | AK158: 42.28 | AL158: 3.18 | AM158: 5.08 | AN158: 26.97 | AO158: 19.55 | AP158: 15.17 | AQ158: 45.01 | AR158: 42.28 | AS158: 3.18 | AT158: 5.08 | AU158: 92.39 | AV158: 96.2 | AW158: 26.97 | AX158: 38.51 | AY158: 2.44 | AZ158: 46.78 | BA158: 2.7 | BB158: 46.78 | BC158: 2.44 | BD158: 16.9 | BE158: 2.06 | BF158: 2.06 | BG158: 23.01 | BH158: 2.06 | BI158: 2.06 | BJ158: 6.9 | BK158: 46.01 | BL158: 2.06 | BM158: 2.06 | BN158: 46.01 | BO158: 2.44 | BP158: 0 | BQ158: 23.34 | BR158: 2.44 | BS158: 0 | BT158: 7 | BU158: 46.67 | BV158: 2.44 | BW158: 0 | BX158: 46.67 | BY158: 2.44 | BZ158: 0 | CA158: 18.29 | CB158: 2.44 | CC158: 0 | CD158: 5.49 | CE158: 36.58 | CF158: 2.44 | CG158: 0 | CH158: 36.58 | CI158: 0 | CJ158: 0 | CK158: 0 | CL158: 0 | CM158: 0 | CN158: 0 | CO158: 0 | CP158: 0 | CQ158: 0 | CR158: 0
A159: PL0020 | B159: 5.08 | C159: 24.53 | D159: 24.53 | E159: 17.75 | F159: 9.12 | G159: 10.97 | H159: 3.18 | I159: 5.08 | J159: 24.53 | K159: 24.53 | L159: 16.12 | M159: 9.08 | N159: 10.72 | O159: 10.82 | P159: 3.18 | Q159: 5.08 | R159: 24.53 | S159: 16.12 | T159: 9.08 | U159: 10.72 | V159: 10.82 | W159: 3.18 | X159: 5.08 | Y159: 26.97 | Z159: 26.97 | AA159: 20.26 | AB159: 50.07 | AC159: 39.41 | AD159: 3.18 | AE159: 5.08 | AF159: 26.97 | AG159: 26.97 | AH159: 19.55 | AI159: 15.17 | AJ159: 51.91 | AK159: 48.76 | AL159: 3.18 | AM159: 5.08 | AN159: 26.97 | AO159: 19.55 | AP159: 15.17 | AQ159: 51.91 | AR159: 48.76 | AS159: 3.18 | AT159: 5.08 | AU159: 99.22 | AV159: 103.43 | AW159: 26.97 | AX159: 44.41 | AY159: 2.44 | AZ159: 48.85 | BA159: 2.7 | BB159: 48.85 | BC159: 2.44 | BD159: 17.64 | BE159: 2.06 | BF159: 2.06 | BG159: 24.02 | BH159: 2.06 | BI159: 2.06 | BJ159: 7.21 | BK159: 48.04 | BL159: 2.06 | BM159: 2.06 | BN159: 48.04 | BO159: 2.44 | BP159: 0 | BQ159: 24.37 | BR159: 2.44 | BS159: 0 | BT159: 7.31 | BU159: 48.73 | BV159: 2.44 | BW159: 0 | BX159: 48.73 | BY159: 2.44 | BZ159: 0 | CA159: 18.63 | CB159: 2.44 | CC159: 0 | CD159: 5.59 | CE159: 37.26 | CF159: 2.44 | CG159: 0 | CH159: 37.26 | CI159: 0 | CJ159: 0 | CK159: 0 | CL159: 0 | CM159: 0 | CN159: 0 | CO159: 0 | CP159: 0 | CQ159: 0 | CR159: 0
A160: PL0021 | B160: 5.08 | C160: 24.53 | D160: 24.53 | E160: 17.75 | F160: 9.12 | G160: 10.97 | H160: 3.18 | I160: 5.08 | J160: 24.53 | K160: 24.53 | L160: 16.12 | M160: 9.08 | N160: 10.72 | O160: 10.82 | P160: 3.18 | Q160: 5.08 | R160: 24.53 | S160: 16.12 | T160: 9.08 | U160: 10.72 | V160: 10.82 | W160: 3.18 | X160: 5.08 | Y160: 26.97 | Z160: 26.97 | AA160: 20.26 | AB160: 50.07 | AC160: 39.41 | AD160: 3.18 | AE160: 5.08 | AF160: 26.97 | AG160: 26.97 | AH160: 19.55 | AI160: 15.17 | AJ160: 51.91 | AK160: 48.76 | AL160: 3.18 | AM160: 5.08 | AN160: 26.97 | AO160: 19.55 | AP160: 15.17 | AQ160: 51.91 | AR160: 48.76 | AS160: 3.18 | AT160: 5.08 | AU160: 99.22 | AV160: 103.43 | AW160: 26.97 | AX160: 44.41 | AY160: 2.44 | AZ160: 48.85 | BA160: 2.7 | BB160: 48.85 | BC160: 2.44 | BD160: 17.64 | BE160: 2.06 | BF160: 2.06 | BG160: 24.02 | BH160: 2.06 | BI160: 2.06 | BJ160: 7.21 | BK160: 48.04 | BL160: 2.06 | BM160: 2.06 | BN160: 48.04 | BO160: 2.44 | BP160: 0 | BQ160: 24.37 | BR160: 2.44 | BS160: 0 | BT160: 7.31 | BU160: 48.73 | BV160: 2.44 | BW160: 0 | BX160: 48.73 | BY160: 2.44 | BZ160: 0 | CA160: 18.63 | CB160: 2.44 | CC160: 0 | CD160: 5.59 | CE160: 37.26 | CF160: 2.44 | CG160: 0 | CH160: 37.26 | CI160: 0 | CJ160: 0 | CK160: 0 | CL160: 0 | CM160: 0 | CN160: 0 | CO160: 0 | CP160: 0 | CQ160: 0 | CR160: 0
A161: PL1236 | B161: 5.2 | C161: 20.56 | D161: 17.64 | E161: 30.49 | F161: 8.1 | G161: 9.74 | H161: 3.26 | I161: 5.2 | J161: 20.56 | K161: 17.64 | L161: 27.7 | M161: 15.61 | N161: 9.52 | O161: 9.61 | P161: 3.26 | Q161: 5.2 | R161: 18.42 | S161: 27.7 | T161: 15.61 | U161: 9.52 | V161: 9.61 | W161: 3.26 | X161: 5.2 | Y161: 22.61 | Z161: 19.39 | AA161: 34.81 | AB161: 44.46 | AC161: 35 | AD161: 3.26 | AE161: 5.2 | AF161: 22.61 | AG161: 19.39 | AH161: 33.6 | AI161: 26.07 | AJ161: 46.09 | AK161: 43.29 | AL161: 3.26 | AM161: 5.2 | AN161: 20.25 | AO161: 33.6 | AP161: 26.07 | AQ161: 46.09 | AR161: 43.29 | AS161: 3.26 | AT161: 5.2 | AU161: 104.04 | AV161: 108.79 | AW161: 19.39 | AX161: 39.43 | AY161: 2.5 | AZ161: 44.91 | BA161: 2.7 | BB161: 43.86 | BC161: 2.5 | BD161: 16.21 | BE161: 2.06 | BF161: 2.06 | BG161: 32.33 | BH161: 2.06 | BI161: 2.06 | BJ161: 9.7 | BK161: 43.11 | BL161: 2.11 | BM161: 2.11 | BN161: 44.14 | BO161: 2.44 | BP161: 0 | BQ161: 32.8 | BR161: 2.44 | BS161: 0 | BT161: 9.84 | BU161: 43.73 | BV161: 2.5 | BW161: 0 | BX161: 44.78 | BY161: 2.44 | BZ161: 0 | CA161: 25.28 | CB161: 2.44 | CC161: 0 | CD161: 7.58 | CE161: 33.71 | CF161: 2.5 | CG161: 0 | CH161: 34.52 | CI161: 0 | CJ161: 0 | CK161: 0 | CL161: 0 | CM161: 0 | CN161: 0 | CO161: 0 | CP161: 0 | CQ161: 0 | CR161: 0
A162: PL2236 | B162: 5.2 | C162: 20.56 | D162: 17.64 | E162: 30.49 | F162: 9.34 | G162: 11.23 | H162: 3.26 | I162: 5.2 | J162: 20.56 | K162: 17.64 | L162: 27.7 | M162: 15.61 | N162: 10.98 | O162: 11.08 | P162: 3.26 | Q162: 5.2 | R162: 18.42 | S162: 27.7 | T162: 15.61 | U162: 10.98 | V162: 11.08 | W162: 3.26 | X162: 5.2 | Y162: 22.61 | Z162: 19.39 | AA162: 34.81 | AB162: 51.27 | AC162: 40.36 | AD162: 3.26 | AE162: 5.2 | AF162: 22.61 | AG162: 19.39 | AH162: 33.6 | AI162: 26.07 | AJ162: 53.16 | AK162: 49.93 | AL162: 3.26 | AM162: 5.2 | AN162: 20.25 | AO162: 33.6 | AP162: 26.07 | AQ162: 53.16 | AR162: 49.93 | AS162: 3.26 | AT162: 5.2 | AU162: 111.03 | AV162: 116.18 | AW162: 19.39 | AX162: 45.48 | AY162: 2.5 | AZ162: 47.03 | BA162: 2.7 | BB162: 45.93 | BC162: 2.5 | BD162: 16.97 | BE162: 2.06 | BF162: 2.06 | BG162: 33.86 | BH162: 2.06 | BI162: 2.06 | BJ162: 10.16 | BK162: 45.14 | BL162: 2.11 | BM162: 2.11 | BN162: 46.22 | BO162: 2.44 | BP162: 0 | BQ162: 34.34 | BR162: 2.44 | BS162: 0 | BT162: 10.3 | BU162: 45.79 | BV162: 2.5 | BW162: 0 | BX162: 46.89 | BY162: 2.44 | BZ162: 0 | CA162: 25.79 | CB162: 2.44 | CC162: 0 | CD162: 7.74 | CE162: 34.39 | CF162: 2.5 | CG162: 0 | CH162: 35.22 | CI162: 0 | CJ162: 0 | CK162: 0 | CL162: 0 | CM162: 0 | CN162: 0 | CO162: 0 | CP162: 0 | CQ162: 0 | CR162: 0
A163: PR0025 | B163: 10.99 | C163: 15.95 | D163: 14.03 | E163: 27.13 | F163: 14.73 | G163: 18.91 | H163: 3.26 | I163: 10.99 | J163: 15.95 | K163: 14.03 | L163: 17.54 | M163: 17.54 | N163: 18.26 | O163: 18.26 | P163: 3.26 | Q163: 10.99 | R163: 14.57 | S163: 17.54 | T163: 17.54 | U163: 18.26 | V163: 18.26 | W163: 3.26 | X163: 10.99 | Y163: 17.65 | Z163: 15.52 | AA163: 30.06 | AB163: 61.15 | AC163: 30.9 | AD163: 3.26 | AE163: 10.99 | AF163: 17.65 | AG163: 15.52 | AH163: 20.3 | AI163: 6.78 | AJ163: 51.35 | AK163: 38.07 | AL163: 3.26 | AM163: 10.99 | AN163: 16.13 | AO163: 20.3 | AP163: 6.78 | AQ163: 51.35 | AR163: 38.07 | AS163: 3.26 | AT163: 10.99 | AU163: 114.4 | AV163: 120.04 | AW163: 15.52 | AX163: 51.82 | AY163: 3.55 | AZ163: 45.42 | BA163: 3.47 | BB163: 44.36 | BC163: 3.55 | BD163: 13.91 | BE163: 2.79 | BF163: 2.79 | BG163: 32.11 | BH163: 2.79 | BI163: 2.79 | BJ163: 9.63 | BK163: 64.21 | BL163: 2.86 | BM163: 2.86 | BN163: 65.75 | BO163: 3.47 | BP163: 1.89 | BQ163: 32.63 | BR163: 3.47 | BS163: 1.89 | BT163: 9.79 | BU163: 65.26 | BV163: 3.55 | BW163: 1.94 | BX163: 66.83 | BY163: 3.47 | BZ163: 0 | CA163: 21.86 | CB163: 3.47 | CC163: 0 | CD163: 6.56 | CE163: 43.72 | CF163: 3.55 | CG163: 0 | CH163: 44.77 | CI163: 0 | CJ163: 0 | CK163: 0 | CL163: 0 | CM163: 0 | CN163: 0 | CO163: 0 | CP163: 0 | CQ163: 0 | CR163: 0
A164: PR0026 | B164: 10.99 | C164: 15.98 | D164: 14.1 | E164: 27.13 | F164: 14.73 | G164: 18.91 | H164: 3.26 | I164: 10.99 | J164: 15.98 | K164: 14.1 | L164: 17.54 | M164: 17.54 | N164: 18.26 | O164: 18.26 | P164: 3.26 | Q164: 10.99 | R164: 14.63 | S164: 17.54 | T164: 17.54 | U164: 18.26 | V164: 18.26 | W164: 3.26 | X164: 10.99 | Y164: 17.69 | Z164: 15.6 | AA164: 30.06 | AB164: 61.15 | AC164: 30.9 | AD164: 3.26 | AE164: 10.99 | AF164: 17.69 | AG164: 15.6 | AH164: 20.3 | AI164: 6.78 | AJ164: 51.35 | AK164: 38.07 | AL164: 3.26 | AM164: 10.99 | AN164: 16.19 | AO164: 20.3 | AP164: 6.78 | AQ164: 51.35 | AR164: 38.07 | AS164: 3.26 | AT164: 10.99 | AU164: 114.44 | AV164: 120.07 | AW164: 15.6 | AX164: 51.82 | AY164: 3.55 | AZ164: 45.49 | BA164: 3.47 | BB164: 44.42 | BC164: 3.55 | BD164: 13.92 | BE164: 2.79 | BF164: 2.79 | BG164: 32.14 | BH164: 2.79 | BI164: 2.79 | BJ164: 9.64 | BK164: 64.27 | BL164: 2.86 | BM164: 2.86 | BN164: 65.81 | BO164: 3.47 | BP164: 1.89 | BQ164: 32.66 | BR164: 3.47 | BS164: 1.89 | BT164: 9.8 | BU164: 65.32 | BV164: 3.55 | BW164: 1.94 | BX164: 66.89 | BY164: 3.47 | BZ164: 0 | CA164: 21.89 | CB164: 3.47 | CC164: 0 | CD164: 6.57 | CE164: 43.78 | CF164: 3.55 | CG164: 0 | CH164: 44.83 | CI164: 0 | CJ164: 0 | CK164: 0 | CL164: 0 | CM164: 0 | CN164: 0 | CO164: 0 | CP164: 0 | CQ164: 0 | CR164: 0
A165: PR0027 | B165: 10.99 | C165: 15.74 | D165: 13.84 | E165: 27.13 | F165: 14.73 | G165: 18.91 | H165: 3.26 | I165: 10.99 | J165: 15.74 | K165: 13.84 | L165: 17.54 | M165: 17.54 | N165: 18.26 | O165: 18.26 | P165: 3.26 | Q165: 10.99 | R165: 14.39 | S165: 17.54 | T165: 17.54 | U165: 18.26 | V165: 18.26 | W165: 3.26 | X165: 10.99 | Y165: 17.42 | Z165: 15.33 | AA165: 30.06 | AB165: 61.15 | AC165: 30.9 | AD165: 3.26 | AE165: 10.99 | AF165: 17.42 | AG165: 15.33 | AH165: 20.3 | AI165: 6.78 | AJ165: 51.35 | AK165: 38.07 | AL165: 3.26 | AM165: 10.99 | AN165: 15.91 | AO165: 20.3 | AP165: 6.78 | AQ165: 51.35 | AR165: 38.07 | AS165: 3.26 | AT165: 10.99 | AU165: 114.17 | AV165: 119.8 | AW165: 15.33 | AX165: 51.82 | AY165: 3.55 | AZ165: 45.21 | BA165: 3.47 | BB165: 44.15 | BC165: 3.55 | BD165: 13.85 | BE165: 2.79 | BF165: 2.79 | BG165: 32.01 | BH165: 2.79 | BI165: 2.79 | BJ165: 9.6 | BK165: 64.01 | BL165: 2.86 | BM165: 2.86 | BN165: 65.55 | BO165: 3.47 | BP165: 1.89 | BQ165: 32.53 | BR165: 3.47 | BS165: 1.89 | BT165: 9.76 | BU165: 65.06 | BV165: 3.55 | BW165: 1.94 | BX165: 66.62 | BY165: 3.47 | BZ165: 0 | CA165: 21.76 | CB165: 3.47 | CC165: 0 | CD165: 6.53 | CE165: 43.52 | CF165: 3.55 | CG165: 0 | CH165: 44.56 | CI165: 0 | CJ165: 0 | CK165: 0 | CL165: 0 | CM165: 0 | CN165: 0 | CO165: 0 | CP165: 0 | CQ165: 0 | CR165: 0
A166: PR0029 | B166: 10.99 | C166: 15.85 | D166: 13.97 | E166: 27.13 | F166: 14.73 | G166: 18.91 | H166: 3.26 | I166: 10.99 | J166: 15.85 | K166: 13.97 | L166: 17.54 | M166: 17.54 | N166: 18.26 | O166: 18.26 | P166: 3.26 | Q166: 10.99 | R166: 14.5 | S166: 17.54 | T166: 17.54 | U166: 18.26 | V166: 18.26 | W166: 3.26 | X166: 10.99 | Y166: 17.55 | Z166: 15.45 | AA166: 30.06 | AB166: 61.15 | AC166: 30.9 | AD166: 3.26 | AE166: 10.99 | AF166: 17.55 | AG166: 15.45 | AH166: 20.3 | AI166: 6.78 | AJ166: 51.35 | AK166: 38.07 | AL166: 3.26 | AM166: 10.99 | AN166: 16.05 | AO166: 20.3 | AP166: 6.78 | AQ166: 51.35 | AR166: 38.07 | AS166: 3.26 | AT166: 10.99 | AU166: 114.3 | AV166: 119.93 | AW166: 15.45 | AX166: 51.82 | AY166: 3.55 | AZ166: 45.34 | BA166: 3.47 | BB166: 44.28 | BC166: 3.55 | BD166: 13.89 | BE166: 2.79 | BF166: 2.79 | BG166: 32.07 | BH166: 2.79 | BI166: 2.79 | BJ166: 9.62 | BK166: 64.13 | BL166: 2.86 | BM166: 2.86 | BN166: 65.67 | BO166: 3.47 | BP166: 1.89 | BQ166: 32.59 | BR166: 3.47 | BS166: 1.89 | BT166: 9.78 | BU166: 65.18 | BV166: 3.55 | BW166: 1.94 | BX166: 66.74 | BY166: 3.47 | BZ166: 0 | CA166: 21.82 | CB166: 3.47 | CC166: 0 | CD166: 6.55 | CE166: 43.64 | CF166: 3.55 | CG166: 0 | CH166: 44.69 | CI166: 0 | CJ166: 0 | CK166: 0 | CL166: 0 | CM166: 0 | CN166: 0 | CO166: 0 | CP166: 0 | CQ166: 0 | CR166: 0
A167: PL0030 | B167: 10.72 | C167: 15.8 | D167: 13.94 | E167: 25.76 | F167: 14.73 | G167: 18.91 | H167: 3.26 | I167: 9.56 | J167: 15.8 | K167: 13.94 | L167: 16.66 | M167: 16.66 | N167: 18.26 | O167: 18.26 | P167: 3.26 | Q167: 9.56 | R167: 14.46 | S167: 16.66 | T167: 16.66 | U167: 18.26 | V167: 18.26 | W167: 3.26 | X167: 10.72 | Y167: 17.84 | Z167: 15.73 | AA167: 29.15 | AB167: 61.49 | AC167: 30.9 | AD167: 3.26 | AE167: 9.56 | AF167: 17.84 | AG167: 15.73 | AH167: 19.68 | AI167: 6.57 | AJ167: 51.56 | AK167: 38.13 | AL167: 3.26 | AM167: 9.56 | AN167: 16.33 | AO167: 19.68 | AP167: 6.57 | AQ167: 51.56 | AR167: 38.13 | AS167: 3.26 | AT167: 9.56 | AU167: 113.98 | AV167: 119.58 | AW167: 15.73 | AX167: 51.82 | AY167: 3.33 | AZ167: 45.43 | BA167: 3.25 | BB167: 44.37 | BC167: 3.33 | BD167: 14.76 | BE167: 2.62 | BF167: 2.34 | BG167: 27.09 | BH167: 2.62 | BI167: 2.34 | BJ167: 8.13 | BK167: 54.18 | BL167: 2.68 | BM167: 2.4 | BN167: 55.48 | BO167: 3.25 | BP167: 1.75 | BQ167: 27.51 | BR167: 3.25 | BS167: 1.75 | BT167: 8.25 | BU167: 55.01 | BV167: 3.33 | BW167: 1.79 | BX167: 56.33 | BY167: 3.25 | BZ167: 0 | CA167: 18.72 | CB167: 3.25 | CC167: 0 | CD167: 5.62 | CE167: 37.44 | CF167: 3.33 | CG167: 0 | CH167: 38.34 | CI167: 0 | CJ167: 0 | CK167: 0 | CL167: 0 | CM167: 0 | CN167: 0 | CO167: 0 | CP167: 0 | CQ167: 0 | CR167: 0
A168: PL0031 | B168: 10.72 | C168: 15.8 | D168: 13.94 | E168: 25.76 | F168: 14.73 | G168: 18.91 | H168: 3.26 | I168: 9.56 | J168: 15.8 | K168: 13.94 | L168: 16.66 | M168: 16.66 | N168: 18.26 | O168: 18.26 | P168: 3.26 | Q168: 9.56 | R168: 14.46 | S168: 16.66 | T168: 16.66 | U168: 18.26 | V168: 18.26 | W168: 3.26 | X168: 10.72 | Y168: 17.84 | Z168: 15.73 | AA168: 29.15 | AB168: 61.49 | AC168: 30.9 | AD168: 3.26 | AE168: 9.56 | AF168: 17.84 | AG168: 15.73 | AH168: 19.68 | AI168: 6.57 | AJ168: 51.56 | AK168: 38.13 | AL168: 3.26 | AM168: 9.56 | AN168: 16.33 | AO168: 19.68 | AP168: 6.57 | AQ168: 51.56 | AR168: 38.13 | AS168: 3.26 | AT168: 9.56 | AU168: 113.98 | AV168: 119.58 | AW168: 15.73 | AX168: 51.82 | AY168: 3.33 | AZ168: 45.43 | BA168: 3.25 | BB168: 44.37 | BC168: 3.33 | BD168: 14.76 | BE168: 2.62 | BF168: 2.34 | BG168: 27.09 | BH168: 2.62 | BI168: 2.34 | BJ168: 8.13 | BK168: 54.18 | BL168: 2.68 | BM168: 2.4 | BN168: 55.48 | BO168: 3.25 | BP168: 1.75 | BQ168: 27.51 | BR168: 3.25 | BS168: 1.75 | BT168: 8.25 | BU168: 55.01 | BV168: 3.33 | BW168: 1.79 | BX168: 56.33 | BY168: 3.25 | BZ168: 0 | CA168: 18.72 | CB168: 3.25 | CC168: 0 | CD168: 5.62 | CE168: 37.44 | CF168: 3.33 | CG168: 0 | CH168: 38.34 | CI168: 0 | CJ168: 0 | CK168: 0 | CL168: 0 | CM168: 0 | CN168: 0 | CO168: 0 | CP168: 0 | CQ168: 0 | CR168: 0
A169: PL0220 | B169: 10.72 | C169: 15.7 | D169: 13.79 | E169: 25.76 | F169: 14.73 | G169: 18.91 | H169: 3.26 | I169: 9.56 | J169: 15.7 | K169: 13.79 | L169: 16.66 | M169: 16.66 | N169: 18.26 | O169: 18.26 | P169: 3.26 | Q169: 9.56 | R169: 14.34 | S169: 16.66 | T169: 16.66 | U169: 18.26 | V169: 18.26 | W169: 3.26 | X169: 10.72 | Y169: 17.73 | Z169: 15.58 | AA169: 29.15 | AB169: 61.49 | AC169: 30.9 | AD169: 3.26 | AE169: 9.56 | AF169: 17.73 | AG169: 15.58 | AH169: 19.68 | AI169: 6.57 | AJ169: 51.56 | AK169: 38.13 | AL169: 3.26 | AM169: 9.56 | AN169: 16.18 | AO169: 19.68 | AP169: 6.57 | AQ169: 51.56 | AR169: 38.13 | AS169: 3.26 | AT169: 9.56 | AU169: 113.86 | AV169: 119.46 | AW169: 15.58 | AX169: 51.82 | AY169: 3.33 | AZ169: 45.29 | BA169: 3.25 | BB169: 44.23 | BC169: 3.33 | BD169: 14.71 | BE169: 2.62 | BF169: 2.34 | BG169: 27.02 | BH169: 2.62 | BI169: 2.34 | BJ169: 8.11 | BK169: 54.04 | BL169: 2.68 | BM169: 2.4 | BN169: 55.34 | BO169: 3.25 | BP169: 1.75 | BQ169: 27.43 | BR169: 3.25 | BS169: 1.75 | BT169: 8.23 | BU169: 54.86 | BV169: 3.33 | BW169: 1.79 | BX169: 56.18 | BY169: 3.25 | BZ169: 0 | CA169: 18.65 | CB169: 3.25 | CC169: 0 | CD169: 5.6 | CE169: 37.3 | CF169: 3.33 | CG169: 0 | CH169: 38.2 | CI169: 0 | CJ169: 0 | CK169: 0 | CL169: 0 | CM169: 0 | CN169: 0 | CO169: 0 | CP169: 0 | CQ169: 0 | CR169: 0
A170: PL0237 | B170: 10.72 | C170: 15.55 | D170: 13.69 | E170: 25.76 | F170: 14.73 | G170: 18.91 | H170: 3.26 | I170: 9.56 | J170: 15.55 | K170: 13.69 | L170: 16.66 | M170: 16.66 | N170: 18.26 | O170: 18.26 | P170: 3.26 | Q170: 9.56 | R170: 14.21 | S170: 16.66 | T170: 16.66 | U170: 18.26 | V170: 18.26 | W170: 3.26 | X170: 10.72 | Y170: 17.56 | Z170: 15.45 | AA170: 29.15 | AB170: 61.49 | AC170: 30.9 | AD170: 3.26 | AE170: 9.56 | AF170: 17.56 | AG170: 15.45 | AH170: 19.68 | AI170: 6.57 | AJ170: 51.56 | AK170: 38.13 | AL170: 3.26 | AM170: 9.56 | AN170: 16.06 | AO170: 19.68 | AP170: 6.57 | AQ170: 51.56 | AR170: 38.13 | AS170: 3.26 | AT170: 9.56 | AU170: 113.7 | AV170: 119.31 | AW170: 15.45 | AX170: 51.82 | AY170: 3.33 | AZ170: 45.16 | BA170: 3.25 | BB170: 44.1 | BC170: 3.33 | BD170: 14.68 | BE170: 2.62 | BF170: 2.34 | BG170: 26.96 | BH170: 2.62 | BI170: 2.34 | BJ170: 8.09 | BK170: 53.91 | BL170: 2.68 | BM170: 2.4 | BN170: 55.2 | BO170: 3.25 | BP170: 1.75 | BQ170: 27.37 | BR170: 3.25 | BS170: 1.75 | BT170: 8.21 | BU170: 54.74 | BV170: 3.33 | BW170: 1.79 | BX170: 56.05 | BY170: 3.25 | BZ170: 0 | CA170: 18.59 | CB170: 3.25 | CC170: 0 | CD170: 5.58 | CE170: 37.17 | CF170: 3.33 | CG170: 0 | CH170: 38.06 | CI170: 0 | CJ170: 0 | CK170: 0 | CL170: 0 | CM170: 0 | CN170: 0 | CO170: 0 | CP170: 0 | CQ170: 0 | CR170: 0
A171: PL0238 | B171: 10.72 | C171: 15.77 | D171: 13.86 | E171: 25.76 | F171: 14.73 | G171: 18.91 | H171: 3.26 | I171: 9.56 | J171: 15.77 | K171: 13.86 | L171: 16.66 | M171: 16.66 | N171: 18.26 | O171: 18.26 | P171: 3.26 | Q171: 9.56 | R171: 14.41 | S171: 16.66 | T171: 16.66 | U171: 18.26 | V171: 18.26 | W171: 3.26 | X171: 10.72 | Y171: 17.81 | Z171: 15.66 | AA171: 29.15 | AB171: 61.49 | AC171: 30.9 | AD171: 3.26 | AE171: 9.56 | AF171: 17.81 | AG171: 15.66 | AH171: 19.68 | AI171: 6.57 | AJ171: 51.56 | AK171: 38.13 | AL171: 3.26 | AM171: 9.56 | AN171: 16.27 | AO171: 19.68 | AP171: 6.57 | AQ171: 51.56 | AR171: 38.13 | AS171: 3.26 | AT171: 9.56 | AU171: 113.94 | AV171: 119.54 | AW171: 15.66 | AX171: 51.82 | AY171: 3.33 | AZ171: 45.37 | BA171: 3.25 | BB171: 44.31 | BC171: 3.33 | BD171: 14.75 | BE171: 2.62 | BF171: 2.34 | BG171: 27.06 | BH171: 2.62 | BI171: 2.34 | BJ171: 8.12 | BK171: 54.12 | BL171: 2.68 | BM171: 2.4 | BN171: 55.42 | BO171: 3.25 | BP171: 1.75 | BQ171: 27.48 | BR171: 3.25 | BS171: 1.75 | BT171: 8.24 | BU171: 54.95 | BV171: 3.33 | BW171: 1.79 | BX171: 56.27 | BY171: 3.25 | BZ171: 0 | CA171: 18.69 | CB171: 3.25 | CC171: 0 | CD171: 5.61 | CE171: 37.38 | CF171: 3.33 | CG171: 0 | CH171: 38.28 | CI171: 0 | CJ171: 0 | CK171: 0 | CL171: 0 | CM171: 0 | CN171: 0 | CO171: 0 | CP171: 0 | CQ171: 0 | CR171: 0
A172: PL0027 | B172: 8.68 | C172: 15.33 | D172: 13.5 | E172: 25.86 | F172: 15.08 | G172: 19.39 | H172: 3.26 | I172: 8.68 | J172: 15.33 | K172: 13.5 | L172: 27.93 | M172: 13.91 | N172: 17.32 | O172: 18.36 | P172: 3.26 | Q172: 8.68 | R172: 14.02 | S172: 27.93 | T172: 13.91 | U172: 17.32 | V172: 18.36 | W172: 3.26 | X172: 8.68 | Y172: 17.04 | Z172: 14.99 | AA172: 28.15 | AB172: 61.25 | AC172: 30.9 | AD172: 3.26 | AE172: 8.68 | AF172: 17.04 | AG172: 14.99 | AH172: 19.01 | AI172: 6.35 | AJ172: 51.42 | AK172: 38.08 | AL172: 3.26 | AM172: 8.68 | AN172: 15.58 | AO172: 19.01 | AP172: 6.35 | AQ172: 51.42 | AR172: 38.08 | AS172: 3.26 | AT172: 8.68 | AU172: 111.85 | AV172: 117.37 | AW172: 14.99 | AX172: 51.82 | AY172: 3.18 | AZ172: 44.28 | BA172: 3.11 | BB172: 43.24 | BC172: 3.18 | BD172: 15.08 | BE172: 2.62 | BF172: 2.34 | BG172: 23.76 | BH172: 2.62 | BI172: 2.34 | BJ172: 7.13 | BK172: 47.52 | BL172: 2.68 | BM172: 2.4 | BN172: 48.66 | BO172: 3.11 | BP172: 1.7 | BQ172: 24.15 | BR172: 3.11 | BS172: 1.7 | BT172: 7.25 | BU172: 48.3 | BV172: 3.18 | BW172: 1.74 | BX172: 49.46 | BY172: 3.11 | BZ172: 0 | CA172: 16.57 | CB172: 3.11 | CC172: 0 | CD172: 4.97 | CE172: 33.13 | CF172: 3.18 | CG172: 0 | CH172: 33.93 | CI172: 0 | CJ172: 0 | CK172: 0 | CL172: 0 | CM172: 0 | CN172: 0 | CO172: 0 | CP172: 0 | CQ172: 0 | CR172: 0
A173: PL0028 | B173: 8.68 | C173: 15.33 | D173: 13.5 | E173: 25.86 | F173: 15.08 | G173: 19.39 | H173: 3.26 | I173: 8.68 | J173: 15.33 | K173: 13.5 | L173: 27.93 | M173: 13.91 | N173: 17.32 | O173: 18.36 | P173: 3.26 | Q173: 8.68 | R173: 14.02 | S173: 27.93 | T173: 13.91 | U173: 17.32 | V173: 18.36 | W173: 3.26 | X173: 8.68 | Y173: 17.04 | Z173: 14.99 | AA173: 28.15 | AB173: 61.25 | AC173: 30.9 | AD173: 3.26 | AE173: 8.68 | AF173: 17.04 | AG173: 14.99 | AH173: 19.01 | AI173: 6.35 | AJ173: 51.42 | AK173: 38.08 | AL173: 3.26 | AM173: 8.68 | AN173: 15.58 | AO173: 19.01 | AP173: 6.35 | AQ173: 51.42 | AR173: 38.08 | AS173: 3.26 | AT173: 8.68 | AU173: 111.85 | AV173: 117.37 | AW173: 14.99 | AX173: 51.82 | AY173: 3.18 | AZ173: 44.28 | BA173: 3.11 | BB173: 43.24 | BC173: 3.18 | BD173: 15.08 | BE173: 2.62 | BF173: 2.34 | BG173: 23.76 | BH173: 2.62 | BI173: 2.34 | BJ173: 7.13 | BK173: 47.52 | BL173: 2.68 | BM173: 2.4 | BN173: 48.66 | BO173: 3.11 | BP173: 1.7 | BQ173: 24.15 | BR173: 3.11 | BS173: 1.7 | BT173: 7.25 | BU173: 48.3 | BV173: 3.18 | BW173: 1.74 | BX173: 49.46 | BY173: 3.11 | BZ173: 0 | CA173: 16.57 | CB173: 3.11 | CC173: 0 | CD173: 4.97 | CE173: 33.13 | CF173: 3.18 | CG173: 0 | CH173: 33.93 | CI173: 0 | CJ173: 0 | CK173: 0 | CL173: 0 | CM173: 0 | CN173: 0 | CO173: 0 | CP173: 0 | CQ173: 0 | CR173: 0
A174: PL0029 | B174: 8.68 | C174: 15.45 | D174: 13.61 | E174: 25.86 | F174: 15.08 | G174: 19.39 | H174: 3.26 | I174: 8.68 | J174: 15.45 | K174: 13.61 | L174: 27.93 | M174: 13.91 | N174: 17.32 | O174: 18.36 | P174: 3.26 | Q174: 8.68 | R174: 14.13 | S174: 27.93 | T174: 13.91 | U174: 17.32 | V174: 18.36 | W174: 3.26 | X174: 8.68 | Y174: 17.17 | Z174: 15.12 | AA174: 28.15 | AB174: 61.25 | AC174: 30.9 | AD174: 3.26 | AE174: 8.68 | AF174: 17.17 | AG174: 15.12 | AH174: 19.01 | AI174: 6.35 | AJ174: 51.42 | AK174: 38.08 | AL174: 3.26 | AM174: 8.68 | AN174: 15.7 | AO174: 19.01 | AP174: 6.35 | AQ174: 51.42 | AR174: 38.08 | AS174: 3.26 | AT174: 8.68 | AU174: 111.97 | AV174: 117.5 | AW174: 15.12 | AX174: 51.82 | AY174: 3.18 | AZ174: 44.41 | BA174: 3.11 | BB174: 43.37 | BC174: 3.18 | BD174: 15.12 | BE174: 2.62 | BF174: 2.34 | BG174: 23.82 | BH174: 2.62 | BI174: 2.34 | BJ174: 7.15 | BK174: 47.64 | BL174: 2.68 | BM174: 2.4 | BN174: 48.78 | BO174: 3.11 | BP174: 1.7 | BQ174: 24.21 | BR174: 3.11 | BS174: 1.7 | BT174: 7.26 | BU174: 48.42 | BV174: 3.18 | BW174: 1.74 | BX174: 49.58 | BY174: 3.11 | BZ174: 0 | CA174: 16.63 | CB174: 3.11 | CC174: 0 | CD174: 4.99 | CE174: 33.25 | CF174: 3.18 | CG174: 0 | CH174: 34.05 | CI174: 0 | CJ174: 0 | CK174: 0 | CL174: 0 | CM174: 0 | CN174: 0 | CO174: 0 | CP174: 0 | CQ174: 0 | CR174: 0
A175: PL0239 | B175: 8.68 | C175: 15.58 | D175: 13.73 | E175: 25.86 | F175: 15.08 | G175: 19.39 | H175: 3.26 | I175: 8.68 | J175: 15.58 | K175: 13.73 | L175: 27.93 | M175: 13.91 | N175: 17.32 | O175: 18.36 | P175: 3.26 | Q175: 8.68 | R175: 14.25 | S175: 27.93 | T175: 13.91 | U175: 17.32 | V175: 18.36 | W175: 3.26 | X175: 8.68 | Y175: 17.31 | Z175: 15.27 | AA175: 28.15 | AB175: 61.25 | AC175: 30.9 | AD175: 3.26 | AE175: 8.68 | AF175: 17.31 | AG175: 15.27 | AH175: 19.01 | AI175: 6.35 | AJ175: 51.42 | AK175: 38.08 | AL175: 3.26 | AM175: 8.68 | AN175: 15.84 | AO175: 19.01 | AP175: 6.35 | AQ175: 51.42 | AR175: 38.08 | AS175: 3.26 | AT175: 8.68 | AU175: 112.12 | AV175: 117.65 | AW175: 15.27 | AX175: 51.82 | AY175: 3.18 | AZ175: 44.54 | BA175: 3.11 | BB175: 43.5 | BC175: 3.18 | BD175: 15.17 | BE175: 2.62 | BF175: 2.34 | BG175: 23.89 | BH175: 2.62 | BI175: 2.34 | BJ175: 7.17 | BK175: 47.77 | BL175: 2.68 | BM175: 2.4 | BN175: 48.92 | BO175: 3.11 | BP175: 1.7 | BQ175: 24.28 | BR175: 3.11 | BS175: 1.7 | BT175: 7.28 | BU175: 48.56 | BV175: 3.18 | BW175: 1.74 | BX175: 49.73 | BY175: 3.11 | BZ175: 0 | CA175: 16.7 | CB175: 3.11 | CC175: 0 | CD175: 5.01 | CE175: 33.39 | CF175: 3.18 | CG175: 0 | CH175: 34.19 | CI175: 0 | CJ175: 0 | CK175: 0 | CL175: 0 | CM175: 0 | CN175: 0 | CO175: 0 | CP175: 0 | CQ175: 0 | CR175: 0
A176: PL0025 | B176: 5.02 | C176: 15.58 | D176: 13.7 | E176: 25.23 | F176: 14.89 | G176: 16.48 | H176: 3.26 | I176: 5.02 | J176: 15.58 | K176: 13.7 | L176: 22.92 | M176: 12.91 | N176: 16.99 | O176: 16.78 | P176: 3.26 | Q176: 5.02 | R176: 14.23 | S176: 22.92 | T176: 12.91 | U176: 16.99 | V176: 16.78 | W176: 3.26 | X176: 5.02 | Y176: 17.13 | Z176: 15.06 | AA176: 28.79 | AB176: 63.97 | AC176: 46.8 | AD176: 3.26 | AE176: 5.02 | AF176: 17.13 | AG176: 15.06 | AH176: 27.79 | AI176: 21.58 | AJ176: 65.42 | AK176: 60.72 | AL176: 3.26 | AM176: 5.02 | AN176: 15.65 | AO176: 27.79 | AP176: 21.58 | AQ176: 65.42 | AR176: 60.72 | AS176: 3.26 | AT176: 5.02 | AU176: 112.42 | AV176: 117.98 | AW176: 15.06 | AX176: 52.61 | AY176: 2.41 | AZ176: 44.5 | BA176: 2.56 | BB176: 43.46 | BC176: 2.41 | BD176: 16.06 | BE176: 2.06 | BF176: 2.06 | BG176: 32.02 | BH176: 2.06 | BI176: 2.06 | BJ176: 9.61 | BK176: 42.69 | BL176: 2.11 | BM176: 2.11 | BN176: 43.71 | BO176: 2.35 | BP176: 0 | BQ176: 32.48 | BR176: 2.35 | BS176: 0 | BT176: 9.74 | BU176: 43.3 | BV176: 2.41 | BW176: 0 | BX176: 44.34 | BY176: 2.35 | BZ176: 0 | CA176: 22.78 | CB176: 2.35 | CC176: 0 | CD176: 6.83 | CE176: 30.37 | CF176: 2.41 | CG176: 0 | CH176: 31.1 | CI176: 0 | CJ176: 0 | CK176: 0 | CL176: 0 | CM176: 0 | CN176: 0 | CO176: 0 | CP176: 0 | CQ176: 0 | CR176: 0
A177: PL0026 | B177: 5.02 | C177: 15.61 | D177: 13.76 | E177: 25.23 | F177: 14.66 | G177: 16.23 | H177: 3.26 | I177: 5.02 | J177: 15.61 | K177: 13.76 | L177: 22.92 | M177: 12.91 | N177: 16.73 | O177: 16.53 | P177: 3.26 | Q177: 5.02 | R177: 14.28 | S177: 22.92 | T177: 12.91 | U177: 16.73 | V177: 16.53 | W177: 3.26 | X177: 5.02 | Y177: 17.16 | Z177: 15.13 | AA177: 28.79 | AB177: 63.01 | AC177: 46.09 | AD177: 3.26 | AE177: 5.02 | AF177: 17.16 | AG177: 15.13 | AH177: 27.79 | AI177: 21.58 | AJ177: 64.44 | AK177: 59.82 | AL177: 3.26 | AM177: 5.02 | AN177: 15.71 | AO177: 27.79 | AP177: 21.58 | AQ177: 64.44 | AR177: 59.82 | AS177: 3.26 | AT177: 5.02 | AU177: 111.47 | AV177: 116.97 | AW177: 15.13 | AX177: 51.82 | AY177: 2.41 | AZ177: 44.27 | BA177: 2.56 | BB177: 43.23 | BC177: 2.41 | BD177: 15.96 | BE177: 2.06 | BF177: 2.06 | BG177: 31.85 | BH177: 2.06 | BI177: 2.06 | BJ177: 9.55 | BK177: 42.46 | BL177: 2.11 | BM177: 2.11 | BN177: 43.48 | BO177: 2.35 | BP177: 0 | BQ177: 32.3 | BR177: 2.35 | BS177: 0 | BT177: 9.69 | BU177: 43.07 | BV177: 2.41 | BW177: 0 | BX177: 44.1 | BY177: 2.35 | BZ177: 0 | CA177: 22.74 | CB177: 2.35 | CC177: 0 | CD177: 6.82 | CE177: 30.32 | CF177: 2.41 | CG177: 0 | CH177: 31.05 | CI177: 0 | CJ177: 0 | CK177: 0 | CL177: 0 | CM177: 0 | CN177: 0 | CO177: 0 | CP177: 0 | CQ177: 0 | CR177: 0
A178: PL0116 | B178: 10.72 | C178: 14.86 | D178: 12.91 | E178: 25.76 | F178: 9.2 | G178: 12.62 | H178: 3.26 | I178: 9.56 | J178: 14.86 | K178: 12.91 | L178: 16.66 | M178: 16.66 | N178: 11.92 | O178: 11.92 | P178: 3.26 | Q178: 9.56 | R178: 13.41 | S178: 16.66 | T178: 16.66 | U178: 11.92 | V178: 11.92 | W178: 3.26 | X178: 10.72 | Y178: 16.77 | Z178: 14.58 | AA178: 29.15 | AB178: 47 | AC178: 25.19 | AD178: 3.26 | AE178: 9.56 | AF178: 16.77 | AG178: 14.58 | AH178: 19.68 | AI178: 6.57 | AJ178: 40.17 | AK178: 30.43 | AL178: 3.26 | AM178: 9.56 | AN178: 15.14 | AO178: 19.68 | AP178: 6.57 | AQ178: 40.17 | AR178: 30.43 | AS178: 3.26 | AT178: 9.56 | AU178: 97.55 | AV178: 102.25 | AW178: 14.58 | AX178: 42.31 | AY178: 3.33 | AZ178: 39.6 | BA178: 3.25 | BB178: 38.67 | BC178: 3.33 | BD178: 12.77 | BE178: 2.62 | BF178: 2.34 | BG178: 23.45 | BH178: 2.62 | BI178: 2.34 | BJ178: 7.03 | BK178: 46.89 | BL178: 2.68 | BM178: 2.4 | BN178: 48.02 | BO178: 3.25 | BP178: 1.75 | BQ178: 23.8 | BR178: 3.25 | BS178: 1.75 | BT178: 7.14 | BU178: 47.6 | BV178: 3.33 | BW178: 1.79 | BX178: 48.74 | BY178: 3.25 | BZ178: 0 | CA178: 16.66 | CB178: 3.25 | CC178: 0 | CD178: 5 | CE178: 33.31 | CF178: 3.33 | CG178: 0 | CH178: 34.11 | CI178: 0 | CJ178: 0 | CK178: 0 | CL178: 0 | CM178: 0 | CN178: 0 | CO178: 0 | CP178: 0 | CQ178: 0 | CR178: 0
A179: PL0114 | B179: 8.68 | C179: 14.44 | D179: 12.58 | E179: 25.86 | F179: 9.41 | G179: 12.94 | H179: 3.26 | I179: 8.68 | J179: 14.44 | K179: 12.58 | L179: 27.92 | M179: 13.91 | N179: 10.92 | O179: 11.93 | P179: 3.26 | Q179: 8.68 | R179: 13.06 | S179: 27.92 | T179: 13.91 | U179: 10.92 | V179: 11.93 | W179: 3.26 | X179: 8.68 | Y179: 16.05 | Z179: 13.99 | AA179: 28.15 | AB179: 46.85 | AC179: 25.19 | AD179: 3.26 | AE179: 8.68 | AF179: 16.05 | AG179: 13.99 | AH179: 19.01 | AI179: 6.35 | AJ179: 40.08 | AK179: 30.4 | AL179: 3.26 | AM179: 8.68 | AN179: 14.51 | AO179: 19.01 | AP179: 6.35 | AQ179: 40.08 | AR179: 30.4 | AS179: 3.26 | AT179: 8.68 | AU179: 95.58 | AV179: 100.22 | AW179: 13.99 | AX179: 42.31 | AY179: 3.18 | AZ179: 38.59 | BA179: 3.11 | BB179: 37.69 | BC179: 3.18 | BD179: 13.1 | BE179: 2.62 | BF179: 2.34 | BG179: 20.63 | BH179: 2.62 | BI179: 2.34 | BJ179: 6.19 | BK179: 41.26 | BL179: 2.68 | BM179: 2.4 | BN179: 42.25 | BO179: 3.11 | BP179: 1.7 | BQ179: 20.97 | BR179: 3.11 | BS179: 1.7 | BT179: 6.29 | BU179: 41.93 | BV179: 3.18 | BW179: 1.74 | BX179: 42.94 | BY179: 3.11 | BZ179: 0 | CA179: 14.79 | CB179: 3.11 | CC179: 0 | CD179: 4.44 | CE179: 29.58 | CF179: 3.18 | CG179: 0 | CH179: 30.29 | CI179: 0 | CJ179: 0 | CK179: 0 | CL179: 0 | CM179: 0 | CN179: 0 | CO179: 0 | CP179: 0 | CQ179: 0 | CR179: 0
A180: PL0115 | B180: 8.68 | C180: 14.34 | D180: 12.65 | E180: 25.86 | F180: 9.41 | G180: 12.94 | H180: 3.26 | I180: 8.68 | J180: 14.34 | K180: 12.65 | L180: 27.93 | M180: 13.91 | N180: 10.92 | O180: 11.93 | P180: 3.26 | Q180: 8.68 | R180: 13.08 | S180: 27.93 | T180: 13.91 | U180: 10.92 | V180: 11.93 | W180: 3.26 | X180: 8.68 | Y180: 15.93 | Z180: 14.05 | AA180: 28.15 | AB180: 46.85 | AC180: 25.19 | AD180: 3.26 | AE180: 8.68 | AF180: 15.93 | AG180: 14.05 | AH180: 19.01 | AI180: 6.35 | AJ180: 40.08 | AK180: 30.4 | AL180: 3.26 | AM180: 8.68 | AN180: 14.53 | AO180: 19.01 | AP180: 6.35 | AQ180: 40.08 | AR180: 30.4 | AS180: 3.26 | AT180: 8.68 | AU180: 95.47 | AV180: 100.11 | AW180: 14.05 | AX180: 42.31 | AY180: 3.18 | AZ180: 38.62 | BA180: 3.11 | BB180: 37.71 | BC180: 3.18 | BD180: 13.11 | BE180: 2.62 | BF180: 2.34 | BG180: 20.65 | BH180: 2.62 | BI180: 2.34 | BJ180: 6.19 | BK180: 41.29 | BL180: 2.68 | BM180: 2.4 | BN180: 42.28 | BO180: 3.11 | BP180: 1.7 | BQ180: 20.98 | BR180: 3.11 | BS180: 1.7 | BT180: 6.29 | BU180: 41.95 | BV180: 3.18 | BW180: 1.74 | BX180: 42.96 | BY180: 3.11 | BZ180: 0 | CA180: 14.8 | CB180: 3.11 | CC180: 0 | CD180: 4.44 | CE180: 29.6 | CF180: 3.18 | CG180: 0 | CH180: 30.31 | CI180: 0 | CJ180: 0 | CK180: 0 | CL180: 0 | CM180: 0 | CN180: 0 | CO180: 0 | CP180: 0 | CQ180: 0 | CR180: 0
A181: PL0117 | B181: 8.68 | C181: 15.58 | D181: 13.73 | E181: 25.86 | F181: 9.41 | G181: 12.94 | H181: 3.26 | I181: 8.68 | J181: 15.58 | K181: 13.73 | L181: 27.93 | M181: 13.91 | N181: 10.92 | O181: 11.93 | P181: 3.26 | Q181: 8.68 | R181: 14.21 | S181: 27.93 | T181: 13.91 | U181: 10.92 | V181: 11.93 | W181: 3.26 | X181: 8.68 | Y181: 17.31 | Z181: 15.27 | AA181: 28.15 | AB181: 46.85 | AC181: 25.19 | AD181: 3.26 | AE181: 8.68 | AF181: 17.31 | AG181: 15.27 | AH181: 19.01 | AI181: 6.35 | AJ181: 40.08 | AK181: 30.4 | AL181: 3.26 | AM181: 8.68 | AN181: 15.79 | AO181: 19.01 | AP181: 6.35 | AQ181: 40.08 | AR181: 30.4 | AS181: 3.26 | AT181: 8.68 | AU181: 96.85 | AV181: 101.48 | AW181: 15.27 | AX181: 42.31 | AY181: 3.18 | AZ181: 39.87 | BA181: 3.11 | BB181: 38.94 | BC181: 3.18 | BD181: 13.49 | BE181: 2.62 | BF181: 2.34 | BG181: 21.25 | BH181: 2.62 | BI181: 2.34 | BJ181: 6.37 | BK181: 42.49 | BL181: 2.68 | BM181: 2.4 | BN181: 43.51 | BO181: 3.11 | BP181: 1.7 | BQ181: 21.59 | BR181: 3.11 | BS181: 1.7 | BT181: 6.48 | BU181: 43.18 | BV181: 3.18 | BW181: 1.74 | BX181: 44.22 | BY181: 3.11 | BZ181: 0 | CA181: 15.4 | CB181: 3.11 | CC181: 0 | CD181: 4.62 | CE181: 30.79 | CF181: 3.18 | CG181: 0 | CH181: 31.53 | CI181: 0 | CJ181: 0 | CK181: 0 | CL181: 0 | CM181: 0 | CN181: 0 | CO181: 0 | CP181: 0 | CQ181: 0 | CR181: 0
A182: PL0240 | B182: 8.68 | C182: 15.23 | D182: 13.43 | E182: 25.41 | F182: 9.41 | G182: 12.94 | H182: 3.26 | I182: 8.68 | J182: 15.23 | K182: 13.43 | L182: 27.44 | M182: 13.66 | N182: 10.92 | O182: 11.93 | P182: 3.26 | Q182: 8.68 | R182: 13.9 | S182: 27.44 | T182: 13.66 | U182: 10.92 | V182: 11.93 | W182: 3.26 | X182: 8.68 | Y182: 16.92 | Z182: 14.93 | AA182: 27.66 | AB182: 46.85 | AC182: 25.19 | AD182: 3.26 | AE182: 8.68 | AF182: 16.92 | AG182: 14.93 | AH182: 18.67 | AI182: 6.24 | AJ182: 40.08 | AK182: 30.4 | AL182: 3.26 | AM182: 8.68 | AN182: 15.44 | AO182: 18.67 | AP182: 6.24 | AQ182: 40.08 | AR182: 30.4 | AS182: 3.26 | AT182: 8.68 | AU182: 95.94 | AV182: 100.54 | AW182: 14.93 | AX182: 42.31 | AY182: 3.18 | AZ182: 39.37 | BA182: 3.11 | BB182: 38.45 | BC182: 3.18 | BD182: 13.32 | BE182: 2.62 | BF182: 2.34 | BG182: 20.99 | BH182: 2.62 | BI182: 2.34 | BJ182: 6.3 | BK182: 41.98 | BL182: 2.68 | BM182: 2.4 | BN182: 42.99 | BO182: 3.11 | BP182: 1.7 | BQ182: 21.33 | BR182: 3.11 | BS182: 1.7 | BT182: 6.4 | BU182: 42.66 | BV182: 3.18 | BW182: 1.74 | BX182: 43.68 | BY182: 3.11 | BZ182: 0 | CA182: 15.15 | CB182: 3.11 | CC182: 0 | CD182: 4.54 | CE182: 30.29 | CF182: 3.18 | CG182: 0 | CH182: 31.02 | CI182: 0 | CJ182: 0 | CK182: 0 | CL182: 0 | CM182: 0 | CN182: 0 | CO182: 0 | CP182: 0 | CQ182: 0 | CR182: 0
A183: PL0110 | B183: 7.77 | C183: 15.56 | D183: 13.72 | E183: 27.62 | F183: 8.24 | G183: 8.65 | H183: 3.26 | I183: 7.77 | J183: 15.56 | K183: 13.72 | L183: 25.77 | M183: 21.31 | N183: 8.7 | O183: 8.69 | P183: 3.26 | Q183: 7.77 | R183: 14.19 | S183: 25.77 | T183: 21.31 | U183: 8.7 | V183: 8.69 | W183: 3.26 | X183: 7.77 | Y183: 17.25 | Z183: 15.22 | AA183: 29.54 | AB183: 39.98 | AC183: 26.95 | AD183: 3.26 | AE183: 7.77 | AF183: 17.25 | AG183: 15.22 | AH183: 25.43 | AI183: 13.41 | AJ183: 39.92 | AK183: 33.38 | AL183: 3.26 | AM183: 7.77 | AN183: 15.74 | AO183: 25.43 | AP183: 13.41 | AQ183: 39.92 | AR183: 33.38 | AS183: 3.26 | AT183: 7.77 | AU183: 88.44 | AV183: 92.58 | AW183: 15.22 | AX183: 34.78 | AY183: 3.1 | AZ183: 37.29 | BA183: 5.12 | BB183: 36.42 | BC183: 3.1 | BD183: 13.31 | BE183: 2.07 | BF183: 2.07 | BG183: 27.24 | BH183: 2.07 | BI183: 2.07 | BJ183: 8.17 | BK183: 36.32 | BL183: 2.12 | BM183: 2.12 | BN183: 37.19 | BO183: 3.03 | BP183: 0 | BQ183: 27.63 | BR183: 3.03 | BS183: 0 | BT183: 8.29 | BU183: 36.84 | BV183: 3.1 | BW183: 0 | BX183: 37.72 | BY183: 3.03 | BZ183: 0 | CA183: 20.75 | CB183: 3.03 | CC183: 0 | CD183: 6.23 | CE183: 27.67 | CF183: 3.1 | CG183: 0 | CH183: 28.33 | CI183: 0 | CJ183: 0 | CK183: 0 | CL183: 0 | CM183: 0 | CN183: 0 | CO183: 0 | CP183: 0 | CQ183: 0 | CR183: 0
A184: PL0113 | B184: 7.77 | C184: 14.8 | D184: 12.86 | E184: 28.11 | F184: 10.04 | G184: 10.54 | H184: 3.26 | I184: 7.77 | J184: 14.8 | K184: 12.86 | L184: 26.23 | M184: 21.69 | N184: 10.6 | O184: 10.58 | P184: 3.26 | Q184: 7.77 | R184: 13.35 | S184: 26.23 | T184: 21.69 | U184: 10.6 | V184: 10.58 | W184: 3.26 | X184: 7.77 | Y184: 16.4 | Z184: 14.25 | AA184: 30.06 | AB184: 48.64 | AC184: 32.8 | AD184: 3.26 | AE184: 7.77 | AF184: 16.4 | AG184: 14.25 | AH184: 25.88 | AI184: 13.66 | AJ184: 48.57 | AK184: 40.62 | AL184: 3.26 | AM184: 7.77 | AN184: 14.81 | AO184: 25.88 | AP184: 13.66 | AQ184: 48.57 | AR184: 40.62 | AS184: 3.26 | AT184: 7.77 | AU184: 96.99 | AV184: 101.69 | AW184: 14.25 | AX184: 42.31 | AY184: 3.1 | AZ184: 39.21 | BA184: 5.12 | BB184: 38.29 | BC184: 3.1 | BD184: 14.01 | BE184: 2.07 | BF184: 2.07 | BG184: 28.67 | BH184: 2.07 | BI184: 2.07 | BJ184: 8.6 | BK184: 38.22 | BL184: 2.12 | BM184: 2.12 | BN184: 39.14 | BO184: 3.03 | BP184: 0 | BQ184: 29.07 | BR184: 3.03 | BS184: 0 | BT184: 8.72 | BU184: 38.76 | BV184: 3.1 | BW184: 0 | BX184: 39.69 | BY184: 3.03 | BZ184: 0 | CA184: 20.9 | CB184: 3.03 | CC184: 0 | CD184: 6.27 | CE184: 27.86 | CF184: 3.1 | CG184: 0 | CH184: 28.53 | CI184: 0 | CJ184: 0 | CK184: 0 | CL184: 0 | CM184: 0 | CN184: 0 | CO184: 0 | CP184: 0 | CQ184: 0 | CR184: 0
A185: PL0111 | B185: 5.02 | C185: 15.26 | D185: 13.47 | E185: 24.79 | F185: 9.15 | G185: 10.82 | H185: 3.26 | I185: 5.02 | J185: 15.26 | K185: 13.47 | L185: 22.52 | M185: 12.69 | N185: 10.69 | O185: 10.74 | P185: 3.26 | Q185: 5.02 | R185: 13.93 | S185: 22.52 | T185: 12.69 | U185: 10.69 | V185: 10.74 | W185: 3.26 | X185: 5.02 | Y185: 16.77 | Z185: 14.81 | AA185: 28.29 | AB185: 48.23 | AC185: 37.57 | AD185: 3.26 | AE185: 5.02 | AF185: 16.77 | AG185: 14.81 | AH185: 27.31 | AI185: 21.2 | AJ185: 49.9 | AK185: 46.79 | AL185: 3.26 | AM185: 5.02 | AN185: 15.31 | AO185: 27.31 | AP185: 21.2 | AQ185: 49.9 | AR185: 46.79 | AS185: 3.26 | AT185: 5.02 | AU185: 95.39 | AV185: 99.96 | AW185: 14.81 | AX185: 42.31 | AY185: 2.41 | AZ185: 39.12 | BA185: 2.56 | BB185: 38.2 | BC185: 2.41 | BD185: 14.11 | BE185: 2.06 | BF185: 2.06 | BG185: 28.15 | BH185: 2.06 | BI185: 2.06 | BJ185: 8.44 | BK185: 37.53 | BL185: 2.11 | BM185: 2.11 | BN185: 38.43 | BO185: 2.35 | BP185: 0 | BQ185: 28.55 | BR185: 2.35 | BS185: 0 | BT185: 8.57 | BU185: 38.07 | BV185: 2.41 | BW185: 0 | BX185: 38.98 | BY185: 2.35 | BZ185: 0 | CA185: 20.75 | CB185: 2.35 | CC185: 0 | CD185: 6.22 | CE185: 27.66 | CF185: 2.41 | CG185: 0 | CH185: 28.32 | CI185: 0 | CJ185: 0 | CK185: 0 | CL185: 0 | CM185: 0 | CN185: 0 | CO185: 0 | CP185: 0 | CQ185: 0 | CR185: 0
A186: PL0112 | B186: 5.02 | C186: 14.67 | D186: 12.76 | E186: 25.23 | F186: 7.52 | G186: 8.9 | H186: 3.26 | I186: 5.02 | J186: 14.67 | K186: 12.76 | L186: 22.92 | M186: 12.91 | N186: 8.79 | O186: 8.84 | P186: 3.26 | Q186: 5.02 | R186: 13.25 | S186: 22.92 | T186: 12.91 | U186: 8.79 | V186: 8.84 | W186: 3.26 | X186: 5.02 | Y186: 16.13 | Z186: 14.03 | AA186: 28.79 | AB186: 39.64 | AC186: 30.87 | AD186: 3.26 | AE186: 5.02 | AF186: 16.13 | AG186: 14.03 | AH186: 27.79 | AI186: 21.58 | AJ186: 41.01 | AK186: 38.45 | AL186: 3.26 | AM186: 5.02 | AN186: 14.56 | AO186: 27.79 | AP186: 21.58 | AQ186: 41.01 | AR186: 38.45 | AS186: 3.26 | AT186: 5.02 | AU186: 86.44 | AV186: 90.53 | AW186: 14.03 | AX186: 34.78 | AY186: 2.41 | AZ186: 35.85 | BA186: 2.56 | BB186: 35.01 | BC186: 2.41 | BD186: 12.93 | BE186: 2.06 | BF186: 2.06 | BG186: 25.8 | BH186: 2.06 | BI186: 2.06 | BJ186: 7.74 | BK186: 34.4 | BL186: 2.11 | BM186: 2.11 | BN186: 35.23 | BO186: 2.35 | BP186: 0 | BQ186: 26.18 | BR186: 2.35 | BS186: 0 | BT186: 7.85 | BU186: 34.9 | BV186: 2.41 | BW186: 0 | BX186: 35.74 | BY186: 2.35 | BZ186: 0 | CA186: 19.66 | CB186: 2.35 | CC186: 0 | CD186: 5.9 | CE186: 26.21 | CF186: 2.41 | CG186: 0 | CH186: 26.84 | CI186: 0 | CJ186: 0 | CK186: 0 | CL186: 0 | CM186: 0 | CN186: 0 | CO186: 0 | CP186: 0 | CQ186: 0 | CR186: 0
A187: PR0033 | B187: 10.73 | C187: 29.87 | D187: 29.87 | E187: 19.08 | F187: 12.8 | G187: 15 | H187: 3.18 | I187: 10.73 | J187: 29.87 | K187: 29.87 | L187: 12.34 | M187: 12.34 | N187: 14.92 | O187: 14.92 | P187: 3.18 | Q187: 10.73 | R187: 29.87 | S187: 12.34 | T187: 12.34 | U187: 14.92 | V187: 14.92 | W187: 3.18 | X187: 10.73 | Y187: 33.06 | Z187: 33.06 | AA187: 21.15 | AB187: 55.02 | AC187: 28.26 | AD187: 3.18 | AE187: 10.73 | AF187: 33.06 | AG187: 33.06 | AH187: 14.28 | AI187: 4.77 | AJ187: 46.43 | AK187: 34.62 | AL187: 3.18 | AM187: 10.73 | AN187: 33.06 | AO187: 14.28 | AP187: 4.77 | AQ187: 46.43 | AR187: 34.62 | AS187: 3.18 | AT187: 10.73 | AU187: 113.85 | AV187: 118.55 | AW187: 33.06 | AX187: 47.2 | AY187: 3.47 | AZ187: 57.52 | BA187: 3.47 | BB187: 57.52 | BC187: 3.47 | BD187: 15.68 | BE187: 2.79 | BF187: 2.79 | BG187: 27.83 | BH187: 2.79 | BI187: 2.79 | BJ187: 8.35 | BK187: 74.21 | BL187: 2.79 | BM187: 2.79 | BN187: 74.21 | BO187: 3.47 | BP187: 1.89 | BQ187: 28.27 | BR187: 3.47 | BS187: 1.89 | BT187: 8.48 | BU187: 75.39 | BV187: 3.47 | BW187: 1.89 | BX187: 75.39 | BY187: 3.47 | BZ187: 0 | CA187: 20.7 | CB187: 3.47 | CC187: 0 | CD187: 6.21 | CE187: 55.2 | CF187: 3.47 | CG187: 0 | CH187: 55.2 | CI187: 0 | CJ187: 0 | CK187: 0 | CL187: 0 | CM187: 0 | CN187: 0 | CO187: 0 | CP187: 0 | CQ187: 0 | CR187: 0
A188: PR0035 | B188: 10.99 | C188: 15.61 | D188: 12.93 | E188: 27.18 | F188: 13.11 | G188: 15.36 | H188: 3.26 | I188: 10.99 | J188: 15.61 | K188: 12.93 | L188: 17.57 | M188: 17.57 | N188: 15.28 | O188: 15.28 | P188: 3.26 | Q188: 10.99 | R188: 13.69 | S188: 17.57 | T188: 17.57 | U188: 15.28 | V188: 15.28 | W188: 3.26 | X188: 10.99 | Y188: 17.27 | Z188: 14.31 | AA188: 30.13 | AB188: 56.34 | AC188: 28.94 | AD188: 3.26 | AE188: 10.99 | AF188: 17.27 | AG188: 14.31 | AH188: 20.34 | AI188: 6.79 | AJ188: 47.54 | AK188: 35.45 | AL188: 3.26 | AM188: 10.99 | AN188: 15.16 | AO188: 20.34 | AP188: 6.79 | AQ188: 47.54 | AR188: 35.45 | AS188: 3.26 | AT188: 10.99 | AU188: 108.97 | AV188: 114.31 | AW188: 14.31 | AX188: 48.33 | AY188: 3.55 | AZ188: 42.92 | BA188: 3.47 | BB188: 41.91 | BC188: 3.55 | BD188: 13.15 | BE188: 2.79 | BF188: 2.79 | BG188: 30.37 | BH188: 2.79 | BI188: 2.79 | BJ188: 9.11 | BK188: 60.73 | BL188: 2.86 | BM188: 2.86 | BN188: 62.19 | BO188: 3.47 | BP188: 1.89 | BQ188: 30.86 | BR188: 3.47 | BS188: 1.89 | BT188: 9.26 | BU188: 61.72 | BV188: 3.55 | BW188: 1.94 | BX188: 63.2 | BY188: 3.47 | BZ188: 0 | CA188: 20.82 | CB188: 3.47 | CC188: 0 | CD188: 6.24 | CE188: 41.63 | CF188: 3.55 | CG188: 0 | CH188: 42.63 | CI188: 0 | CJ188: 0 | CK188: 0 | CL188: 0 | CM188: 0 | CN188: 0 | CO188: 0 | CP188: 0 | CQ188: 0 | CR188: 0
A189: PR0038 | B189: 10.99 | C189: 15.79 | D189: 13.86 | E189: 27.18 | F189: 13.11 | G189: 15.36 | H189: 3.26 | I189: 10.99 | J189: 15.79 | K189: 13.86 | L189: 17.57 | M189: 17.57 | N189: 15.28 | O189: 15.28 | P189: 3.26 | Q189: 10.99 | R189: 14.42 | S189: 17.57 | T189: 17.57 | U189: 15.28 | V189: 15.28 | W189: 3.26 | X189: 10.99 | Y189: 17.47 | Z189: 15.35 | AA189: 30.13 | AB189: 56.34 | AC189: 28.94 | AD189: 3.26 | AE189: 10.99 | AF189: 17.47 | AG189: 15.35 | AH189: 20.34 | AI189: 6.79 | AJ189: 47.54 | AK189: 35.45 | AL189: 3.26 | AM189: 10.99 | AN189: 15.95 | AO189: 20.34 | AP189: 6.79 | AQ189: 47.54 | AR189: 35.45 | AS189: 3.26 | AT189: 10.99 | AU189: 109.18 | AV189: 114.51 | AW189: 15.35 | AX189: 48.33 | AY189: 3.55 | AZ189: 43.71 | BA189: 3.47 | BB189: 42.69 | BC189: 3.55 | BD189: 13.31 | BE189: 2.79 | BF189: 2.79 | BG189: 30.75 | BH189: 2.79 | BI189: 2.79 | BJ189: 9.23 | BK189: 61.5 | BL189: 2.86 | BM189: 2.86 | BN189: 62.98 | BO189: 3.47 | BP189: 1.89 | BQ189: 31.26 | BR189: 3.47 | BS189: 1.89 | BT189: 9.38 | BU189: 62.51 | BV189: 3.55 | BW189: 1.94 | BX189: 64.01 | BY189: 3.47 | BZ189: 0 | CA189: 21.2 | CB189: 3.47 | CC189: 0 | CD189: 6.36 | CE189: 42.4 | CF189: 3.55 | CG189: 0 | CH189: 43.42 | CI189: 0 | CJ189: 0 | CK189: 0 | CL189: 0 | CM189: 0 | CN189: 0 | CO189: 0 | CP189: 0 | CQ189: 0 | CR189: 0
A190: PR0041 | B190: 10.99 | C190: 15.67 | D190: 12.97 | E190: 27.18 | F190: 13.11 | G190: 15.36 | H190: 3.26 | I190: 10.99 | J190: 15.67 | K190: 12.97 | L190: 17.57 | M190: 17.57 | N190: 15.28 | O190: 15.28 | P190: 3.26 | Q190: 10.99 | R190: 13.74 | S190: 17.57 | T190: 17.57 | U190: 15.28 | V190: 15.28 | W190: 3.26 | X190: 10.99 | Y190: 17.35 | Z190: 14.36 | AA190: 30.13 | AB190: 56.34 | AC190: 28.94 | AD190: 3.26 | AE190: 10.99 | AF190: 17.35 | AG190: 14.36 | AH190: 20.34 | AI190: 6.79 | AJ190: 47.54 | AK190: 35.45 | AL190: 3.26 | AM190: 10.99 | AN190: 15.21 | AO190: 20.34 | AP190: 6.79 | AQ190: 47.54 | AR190: 35.45 | AS190: 3.26 | AT190: 10.99 | AU190: 109.05 | AV190: 114.38 | AW190: 14.36 | AX190: 48.33 | AY190: 3.55 | AZ190: 42.97 | BA190: 3.47 | BB190: 41.96 | BC190: 3.55 | BD190: 13.16 | BE190: 2.79 | BF190: 2.79 | BG190: 30.39 | BH190: 2.79 | BI190: 2.79 | BJ190: 9.12 | BK190: 60.78 | BL190: 2.86 | BM190: 2.86 | BN190: 62.24 | BO190: 3.47 | BP190: 1.89 | BQ190: 30.89 | BR190: 3.47 | BS190: 1.89 | BT190: 9.27 | BU190: 61.78 | BV190: 3.55 | BW190: 1.94 | BX190: 63.26 | BY190: 3.47 | BZ190: 0 | CA190: 20.85 | CB190: 3.47 | CC190: 0 | CD190: 6.25 | CE190: 41.69 | CF190: 3.55 | CG190: 0 | CH190: 42.69 | CI190: 0 | CJ190: 0 | CK190: 0 | CL190: 0 | CM190: 0 | CN190: 0 | CO190: 0 | CP190: 0 | CQ190: 0 | CR190: 0
A191: PR0244 | B191: 10.99 | C191: 15.65 | D191: 13.63 | E191: 27.18 | F191: 13.11 | G191: 15.36 | H191: 3.26 | I191: 10.99 | J191: 15.65 | K191: 13.63 | L191: 17.57 | M191: 17.57 | N191: 15.28 | O191: 15.28 | P191: 3.26 | Q191: 10.99 | R191: 14.2 | S191: 17.57 | T191: 17.57 | U191: 15.28 | V191: 15.28 | W191: 3.26 | X191: 10.99 | Y191: 17.32 | Z191: 15.08 | AA191: 30.13 | AB191: 56.34 | AC191: 28.94 | AD191: 3.26 | AE191: 10.99 | AF191: 17.32 | AG191: 15.08 | AH191: 20.34 | AI191: 6.79 | AJ191: 47.54 | AK191: 35.45 | AL191: 3.26 | AM191: 10.99 | AN191: 15.72 | AO191: 20.34 | AP191: 6.79 | AQ191: 47.54 | AR191: 35.45 | AS191: 3.26 | AT191: 10.99 | AU191: 109.02 | AV191: 114.36 | AW191: 15.08 | AX191: 48.33 | AY191: 3.55 | AZ191: 43.49 | BA191: 3.47 | BB191: 42.47 | BC191: 3.55 | BD191: 13.26 | BE191: 2.79 | BF191: 2.79 | BG191: 30.64 | BH191: 2.79 | BI191: 2.79 | BJ191: 9.19 | BK191: 61.28 | BL191: 2.86 | BM191: 2.86 | BN191: 62.75 | BO191: 3.47 | BP191: 1.89 | BQ191: 31.14 | BR191: 3.47 | BS191: 1.89 | BT191: 9.34 | BU191: 62.28 | BV191: 3.55 | BW191: 1.94 | BX191: 63.77 | BY191: 3.47 | BZ191: 0 | CA191: 21.09 | CB191: 3.47 | CC191: 0 | CD191: 6.33 | CE191: 42.18 | CF191: 3.55 | CG191: 0 | CH191: 43.19 | CI191: 0 | CJ191: 0 | CK191: 0 | CL191: 0 | CM191: 0 | CN191: 0 | CO191: 0 | CP191: 0 | CQ191: 0 | CR191: 0
A192: PL0033 | B192: 10.47 | C192: 29.53 | D192: 29.53 | E192: 18.12 | F192: 12.8 | G192: 15 | H192: 3.18 | I192: 9.34 | J192: 29.53 | K192: 29.53 | L192: 11.72 | M192: 11.72 | N192: 14.92 | O192: 14.92 | P192: 3.18 | Q192: 9.34 | R192: 29.53 | S192: 11.72 | T192: 11.72 | U192: 14.92 | V192: 14.92 | W192: 3.18 | X192: 10.47 | Y192: 33.34 | Z192: 33.34 | AA192: 20.51 | AB192: 55.31 | AC192: 28.26 | AD192: 3.18 | AE192: 9.34 | AF192: 33.34 | AG192: 33.34 | AH192: 13.84 | AI192: 4.62 | AJ192: 46.6 | AK192: 34.68 | AL192: 3.18 | AM192: 9.34 | AN192: 33.34 | AO192: 13.84 | AP192: 4.62 | AQ192: 46.6 | AR192: 34.68 | AS192: 3.18 | AT192: 9.34 | AU192: 113.76 | AV192: 118.44 | AW192: 33.34 | AX192: 47.2 | AY192: 3.25 | AZ192: 57.69 | BA192: 3.25 | BB192: 57.69 | BC192: 3.25 | BD192: 17.5 | BE192: 2.62 | BF192: 2.34 | BG192: 24.68 | BH192: 2.62 | BI192: 2.34 | BJ192: 7.4 | BK192: 65.81 | BL192: 2.62 | BM192: 2.34 | BN192: 65.81 | BO192: 3.25 | BP192: 1.75 | BQ192: 25.05 | BR192: 3.25 | BS192: 1.75 | BT192: 7.52 | BU192: 66.8 | BV192: 3.25 | BW192: 1.75 | BX192: 66.8 | BY192: 3.25 | BZ192: 0 | CA192: 18.83 | CB192: 3.25 | CC192: 0 | CD192: 5.65 | CE192: 50.21 | CF192: 3.25 | CG192: 0 | CH192: 50.21 | CI192: 0 | CJ192: 0 | CK192: 0 | CL192: 0 | CM192: 0 | CN192: 0 | CO192: 0 | CP192: 0 | CQ192: 0 | CR192: 0
A193: PL0041 | B193: 10.72 | C193: 15.49 | D193: 12.82 | E193: 25.8 | F193: 13.11 | G193: 15.36 | H193: 3.26 | I193: 9.56 | J193: 15.49 | K193: 12.82 | L193: 16.69 | M193: 16.69 | N193: 15.28 | O193: 15.28 | P193: 3.26 | Q193: 9.56 | R193: 13.58 | S193: 16.69 | T193: 16.69 | U193: 15.28 | V193: 15.28 | W193: 3.26 | X193: 10.72 | Y193: 17.49 | Z193: 14.48 | AA193: 29.2 | AB193: 56.64 | AC193: 28.94 | AD193: 3.26 | AE193: 9.56 | AF193: 17.49 | AG193: 14.48 | AH193: 19.71 | AI193: 6.58 | AJ193: 47.72 | AK193: 35.51 | AL193: 3.26 | AM193: 9.56 | AN193: 15.34 | AO193: 19.71 | AP193: 6.58 | AQ193: 47.72 | AR193: 35.51 | AS193: 3.26 | AT193: 9.56 | AU193: 108.54 | AV193: 113.84 | AW193: 14.48 | AX193: 48.33 | AY193: 3.33 | AZ193: 42.91 | BA193: 3.25 | BB193: 41.9 | BC193: 3.33 | BD193: 13.95 | BE193: 2.62 | BF193: 2.34 | BG193: 25.59 | BH193: 2.62 | BI193: 2.34 | BJ193: 7.68 | BK193: 51.18 | BL193: 2.68 | BM193: 2.4 | BN193: 52.41 | BO193: 3.25 | BP193: 1.75 | BQ193: 25.99 | BR193: 3.25 | BS193: 1.75 | BT193: 7.8 | BU193: 51.97 | BV193: 3.33 | BW193: 1.79 | BX193: 53.22 | BY193: 3.25 | BZ193: 0 | CA193: 17.79 | CB193: 3.25 | CC193: 0 | CD193: 5.34 | CE193: 35.58 | CF193: 3.33 | CG193: 0 | CH193: 36.43 | CI193: 0 | CJ193: 0 | CK193: 0 | CL193: 0 | CM193: 0 | CN193: 0 | CO193: 0 | CP193: 0 | CQ193: 0 | CR193: 0
A194: PL0241 | B194: 10.72 | C194: 15.43 | D194: 12.78 | E194: 25.8 | F194: 13.11 | G194: 15.36 | H194: 3.26 | I194: 9.56 | J194: 15.43 | K194: 12.78 | L194: 16.69 | M194: 16.69 | N194: 15.28 | O194: 15.28 | P194: 3.26 | Q194: 9.56 | R194: 13.54 | S194: 16.69 | T194: 16.69 | U194: 15.28 | V194: 15.28 | W194: 3.26 | X194: 10.72 | Y194: 17.42 | Z194: 14.43 | AA194: 29.2 | AB194: 56.64 | AC194: 28.94 | AD194: 3.26 | AE194: 9.56 | AF194: 17.42 | AG194: 14.43 | AH194: 19.71 | AI194: 6.58 | AJ194: 47.72 | AK194: 35.51 | AL194: 3.26 | AM194: 9.56 | AN194: 15.28 | AO194: 19.71 | AP194: 6.58 | AQ194: 47.72 | AR194: 35.51 | AS194: 3.26 | AT194: 9.56 | AU194: 108.46 | AV194: 113.77 | AW194: 14.43 | AX194: 48.33 | AY194: 3.33 | AZ194: 42.84 | BA194: 3.25 | BB194: 41.84 | BC194: 3.33 | BD194: 13.93 | BE194: 2.62 | BF194: 2.34 | BG194: 25.57 | BH194: 2.62 | BI194: 2.34 | BJ194: 7.67 | BK194: 51.13 | BL194: 2.68 | BM194: 2.4 | BN194: 52.36 | BO194: 3.25 | BP194: 1.75 | BQ194: 25.96 | BR194: 3.25 | BS194: 1.75 | BT194: 7.79 | BU194: 51.91 | BV194: 3.33 | BW194: 1.79 | BX194: 53.16 | BY194: 3.25 | BZ194: 0 | CA194: 17.76 | CB194: 3.25 | CC194: 0 | CD194: 5.33 | CE194: 35.52 | CF194: 3.33 | CG194: 0 | CH194: 36.37 | CI194: 0 | CJ194: 0 | CK194: 0 | CL194: 0 | CM194: 0 | CN194: 0 | CO194: 0 | CP194: 0 | CQ194: 0 | CR194: 0
A195: PL0243 | B195: 10.72 | C195: 14.94 | D195: 12.47 | E195: 25.8 | F195: 13.11 | G195: 15.36 | H195: 3.26 | I195: 9.56 | J195: 14.94 | K195: 12.47 | L195: 16.69 | M195: 16.69 | N195: 15.28 | O195: 15.28 | P195: 3.26 | Q195: 9.56 | R195: 13.17 | S195: 16.69 | T195: 16.69 | U195: 15.28 | V195: 15.28 | W195: 3.26 | X195: 10.72 | Y195: 16.87 | Z195: 14.08 | AA195: 29.2 | AB195: 56.64 | AC195: 28.94 | AD195: 3.26 | AE195: 9.56 | AF195: 16.87 | AG195: 14.08 | AH195: 19.71 | AI195: 6.58 | AJ195: 47.72 | AK195: 35.51 | AL195: 3.26 | AM195: 9.56 | AN195: 14.87 | AO195: 19.71 | AP195: 6.58 | AQ195: 47.72 | AR195: 35.51 | AS195: 3.26 | AT195: 9.56 | AU195: 107.91 | AV195: 113.21 | AW195: 14.08 | AX195: 48.33 | AY195: 3.33 | AZ195: 42.43 | BA195: 3.25 | BB195: 41.44 | BC195: 3.33 | BD195: 13.82 | BE195: 2.62 | BF195: 2.34 | BG195: 25.37 | BH195: 2.62 | BI195: 2.34 | BJ195: 7.61 | BK195: 50.74 | BL195: 2.68 | BM195: 2.4 | BN195: 51.96 | BO195: 3.25 | BP195: 1.75 | BQ195: 25.76 | BR195: 3.25 | BS195: 1.75 | BT195: 7.73 | BU195: 51.51 | BV195: 3.33 | BW195: 1.79 | BX195: 52.75 | BY195: 3.25 | BZ195: 0 | CA195: 17.57 | CB195: 3.25 | CC195: 0 | CD195: 5.27 | CE195: 35.13 | CF195: 3.33 | CG195: 0 | CH195: 35.97 | CI195: 0 | CJ195: 0 | CK195: 0 | CL195: 0 | CM195: 0 | CN195: 0 | CO195: 0 | CP195: 0 | CQ195: 0 | CR195: 0
A196: PL0245 | B196: 10.72 | C196: 15.43 | D196: 12.78 | E196: 25.8 | F196: 13.11 | G196: 15.36 | H196: 3.26 | I196: 9.56 | J196: 15.43 | K196: 12.78 | L196: 16.69 | M196: 16.69 | N196: 15.28 | O196: 15.28 | P196: 3.26 | Q196: 9.56 | R196: 13.54 | S196: 16.69 | T196: 16.69 | U196: 15.28 | V196: 15.28 | W196: 3.26 | X196: 10.72 | Y196: 17.42 | Z196: 14.43 | AA196: 29.2 | AB196: 56.64 | AC196: 28.94 | AD196: 3.26 | AE196: 9.56 | AF196: 17.42 | AG196: 14.43 | AH196: 19.71 | AI196: 6.58 | AJ196: 47.72 | AK196: 35.51 | AL196: 3.26 | AM196: 9.56 | AN196: 15.28 | AO196: 19.71 | AP196: 6.58 | AQ196: 47.72 | AR196: 35.51 | AS196: 3.26 | AT196: 9.56 | AU196: 108.46 | AV196: 113.77 | AW196: 14.43 | AX196: 48.33 | AY196: 3.33 | AZ196: 42.84 | BA196: 3.25 | BB196: 41.84 | BC196: 3.33 | BD196: 13.93 | BE196: 2.62 | BF196: 2.34 | BG196: 25.57 | BH196: 2.62 | BI196: 2.34 | BJ196: 7.67 | BK196: 51.13 | BL196: 2.68 | BM196: 2.4 | BN196: 52.36 | BO196: 3.25 | BP196: 1.75 | BQ196: 25.96 | BR196: 3.25 | BS196: 1.75 | BT196: 7.79 | BU196: 51.91 | BV196: 3.33 | BW196: 1.79 | BX196: 53.16 | BY196: 3.25 | BZ196: 0 | CA196: 17.76 | CB196: 3.25 | CC196: 0 | CD196: 5.33 | CE196: 35.52 | CF196: 3.33 | CG196: 0 | CH196: 36.37 | CI196: 0 | CJ196: 0 | CK196: 0 | CL196: 0 | CM196: 0 | CN196: 0 | CO196: 0 | CP196: 0 | CQ196: 0 | CR196: 0
A197: PL1242 | B197: 10.72 | C197: 15.47 | D197: 13.48 | E197: 25.8 | F197: 13.11 | G197: 15.36 | H197: 3.26 | I197: 9.56 | J197: 15.47 | K197: 13.48 | L197: 16.69 | M197: 16.69 | N197: 15.28 | O197: 15.28 | P197: 3.26 | Q197: 9.56 | R197: 14.04 | S197: 16.69 | T197: 16.69 | U197: 15.28 | V197: 15.28 | W197: 3.26 | X197: 10.72 | Y197: 17.47 | Z197: 15.22 | AA197: 29.2 | AB197: 56.64 | AC197: 28.94 | AD197: 3.26 | AE197: 9.56 | AF197: 17.47 | AG197: 15.22 | AH197: 19.71 | AI197: 6.58 | AJ197: 47.72 | AK197: 35.51 | AL197: 3.26 | AM197: 9.56 | AN197: 15.85 | AO197: 19.71 | AP197: 6.58 | AQ197: 47.72 | AR197: 35.51 | AS197: 3.26 | AT197: 9.56 | AU197: 108.51 | AV197: 113.82 | AW197: 15.22 | AX197: 48.33 | AY197: 3.33 | AZ197: 43.42 | BA197: 3.25 | BB197: 42.4 | BC197: 3.33 | BD197: 14.08 | BE197: 2.62 | BF197: 2.34 | BG197: 25.84 | BH197: 2.62 | BI197: 2.34 | BJ197: 7.75 | BK197: 51.68 | BL197: 2.68 | BM197: 2.4 | BN197: 52.92 | BO197: 3.25 | BP197: 1.75 | BQ197: 26.24 | BR197: 3.25 | BS197: 1.75 | BT197: 7.87 | BU197: 52.47 | BV197: 3.33 | BW197: 1.79 | BX197: 53.73 | BY197: 3.25 | BZ197: 0 | CA197: 18.04 | CB197: 3.25 | CC197: 0 | CD197: 5.41 | CE197: 36.07 | CF197: 3.33 | CG197: 0 | CH197: 36.94 | CI197: 0 | CJ197: 0 | CK197: 0 | CL197: 0 | CM197: 0 | CN197: 0 | CO197: 0 | CP197: 0 | CQ197: 0 | CR197: 0
A198: PL2042 | B198: 10.72 | C198: 15.43 | D198: 12.78 | E198: 25.8 | F198: 13.11 | G198: 15.36 | H198: 3.26 | I198: 9.56 | J198: 15.43 | K198: 12.78 | L198: 16.69 | M198: 16.69 | N198: 15.28 | O198: 15.28 | P198: 3.26 | Q198: 9.56 | R198: 13.54 | S198: 16.69 | T198: 16.69 | U198: 15.28 | V198: 15.28 | W198: 3.26 | X198: 10.72 | Y198: 17.42 | Z198: 14.43 | AA198: 29.2 | AB198: 56.64 | AC198: 28.94 | AD198: 3.26 | AE198: 9.56 | AF198: 17.42 | AG198: 14.43 | AH198: 19.71 | AI198: 6.58 | AJ198: 47.72 | AK198: 35.51 | AL198: 3.26 | AM198: 9.56 | AN198: 15.28 | AO198: 19.71 | AP198: 6.58 | AQ198: 47.72 | AR198: 35.51 | AS198: 3.26 | AT198: 9.56 | AU198: 108.46 | AV198: 113.77 | AW198: 14.43 | AX198: 48.33 | AY198: 3.33 | AZ198: 42.84 | BA198: 3.25 | BB198: 41.84 | BC198: 3.33 | BD198: 13.93 | BE198: 2.62 | BF198: 2.34 | BG198: 25.57 | BH198: 2.62 | BI198: 2.34 | BJ198: 7.67 | BK198: 51.13 | BL198: 2.68 | BM198: 2.4 | BN198: 52.36 | BO198: 3.25 | BP198: 1.75 | BQ198: 25.96 | BR198: 3.25 | BS198: 1.75 | BT198: 7.79 | BU198: 51.91 | BV198: 3.33 | BW198: 1.79 | BX198: 53.16 | BY198: 3.25 | BZ198: 0 | CA198: 17.76 | CB198: 3.25 | CC198: 0 | CD198: 5.33 | CE198: 35.52 | CF198: 3.33 | CG198: 0 | CH198: 36.37 | CI198: 0 | CJ198: 0 | CK198: 0 | CL198: 0 | CM198: 0 | CN198: 0 | CO198: 0 | CP198: 0 | CQ198: 0 | CR198: 0
A199: PL3242 | B199: 10.72 | C199: 15.47 | D199: 13.48 | E199: 25.8 | F199: 13.11 | G199: 15.36 | H199: 3.26 | I199: 9.56 | J199: 15.47 | K199: 13.48 | L199: 16.69 | M199: 16.69 | N199: 15.28 | O199: 15.28 | P199: 3.26 | Q199: 9.56 | R199: 14.04 | S199: 16.69 | T199: 16.69 | U199: 15.28 | V199: 15.28 | W199: 3.26 | X199: 10.72 | Y199: 17.47 | Z199: 15.22 | AA199: 29.2 | AB199: 56.64 | AC199: 28.94 | AD199: 3.26 | AE199: 9.56 | AF199: 17.47 | AG199: 15.22 | AH199: 19.71 | AI199: 6.58 | AJ199: 47.72 | AK199: 35.51 | AL199: 3.26 | AM199: 9.56 | AN199: 15.85 | AO199: 19.71 | AP199: 6.58 | AQ199: 47.72 | AR199: 35.51 | AS199: 3.26 | AT199: 9.56 | AU199: 108.51 | AV199: 113.82 | AW199: 15.22 | AX199: 48.33 | AY199: 3.33 | AZ199: 43.42 | BA199: 3.25 | BB199: 42.4 | BC199: 3.33 | BD199: 14.08 | BE199: 2.62 | BF199: 2.34 | BG199: 25.84 | BH199: 2.62 | BI199: 2.34 | BJ199: 7.75 | BK199: 51.68 | BL199: 2.68 | BM199: 2.4 | BN199: 52.92 | BO199: 3.25 | BP199: 1.75 | BQ199: 26.24 | BR199: 3.25 | BS199: 1.75 | BT199: 7.87 | BU199: 52.47 | BV199: 3.33 | BW199: 1.79 | BX199: 53.73 | BY199: 3.25 | BZ199: 0 | CA199: 18.04 | CB199: 3.25 | CC199: 0 | CD199: 5.41 | CE199: 36.07 | CF199: 3.33 | CG199: 0 | CH199: 36.94 | CI199: 0 | CJ199: 0 | CK199: 0 | CL199: 0 | CM199: 0 | CN199: 0 | CO199: 0 | CP199: 0 | CQ199: 0 | CR199: 0
A200: PL4242 | B200: 10.72 | C200: 15.47 | D200: 13.48 | E200: 25.8 | F200: 13.11 | G200: 15.36 | H200: 3.26 | I200: 9.56 | J200: 15.47 | K200: 13.48 | L200: 16.69 | M200: 16.69 | N200: 15.28 | O200: 15.28 | P200: 3.26 | Q200: 9.56 | R200: 14.04 | S200: 16.69 | T200: 16.69 | U200: 15.28 | V200: 15.28 | W200: 3.26 | X200: 10.72 | Y200: 17.47 | Z200: 15.22 | AA200: 29.2 | AB200: 56.64 | AC200: 28.94 | AD200: 3.26 | AE200: 9.56 | AF200: 17.47 | AG200: 15.22 | AH200: 19.71 | AI200: 6.58 | AJ200: 47.72 | AK200: 35.51 | AL200: 3.26 | AM200: 9.56 | AN200: 15.85 | AO200: 19.71 | AP200: 6.58 | AQ200: 47.72 | AR200: 35.51 | AS200: 3.26 | AT200: 9.56 | AU200: 108.51 | AV200: 113.82 | AW200: 15.22 | AX200: 48.33 | AY200: 3.33 | AZ200: 43.42 | BA200: 3.25 | BB200: 42.4 | BC200: 3.33 | BD200: 14.08 | BE200: 2.62 | BF200: 2.34 | BG200: 25.84 | BH200: 2.62 | BI200: 2.34 | BJ200: 7.75 | BK200: 51.68 | BL200: 2.68 | BM200: 2.4 | BN200: 52.92 | BO200: 3.25 | BP200: 1.75 | BQ200: 26.24 | BR200: 3.25 | BS200: 1.75 | BT200: 7.87 | BU200: 52.47 | BV200: 3.33 | BW200: 1.79 | BX200: 53.73 | BY200: 3.25 | BZ200: 0 | CA200: 18.04 | CB200: 3.25 | CC200: 0 | CD200: 5.41 | CE200: 36.07 | CF200: 3.33 | CG200: 0 | CH200: 36.94 | CI200: 0 | CJ200: 0 | CK200: 0 | CL200: 0 | CM200: 0 | CN200: 0 | CO200: 0 | CP200: 0 | CQ200: 0 | CR200: 0
... 75 more rows

Sheet O
B1: 36 | C1: 37 | D1: 38 | E1: 39 | F1: 40 | G1: 41 | H1: 42 | I1: 43 | J1: 44 | K1: 45 | L1: 46 | M1: 47 | N1: 48 | O1: 49 | P1: 50 | Q1: 51 | R1: 52 | S1: 53 | T1: 54 | U1: 55 | V1: 56 | W1: 57 | X1: 58 | Y1: 59 | Z1: 60 | AA1: 61 | AB1: 62 | AC1: 63 | AD1: 64 | AE1: 65 | AF1: 66 | AG1: 67 | AH1: 68 | AI1: 69 | AJ1: 70 | AK1: 71 | AL1: 72 | AM1: 73 | AN1: 74 | AO1: 75 | AP1: 76 | AQ1: 77 | AR1: 78 | AS1: 79 | AT1: 80 | AU1: 81 | AV1: 82 | AW1: 83 | AX1: 84 | AY1: 85 | AZ1: 86 | BA1: 87 | BB1: 88 | BC1: 89 | BD1: 90 | BE1: 91 | BF1: 92 | BG1: 93 | BH1: 94 | BI1: 95 | BJ1: 96 | BK1: 97 | BL1: 98 | BM1: 99 | BN1: 100 | BO1: 101 | BP1: 102 | BQ1: 103 | BR1: 104 | BS1: 105 | BT1: 106 | BU1: 107 | BV1: 108 | BW1: 109 | BX1: 110 | BY1: 111 | BZ1: 112 | CA1: 113 | CB1: 114 | CC1: 115 | CD1: 116 | CE1: 117 | CF1: 118 | CG1: 119 | CH1: 120 | CI1: 121 | CJ1: 122 | CK1: 123 | CL1: 124 | CM1: 125 | CN1: 126 | CO1: 127 | CP1: 128 | CQ1: 129 | CR1: 130
A2: PR0268 | B2: =VLOOKUP($A2,BBDD!$B$7:$EA$280,B$1,FALSE) -> 10.99 | C2: =VLOOKUP($A2,BBDD!$B$7:$EA$280,C$1,FALSE) -> 15.3 | D2: =VLOOKUP($A2,BBDD!$B$7:$EA$280,D$1,FALSE) -> 13.36 | E2: =VLOOKUP($A2,BBDD!$B$7:$EA$280,E$1,FALSE) -> 27.13 | F2: =VLOOKUP($A2,BBDD!$B$7:$EA$280,F$1,FALSE) -> 15.85 | G2: =VLOOKUP($A2,BBDD!$B$7:$EA$280,G$1,FALSE) -> 17.27 | H2: =VLOOKUP($A2,BBDD!$B$7:$EA$280,H$1,FALSE) -> 3.26 | I2: =VLOOKUP($A2,BBDD!$B$7:$EA$280,I$1,FALSE) -> 10.99 | J2: =VLOOKUP($A2,BBDD!$B$7:$EA$280,J$1,FALSE) -> 15.3 | K2: =VLOOKUP($A2,BBDD!$B$7:$EA$280,K$1,FALSE) -> 13.36 | L2: =VLOOKUP($A2,BBDD!$B$7:$EA$280,L$1,FALSE) -> 17.54 | M2: =VLOOKUP($A2,BBDD!$B$7:$EA$280,M$1,FALSE) -> 17.54 | N2: =VLOOKUP($A2,BBDD!$B$7:$EA$280,N$1,FALSE) -> 17.63 | O2: =VLOOKUP($A2,BBDD!$B$7:$EA$280,O$1,FALSE) -> 17.63 | P2: =VLOOKUP($A2,BBDD!$B$7:$EA$280,P$1,FALSE) -> 3.26 | Q2: =VLOOKUP($A2,BBDD!$B$7:$EA$280,Q$1,FALSE) -> 10.99 | R2: =VLOOKUP($A2,BBDD!$B$7:$EA$280,R$1,FALSE) -> 14 | S2: =VLOOKUP($A2,BBDD!$B$7:$EA$280,S$1,FALSE) -> 17.54 | T2: =VLOOKUP($A2,BBDD!$B$7:$EA$280,T$1,FALSE) -> 17.54 | U2: =VLOOKUP($A2,BBDD!$B$7:$EA$280,U$1,FALSE) -> 17.63 | V2: =VLOOKUP($A2,BBDD!$B$7:$EA$280,V$1,FALSE) -> 17.63 | W2: =VLOOKUP($A2,BBDD!$B$7:$EA$280,W$1,FALSE) -> 3.26 | X2: =VLOOKUP($A2,BBDD!$B$7:$EA$280,X$1,FALSE) -> 10.99 | Y2: =VLOOKUP($A2,BBDD!$B$7:$EA$280,Y$1,FALSE) -> 16.93 | Z2: =VLOOKUP($A2,BBDD!$B$7:$EA$280,Z$1,FALSE) -> 14.79 | AA2: =VLOOKUP($A2,BBDD!$B$7:$EA$280,AA$1,FALSE) -> 30.06 | AB2: =VLOOKUP($A2,BBDD!$B$7:$EA$280,AB$1,FALSE) -> 65.28 | AC2: =VLOOKUP($A2,BBDD!$B$7:$EA$280,AC$1,FALSE) -> 32.32 | AD2: =VLOOKUP($A2,BBDD!$B$7:$EA$280,AD$1,FALSE) -> 3.26 | AE2: =VLOOKUP($A2,BBDD!$B$7:$EA$280,AE$1,FALSE) -> 10.99 | AF2: =VLOOKUP($A2,BBDD!$B$7:$EA$280,AF$1,FALSE) -> 16.93 | AG2: =VLOOKUP($A2,BBDD!$B$7:$EA$280,AG$1,FALSE) -> 14.79 | AH2: =VLOOKUP($A2,BBDD!$B$7:$EA$280,AH$1,FALSE) -> 20.3 | AI2: =VLOOKUP($A2,BBDD!$B$7:$EA$280,AI$1,FALSE) -> 6.78 | AJ2: =VLOOKUP($A2,BBDD!$B$7:$EA$280,AJ$1,FALSE) -> 54.5 | AK2: =VLOOKUP($A2,BBDD!$B$7:$EA$280,AK$1,FALSE) -> 40.08 | AL2: =VLOOKUP($A2,BBDD!$B$7:$EA$280,AL$1,FALSE) -> 3.26 | AM2: =VLOOKUP($A2,BBDD!$B$7:$EA$280,AM$1,FALSE) -> 10.99 | AN2: =VLOOKUP($A2,BBDD!$B$7:$EA$280,AN$1,FALSE) -> 15.48 | AO2: =VLOOKUP($A2,BBDD!$B$7:$EA$280,AO$1,FALSE) -> 20.3 | AP2: =VLOOKUP($A2,BBDD!$B$7:$EA$280,AP$1,FALSE) -> 6.78 | AQ2: =VLOOKUP($A2,BBDD!$B$7:$EA$280,AQ$1,FALSE) -> 54.5 | AR2: =VLOOKUP($A2,BBDD!$B$7:$EA$280,AR$1,FALSE) -> 40.08 | AS2: =VLOOKUP($A2,BBDD!$B$7:$EA$280,AS$1,FALSE) -> 3.26 | AT2: =VLOOKUP($A2,BBDD!$B$7:$EA$280,AT$1,FALSE) -> 10.99 | AU2: =VLOOKUP($A2,BBDD!$B$7:$EA$280,AU$1,FALSE) -> 118.06 | AV2: =VLOOKUP($A2,BBDD!$B$7:$EA$280,AV$1,FALSE) -> 123.94 | AW2: =VLOOKUP($A2,BBDD!$B$7:$EA$280,AW$1,FALSE) -> 14.79 | AX2: =VLOOKUP($A2,BBDD!$B$7:$EA$280,AX$1,FALSE) -> 55.15 | AY2: =VLOOKUP($A2,BBDD!$B$7:$EA$280,AY$1,FALSE) -> 3.55 | AZ2: =VLOOKUP($A2,BBDD!$B$7:$EA$280,AZ$1,FALSE) -> 46.1 | BA2: =VLOOKUP($A2,BBDD!$B$7:$EA$280,BA$1,FALSE) -> 3.47 | BB2: =VLOOKUP($A2,BBDD!$B$7:$EA$280,BB$1,FALSE) -> 45.02 | BC2: =VLOOKUP($A2,BBDD!$B$7:$EA$280,BC$1,FALSE) -> 3.55 | BD2: =VLOOKUP($A2,BBDD!$B$7:$EA$280,BD$1,FALSE) -> 14.24 | BE2: =VLOOKUP($A2,BBDD!$B$7:$EA$280,BE$1,FALSE) -> 2.79 | BF2: =VLOOKUP($A2,BBDD!$B$7:$EA$280,BF$1,FALSE) -> 2.79 | BG2: =VLOOKUP($A2,BBDD!$B$7:$EA$280,BG$1,FALSE) -> 32.9 | BH2: =VLOOKUP($A2,BBDD!$B$7:$EA$280,BH$1,FALSE) -> 2.79 | BI2: =VLOOKUP($A2,BBDD!$B$7:$EA$280,BI$1,FALSE) -> 2.79 | BJ2: =VLOOKUP($A2,BBDD!$B$7:$EA$280,BJ$1,FALSE) -> 9.87 | BK2: =VLOOKUP($A2,BBDD!$B$7:$EA$280,BK$1,FALSE) -> 65.79 | BL2: =VLOOKUP($A2,BBDD!$B$7:$EA$280,BL$1,FALSE) -> 2.86 | BM2: =VLOOKUP($A2,BBDD!$B$7:$EA$280,BM$1,FALSE) -> 2.86 | BN2: =VLOOKUP($A2,BBDD!$B$7:$EA$280,BN$1,FALSE) -> 67.37 | BO2: =VLOOKUP($A2,BBDD!$B$7:$EA$280,BO$1,FALSE) -> 3.47 | BP2: =VLOOKUP($A2,BBDD!$B$7:$EA$280,BP$1,FALSE) -> 1.89 | BQ2: =VLOOKUP($A2,BBDD!$B$7:$EA$280,BQ$1,FALSE) -> 33.44 | BR2: =VLOOKUP($A2,BBDD!$B$7:$EA$280,BR$1,FALSE) -> 3.47 | BS2: =VLOOKUP($A2,BBDD!$B$7:$EA$280,BS$1,FALSE) -> 1.89 | BT2: =VLOOKUP($A2,BBDD!$B$7:$EA$280,BT$1,FALSE) -> 10.03 | BU2: =VLOOKUP($A2,BBDD!$B$7:$EA$280,BU$1,FALSE) -> 66.87 | BV2: =VLOOKUP($A2,BBDD!$B$7:$EA$280,BV$1,FALSE) -> 3.55 | BW2: =VLOOKUP($A2,BBDD!$B$7:$EA$280,BW$1,FALSE) -> 1.94 | BX2: =VLOOKUP($A2,BBDD!$B$7:$EA$280,BX$1,FALSE) -> 68.47 | BY2: =VLOOKUP($A2,BBDD!$B$7:$EA$280,BY$1,FALSE) -> 3.47 | BZ2: =VLOOKUP($A2,BBDD!$B$7:$EA$280,BZ$1,FALSE) -> 0 | CA2: =VLOOKUP($A2,BBDD!$B$7:$EA$280,CA$1,FALSE) -> 32.85 | CB2: =VLOOKUP($A2,BBDD!$B$7:$EA$280,CB$1,FALSE) -> 3.47 | CC2: =VLOOKUP($A2,BBDD!$B$7:$EA$280,CC$1,FALSE) -> 0 | CD2: =VLOOKUP($A2,BBDD!$B$7:$EA$280,CD$1,FALSE) -> 9.86 | CE2: =VLOOKUP($A2,BBDD!$B$7:$EA$280,CE$1,FALSE) -> 65.7 | CF2: =VLOOKUP($A2,BBDD!$B$7:$EA$280,CF$1,FALSE) -> 3.55 | CG2: =VLOOKUP($A2,BBDD!$B$7:$EA$280,CG$1,FALSE) -> 0 | CH2: =VLOOKUP($A2,BBDD!$B$7:$EA$280,CH$1,FALSE) -> 67.28 | CI2: =VLOOKUP($A2,BBDD!$B$7:$EA$280,CI$1,FALSE) -> 0 | CJ2: =VLOOKUP($A2,BBDD!$B$7:$EA$280,CJ$1,FALSE) -> 0 | CK2: =VLOOKUP($A2,BBDD!$B$7:$EA$280,CK$1,FALSE) -> 0 | CL2: =VLOOKUP($A2,BBDD!$B$7:$EA$280,CL$1,FALSE) -> 0 | CM2: =VLOOKUP($A2,BBDD!$B$7:$EA$280,CM$1,FALSE) -> 0 | CN2: =VLOOKUP($A2,BBDD!$B$7:$EA$280,CN$1,FALSE) -> 0 | CO2: =VLOOKUP($A2,BBDD!$B$7:$EA$280,CO$1,FALSE) -> 0 | CP2: =VLOOKUP($A2,BBDD!$B$7:$EA$280,CP$1,FALSE) -> 0 | CQ2: =VLOOKUP($A2,BBDD!$B$7:$EA$280,CQ$1,FALSE) -> 0 | CR2: =VLOOKUP($A2,BBDD!$B$7:$EA$280,CR$1,FALSE) -> 0
A3: PR0269 | B3: =VLOOKUP($A3,BBDD!$B$7:$EA$280,B$1,FALSE) -> 10.99 | C3: =VLOOKUP($A3,BBDD!$B$7:$EA$280,C$1,FALSE) -> 15.49 | D3: =VLOOKUP($A3,BBDD!$B$7:$EA$280,D$1,FALSE) -> 13.89 | E3: =VLOOKUP($A3,BBDD!$B$7:$EA$280,E$1,FALSE) -> 28.04 | F3: =VLOOKUP($A3,BBDD!$B$7:$EA$280,F$1,FALSE) -> 15.85 | G3: =VLOOKUP($A3,BBDD!$B$7:$EA$280,G$1,FALSE) -> 17.27 | H3: =VLOOKUP($A3,BBDD!$B$7:$EA$280,H$1,FALSE) -> 3.26 | I3: =VLOOKUP($A3,BBDD!$B$7:$EA$280,I$1,FALSE) -> 10.99 | J3: =VLOOKUP($A3,BBDD!$B$7:$EA$280,J$1,FALSE) -> 15.49 | K3: =VLOOKUP($A3,BBDD!$B$7:$EA$280,K$1,FALSE) -> 13.89 | L3: =VLOOKUP($A3,BBDD!$B$7:$EA$280,L$1,FALSE) -> 18.14 | M3: =VLOOKUP($A3,BBDD!$B$7:$EA$280,M$1,FALSE) -> 18.14 | N3: =VLOOKUP($A3,BBDD!$B$7:$EA$280,N$1,FALSE) -> 17.63 | O3: =VLOOKUP($A3,BBDD!$B$7:$EA$280,O$1,FALSE) -> 17.63 | P3: =VLOOKUP($A3,BBDD!$B$7:$EA$280,P$1,FALSE) -> 3.26 | Q3: =VLOOKUP($A3,BBDD!$B$7:$EA$280,Q$1,FALSE) -> 10.99 | R3: =VLOOKUP($A3,BBDD!$B$7:$EA$280,R$1,FALSE) -> 14.41 | S3: =VLOOKUP($A3,BBDD!$B$7:$EA$280,S$1,FALSE) -> 18.14 | T3: =VLOOKUP($A3,BBDD!$B$7:$EA$280,T$1,FALSE) -> 18.14 | U3: =VLOOKUP($A3,BBDD!$B$7:$EA$280,U$1,FALSE) -> 17.63 | V3: =VLOOKUP($A3,BBDD!$B$7:$EA$280,V$1,FALSE) -> 17.63 | W3: =VLOOKUP($A3,BBDD!$B$7:$EA$280,W$1,FALSE) -> 3.26 | X3: =VLOOKUP($A3,BBDD!$B$7:$EA$280,X$1,FALSE) -> 10.99 | Y3: =VLOOKUP($A3,BBDD!$B$7:$EA$280,Y$1,FALSE) -> 17.15 | Z3: =VLOOKUP($A3,BBDD!$B$7:$EA$280,Z$1,FALSE) -> 15.37 | AA3: =VLOOKUP($A3,BBDD!$B$7:$EA$280,AA$1,FALSE) -> 31.08 | AB3: =VLOOKUP($A3,BBDD!$B$7:$EA$280,AB$1,FALSE) -> 65.28 | AC3: =VLOOKUP($A3,BBDD!$B$7:$EA$280,AC$1,FALSE) -> 32.32 | AD3: =VLOOKUP($A3,BBDD!$B$7:$EA$280,AD$1,FALSE) -> 3.26 | AE3: =VLOOKUP($A3,BBDD!$B$7:$EA$280,AE$1,FALSE) -> 10.99 | AF3: =VLOOKUP($A3,BBDD!$B$7:$EA$280,AF$1,FALSE) -> 17.15 | AG3: =VLOOKUP($A3,BBDD!$B$7:$EA$280,AG$1,FALSE) -> 15.37 | AH3: =VLOOKUP($A3,BBDD!$B$7:$EA$280,AH$1,FALSE) -> 20.98 | AI3: =VLOOKUP($A3,BBDD!$B$7:$EA$280,AI$1,FALSE) -> 7 | AJ3: =VLOOKUP($A3,BBDD!$B$7:$EA$280,AJ$1,FALSE) -> 54.5 | AK3: =VLOOKUP($A3,BBDD!$B$7:$EA$280,AK$1,FALSE) -> 40.08 | AL3: =VLOOKUP($A3,BBDD!$B$7:$EA$280,AL$1,FALSE) -> 3.26 | AM3: =VLOOKUP($A3,BBDD!$B$7:$EA$280,AM$1,FALSE) -> 10.99 | AN3: =VLOOKUP($A3,BBDD!$B$7:$EA$280,AN$1,FALSE) -> 15.95 | AO3: =VLOOKUP($A3,BBDD!$B$7:$EA$280,AO$1,FALSE) -> 20.98 | AP3: =VLOOKUP($A3,BBDD!$B$7:$EA$280,AP$1,FALSE) -> 7 | AQ3: =VLOOKUP($A3,BBDD!$B$7:$EA$280,AQ$1,FALSE) -> 54.5 | AR3: =VLOOKUP($A3,BBDD!$B$7:$EA$280,AR$1,FALSE) -> 40.08 | AS3: =VLOOKUP($A3,BBDD!$B$7:$EA$280,AS$1,FALSE) -> 3.26 | AT3: =VLOOKUP($A3,BBDD!$B$7:$EA$280,AT$1,FALSE) -> 10.99 | AU3: =VLOOKUP($A3,BBDD!$B$7:$EA$280,AU$1,FALSE) -> 119.35 | AV3: =VLOOKUP($A3,BBDD!$B$7:$EA$280,AV$1,FALSE) -> 125.31 | AW3: =VLOOKUP($A3,BBDD!$B$7:$EA$280,AW$1,FALSE) -> 15.37 | AX3: =VLOOKUP($A3,BBDD!$B$7:$EA$280,AX$1,FALSE) -> 55.15 | AY3: =VLOOKUP($A3,BBDD!$B$7:$EA$280,AY$1,FALSE) -> 3.55 | AZ3: =VLOOKUP($A3,BBDD!$B$7:$EA$280,AZ$1,FALSE) -> 46.89 | BA3: =VLOOKUP($A3,BBDD!$B$7:$EA$280,BA$1,FALSE) -> 3.47 | BB3: =VLOOKUP($A3,BBDD!$B$7:$EA$280,BB$1,FALSE) -> 45.79 | BC3: =VLOOKUP($A3,BBDD!$B$7:$EA$280,BC$1,FALSE) -> 3.55 | BD3: =VLOOKUP($A3,BBDD!$B$7:$EA$280,BD$1,FALSE) -> 14.46 | BE3: =VLOOKUP($A3,BBDD!$B$7:$EA$280,BE$1,FALSE) -> 2.79 | BF3: =VLOOKUP($A3,BBDD!$B$7:$EA$280,BF$1,FALSE) -> 2.79 | BG3: =VLOOKUP($A3,BBDD!$B$7:$EA$280,BG$1,FALSE) -> 33.39 | BH3: =VLOOKUP($A3,BBDD!$B$7:$EA$280,BH$1,FALSE) -> 2.79 | BI3: =VLOOKUP($A3,BBDD!$B$7:$EA$280,BI$1,FALSE) -> 2.79 | BJ3: =VLOOKUP($A3,BBDD!$B$7:$EA$280,BJ$1,FALSE) -> 10.02 | BK3: =VLOOKUP($A3,BBDD!$B$7:$EA$280,BK$1,FALSE) -> 66.78 | BL3: =VLOOKUP($A3,BBDD!$B$7:$EA$280,BL$1,FALSE) -> 2.86 | BM3: =VLOOKUP($A3,BBDD!$B$7:$EA$280,BM$1,FALSE) -> 2.86 | BN3: =VLOOKUP($A3,BBDD!$B$7:$EA$280,BN$1,FALSE) -> 68.38 | BO3: =VLOOKUP($A3,BBDD!$B$7:$EA$280,BO$1,FALSE) -> 3.47 | BP3: =VLOOKUP($A3,BBDD!$B$7:$EA$280,BP$1,FALSE) -> 1.89 | BQ3: =VLOOKUP($A3,BBDD!$B$7:$EA$280,BQ$1,FALSE) -> 33.94 | BR3: =VLOOKUP($A3,BBDD!$B$7:$EA$280,BR$1,FALSE) -> 3.47 | BS3: =VLOOKUP($A3,BBDD!$B$7:$EA$280,BS$1,FALSE) -> 1.89 | BT3: =VLOOKUP($A3,BBDD!$B$7:$EA$280,BT$1,FALSE) -> 10.18 | BU3: =VLOOKUP($A3,BBDD!$B$7:$EA$280,BU$1,FALSE) -> 67.88 | BV3: =VLOOKUP($A3,BBDD!$B$7:$EA$280,BV$1,FALSE) -> 3.55 | BW3: =VLOOKUP($A3,BBDD!$B$7:$EA$280,BW$1,FALSE) -> 1.94 | BX3: =VLOOKUP($A3,BBDD!$B$7:$EA$280,BX$1,FALSE) -> 69.51 | BY3: =VLOOKUP($A3,BBDD!$B$7:$EA$280,BY$1,FALSE) -> 3.47 | BZ3: =VLOOKUP($A3,BBDD!$B$7:$EA$280,BZ$1,FALSE) -> 0 | CA3: =VLOOKUP($A3,BBDD!$B$7:$EA$280,CA$1,FALSE) -> 33.34 | CB3: =VLOOKUP($A3,BBDD!$B$7:$EA$280,CB$1,FALSE) -> 3.47 | CC3: =VLOOKUP($A3,BBDD!$B$7:$EA$280,CC$1,FALSE) -> 0 | CD3: =VLOOKUP($A3,BBDD!$B$7:$EA$280,CD$1,FALSE) -> 10 | CE3: =VLOOKUP($A3,BBDD!$B$7:$EA$280,CE$1,FALSE) -> 66.67 | CF3: =VLOOKUP($A3,BBDD!$B$7:$EA$280,CF$1,FALSE) -> 3.55 | CG3: =VLOOKUP($A3,BBDD!$B$7:$EA$280,CG$1,FALSE) -> 0 | CH3: =VLOOKUP($A3,BBDD!$B$7:$EA$280,CH$1,FALSE) -> 68.27 | CI3: =VLOOKUP($A3,BBDD!$B$7:$EA$280,CI$1,FALSE) -> 0 | CJ3: =VLOOKUP($A3,BBDD!$B$7:$EA$280,CJ$1,FALSE) -> 0 | CK3: =VLOOKUP($A3,BBDD!$B$7:$EA$280,CK$1,FALSE) -> 0 | CL3: =VLOOKUP($A3,BBDD!$B$7:$EA$280,CL$1,FALSE) -> 0 | CM3: =VLOOKUP($A3,BBDD!$B$7:$EA$280,CM$1,FALSE) -> 0 | CN3: =VLOOKUP($A3,BBDD!$B$7:$EA$280,CN$1,FALSE) -> 0 | CO3: =VLOOKUP($A3,BBDD!$B$7:$EA$280,CO$1,FALSE) -> 0 | CP3: =VLOOKUP($A3,BBDD!$B$7:$EA$280,CP$1,FALSE) -> 0 | CQ3: =VLOOKUP($A3,BBDD!$B$7:$EA$280,CQ$1,FALSE) -> 0 | CR3: =VLOOKUP($A3,BBDD!$B$7:$EA$280,CR$1,FALSE) -> 0
A4: PL0197 | B4: =VLOOKUP($A4,BBDD!$B$7:$EA$280,B$1,FALSE) -> 10.47 | C4: =VLOOKUP($A4,BBDD!$B$7:$EA$280,C$1,FALSE) -> 17.62 | D4: =VLOOKUP($A4,BBDD!$B$7:$EA$280,D$1,FALSE) -> 17.62 | E4: =VLOOKUP($A4,BBDD!$B$7:$EA$280,E$1,FALSE) -> 18.12 | F4: =VLOOKUP($A4,BBDD!$B$7:$EA$280,F$1,FALSE) -> 15.48 | G4: =VLOOKUP($A4,BBDD!$B$7:$EA$280,G$1,FALSE) -> 16.87 | H4: =VLOOKUP($A4,BBDD!$B$7:$EA$280,H$1,FALSE) -> 3.18 | I4: =VLOOKUP($A4,BBDD!$B$7:$EA$280,I$1,FALSE) -> 9.34 | J4: =VLOOKUP($A4,BBDD!$B$7:$EA$280,J$1,FALSE) -> 17.62 | K4: =VLOOKUP($A4,BBDD!$B$7:$EA$280,K$1,FALSE) -> 17.62 | L4: =VLOOKUP($A4,BBDD!$B$7:$EA$280,L$1,FALSE) -> 11.72 | M4: =VLOOKUP($A4,BBDD!$B$7:$EA$280,M$1,FALSE) -> 11.72 | N4: =VLOOKUP($A4,BBDD!$B$7:$EA$280,N$1,FALSE) -> 17.22 | O4: =VLOOKUP($A4,BBDD!$B$7:$EA$280,O$1,FALSE) -> 17.22 | P4: =VLOOKUP($A4,BBDD!$B$7:$EA$280,P$1,FALSE) -> 3.18 | Q4: =VLOOKUP($A4,BBDD!$B$7:$EA$280,Q$1,FALSE) -> 9.34 | R4: =VLOOKUP($A4,BBDD!$B$7:$EA$280,R$1,FALSE) -> 17.62 | S4: =VLOOKUP($A4,BBDD!$B$7:$EA$280,S$1,FALSE) -> 11.72 | T4: =VLOOKUP($A4,BBDD!$B$7:$EA$280,T$1,FALSE) -> 11.72 | U4: =VLOOKUP($A4,BBDD!$B$7:$EA$280,U$1,FALSE) -> 17.22 | V4: =VLOOKUP($A4,BBDD!$B$7:$EA$280,V$1,FALSE) -> 17.22 | W4: =VLOOKUP($A4,BBDD!$B$7:$EA$280,W$1,FALSE) -> 3.18 | X4: =VLOOKUP($A4,BBDD!$B$7:$EA$280,X$1,FALSE) -> 10.47 | Y4: =VLOOKUP($A4,BBDD!$B$7:$EA$280,Y$1,FALSE) -> 19.9 | Z4: =VLOOKUP($A4,BBDD!$B$7:$EA$280,Z$1,FALSE) -> 19.9 | AA4: =VLOOKUP($A4,BBDD!$B$7:$EA$280,AA$1,FALSE) -> 20.51 | AB4: =VLOOKUP($A4,BBDD!$B$7:$EA$280,AB$1,FALSE) -> 64.11 | AC4: =VLOOKUP($A4,BBDD!$B$7:$EA$280,AC$1,FALSE) -> 31.56 | AD4: =VLOOKUP($A4,BBDD!$B$7:$EA$280,AD$1,FALSE) -> 3.18 | AE4: =VLOOKUP($A4,BBDD!$B$7:$EA$280,AE$1,FALSE) -> 9.34 | AF4: =VLOOKUP($A4,BBDD!$B$7:$EA$280,AF$1,FALSE) -> 19.9 | AG4: =VLOOKUP($A4,BBDD!$B$7:$EA$280,AG$1,FALSE) -> 19.9 | AH4: =VLOOKUP($A4,BBDD!$B$7:$EA$280,AH$1,FALSE) -> 13.84 | AI4: =VLOOKUP($A4,BBDD!$B$7:$EA$280,AI$1,FALSE) -> 4.62 | AJ4: =VLOOKUP($A4,BBDD!$B$7:$EA$280,AJ$1,FALSE) -> 53.43 | AK4: =VLOOKUP($A4,BBDD!$B$7:$EA$280,AK$1,FALSE) -> 39.22 | AL4: =VLOOKUP($A4,BBDD!$B$7:$EA$280,AL$1,FALSE) -> 3.18 | AM4: =VLOOKUP($A4,BBDD!$B$7:$EA$280,AM$1,FALSE) -> 9.34 | AN4: =VLOOKUP($A4,BBDD!$B$7:$EA$280,AN$1,FALSE) -> 19.9 | AO4: =VLOOKUP($A4,BBDD!$B$7:$EA$280,AO$1,FALSE) -> 13.84 | AP4: =VLOOKUP($A4,BBDD!$B$7:$EA$280,AP$1,FALSE) -> 4.62 | AQ4: =VLOOKUP($A4,BBDD!$B$7:$EA$280,AQ$1,FALSE) -> 53.43 | AR4: =VLOOKUP($A4,BBDD!$B$7:$EA$280,AR$1,FALSE) -> 39.22 | AS4: =VLOOKUP($A4,BBDD!$B$7:$EA$280,AS$1,FALSE) -> 3.18 | AT4: =VLOOKUP($A4,BBDD!$B$7:$EA$280,AT$1,FALSE) -> 9.34 | AU4: =VLOOKUP($A4,BBDD!$B$7:$EA$280,AU$1,FALSE) -> 109.64 | AV4: =VLOOKUP($A4,BBDD!$B$7:$EA$280,AV$1,FALSE) -> 114.87 | AW4: =VLOOKUP($A4,BBDD!$B$7:$EA$280,AW$1,FALSE) -> 19.9 | AX4: =VLOOKUP($A4,BBDD!$B$7:$EA$280,AX$1,FALSE) -> 53.86 | AY4: =VLOOKUP($A4,BBDD!$B$7:$EA$280,AY$1,FALSE) -> 3.25 | AZ4: =VLOOKUP($A4,BBDD!$B$7:$EA$280,AZ$1,FALSE) -> 47.07 | BA4: =VLOOKUP($A4,BBDD!$B$7:$EA$280,BA$1,FALSE) -> 3.25 | BB4: =VLOOKUP($A4,BBDD!$B$7:$EA$280,BB$1,FALSE) -> 47.07 | BC4: =VLOOKUP($A4,BBDD!$B$7:$EA$280,BC$1,FALSE) -> 3.25 | BD4: =VLOOKUP($A4,BBDD!$B$7:$EA$280,BD$1,FALSE) -> 15 | BE4: =VLOOKUP($A4,BBDD!$B$7:$EA$280,BE$1,FALSE) -> 2.62 | BF4: =VLOOKUP($A4,BBDD!$B$7:$EA$280,BF$1,FALSE) -> 2.34 | BG4: =VLOOKUP($A4,BBDD!$B$7:$EA$280,BG$1,FALSE) -> 21.14 | BH4: =VLOOKUP($A4,BBDD!$B$7:$EA$280,BH$1,FALSE) -> 2.62 | BI4: =VLOOKUP($A4,BBDD!$B$7:$EA$280,BI$1,FALSE) -> 2.34 | BJ4: =VLOOKUP($A4,BBDD!$B$7:$EA$280,BJ$1,FALSE) -> 6.34 | BK4: =VLOOKUP($A4,BBDD!$B$7:$EA$280,BK$1,FALSE) -> 56.37 | BL4: =VLOOKUP($A4,BBDD!$B$7:$EA$280,BL$1,FALSE) -> 2.62 | BM4: =VLOOKUP($A4,BBDD!$B$7:$EA$280,BM$1,FALSE) -> 2.34 | BN4: =VLOOKUP($A4,BBDD!$B$7:$EA$280,BN$1,FALSE) -> 56.37 | BO4: =VLOOKUP($A4,BBDD!$B$7:$EA$280,BO$1,FALSE) -> 3.25 | BP4: =VLOOKUP($A4,BBDD!$B$7:$EA$280,BP$1,FALSE) -> 1.75 | BQ4: =VLOOKUP($A4,BBDD!$B$7:$EA$280,BQ$1,FALSE) -> 21.46 | BR4: =VLOOKUP($A4,BBDD!$B$7:$EA$280,BR$1,FALSE) -> 3.25 | BS4: =VLOOKUP($A4,BBDD!$B$7:$EA$280,BS$1,FALSE) -> 1.75 | BT4: =VLOOKUP($A4,BBDD!$B$7:$EA$280,BT$1,FALSE) -> 6.44 | BU4: =VLOOKUP($A4,BBDD!$B$7:$EA$280,BU$1,FALSE) -> 57.23 | BV4: =VLOOKUP($A4,BBDD!$B$7:$EA$280,BV$1,FALSE) -> 3.25 | BW4: =VLOOKUP($A4,BBDD!$B$7:$EA$280,BW$1,FALSE) -> 1.75 | BX4: =VLOOKUP($A4,BBDD!$B$7:$EA$280,BX$1,FALSE) -> 57.23 | BY4: =VLOOKUP($A4,BBDD!$B$7:$EA$280,BY$1,FALSE) -> 3.25 | BZ4: =VLOOKUP($A4,BBDD!$B$7:$EA$280,BZ$1,FALSE) -> 0 | CA4: =VLOOKUP($A4,BBDD!$B$7:$EA$280,CA$1,FALSE) -> 20.97 | CB4: =VLOOKUP($A4,BBDD!$B$7:$EA$280,CB$1,FALSE) -> 3.25 | CC4: =VLOOKUP($A4,BBDD!$B$7:$EA$280,CC$1,FALSE) -> 0 | CD4: =VLOOKUP($A4,BBDD!$B$7:$EA$280,CD$1,FALSE) -> 6.29 | CE4: =VLOOKUP($A4,BBDD!$B$7:$EA$280,CE$1,FALSE) -> 55.92 | CF4: =VLOOKUP($A4,BBDD!$B$7:$EA$280,CF$1,FALSE) -> 3.25 | CG4: =VLOOKUP($A4,BBDD!$B$7:$EA$280,CG$1,FALSE) -> 0 | CH4: =VLOOKUP($A4,BBDD!$B$7:$EA$280,CH$1,FALSE) -> 55.92 | CI4: =VLOOKUP($A4,BBDD!$B$7:$EA$280,CI$1,FALSE) -> 0 | CJ4: =VLOOKUP($A4,BBDD!$B$7:$EA$280,CJ$1,FALSE) -> 0 | CK4: =VLOOKUP($A4,BBDD!$B$7:$EA$280,CK$1,FALSE) -> 0 | CL4: =VLOOKUP($A4,BBDD!$B$7:$EA$280,CL$1,FALSE) -> 0 | CM4: =VLOOKUP($A4,BBDD!$B$7:$EA$280,CM$1,FALSE) -> 0 | CN4: =VLOOKUP($A4,BBDD!$B$7:$EA$280,CN$1,FALSE) -> 0 | CO4: =VLOOKUP($A4,BBDD!$B$7:$EA$280,CO$1,FALSE) -> 0 | CP4: =VLOOKUP($A4,BBDD!$B$7:$EA$280,CP$1,FALSE) -> 0 | CQ4: =VLOOKUP($A4,BBDD!$B$7:$EA$280,CQ$1,FALSE) -> 0 | CR4: =VLOOKUP($A4,BBDD!$B$7:$EA$280,CR$1,FALSE) -> 0
A5: PR0198 | B5: =VLOOKUP($A5,BBDD!$B$7:$EA$280,B$1,FALSE) -> 10.99 | C5: =VLOOKUP($A5,BBDD!$B$7:$EA$280,C$1,FALSE) -> 15.61 | D5: =VLOOKUP($A5,BBDD!$B$7:$EA$280,D$1,FALSE) -> 12.93 | E5: =VLOOKUP($A5,BBDD!$B$7:$EA$280,E$1,FALSE) -> 27.18 | F5: =VLOOKUP($A5,BBDD!$B$7:$EA$280,F$1,FALSE) -> 15.85 | G5: =VLOOKUP($A5,BBDD!$B$7:$EA$280,G$1,FALSE) -> 17.27 | H5: =VLOOKUP($A5,BBDD!$B$7:$EA$280,H$1,FALSE) -> 3.26 | I5: =VLOOKUP($A5,BBDD!$B$7:$EA$280,I$1,FALSE) -> 10.99 | J5: =VLOOKUP($A5,BBDD!$B$7:$EA$280,J$1,FALSE) -> 15.61 | K5: =VLOOKUP($A5,BBDD!$B$7:$EA$280,K$1,FALSE) -> 12.93 | L5: =VLOOKUP($A5,BBDD!$B$7:$EA$280,L$1,FALSE) -> 17.57 | M5: =VLOOKUP($A5,BBDD!$B$7:$EA$280,M$1,FALSE) -> 17.57 | N5: =VLOOKUP($A5,BBDD!$B$7:$EA$280,N$1,FALSE) -> 17.63 | O5: =VLOOKUP($A5,BBDD!$B$7:$EA$280,O$1,FALSE) -> 17.63 | P5: =VLOOKUP($A5,BBDD!$B$7:$EA$280,P$1,FALSE) -> 3.26 | Q5: =VLOOKUP($A5,BBDD!$B$7:$EA$280,Q$1,FALSE) -> 10.99 | R5: =VLOOKUP($A5,BBDD!$B$7:$EA$280,R$1,FALSE) -> 13.8 | S5: =VLOOKUP($A5,BBDD!$B$7:$EA$280,S$1,FALSE) -> 17.57 | T5: =VLOOKUP($A5,BBDD!$B$7:$EA$280,T$1,FALSE) -> 17.57 | U5: =VLOOKUP($A5,BBDD!$B$7:$EA$280,U$1,FALSE) -> 17.63 | V5: =VLOOKUP($A5,BBDD!$B$7:$EA$280,V$1,FALSE) -> 17.63 | W5: =VLOOKUP($A5,BBDD!$B$7:$EA$280,W$1,FALSE) -> 3.26 | X5: =VLOOKUP($A5,BBDD!$B$7:$EA$280,X$1,FALSE) -> 10.99 | Y5: =VLOOKUP($A5,BBDD!$B$7:$EA$280,Y$1,FALSE) -> 17.27 | Z5: =VLOOKUP($A5,BBDD!$B$7:$EA$280,Z$1,FALSE) -> 14.31 | AA5: =VLOOKUP($A5,BBDD!$B$7:$EA$280,AA$1,FALSE) -> 30.13 | AB5: =VLOOKUP($A5,BBDD!$B$7:$EA$280,AB$1,FALSE) -> 65.28 | AC5: =VLOOKUP($A5,BBDD!$B$7:$EA$280,AC$1,FALSE) -> 32.32 | AD5: =VLOOKUP($A5,BBDD!$B$7:$EA$280,AD$1,FALSE) -> 3.26 | AE5: =VLOOKUP($A5,BBDD!$B$7:$EA$280,AE$1,FALSE) -> 10.99 | AF5: =VLOOKUP($A5,BBDD!$B$7:$EA$280,AF$1,FALSE) -> 17.27 | AG5: =VLOOKUP($A5,BBDD!$B$7:$EA$280,AG$1,FALSE) -> 14.31 | AH5: =VLOOKUP($A5,BBDD!$B$7:$EA$280,AH$1,FALSE) -> 20.34 | AI5: =VLOOKUP($A5,BBDD!$B$7:$EA$280,AI$1,FALSE) -> 6.79 | AJ5: =VLOOKUP($A5,BBDD!$B$7:$EA$280,AJ$1,FALSE) -> 54.5 | AK5: =VLOOKUP($A5,BBDD!$B$7:$EA$280,AK$1,FALSE) -> 40.08 | AL5: =VLOOKUP($A5,BBDD!$B$7:$EA$280,AL$1,FALSE) -> 3.26 | AM5: =VLOOKUP($A5,BBDD!$B$7:$EA$280,AM$1,FALSE) -> 10.99 | AN5: =VLOOKUP($A5,BBDD!$B$7:$EA$280,AN$1,FALSE) -> 15.28 | AO5: =VLOOKUP($A5,BBDD!$B$7:$EA$280,AO$1,FALSE) -> 20.34 | AP5: =VLOOKUP($A5,BBDD!$B$7:$EA$280,AP$1,FALSE) -> 6.79 | AQ5: =VLOOKUP($A5,BBDD!$B$7:$EA$280,AQ$1,FALSE) -> 54.5 | AR5: =VLOOKUP($A5,BBDD!$B$7:$EA$280,AR$1,FALSE) -> 40.08 | AS5: =VLOOKUP($A5,BBDD!$B$7:$EA$280,AS$1,FALSE) -> 3.26 | AT5: =VLOOKUP($A5,BBDD!$B$7:$EA$280,AT$1,FALSE) -> 10.99 | AU5: =VLOOKUP($A5,BBDD!$B$7:$EA$280,AU$1,FALSE) -> 118.46 | AV5: =VLOOKUP($A5,BBDD!$B$7:$EA$280,AV$1,FALSE) -> 124.34 | AW5: =VLOOKUP($A5,BBDD!$B$7:$EA$280,AW$1,FALSE) -> 14.31 | AX5: =VLOOKUP($A5,BBDD!$B$7:$EA$280,AX$1,FALSE) -> 55.15 | AY5: =VLOOKUP($A5,BBDD!$B$7:$EA$280,AY$1,FALSE) -> 3.55 | AZ5: =VLOOKUP($A5,BBDD!$B$7:$EA$280,AZ$1,FALSE) -> 45.92 | BA5: =VLOOKUP($A5,BBDD!$B$7:$EA$280,BA$1,FALSE) -> 3.47 | BB5: =VLOOKUP($A5,BBDD!$B$7:$EA$280,BB$1,FALSE) -> 44.84 | BC5: =VLOOKUP($A5,BBDD!$B$7:$EA$280,BC$1,FALSE) -> 3.55 | BD5: =VLOOKUP($A5,BBDD!$B$7:$EA$280,BD$1,FALSE) -> 14.2 | BE5: =VLOOKUP($A5,BBDD!$B$7:$EA$280,BE$1,FALSE) -> 2.79 | BF5: =VLOOKUP($A5,BBDD!$B$7:$EA$280,BF$1,FALSE) -> 2.79 | BG5: =VLOOKUP($A5,BBDD!$B$7:$EA$280,BG$1,FALSE) -> 32.81 | BH5: =VLOOKUP($A5,BBDD!$B$7:$EA$280,BH$1,FALSE) -> 2.79 | BI5: =VLOOKUP($A5,BBDD!$B$7:$EA$280,BI$1,FALSE) -> 2.79 | BJ5: =VLOOKUP($A5,BBDD!$B$7:$EA$280,BJ$1,FALSE) -> 9.84 | BK5: =VLOOKUP($A5,BBDD!$B$7:$EA$280,BK$1,FALSE) -> 65.62 | BL5: =VLOOKUP($A5,BBDD!$B$7:$EA$280,BL$1,FALSE) -> 2.86 | BM5: =VLOOKUP($A5,BBDD!$B$7:$EA$280,BM$1,FALSE) -> 2.86 | BN5: =VLOOKUP($A5,BBDD!$B$7:$EA$280,BN$1,FALSE) -> 67.19 | BO5: =VLOOKUP($A5,BBDD!$B$7:$EA$280,BO$1,FALSE) -> 3.47 | BP5: =VLOOKUP($A5,BBDD!$B$7:$EA$280,BP$1,FALSE) -> 1.89 | BQ5: =VLOOKUP($A5,BBDD!$B$7:$EA$280,BQ$1,FALSE) -> 33.35 | BR5: =VLOOKUP($A5,BBDD!$B$7:$EA$280,BR$1,FALSE) -> 3.47 | BS5: =VLOOKUP($A5,BBDD!$B$7:$EA$280,BS$1,FALSE) -> 1.89 | BT5: =VLOOKUP($A5,BBDD!$B$7:$EA$280,BT$1,FALSE) -> 10.01 | BU5: =VLOOKUP($A5,BBDD!$B$7:$EA$280,BU$1,FALSE) -> 66.7 | BV5: =VLOOKUP($A5,BBDD!$B$7:$EA$280,BV$1,FALSE) -> 3.55 | BW5: =VLOOKUP($A5,BBDD!$B$7:$EA$280,BW$1,FALSE) -> 1.94 | BX5: =VLOOKUP($A5,BBDD!$B$7:$EA$280,BX$1,FALSE) -> 68.3 | BY5: =VLOOKUP($A5,BBDD!$B$7:$EA$280,BY$1,FALSE) -> 3.47 | BZ5: =VLOOKUP($A5,BBDD!$B$7:$EA$280,BZ$1,FALSE) -> 0 | CA5: =VLOOKUP($A5,BBDD!$B$7:$EA$280,CA$1,FALSE) -> 32.76 | CB5: =VLOOKUP($A5,BBDD!$B$7:$EA$280,CB$1,FALSE) -> 3.47 | CC5: =VLOOKUP($A5,BBDD!$B$7:$EA$280,CC$1,FALSE) -> 0 | CD5: =VLOOKUP($A5,BBDD!$B$7:$EA$280,CD$1,FALSE) -> 9.83 | CE5: =VLOOKUP($A5,BBDD!$B$7:$EA$280,CE$1,FALSE) -> 65.52 | CF5: =VLOOKUP($A5,BBDD!$B$7:$EA$280,CF$1,FALSE) -> 3.55 | CG5: =VLOOKUP($A5,BBDD!$B$7:$EA$280,CG$1,FALSE) -> 0 | CH5: =VLOOKUP($A5,BBDD!$B$7:$EA$280,CH$1,FALSE) -> 67.09 | CI5: =VLOOKUP($A5,BBDD!$B$7:$EA$280,CI$1,FALSE) -> 0 | CJ5: =VLOOKUP($A5,BBDD!$B$7:$EA$280,CJ$1,FALSE) -> 0 | CK5: =VLOOKUP($A5,BBDD!$B$7:$EA$280,CK$1,FALSE) -> 0 | CL5: =VLOOKUP($A5,BBDD!$B$7:$EA$280,CL$1,FALSE) -> 0 | CM5: =VLOOKUP($A5,BBDD!$B$7:$EA$280,CM$1,FALSE) -> 0 | CN5: =VLOOKUP($A5,BBDD!$B$7:$EA$280,CN$1,FALSE) -> 0 | CO5: =VLOOKUP($A5,BBDD!$B$7:$EA$280,CO$1,FALSE) -> 0 | CP5: =VLOOKUP($A5,BBDD!$B$7:$EA$280,CP$1,FALSE) -> 0 | CQ5: =VLOOKUP($A5,BBDD!$B$7:$EA$280,CQ$1,FALSE) -> 0 | CR5: =VLOOKUP($A5,BBDD!$B$7:$EA$280,CR$1,FALSE) -> 0
A6: PR0201 | B6: =VLOOKUP($A6,BBDD!$B$7:$EA$280,B$1,FALSE) -> 10.73 | C6: =VLOOKUP($A6,BBDD!$B$7:$EA$280,C$1,FALSE) -> 17.83 | D6: =VLOOKUP($A6,BBDD!$B$7:$EA$280,D$1,FALSE) -> 17.83 | E6: =VLOOKUP($A6,BBDD!$B$7:$EA$280,E$1,FALSE) -> 19.08 | F6: =VLOOKUP($A6,BBDD!$B$7:$EA$280,F$1,FALSE) -> 15.48 | G6: =VLOOKUP($A6,BBDD!$B$7:$EA$280,G$1,FALSE) -> 16.87 | H6: =VLOOKUP($A6,BBDD!$B$7:$EA$280,H$1,FALSE) -> 3.18 | I6: =VLOOKUP($A6,BBDD!$B$7:$EA$280,I$1,FALSE) -> 10.73 | J6: =VLOOKUP($A6,BBDD!$B$7:$EA$280,J$1,FALSE) -> 17.83 | K6: =VLOOKUP($A6,BBDD!$B$7:$EA$280,K$1,FALSE) -> 17.83 | L6: =VLOOKUP($A6,BBDD!$B$7:$EA$280,L$1,FALSE) -> 12.34 | M6: =VLOOKUP($A6,BBDD!$B$7:$EA$280,M$1,FALSE) -> 12.34 | N6: =VLOOKUP($A6,BBDD!$B$7:$EA$280,N$1,FALSE) -> 17.22 | O6: =VLOOKUP($A6,BBDD!$B$7:$EA$280,O$1,FALSE) -> 17.22 | P6: =VLOOKUP($A6,BBDD!$B$7:$EA$280,P$1,FALSE) -> 3.18 | Q6: =VLOOKUP($A6,BBDD!$B$7:$EA$280,Q$1,FALSE) -> 10.73 | R6: =VLOOKUP($A6,BBDD!$B$7:$EA$280,R$1,FALSE) -> 17.83 | S6: =VLOOKUP($A6,BBDD!$B$7:$EA$280,S$1,FALSE) -> 12.34 | T6: =VLOOKUP($A6,BBDD!$B$7:$EA$280,T$1,FALSE) -> 12.34 | U6: =VLOOKUP($A6,BBDD!$B$7:$EA$280,U$1,FALSE) -> 17.22 | V6: =VLOOKUP($A6,BBDD!$B$7:$EA$280,V$1,FALSE) -> 17.22 | W6: =VLOOKUP($A6,BBDD!$B$7:$EA$280,W$1,FALSE) -> 3.18 | X6: =VLOOKUP($A6,BBDD!$B$7:$EA$280,X$1,FALSE) -> 10.73 | Y6: =VLOOKUP($A6,BBDD!$B$7:$EA$280,Y$1,FALSE) -> 19.73 | Z6: =VLOOKUP($A6,BBDD!$B$7:$EA$280,Z$1,FALSE) -> 19.73 | AA6: =VLOOKUP($A6,BBDD!$B$7:$EA$280,AA$1,FALSE) -> 21.15 | AB6: =VLOOKUP($A6,BBDD!$B$7:$EA$280,AB$1,FALSE) -> 63.75 | AC6: =VLOOKUP($A6,BBDD!$B$7:$EA$280,AC$1,FALSE) -> 31.56 | AD6: =VLOOKUP($A6,BBDD!$B$7:$EA$280,AD$1,FALSE) -> 3.18 | AE6: =VLOOKUP($A6,BBDD!$B$7:$EA$280,AE$1,FALSE) -> 10.73 | AF6: =VLOOKUP($A6,BBDD!$B$7:$EA$280,AF$1,FALSE) -> 19.73 | AG6: =VLOOKUP($A6,BBDD!$B$7:$EA$280,AG$1,FALSE) -> 19.73 | AH6: =VLOOKUP($A6,BBDD!$B$7:$EA$280,AH$1,FALSE) -> 14.28 | AI6: =VLOOKUP($A6,BBDD!$B$7:$EA$280,AI$1,FALSE) -> 4.77 | AJ6: =VLOOKUP($A6,BBDD!$B$7:$EA$280,AJ$1,FALSE) -> 53.22 | AK6: =VLOOKUP($A6,BBDD!$B$7:$EA$280,AK$1,FALSE) -> 39.14 | AL6: =VLOOKUP($A6,BBDD!$B$7:$EA$280,AL$1,FALSE) -> 3.18 | AM6: =VLOOKUP($A6,BBDD!$B$7:$EA$280,AM$1,FALSE) -> 10.73 | AN6: =VLOOKUP($A6,BBDD!$B$7:$EA$280,AN$1,FALSE) -> 19.73 | AO6: =VLOOKUP($A6,BBDD!$B$7:$EA$280,AO$1,FALSE) -> 14.28 | AP6: =VLOOKUP($A6,BBDD!$B$7:$EA$280,AP$1,FALSE) -> 4.77 | AQ6: =VLOOKUP($A6,BBDD!$B$7:$EA$280,AQ$1,FALSE) -> 53.22 | AR6: =VLOOKUP($A6,BBDD!$B$7:$EA$280,AR$1,FALSE) -> 39.14 | AS6: =VLOOKUP($A6,BBDD!$B$7:$EA$280,AS$1,FALSE) -> 3.18 | AT6: =VLOOKUP($A6,BBDD!$B$7:$EA$280,AT$1,FALSE) -> 10.73 | AU6: =VLOOKUP($A6,BBDD!$B$7:$EA$280,AU$1,FALSE) -> 109.77 | AV6: =VLOOKUP($A6,BBDD!$B$7:$EA$280,AV$1,FALSE) -> 115.02 | AW6: =VLOOKUP($A6,BBDD!$B$7:$EA$280,AW$1,FALSE) -> 19.73 | AX6: =VLOOKUP($A6,BBDD!$B$7:$EA$280,AX$1,FALSE) -> 53.86 | AY6: =VLOOKUP($A6,BBDD!$B$7:$EA$280,AY$1,FALSE) -> 3.47 | AZ6: =VLOOKUP($A6,BBDD!$B$7:$EA$280,AZ$1,FALSE) -> 46.99 | BA6: =VLOOKUP($A6,BBDD!$B$7:$EA$280,BA$1,FALSE) -> 3.47 | BB6: =VLOOKUP($A6,BBDD!$B$7:$EA$280,BB$1,FALSE) -> 46.99 | BC6: =VLOOKUP($A6,BBDD!$B$7:$EA$280,BC$1,FALSE) -> 3.47 | BD6: =VLOOKUP($A6,BBDD!$B$7:$EA$280,BD$1,FALSE) -> 13.92 | BE6: =VLOOKUP($A6,BBDD!$B$7:$EA$280,BE$1,FALSE) -> 2.79 | BF6: =VLOOKUP($A6,BBDD!$B$7:$EA$280,BF$1,FALSE) -> 2.79 | BG6: =VLOOKUP($A6,BBDD!$B$7:$EA$280,BG$1,FALSE) -> 24.69 | BH6: =VLOOKUP($A6,BBDD!$B$7:$EA$280,BH$1,FALSE) -> 2.79 | BI6: =VLOOKUP($A6,BBDD!$B$7:$EA$280,BI$1,FALSE) -> 2.79 | BJ6: =VLOOKUP($A6,BBDD!$B$7:$EA$280,BJ$1,FALSE) -> 7.41 | BK6: =VLOOKUP($A6,BBDD!$B$7:$EA$280,BK$1,FALSE) -> 65.83 | BL6: =VLOOKUP($A6,BBDD!$B$7:$EA$280,BL$1,FALSE) -> 2.79 | BM6: =VLOOKUP($A6,BBDD!$B$7:$EA$280,BM$1,FALSE) -> 2.79 | BN6: =VLOOKUP($A6,BBDD!$B$7:$EA$280,BN$1,FALSE) -> 65.83 | BO6: =VLOOKUP($A6,BBDD!$B$7:$EA$280,BO$1,FALSE) -> 3.47 | BP6: =VLOOKUP($A6,BBDD!$B$7:$EA$280,BP$1,FALSE) -> 1.89 | BQ6: =VLOOKUP($A6,BBDD!$B$7:$EA$280,BQ$1,FALSE) -> 25.1 | BR6: =VLOOKUP($A6,BBDD!$B$7:$EA$280,BR$1,FALSE) -> 3.47 | BS6: =VLOOKUP($A6,BBDD!$B$7:$EA$280,BS$1,FALSE) -> 1.89 | BT6: =VLOOKUP($A6,BBDD!$B$7:$EA$280,BT$1,FALSE) -> 7.53 | BU6: =VLOOKUP($A6,BBDD!$B$7:$EA$280,BU$1,FALSE) -> 66.92 | BV6: =VLOOKUP($A6,BBDD!$B$7:$EA$280,BV$1,FALSE) -> 3.47 | BW6: =VLOOKUP($A6,BBDD!$B$7:$EA$280,BW$1,FALSE) -> 1.89 | BX6: =VLOOKUP($A6,BBDD!$B$7:$EA$280,BX$1,FALSE) -> 66.92 | BY6: =VLOOKUP($A6,BBDD!$B$7:$EA$280,BY$1,FALSE) -> 3.47 | BZ6: =VLOOKUP($A6,BBDD!$B$7:$EA$280,BZ$1,FALSE) -> 0 | CA6: =VLOOKUP($A6,BBDD!$B$7:$EA$280,CA$1,FALSE) -> 24.69 | CB6: =VLOOKUP($A6,BBDD!$B$7:$EA$280,CB$1,FALSE) -> 3.47 | CC6: =VLOOKUP($A6,BBDD!$B$7:$EA$280,CC$1,FALSE) -> 0 | CD6: =VLOOKUP($A6,BBDD!$B$7:$EA$280,CD$1,FALSE) -> 7.41 | CE6: =VLOOKUP($A6,BBDD!$B$7:$EA$280,CE$1,FALSE) -> 65.84 | CF6: =VLOOKUP($A6,BBDD!$B$7:$EA$280,CF$1,FALSE) -> 3.47 | CG6: =VLOOKUP($A6,BBDD!$B$7:$EA$280,CG$1,FALSE) -> 0 | CH6: =VLOOKUP($A6,BBDD!$B$7:$EA$280,CH$1,FALSE) -> 65.84 | CI6: =VLOOKUP($A6,BBDD!$B$7:$EA$280,CI$1,FALSE) -> 0 | CJ6: =VLOOKUP($A6,BBDD!$B$7:$EA$280,CJ$1,FALSE) -> 0 | CK6: =VLOOKUP($A6,BBDD!$B$7:$EA$280,CK$1,FALSE) -> 0 | CL6: =VLOOKUP($A6,BBDD!$B$7:$EA$280,CL$1,FALSE) -> 0 | CM6: =VLOOKUP($A6,BBDD!$B$7:$EA$280,CM$1,FALSE) -> 0 | CN6: =VLOOKUP($A6,BBDD!$B$7:$EA$280,CN$1,FALSE) -> 0 | CO6: =VLOOKUP($A6,BBDD!$B$7:$EA$280,CO$1,FALSE) -> 0 | CP6: =VLOOKUP($A6,BBDD!$B$7:$EA$280,CP$1,FALSE) -> 0 | CQ6: =VLOOKUP($A6,BBDD!$B$7:$EA$280,CQ$1,FALSE) -> 0 | CR6: =VLOOKUP($A6,BBDD!$B$7:$EA$280,CR$1,FALSE) -> 0
A7: PR0202 | B7: =VLOOKUP($A7,BBDD!$B$7:$EA$280,B$1,FALSE) -> 10.73 | C7: =VLOOKUP($A7,BBDD!$B$7:$EA$280,C$1,FALSE) -> 17.83 | D7: =VLOOKUP($A7,BBDD!$B$7:$EA$280,D$1,FALSE) -> 17.83 | E7: =VLOOKUP($A7,BBDD!$B$7:$EA$280,E$1,FALSE) -> 19.08 | F7: =VLOOKUP($A7,BBDD!$B$7:$EA$280,F$1,FALSE) -> 15.48 | G7: =VLOOKUP($A7,BBDD!$B$7:$EA$280,G$1,FALSE) -> 16.87 | H7: =VLOOKUP($A7,BBDD!$B$7:$EA$280,H$1,FALSE) -> 3.18 | I7: =VLOOKUP($A7,BBDD!$B$7:$EA$280,I$1,FALSE) -> 10.73 | J7: =VLOOKUP($A7,BBDD!$B$7:$EA$280,J$1,FALSE) -> 17.83 | K7: =VLOOKUP($A7,BBDD!$B$7:$EA$280,K$1,FALSE) -> 17.83 | L7: =VLOOKUP($A7,BBDD!$B$7:$EA$280,L$1,FALSE) -> 12.34 | M7: =VLOOKUP($A7,BBDD!$B$7:$EA$280,M$1,FALSE) -> 12.34 | N7: =VLOOKUP($A7,BBDD!$B$7:$EA$280,N$1,FALSE) -> 17.22 | O7: =VLOOKUP($A7,BBDD!$B$7:$EA$280,O$1,FALSE) -> 17.22 | P7: =VLOOKUP($A7,BBDD!$B$7:$EA$280,P$1,FALSE) -> 3.18 | Q7: =VLOOKUP($A7,BBDD!$B$7:$EA$280,Q$1,FALSE) -> 10.73 | R7: =VLOOKUP($A7,BBDD!$B$7:$EA$280,R$1,FALSE) -> 17.83 | S7: =VLOOKUP($A7,BBDD!$B$7:$EA$280,S$1,FALSE) -> 12.34 | T7: =VLOOKUP($A7,BBDD!$B$7:$EA$280,T$1,FALSE) -> 12.34 | U7: =VLOOKUP($A7,BBDD!$B$7:$EA$280,U$1,FALSE) -> 17.22 | V7: =VLOOKUP($A7,BBDD!$B$7:$EA$280,V$1,FALSE) -> 17.22 | W7: =VLOOKUP($A7,BBDD!$B$7:$EA$280,W$1,FALSE) -> 3.18 | X7: =VLOOKUP($A7,BBDD!$B$7:$EA$280,X$1,FALSE) -> 10.73 | Y7: =VLOOKUP($A7,BBDD!$B$7:$EA$280,Y$1,FALSE) -> 19.73 | Z7: =VLOOKUP($A7,BBDD!$B$7:$EA$280,Z$1,FALSE) -> 19.73 | AA7: =VLOOKUP($A7,BBDD!$B$7:$EA$280,AA$1,FALSE) -> 21.15 | AB7: =VLOOKUP($A7,BBDD!$B$7:$EA$280,AB$1,FALSE) -> 63.75 | AC7: =VLOOKUP($A7,BBDD!$B$7:$EA$280,AC$1,FALSE) -> 31.56 | AD7: =VLOOKUP($A7,BBDD!$B$7:$EA$280,AD$1,FALSE) -> 3.18 | AE7: =VLOOKUP($A7,BBDD!$B$7:$EA$280,AE$1,FALSE) -> 10.73 | AF7: =VLOOKUP($A7,BBDD!$B$7:$EA$280,AF$1,FALSE) -> 19.73 | AG7: =VLOOKUP($A7,BBDD!$B$7:$EA$280,AG$1,FALSE) -> 19.73 | AH7: =VLOOKUP($A7,BBDD!$B$7:$EA$280,AH$1,FALSE) -> 14.28 | AI7: =VLOOKUP($A7,BBDD!$B$7:$EA$280,AI$1,FALSE) -> 4.77 | AJ7: =VLOOKUP($A7,BBDD!$B$7:$EA$280,AJ$1,FALSE) -> 53.22 | AK7: =VLOOKUP($A7,BBDD!$B$7:$EA$280,AK$1,FALSE) -> 39.14 | AL7: =VLOOKUP($A7,BBDD!$B$7:$EA$280,AL$1,FALSE) -> 3.18 | AM7: =VLOOKUP($A7,BBDD!$B$7:$EA$280,AM$1,FALSE) -> 10.73 | AN7: =VLOOKUP($A7,BBDD!$B$7:$EA$280,AN$1,FALSE) -> 19.73 | AO7: =VLOOKUP($A7,BBDD!$B$7:$EA$280,AO$1,FALSE) -> 14.28 | AP7: =VLOOKUP($A7,BBDD!$B$7:$EA$280,AP$1,FALSE) -> 4.77 | AQ7: =VLOOKUP($A7,BBDD!$B$7:$EA$280,AQ$1,FALSE) -> 53.22 | AR7: =VLOOKUP($A7,BBDD!$B$7:$EA$280,AR$1,FALSE) -> 39.14 | AS7: =VLOOKUP($A7,BBDD!$B$7:$EA$280,AS$1,FALSE) -> 3.18 | AT7: =VLOOKUP($A7,BBDD!$B$7:$EA$280,AT$1,FALSE) -> 10.73 | AU7: =VLOOKUP($A7,BBDD!$B$7:$EA$280,AU$1,FALSE) -> 109.77 | AV7: =VLOOKUP($A7,BBDD!$B$7:$EA$280,AV$1,FALSE) -> 115.02 | AW7: =VLOOKUP($A7,BBDD!$B$7:$EA$280,AW$1,FALSE) -> 19.73 | AX7: =VLOOKUP($A7,BBDD!$B$7:$EA$280,AX$1,FALSE) -> 53.86 | AY7: =VLOOKUP($A7,BBDD!$B$7:$EA$280,AY$1,FALSE) -> 3.47 | AZ7: =VLOOKUP($A7,BBDD!$B$7:$EA$280,AZ$1,FALSE) -> 46.99 | BA7: =VLOOKUP($A7,BBDD!$B$7:$EA$280,BA$1,FALSE) -> 3.47 | BB7: =VLOOKUP($A7,BBDD!$B$7:$EA$280,BB$1,FALSE) -> 46.99 | BC7: =VLOOKUP($A7,BBDD!$B$7:$EA$280,BC$1,FALSE) -> 3.47 | BD7: =VLOOKUP($A7,BBDD!$B$7:$EA$280,BD$1,FALSE) -> 13.92 | BE7: =VLOOKUP($A7,BBDD!$B$7:$EA$280,BE$1,FALSE) -> 2.79 | BF7: =VLOOKUP($A7,BBDD!$B$7:$EA$280,BF$1,FALSE) -> 2.79 | BG7: =VLOOKUP($A7,BBDD!$B$7:$EA$280,BG$1,FALSE) -> 24.69 | BH7: =VLOOKUP($A7,BBDD!$B$7:$EA$280,BH$1,FALSE) -> 2.79 | BI7: =VLOOKUP($A7,BBDD!$B$7:$EA$280,BI$1,FALSE) -> 2.79 | BJ7: =VLOOKUP($A7,BBDD!$B$7:$EA$280,BJ$1,FALSE) -> 7.41 | BK7: =VLOOKUP($A7,BBDD!$B$7:$EA$280,BK$1,FALSE) -> 65.83 | BL7: =VLOOKUP($A7,BBDD!$B$7:$EA$280,BL$1,FALSE) -> 2.79 | BM7: =VLOOKUP($A7,BBDD!$B$7:$EA$280,BM$1,FALSE) -> 2.79 | BN7: =VLOOKUP($A7,BBDD!$B$7:$EA$280,BN$1,FALSE) -> 65.83 | BO7: =VLOOKUP($A7,BBDD!$B$7:$EA$280,BO$1,FALSE) -> 3.47 | BP7: =VLOOKUP($A7,BBDD!$B$7:$EA$280,BP$1,FALSE) -> 1.89 | BQ7: =VLOOKUP($A7,BBDD!$B$7:$EA$280,BQ$1,FALSE) -> 25.1 | BR7: =VLOOKUP($A7,BBDD!$B$7:$EA$280,BR$1,FALSE) -> 3.47 | BS7: =VLOOKUP($A7,BBDD!$B$7:$EA$280,BS$1,FALSE) -> 1.89 | BT7: =VLOOKUP($A7,BBDD!$B$7:$EA$280,BT$1,FALSE) -> 7.53 | BU7: =VLOOKUP($A7,BBDD!$B$7:$EA$280,BU$1,FALSE) -> 66.92 | BV7: =VLOOKUP($A7,BBDD!$B$7:$EA$280,BV$1,FALSE) -> 3.47 | BW7: =VLOOKUP($A7,BBDD!$B$7:$EA$280,BW$1,FALSE) -> 1.89 | BX7: =VLOOKUP($A7,BBDD!$B$7:$EA$280,BX$1,FALSE) -> 66.92 | BY7: =VLOOKUP($A7,BBDD!$B$7:$EA$280,BY$1,FALSE) -> 3.47 | BZ7: =VLOOKUP($A7,BBDD!$B$7:$EA$280,BZ$1,FALSE) -> 0 | CA7: =VLOOKUP($A7,BBDD!$B$7:$EA$280,CA$1,FALSE) -> 24.69 | CB7: =VLOOKUP($A7,BBDD!$B$7:$EA$280,CB$1,FALSE) -> 3.47 | CC7: =VLOOKUP($A7,BBDD!$B$7:$EA$280,CC$1,FALSE) -> 0 | CD7: =VLOOKUP($A7,BBDD!$B$7:$EA$280,CD$1,FALSE) -> 7.41 | CE7: =VLOOKUP($A7,BBDD!$B$7:$EA$280,CE$1,FALSE) -> 65.84 | CF7: =VLOOKUP($A7,BBDD!$B$7:$EA$280,CF$1,FALSE) -> 3.47 | CG7: =VLOOKUP($A7,BBDD!$B$7:$EA$280,CG$1,FALSE) -> 0 | CH7: =VLOOKUP($A7,BBDD!$B$7:$EA$280,CH$1,FALSE) -> 65.84 | CI7: =VLOOKUP($A7,BBDD!$B$7:$EA$280,CI$1,FALSE) -> 0 | CJ7: =VLOOKUP($A7,BBDD!$B$7:$EA$280,CJ$1,FALSE) -> 0 | CK7: =VLOOKUP($A7,BBDD!$B$7:$EA$280,CK$1,FALSE) -> 0 | CL7: =VLOOKUP($A7,BBDD!$B$7:$EA$280,CL$1,FALSE) -> 0 | CM7: =VLOOKUP($A7,BBDD!$B$7:$EA$280,CM$1,FALSE) -> 0 | CN7: =VLOOKUP($A7,BBDD!$B$7:$EA$280,CN$1,FALSE) -> 0 | CO7: =VLOOKUP($A7,BBDD!$B$7:$EA$280,CO$1,FALSE) -> 0 | CP7: =VLOOKUP($A7,BBDD!$B$7:$EA$280,CP$1,FALSE) -> 0 | CQ7: =VLOOKUP($A7,BBDD!$B$7:$EA$280,CQ$1,FALSE) -> 0 | CR7: =VLOOKUP($A7,BBDD!$B$7:$EA$280,CR$1,FALSE) -> 0
A8: PR0203 | B8: =VLOOKUP($A8,BBDD!$B$7:$EA$280,B$1,FALSE) -> 10.73 | C8: =VLOOKUP($A8,BBDD!$B$7:$EA$280,C$1,FALSE) -> 17.83 | D8: =VLOOKUP($A8,BBDD!$B$7:$EA$280,D$1,FALSE) -> 17.83 | E8: =VLOOKUP($A8,BBDD!$B$7:$EA$280,E$1,FALSE) -> 19.08 | F8: =VLOOKUP($A8,BBDD!$B$7:$EA$280,F$1,FALSE) -> 15.48 | G8: =VLOOKUP($A8,BBDD!$B$7:$EA$280,G$1,FALSE) -> 16.87 | H8: =VLOOKUP($A8,BBDD!$B$7:$EA$280,H$1,FALSE) -> 3.18 | I8: =VLOOKUP($A8,BBDD!$B$7:$EA$280,I$1,FALSE) -> 10.73 | J8: =VLOOKUP($A8,BBDD!$B$7:$EA$280,J$1,FALSE) -> 17.83 | K8: =VLOOKUP($A8,BBDD!$B$7:$EA$280,K$1,FALSE) -> 17.83 | L8: =VLOOKUP($A8,BBDD!$B$7:$EA$280,L$1,FALSE) -> 12.34 | M8: =VLOOKUP($A8,BBDD!$B$7:$EA$280,M$1,FALSE) -> 12.34 | N8: =VLOOKUP($A8,BBDD!$B$7:$EA$280,N$1,FALSE) -> 17.22 | O8: =VLOOKUP($A8,BBDD!$B$7:$EA$280,O$1,FALSE) -> 17.22 | P8: =VLOOKUP($A8,BBDD!$B$7:$EA$280,P$1,FALSE) -> 3.18 | Q8: =VLOOKUP($A8,BBDD!$B$7:$EA$280,Q$1,FALSE) -> 10.73 | R8: =VLOOKUP($A8,BBDD!$B$7:$EA$280,R$1,FALSE) -> 17.83 | S8: =VLOOKUP($A8,BBDD!$B$7:$EA$280,S$1,FALSE) -> 12.34 | T8: =VLOOKUP($A8,BBDD!$B$7:$EA$280,T$1,FALSE) -> 12.34 | U8: =VLOOKUP($A8,BBDD!$B$7:$EA$280,U$1,FALSE) -> 17.22 | V8: =VLOOKUP($A8,BBDD!$B$7:$EA$280,V$1,FALSE) -> 17.22 | W8: =VLOOKUP($A8,BBDD!$B$7:$EA$280,W$1,FALSE) -> 3.18 | X8: =VLOOKUP($A8,BBDD!$B$7:$EA$280,X$1,FALSE) -> 10.73 | Y8: =VLOOKUP($A8,BBDD!$B$7:$EA$280,Y$1,FALSE) -> 19.73 | Z8: =VLOOKUP($A8,BBDD!$B$7:$EA$280,Z$1,FALSE) -> 19.73 | AA8: =VLOOKUP($A8,BBDD!$B$7:$EA$280,AA$1,FALSE) -> 21.15 | AB8: =VLOOKUP($A8,BBDD!$B$7:$EA$280,AB$1,FALSE) -> 63.75 | AC8: =VLOOKUP($A8,BBDD!$B$7:$EA$280,AC$1,FALSE) -> 31.56 | AD8: =VLOOKUP($A8,BBDD!$B$7:$EA$280,AD$1,FALSE) -> 3.18 | AE8: =VLOOKUP($A8,BBDD!$B$7:$EA$280,AE$1,FALSE) -> 10.73 | AF8: =VLOOKUP($A8,BBDD!$B$7:$EA$280,AF$1,FALSE) -> 19.73 | AG8: =VLOOKUP($A8,BBDD!$B$7:$EA$280,AG$1,FALSE) -> 19.73 | AH8: =VLOOKUP($A8,BBDD!$B$7:$EA$280,AH$1,FALSE) -> 14.28 | AI8: =VLOOKUP($A8,BBDD!$B$7:$EA$280,AI$1,FALSE) -> 4.77 | AJ8: =VLOOKUP($A8,BBDD!$B$7:$EA$280,AJ$1,FALSE) -> 53.22 | AK8: =VLOOKUP($A8,BBDD!$B$7:$EA$280,AK$1,FALSE) -> 39.14 | AL8: =VLOOKUP($A8,BBDD!$B$7:$EA$280,AL$1,FALSE) -> 3.18 | AM8: =VLOOKUP($A8,BBDD!$B$7:$EA$280,AM$1,FALSE) -> 10.73 | AN8: =VLOOKUP($A8,BBDD!$B$7:$EA$280,AN$1,FALSE) -> 19.73 | AO8: =VLOOKUP($A8,BBDD!$B$7:$EA$280,AO$1,FALSE) -> 14.28 | AP8: =VLOOKUP($A8,BBDD!$B$7:$EA$280,AP$1,FALSE) -> 4.77 | AQ8: =VLOOKUP($A8,BBDD!$B$7:$EA$280,AQ$1,FALSE) -> 53.22 | AR8: =VLOOKUP($A8,BBDD!$B$7:$EA$280,AR$1,FALSE) -> 39.14 | AS8: =VLOOKUP($A8,BBDD!$B$7:$EA$280,AS$1,FALSE) -> 3.18 | AT8: =VLOOKUP($A8,BBDD!$B$7:$EA$280,AT$1,FALSE) -> 10.73 | AU8: =VLOOKUP($A8,BBDD!$B$7:$EA$280,AU$1,FALSE) -> 109.77 | AV8: =VLOOKUP($A8,BBDD!$B$7:$EA$280,AV$1,FALSE) -> 115.02 | AW8: =VLOOKUP($A8,BBDD!$B$7:$EA$280,AW$1,FALSE) -> 19.73 | AX8: =VLOOKUP($A8,BBDD!$B$7:$EA$280,AX$1,FALSE) -> 53.86 | AY8: =VLOOKUP($A8,BBDD!$B$7:$EA$280,AY$1,FALSE) -> 3.47 | AZ8: =VLOOKUP($A8,BBDD!$B$7:$EA$280,AZ$1,FALSE) -> 46.99 | BA8: =VLOOKUP($A8,BBDD!$B$7:$EA$280,BA$1,FALSE) -> 3.47 | BB8: =VLOOKUP($A8,BBDD!$B$7:$EA$280,BB$1,FALSE) -> 46.99 | BC8: =VLOOKUP($A8,BBDD!$B$7:$EA$280,BC$1,FALSE) -> 3.47 | BD8: =VLOOKUP($A8,BBDD!$B$7:$EA$280,BD$1,FALSE) -> 13.92 | BE8: =VLOOKUP($A8,BBDD!$B$7:$EA$280,BE$1,FALSE) -> 2.79 | BF8: =VLOOKUP($A8,BBDD!$B$7:$EA$280,BF$1,FALSE) -> 2.79 | BG8: =VLOOKUP($A8,BBDD!$B$7:$EA$280,BG$1,FALSE) -> 24.69 | BH8: =VLOOKUP($A8,BBDD!$B$7:$EA$280,BH$1,FALSE) -> 2.79 | BI8: =VLOOKUP($A8,BBDD!$B$7:$EA$280,BI$1,FALSE) -> 2.79 | BJ8: =VLOOKUP($A8,BBDD!$B$7:$EA$280,BJ$1,FALSE) -> 7.41 | BK8: =VLOOKUP($A8,BBDD!$B$7:$EA$280,BK$1,FALSE) -> 65.83 | BL8: =VLOOKUP($A8,BBDD!$B$7:$EA$280,BL$1,FALSE) -> 2.79 | BM8: =VLOOKUP($A8,BBDD!$B$7:$EA$280,BM$1,FALSE) -> 2.79 | BN8: =VLOOKUP($A8,BBDD!$B$7:$EA$280,BN$1,FALSE) -> 65.83 | BO8: =VLOOKUP($A8,BBDD!$B$7:$EA$280,BO$1,FALSE) -> 3.47 | BP8: =VLOOKUP($A8,BBDD!$B$7:$EA$280,BP$1,FALSE) -> 1.89 | BQ8: =VLOOKUP($A8,BBDD!$B$7:$EA$280,BQ$1,FALSE) -> 25.1 | BR8: =VLOOKUP($A8,BBDD!$B$7:$EA$280,BR$1,FALSE) -> 3.47 | BS8: =VLOOKUP($A8,BBDD!$B$7:$EA$280,BS$1,FALSE) -> 1.89 | BT8: =VLOOKUP($A8,BBDD!$B$7:$EA$280,BT$1,FALSE) -> 7.53 | BU8: =VLOOKUP($A8,BBDD!$B$7:$EA$280,BU$1,FALSE) -> 66.92 | BV8: =VLOOKUP($A8,BBDD!$B$7:$EA$280,BV$1,FALSE) -> 3.47 | BW8: =VLOOKUP($A8,BBDD!$B$7:$EA$280,BW$1,FALSE) -> 1.89 | BX8: =VLOOKUP($A8,BBDD!$B$7:$EA$280,BX$1,FALSE) -> 66.92 | BY8: =VLOOKUP($A8,BBDD!$B$7:$EA$280,BY$1,FALSE) -> 3.47 | BZ8: =VLOOKUP($A8,BBDD!$B$7:$EA$280,BZ$1,FALSE) -> 0 | CA8: =VLOOKUP($A8,BBDD!$B$7:$EA$280,CA$1,FALSE) -> 24.69 | CB8: =VLOOKUP($A8,BBDD!$B$7:$EA$280,CB$1,FALSE) -> 3.47 | CC8: =VLOOKUP($A8,BBDD!$B$7:$EA$280,CC$1,FALSE) -> 0 | CD8: =VLOOKUP($A8,BBDD!$B$7:$EA$280,CD$1,FALSE) -> 7.41 | CE8: =VLOOKUP($A8,BBDD!$B$7:$EA$280,CE$1,FALSE) -> 65.84 | CF8: =VLOOKUP($A8,BBDD!$B$7:$EA$280,CF$1,FALSE) -> 3.47 | CG8: =VLOOKUP($A8,BBDD!$B$7:$EA$280,CG$1,FALSE) -> 0 | CH8: =VLOOKUP($A8,BBDD!$B$7:$EA$280,CH$1,FALSE) -> 65.84 | CI8: =VLOOKUP($A8,BBDD!$B$7:$EA$280,CI$1,FALSE) -> 0 | CJ8: =VLOOKUP($A8,BBDD!$B$7:$EA$280,CJ$1,FALSE) -> 0 | CK8: =VLOOKUP($A8,BBDD!$B$7:$EA$280,CK$1,FALSE) -> 0 | CL8: =VLOOKUP($A8,BBDD!$B$7:$EA$280,CL$1,FALSE) -> 0 | CM8: =VLOOKUP($A8,BBDD!$B$7:$EA$280,CM$1,FALSE) -> 0 | CN8: =VLOOKUP($A8,BBDD!$B$7:$EA$280,CN$1,FALSE) -> 0 | CO8: =VLOOKUP($A8,BBDD!$B$7:$EA$280,CO$1,FALSE) -> 0 | CP8: =VLOOKUP($A8,BBDD!$B$7:$EA$280,CP$1,FALSE) -> 0 | CQ8: =VLOOKUP($A8,BBDD!$B$7:$EA$280,CQ$1,FALSE) -> 0 | CR8: =VLOOKUP($A8,BBDD!$B$7:$EA$280,CR$1,FALSE) -> 0
